Workbook

Sheet Kalkulačka
B2: Vyber pár dvoch áut na porovnanie | F2: Nastav základné predpoklady modelu
B3: Trieda | C3: Stredná | D3: Stredná | F3: Ročný počet najazdených kilometrov | H3: 15000 | N3: 15000
B4: Pohon | C4: Elektromobily | D4: Spaľovanie | F4: Cena benzínu za liter (eur) | H4: 1.334 | N4: 1.334
B5: Model | C5: Mercedes B 250e | D5: Mercedes B 250 | F5: Cena nafty za liter (eur) | H5: 1.241 | N5: 1.241
B6: Výkon v kW | C6: =VLOOKUP(C5,Data!$F$2:$N$135,7,FALSE) -> 132 | D6: =VLOOKUP(D5,Data!$F$2:$N$135,7,FALSE) -> 155 | F6: Cena elektriny za kilowatthodinu (eur) | H6: 0.14825 | N6: 0.14825
B7: Rok uvedenia modelu | C7: =VLOOKUP(C5,Data!$F$2:$G$135,2,FALSE) -> 2015 | D7: =VLOOKUP(D5,Data!$F$2:$G$135,2,FALSE) -> 2014 | F7: Reálna diskontná miera | H7: 0.04 | N7: 0.04
B8: Dojazd automobilu v km | C8: =VLOOKUP(Kalkulačka!C5,Data!$F$2:$P$135,11,FALSE) -> 155.5555556 | D8: =VLOOKUP(Kalkulačka!D5,Data!$F$2:$P$135,11,FALSE) -> 595.2380952 | F8: Dotácia pre elektromobil alebo hybrid | H8: 0 | N8: 0
B9: Cena s DPH | C9: =VLOOKUP(C5,Data!$F$2:$I$135,4,FALSE) -> 40800 | D9: =VLOOKUP(D5,Data!$F$2:$I$135,4,FALSE) -> 34290 | F9: Náklady na údržbu elektromobilov na 10 tis. km (eur) | H9: 290 | N9: 290
B10: Zostatková hodnota po 10 rokoch | C10: =Grafy!T111 -> 8160 | D10: =Grafy!T118 -> 7750.046126 | F10: Náklady na údržbu hybridov na 10 tis. km (eur) | H10: 440 | N10: 440
B11: Celkové náklady životnosti | C11: =Grafy!S111 -> 87922.15335 | D11: =Grafy!S118 -> 93621.68389 | F11: Náklady na údržbu spaľovacích áut na 10 tis. km (eur) | H11: 480 | N11: 480
B24: =CONCATENATE("Náklady na prevádzku modelu ",C5) -> Náklady na prevádzku modelu Mercedes B 250e | F24: =CONCATENATE("Náklady na prevádzku modelu ",D5) -> Náklady na prevádzku modelu Mercedes B 250
B37: Zdroje k predpokladom nájdete na záložke "Zdroje"

Sheet Zdroje
A1: Zdroje:
A2: Databáza obsahuje všetky predávané autá na elektrický a hybridný pohon na Slovensku a okrem ostatných aj TOP15 najpredávanejších áut so spaľovacím motorom za rok 2017.
A3: Údaje o cenách a technickej špecifikácii vozidiel pochádzajú zo stránok výrobcov a autorizovaných miestnych predajcov.
A4: Náklady na údržbu pochádzajú zo štúdií Cost Analysis of Plug-in Hybrid Vehicles Including Maintenance & Repair Costs and Resale Values (Propfe, Redelbach, Santini, Friedrich, 2012), | Q4: Electric Vehicle Life Cycle Cost Analysis (Raustad, 2017) | W4: a Battery Electric Vehicles vs. Internal Combustion Vehicles (Brennan, Barder, 2016).
A5: Výška vyprodukovaných emisií bola prebraná zo štúdií Shades of Green (Wilson, 2013), | I5: Comparative Study on Life Cycle CO2 Emissions from the Production of Electric and Conventional Vehicles in China (Qiao, Zhao, Liu, Hao, 2017) | U5: a From Laboratory to Road (Mock, German, Bandivadekar, Riemersma, Ligterink, Lambrecht, 2015) | AF5: , ale aj z hodnôt uvádzaných výrobcami
A6: Výška registračnej dane je vypočítaná podľa zákona NR SR č. 145/1995 Z.z. o správnych poplatkoch v znení neskorších predpisov.
A7: Výška dotácie je voliteľná užívateľom. Dotácia poskytovaná MH SR od novembra 2016 do júna 2018 bola 5 000 eur pre autá s elektrickým motorom a 3 000 pre hybridy.

Sheet CF
C1: 0 | D1: 1 | E1: 2 | F1: 3 | G1: 4 | H1: 5 | I1: 6 | J1: 7 | K1: 8 | L1: 9 | M1: 10 | N1: 11 | O1: 12 | P1: 13 | Q1: 14 | R1: 15
A2: =Kalkulačka!C5 -> Mercedes B 250e | B2: Počet kilometrov | C2: 0 | D2: =Kalkulačka!$H$3*D1 -> 15000 | E2: =Kalkulačka!$H$3*E1 -> 30000 | F2: =Kalkulačka!$H$3*F1 -> 45000 | G2: =Kalkulačka!$H$3*G1 -> 60000 | H2: =Kalkulačka!$H$3*H1 -> 75000 | I2: =Kalkulačka!$H$3*I1 -> 90000 | J2: =Kalkulačka!$H$3*J1 -> 105000 | K2: =Kalkulačka!$H$3*K1 -> 120000 | L2: =Kalkulačka!$H$3*L1 -> 135000 | M2: =Kalkulačka!$H$3*M1 -> 150000 | N2: =Kalkulačka!$H$3*N1 -> 165000 | O2: =Kalkulačka!$H$3*O1 -> 180000 | P2: =Kalkulačka!$H$3*P1 -> 195000 | Q2: =Kalkulačka!$H$3*Q1 -> 210000 | R2: =Kalkulačka!$H$3*R1 -> 225000
B3: Celkové náklady v priebehu životnosti | C3: =SUM(C4:C9) -> 40833 | D3: =SUM(D4:D9) -> 967.3125 | E3: =SUM(E4:E9) -> 930.1081731 | F3: 894.3347818 | G3: 859.9372902 | H3: 826.862779 | I3: 795.0603645 | J3: 764.4811197 | K3: 735.0779997 | L3: 706.8057689 | M3: 679.6209317 | N3: 653.4816651 | O3: 628.3477549 | P3: 604.1805335 | Q3: 580.9428207 | R3: 558.5988661
B4: Nákup auta | C4: =VLOOKUP(Kalkulačka!C5,Data!F1:I135,4,FALSE) -> 40800
B5: Dotácia | C5: =-VLOOKUP(A2,Data!$F$2:$J$135,5,FALSE) -> 0
B6: Registračná daň | C6: =VLOOKUP(Kalkulačka!C5,Data!F1:U135,16,FALSE) -> 33
B7: Poistenie | D7: =VLOOKUP(Kalkulačka!$C$5,Data!$F$1:$AD$135,25,FALSE)/POWER(1+Kalkulačka!$H$7,D$1) -> 164.1634615 | E7: =VLOOKUP(Kalkulačka!$C$5,Data!$F$1:$AD$135,25,FALSE)/POWER(1+Kalkulačka!$H$7,E$1) -> 157.8494822 | F7: =VLOOKUP(Kalkulačka!$C$5,Data!$F$1:$AD$135,25,FALSE)/POWER(1+Kalkulačka!$H$7,F$1) -> 151.7783483 | G7: =VLOOKUP(Kalkulačka!$C$5,Data!$F$1:$AD$135,25,FALSE)/POWER(1+Kalkulačka!$H$7,G$1) -> 145.9407195 | H7: =VLOOKUP(Kalkulačka!$C$5,Data!$F$1:$AD$135,25,FALSE)/POWER(1+Kalkulačka!$H$7,H$1) -> 140.3276149 | I7: =VLOOKUP(Kalkulačka!$C$5,Data!$F$1:$AD$135,25,FALSE)/POWER(1+Kalkulačka!$H$7,I$1) -> 134.930399 | J7: =VLOOKUP(Kalkulačka!$C$5,Data!$F$1:$AD$135,25,FALSE)/POWER(1+Kalkulačka!$H$7,J$1) -> 129.7407682 | K7: =VLOOKUP(Kalkulačka!$C$5,Data!$F$1:$AD$135,25,FALSE)/POWER(1+Kalkulačka!$H$7,K$1) -> 124.7507387 | L7: =VLOOKUP(Kalkulačka!$C$5,Data!$F$1:$AD$135,25,FALSE)/POWER(1+Kalkulačka!$H$7,L$1) -> 119.9526334 | M7: =VLOOKUP(Kalkulačka!$C$5,Data!$F$1:$AD$135,25,FALSE)/POWER(1+Kalkulačka!$H$7,M$1) -> 115.3390705 | N7: =VLOOKUP(Kalkulačka!$C$5,Data!$F$1:$AD$135,25,FALSE)/POWER(1+Kalkulačka!$H$7,N$1) -> 110.9029524 | O7: =VLOOKUP(Kalkulačka!$C$5,Data!$F$1:$AD$135,25,FALSE)/POWER(1+Kalkulačka!$H$7,O$1) -> 106.6374543 | P7: =VLOOKUP(Kalkulačka!$C$5,Data!$F$1:$AD$135,25,FALSE)/POWER(1+Kalkulačka!$H$7,P$1) -> 102.5360137 | Q7: =VLOOKUP(Kalkulačka!$C$5,Data!$F$1:$AD$135,25,FALSE)/POWER(1+Kalkulačka!$H$7,Q$1) -> 98.59232089 | R7: =VLOOKUP(Kalkulačka!$C$5,Data!$F$1:$AD$135,25,FALSE)/POWER(1+Kalkulačka!$H$7,R$1) -> 94.80030855
B8: Palivo | D8: =VLOOKUP(Kalkulačka!$C$5,Data!$F$1:$AD$135,15,FALSE)*Kalkulačka!$H$3/100000/POWER(1+Kalkulačka!$H$7,D1) -> 384.8798077 | E8: =VLOOKUP(Kalkulačka!$C$5,Data!$F$1:$AD$135,15,FALSE)*Kalkulačka!$H$3/100000/POWER(1+Kalkulačka!$H$7,E1) -> 370.0767382 | F8: =VLOOKUP(Kalkulačka!$C$5,Data!$F$1:$AD$135,15,FALSE)*Kalkulačka!$H$3/100000/POWER(1+Kalkulačka!$H$7,F1) -> 355.8430175 | G8: =VLOOKUP(Kalkulačka!$C$5,Data!$F$1:$AD$135,15,FALSE)*Kalkulačka!$H$3/100000/POWER(1+Kalkulačka!$H$7,G1) -> 342.1567476 | H8: =VLOOKUP(Kalkulačka!$C$5,Data!$F$1:$AD$135,15,FALSE)*Kalkulačka!$H$3/100000/POWER(1+Kalkulačka!$H$7,H1) -> 328.9968727 | I8: =VLOOKUP(Kalkulačka!$C$5,Data!$F$1:$AD$135,15,FALSE)*Kalkulačka!$H$3/100000/POWER(1+Kalkulačka!$H$7,I1) -> 316.3431468 | J8: =VLOOKUP(Kalkulačka!$C$5,Data!$F$1:$AD$135,15,FALSE)*Kalkulačka!$H$3/100000/POWER(1+Kalkulačka!$H$7,J1) -> 304.1761027 | K8: =VLOOKUP(Kalkulačka!$C$5,Data!$F$1:$AD$135,15,FALSE)*Kalkulačka!$H$3/100000/POWER(1+Kalkulačka!$H$7,K1) -> 292.4770218 | L8: =VLOOKUP(Kalkulačka!$C$5,Data!$F$1:$AD$135,15,FALSE)*Kalkulačka!$H$3/100000/POWER(1+Kalkulačka!$H$7,L1) -> 281.2279056 | M8: =VLOOKUP(Kalkulačka!$C$5,Data!$F$1:$AD$135,15,FALSE)*Kalkulačka!$H$3/100000/POWER(1+Kalkulačka!$H$7,M1) -> 270.4114477 | N8: =VLOOKUP(Kalkulačka!$C$5,Data!$F$1:$AD$135,15,FALSE)*Kalkulačka!$H$3/100000/POWER(1+Kalkulačka!$H$7,N1) -> 260.0110074 | O8: =VLOOKUP(Kalkulačka!$C$5,Data!$F$1:$AD$135,15,FALSE)*Kalkulačka!$H$3/100000/POWER(1+Kalkulačka!$H$7,O1) -> 250.010584 | P8: =VLOOKUP(Kalkulačka!$C$5,Data!$F$1:$AD$135,15,FALSE)*Kalkulačka!$H$3/100000/POWER(1+Kalkulačka!$H$7,P1) -> 240.3947923 | Q8: =VLOOKUP(Kalkulačka!$C$5,Data!$F$1:$AD$135,15,FALSE)*Kalkulačka!$H$3/100000/POWER(1+Kalkulačka!$H$7,Q1) -> 231.1488388 | R8: =VLOOKUP(Kalkulačka!$C$5,Data!$F$1:$AD$135,15,FALSE)*Kalkulačka!$H$3/100000/POWER(1+Kalkulačka!$H$7,R1) -> 222.2584988
B9: Údržba | D9: =VLOOKUP(Kalkulačka!$C$5,Data!$F$1:$AE$135,26,FALSE)*Kalkulačka!$H$3/10000/POWER(1+Kalkulačka!$H$7,D$1) -> 418.2692308 | E9: =VLOOKUP(Kalkulačka!$C$5,Data!$F$1:$AE$135,26,FALSE)*Kalkulačka!$H$3/10000/POWER(1+Kalkulačka!$H$7,E$1) -> 402.1819527 | F9: =VLOOKUP(Kalkulačka!$C$5,Data!$F$1:$AE$135,26,FALSE)*Kalkulačka!$H$3/10000/POWER(1+Kalkulačka!$H$7,F$1) -> 386.713416 | G9: =VLOOKUP(Kalkulačka!$C$5,Data!$F$1:$AE$135,26,FALSE)*Kalkulačka!$H$3/10000/POWER(1+Kalkulačka!$H$7,G$1) -> 371.8398231 | H9: =VLOOKUP(Kalkulačka!$C$5,Data!$F$1:$AE$135,26,FALSE)*Kalkulačka!$H$3/10000/POWER(1+Kalkulačka!$H$7,H$1) -> 357.5382914 | I9: =VLOOKUP(Kalkulačka!$C$5,Data!$F$1:$AE$135,26,FALSE)*Kalkulačka!$H$3/10000/POWER(1+Kalkulačka!$H$7,I$1) -> 343.7868187 | J9: =VLOOKUP(Kalkulačka!$C$5,Data!$F$1:$AE$135,26,FALSE)*Kalkulačka!$H$3/10000/POWER(1+Kalkulačka!$H$7,J$1) -> 330.5642487 | K9: =VLOOKUP(Kalkulačka!$C$5,Data!$F$1:$AE$135,26,FALSE)*Kalkulačka!$H$3/10000/POWER(1+Kalkulačka!$H$7,K$1) -> 317.8502392 | L9: =VLOOKUP(Kalkulačka!$C$5,Data!$F$1:$AE$135,26,FALSE)*Kalkulačka!$H$3/10000/POWER(1+Kalkulačka!$H$7,L$1) -> 305.62523 | M9: =VLOOKUP(Kalkulačka!$C$5,Data!$F$1:$AE$135,26,FALSE)*Kalkulačka!$H$3/10000/POWER(1+Kalkulačka!$H$7,M$1) -> 293.8704134 | N9: =VLOOKUP(Kalkulačka!$C$5,Data!$F$1:$AE$135,26,FALSE)*Kalkulačka!$H$3/10000/POWER(1+Kalkulačka!$H$7,N$1) -> 282.5677052 | O9: =VLOOKUP(Kalkulačka!$C$5,Data!$F$1:$AE$135,26,FALSE)*Kalkulačka!$H$3/10000/POWER(1+Kalkulačka!$H$7,O$1) -> 271.6997166 | P9: =VLOOKUP(Kalkulačka!$C$5,Data!$F$1:$AE$135,26,FALSE)*Kalkulačka!$H$3/10000/POWER(1+Kalkulačka!$H$7,P$1) -> 261.2497275 | Q9: =VLOOKUP(Kalkulačka!$C$5,Data!$F$1:$AE$135,26,FALSE)*Kalkulačka!$H$3/10000/POWER(1+Kalkulačka!$H$7,Q$1) -> 251.201661 | R9: =VLOOKUP(Kalkulačka!$C$5,Data!$F$1:$AE$135,26,FALSE)*Kalkulačka!$H$3/10000/POWER(1+Kalkulačka!$H$7,R$1) -> 241.5400587
B10: Čisté kumulatívne náklady | C10: =SUM(C4:C9) -> 40833 | D10: =C10+D3 -> 41800.3125 | E10: =D10+E3 -> 42730.42067 | F10: 43624.75545 | G10: 44484.69275 | H10: 45311.55552 | I10: 46106.61589 | J10: 46871.09701 | K10: 47606.17501 | L10: 48312.98078 | M10: 48992.60171 | N10: 49646.08337 | O10: 50274.43113 | P10: 50878.61166 | Q10: 51459.55448 | R10: 52018.15335
A12: =Kalkulačka!D5 -> Mercedes B 250 | B12: Počet kilometrov | C12: 0 | D12: =Kalkulačka!$H$3*CF!D1 -> 15000 | E12: =Kalkulačka!$H$3*CF!E1 -> 30000 | F12: =Kalkulačka!$H$3*CF!F1 -> 45000 | G12: =Kalkulačka!$H$3*CF!G1 -> 60000 | H12: =Kalkulačka!$H$3*CF!H1 -> 75000 | I12: =Kalkulačka!$H$3*CF!I1 -> 90000 | J12: =Kalkulačka!$H$3*CF!J1 -> 105000 | K12: =Kalkulačka!$H$3*CF!K1 -> 120000 | L12: =Kalkulačka!$H$3*CF!L1 -> 135000 | M12: =Kalkulačka!$H$3*CF!M1 -> 150000 | N12: =Kalkulačka!$H$3*CF!N1 -> 165000 | O12: =Kalkulačka!$H$3*CF!O1 -> 180000 | P12: =Kalkulačka!$H$3*CF!P1 -> 195000 | Q12: =Kalkulačka!$H$3*CF!Q1 -> 210000 | R12: =Kalkulačka!$H$3*CF!R1 -> 225000
B13: Celkové náklady v priebehu životnosti | C13: =SUM(C14:C19) -> 35390 | D13: =SUM(D14:D19) -> 2472.663462 | E13: =SUM(E14:E19) -> 2377.561021 | F13: 2286.116366 | G13: 2198.188814 | H13: 2113.64309 | I13: 2032.349125 | J13: 1954.181851 | K13: 1879.02101 | L13: 1806.750972 | M13: 1737.26055 | N13: 1670.442836 | O13: 1606.195035 | P13: 1544.418303 | Q13: 1485.017599 | R13: 1427.901537
B14: Nákup auta | C14: =VLOOKUP(Kalkulačka!D5,Data!F1:I135,4,FALSE) -> 34290
B15: Dotácia | C15: =-VLOOKUP(A12,Data!$F$2:$J$135,5,FALSE) -> 0
B16: Registračná daň | C16: =VLOOKUP(Kalkulačka!D5,Data!F1:U135,16,FALSE) -> 1100
B17: Poistenie | D17: =VLOOKUP(Kalkulačka!$D$5,Data!$F$1:$AD$135,25,FALSE)/POWER(1+Kalkulačka!$H$7,D$1) -> 164.1634615 | E17: =VLOOKUP(Kalkulačka!$D$5,Data!$F$1:$AD$135,25,FALSE)/POWER(1+Kalkulačka!$H$7,E$1) -> 157.8494822 | F17: =VLOOKUP(Kalkulačka!$D$5,Data!$F$1:$AD$135,25,FALSE)/POWER(1+Kalkulačka!$H$7,F$1) -> 151.7783483 | G17: =VLOOKUP(Kalkulačka!$D$5,Data!$F$1:$AD$135,25,FALSE)/POWER(1+Kalkulačka!$H$7,G$1) -> 145.9407195 | H17: =VLOOKUP(Kalkulačka!$D$5,Data!$F$1:$AD$135,25,FALSE)/POWER(1+Kalkulačka!$H$7,H$1) -> 140.3276149 | I17: =VLOOKUP(Kalkulačka!$D$5,Data!$F$1:$AD$135,25,FALSE)/POWER(1+Kalkulačka!$H$7,I$1) -> 134.930399 | J17: =VLOOKUP(Kalkulačka!$D$5,Data!$F$1:$AD$135,25,FALSE)/POWER(1+Kalkulačka!$H$7,J$1) -> 129.7407682 | K17: =VLOOKUP(Kalkulačka!$D$5,Data!$F$1:$AD$135,25,FALSE)/POWER(1+Kalkulačka!$H$7,K$1) -> 124.7507387 | L17: =VLOOKUP(Kalkulačka!$D$5,Data!$F$1:$AD$135,25,FALSE)/POWER(1+Kalkulačka!$H$7,L$1) -> 119.9526334 | M17: =VLOOKUP(Kalkulačka!$D$5,Data!$F$1:$AD$135,25,FALSE)/POWER(1+Kalkulačka!$H$7,M$1) -> 115.3390705 | N17: =VLOOKUP(Kalkulačka!$D$5,Data!$F$1:$AD$135,25,FALSE)/POWER(1+Kalkulačka!$H$7,N$1) -> 110.9029524 | O17: =VLOOKUP(Kalkulačka!$D$5,Data!$F$1:$AD$135,25,FALSE)/POWER(1+Kalkulačka!$H$7,O$1) -> 106.6374543 | P17: =VLOOKUP(Kalkulačka!$D$5,Data!$F$1:$AD$135,25,FALSE)/POWER(1+Kalkulačka!$H$7,P$1) -> 102.5360137 | Q17: =VLOOKUP(Kalkulačka!$D$5,Data!$F$1:$AD$135,25,FALSE)/POWER(1+Kalkulačka!$H$7,Q$1) -> 98.59232089 | R17: =VLOOKUP(Kalkulačka!$D$5,Data!$F$1:$AD$135,25,FALSE)/POWER(1+Kalkulačka!$H$7,R$1) -> 94.80030855
B18: Palivo | D18: =VLOOKUP(Kalkulačka!$D$5,Data!$F$1:$AD$135,15,FALSE)*Kalkulačka!$H$3/100000/POWER(1+Kalkulačka!$H$7,D1) -> 1616.192308 | E18: =VLOOKUP(Kalkulačka!$D$5,Data!$F$1:$AD$135,15,FALSE)*Kalkulačka!$H$3/100000/POWER(1+Kalkulačka!$H$7,E1) -> 1554.031065 | F18: =VLOOKUP(Kalkulačka!$D$5,Data!$F$1:$AD$135,15,FALSE)*Kalkulačka!$H$3/100000/POWER(1+Kalkulačka!$H$7,F1) -> 1494.26064 | G18: =VLOOKUP(Kalkulačka!$D$5,Data!$F$1:$AD$135,15,FALSE)*Kalkulačka!$H$3/100000/POWER(1+Kalkulačka!$H$7,G1) -> 1436.789076 | H18: =VLOOKUP(Kalkulačka!$D$5,Data!$F$1:$AD$135,15,FALSE)*Kalkulačka!$H$3/100000/POWER(1+Kalkulačka!$H$7,H1) -> 1381.527958 | I18: =VLOOKUP(Kalkulačka!$D$5,Data!$F$1:$AD$135,15,FALSE)*Kalkulačka!$H$3/100000/POWER(1+Kalkulačka!$H$7,I1) -> 1328.392267 | J18: =VLOOKUP(Kalkulačka!$D$5,Data!$F$1:$AD$135,15,FALSE)*Kalkulačka!$H$3/100000/POWER(1+Kalkulačka!$H$7,J1) -> 1277.300257 | K18: =VLOOKUP(Kalkulačka!$D$5,Data!$F$1:$AD$135,15,FALSE)*Kalkulačka!$H$3/100000/POWER(1+Kalkulačka!$H$7,K1) -> 1228.173324 | L18: =VLOOKUP(Kalkulačka!$D$5,Data!$F$1:$AD$135,15,FALSE)*Kalkulačka!$H$3/100000/POWER(1+Kalkulačka!$H$7,L1) -> 1180.935889 | M18: =VLOOKUP(Kalkulačka!$D$5,Data!$F$1:$AD$135,15,FALSE)*Kalkulačka!$H$3/100000/POWER(1+Kalkulačka!$H$7,M1) -> 1135.515278 | N18: =VLOOKUP(Kalkulačka!$D$5,Data!$F$1:$AD$135,15,FALSE)*Kalkulačka!$H$3/100000/POWER(1+Kalkulačka!$H$7,N1) -> 1091.841613 | O18: =VLOOKUP(Kalkulačka!$D$5,Data!$F$1:$AD$135,15,FALSE)*Kalkulačka!$H$3/100000/POWER(1+Kalkulačka!$H$7,O1) -> 1049.847705 | P18: =VLOOKUP(Kalkulačka!$D$5,Data!$F$1:$AD$135,15,FALSE)*Kalkulačka!$H$3/100000/POWER(1+Kalkulačka!$H$7,P1) -> 1009.468947 | Q18: =VLOOKUP(Kalkulačka!$D$5,Data!$F$1:$AD$135,15,FALSE)*Kalkulačka!$H$3/100000/POWER(1+Kalkulačka!$H$7,Q1) -> 970.6432182 | R18: =VLOOKUP(Kalkulačka!$D$5,Data!$F$1:$AD$135,15,FALSE)*Kalkulačka!$H$3/100000/POWER(1+Kalkulačka!$H$7,R1) -> 933.3107867
B19: Údržba | D19: =VLOOKUP(Kalkulačka!$D$5,Data!$F$1:$AE$135,26,FALSE)*Kalkulačka!$H$3/10000/POWER(1+Kalkulačka!$H$7,D$1) -> 692.3076923 | E19: =VLOOKUP(Kalkulačka!$D$5,Data!$F$1:$AE$135,26,FALSE)*Kalkulačka!$H$3/10000/POWER(1+Kalkulačka!$H$7,E$1) -> 665.6804734 | F19: =VLOOKUP(Kalkulačka!$D$5,Data!$F$1:$AE$135,26,FALSE)*Kalkulačka!$H$3/10000/POWER(1+Kalkulačka!$H$7,F$1) -> 640.0773782 | G19: =VLOOKUP(Kalkulačka!$D$5,Data!$F$1:$AE$135,26,FALSE)*Kalkulačka!$H$3/10000/POWER(1+Kalkulačka!$H$7,G$1) -> 615.4590175 | H19: =VLOOKUP(Kalkulačka!$D$5,Data!$F$1:$AE$135,26,FALSE)*Kalkulačka!$H$3/10000/POWER(1+Kalkulačka!$H$7,H$1) -> 591.7875169 | I19: =VLOOKUP(Kalkulačka!$D$5,Data!$F$1:$AE$135,26,FALSE)*Kalkulačka!$H$3/10000/POWER(1+Kalkulačka!$H$7,I$1) -> 569.0264585 | J19: =VLOOKUP(Kalkulačka!$D$5,Data!$F$1:$AE$135,26,FALSE)*Kalkulačka!$H$3/10000/POWER(1+Kalkulačka!$H$7,J$1) -> 547.1408255 | K19: =VLOOKUP(Kalkulačka!$D$5,Data!$F$1:$AE$135,26,FALSE)*Kalkulačka!$H$3/10000/POWER(1+Kalkulačka!$H$7,K$1) -> 526.0969476 | L19: =VLOOKUP(Kalkulačka!$D$5,Data!$F$1:$AE$135,26,FALSE)*Kalkulačka!$H$3/10000/POWER(1+Kalkulačka!$H$7,L$1) -> 505.8624496 | M19: =VLOOKUP(Kalkulačka!$D$5,Data!$F$1:$AE$135,26,FALSE)*Kalkulačka!$H$3/10000/POWER(1+Kalkulačka!$H$7,M$1) -> 486.4062016 | N19: =VLOOKUP(Kalkulačka!$D$5,Data!$F$1:$AE$135,26,FALSE)*Kalkulačka!$H$3/10000/POWER(1+Kalkulačka!$H$7,N$1) -> 467.6982707 | O19: =VLOOKUP(Kalkulačka!$D$5,Data!$F$1:$AE$135,26,FALSE)*Kalkulačka!$H$3/10000/POWER(1+Kalkulačka!$H$7,O$1) -> 449.7098757 | P19: =VLOOKUP(Kalkulačka!$D$5,Data!$F$1:$AE$135,26,FALSE)*Kalkulačka!$H$3/10000/POWER(1+Kalkulačka!$H$7,P$1) -> 432.413342 | Q19: =VLOOKUP(Kalkulačka!$D$5,Data!$F$1:$AE$135,26,FALSE)*Kalkulačka!$H$3/10000/POWER(1+Kalkulačka!$H$7,Q$1) -> 415.7820596 | R19: =VLOOKUP(Kalkulačka!$D$5,Data!$F$1:$AE$135,26,FALSE)*Kalkulačka!$H$3/10000/POWER(1+Kalkulačka!$H$7,R$1) -> 399.790442
B20: Čisté kumulatívne náklady | C20: =C13 -> 35390 | D20: =C20+D13 -> 37862.66346 | E20: =D20+E13 -> 40240.22448 | F20: 42526.34085 | G20: 44724.52966 | H20: 46838.17275 | I20: 48870.52188 | J20: 50824.70373 | K20: 52703.72474 | L20: 54510.47571 | M20: 56247.73626 | N20: 57918.1791 | O20: 59524.37413 | P20: 61068.79243 | Q20: 62553.81003 | R20: 63981.71157
A22: ='Pomocné tabuľky'!B55 -> Kompakt - elektromobil | B22: Počet kilometrov | C22: 0 | D22: =Kalkulačka!$H$3*CF!D1 -> 15000 | E22: =Kalkulačka!$H$3*CF!E1 -> 30000 | F22: =Kalkulačka!$H$3*CF!F1 -> 45000 | G22: =Kalkulačka!$H$3*CF!G1 -> 60000 | H22: =Kalkulačka!$H$3*CF!H1 -> 75000 | I22: =Kalkulačka!$H$3*CF!I1 -> 90000 | J22: =Kalkulačka!$H$3*CF!J1 -> 105000 | K22: =Kalkulačka!$H$3*CF!K1 -> 120000 | L22: =Kalkulačka!$H$3*CF!L1 -> 135000 | M22: =Kalkulačka!$H$3*CF!M1 -> 150000 | N22: =Kalkulačka!$H$3*CF!N1 -> 165000 | O22: =Kalkulačka!$H$3*CF!O1 -> 180000 | P22: =Kalkulačka!$H$3*CF!P1 -> 195000 | Q22: =Kalkulačka!$H$3*CF!Q1 -> 210000 | R22: =Kalkulačka!$H$3*CF!R1 -> 225000
B23: Celkové náklady v priebehu životnosti | C23: =SUM(C24:C29) -> 34012 | D23: =SUM(D24:D29) -> 887.2493788 | E23: 836.5573033 | F23: 788.761467 | G23: 743.6963964 | H23: 701.206072 | I23: 661.1433884 | J23: 623.3696447 | K23: 587.7540648 | L23: 554.1733442 | M23: 522.5112234 | N23: 492.6580851 | O23: 464.510575 | P23: 437.9712437 | Q23: 412.9482097 | R23: 389.3548409
B24: Nákup auta | C24: ='Pomocné tabuľky'!B56 -> 33979
B25: Dotácia | C25: =-'Pomocné tabuľky'!B57 -> 0
B26: Registračná daň | C26: ='Pomocné tabuľky'!B58 -> 33
B27: Poistenie | D27: ='Pomocné tabuľky'!$B$59/POWER(1+Kalkulačka!$H$7,CF!D22/10000) -> 132.3717912 | E27: ='Pomocné tabuľky'!$B$59/POWER(1+Kalkulačka!$H$7,CF!E22/10000) -> 124.8088658 | F27: ='Pomocné tabuľky'!$B$59/POWER(1+Kalkulačka!$H$7,CF!F22/10000) -> 117.6780403 | G27: ='Pomocné tabuľky'!$B$59/POWER(1+Kalkulačka!$H$7,CF!G22/10000) -> 110.9546272 | H27: ='Pomocné tabuľky'!$B$59/POWER(1+Kalkulačka!$H$7,CF!H22/10000) -> 104.6153493 | I27: ='Pomocné tabuľky'!$B$59/POWER(1+Kalkulačka!$H$7,CF!I22/10000) -> 98.63825957 | J27: ='Pomocné tabuľky'!$B$59/POWER(1+Kalkulačka!$H$7,CF!J22/10000) -> 93.00266463 | K27: ='Pomocné tabuľky'!$B$59/POWER(1+Kalkulačka!$H$7,CF!K22/10000) -> 87.68905358 | L27: ='Pomocné tabuľky'!$B$59/POWER(1+Kalkulačka!$H$7,CF!L22/10000) -> 82.6790302 | M27: ='Pomocné tabuľky'!$B$59/POWER(1+Kalkulačka!$H$7,CF!M22/10000) -> 77.95524933 | N27: ='Pomocné tabuľky'!$B$59/POWER(1+Kalkulačka!$H$7,CF!N22/10000) -> 73.50135679 | O27: ='Pomocné tabuľky'!$B$59/POWER(1+Kalkulačka!$H$7,CF!O22/10000) -> 69.30193279 | P27: ='Pomocné tabuľky'!$B$59/POWER(1+Kalkulačka!$H$7,CF!P22/10000) -> 65.34243854 | Q27: ='Pomocné tabuľky'!$B$59/POWER(1+Kalkulačka!$H$7,CF!Q22/10000) -> 61.6091659 | R27: ='Pomocné tabuľky'!$B$59/POWER(1+Kalkulačka!$H$7,CF!R22/10000) -> 58.08918993
B28: Palivo | D28: ='Pomocné tabuľky'!$B$60*Kalkulačka!$H$3/10000/POWER(1+Kalkulačka!$H$7,CF!D22/10000) -> 344.7308627 | E28: ='Pomocné tabuľky'!$B$60*Kalkulačka!$H$3/10000/POWER(1+Kalkulačka!$H$7,CF!E22/10000) -> 325.0350214 | F28: ='Pomocné tabuľky'!$B$60*Kalkulačka!$H$3/10000/POWER(1+Kalkulačka!$H$7,CF!F22/10000) -> 306.4644817 | G28: ='Pomocné tabuľky'!$B$60*Kalkulačka!$H$3/10000/POWER(1+Kalkulačka!$H$7,CF!G22/10000) -> 288.9549505 | H28: ='Pomocné tabuľky'!$B$60*Kalkulačka!$H$3/10000/POWER(1+Kalkulačka!$H$7,CF!H22/10000) -> 272.4458083 | I28: ='Pomocné tabuľky'!$B$60*Kalkulačka!$H$3/10000/POWER(1+Kalkulačka!$H$7,CF!I22/10000) -> 256.8798988 | J28: ='Pomocné tabuľky'!$B$60*Kalkulačka!$H$3/10000/POWER(1+Kalkulačka!$H$7,CF!J22/10000) -> 242.2033315 | K28: ='Pomocné tabuľky'!$B$60*Kalkulačka!$H$3/10000/POWER(1+Kalkulačka!$H$7,CF!K22/10000) -> 228.3652947 | L28: ='Pomocné tabuľky'!$B$60*Kalkulačka!$H$3/10000/POWER(1+Kalkulačka!$H$7,CF!L22/10000) -> 215.3178798 | M28: ='Pomocné tabuľky'!$B$60*Kalkulačka!$H$3/10000/POWER(1+Kalkulačka!$H$7,CF!M22/10000) -> 203.0159154 | N28: ='Pomocné tabuľky'!$B$60*Kalkulačka!$H$3/10000/POWER(1+Kalkulačka!$H$7,CF!N22/10000) -> 191.4168111 | O28: ='Pomocné tabuľky'!$B$60*Kalkulačka!$H$3/10000/POWER(1+Kalkulačka!$H$7,CF!O22/10000) -> 180.4804095 | P28: ='Pomocné tabuľky'!$B$60*Kalkulačka!$H$3/10000/POWER(1+Kalkulačka!$H$7,CF!P22/10000) -> 170.168848 | Q28: ='Pomocné tabuľky'!$B$60*Kalkulačka!$H$3/10000/POWER(1+Kalkulačka!$H$7,CF!Q22/10000) -> 160.4464269 | R28: ='Pomocné tabuľky'!$B$60*Kalkulačka!$H$3/10000/POWER(1+Kalkulačka!$H$7,CF!R22/10000) -> 151.2794863
B29: Údržba | D29: ='Pomocné tabuľky'!$B$61*Kalkulačka!$H$3/10000/POWER(1+Kalkulačka!$H$7,CF!D22/10000) -> 410.1467249 | E29: ='Pomocné tabuľky'!$B$61*Kalkulačka!$H$3/10000/POWER(1+Kalkulačka!$H$7,CF!E22/10000) -> 386.713416 | F29: ='Pomocné tabuľky'!$B$61*Kalkulačka!$H$3/10000/POWER(1+Kalkulačka!$H$7,CF!F22/10000) -> 364.618945 | G29: ='Pomocné tabuľky'!$B$61*Kalkulačka!$H$3/10000/POWER(1+Kalkulačka!$H$7,CF!G22/10000) -> 343.7868187 | H29: ='Pomocné tabuľky'!$B$61*Kalkulačka!$H$3/10000/POWER(1+Kalkulačka!$H$7,CF!H22/10000) -> 324.1449144 | I29: ='Pomocné tabuľky'!$B$61*Kalkulačka!$H$3/10000/POWER(1+Kalkulačka!$H$7,CF!I22/10000) -> 305.62523 | J29: ='Pomocné tabuľky'!$B$61*Kalkulačka!$H$3/10000/POWER(1+Kalkulačka!$H$7,CF!J22/10000) -> 288.1636486 | K29: ='Pomocné tabuľky'!$B$61*Kalkulačka!$H$3/10000/POWER(1+Kalkulačka!$H$7,CF!K22/10000) -> 271.6997166 | L29: ='Pomocné tabuľky'!$B$61*Kalkulačka!$H$3/10000/POWER(1+Kalkulačka!$H$7,CF!L22/10000) -> 256.1764343 | M29: ='Pomocné tabuľky'!$B$61*Kalkulačka!$H$3/10000/POWER(1+Kalkulačka!$H$7,CF!M22/10000) -> 241.5400587 | N29: ='Pomocné tabuľky'!$B$61*Kalkulačka!$H$3/10000/POWER(1+Kalkulačka!$H$7,CF!N22/10000) -> 227.7399173 | O29: ='Pomocné tabuľky'!$B$61*Kalkulačka!$H$3/10000/POWER(1+Kalkulačka!$H$7,CF!O22/10000) -> 214.7282326 | P29: ='Pomocné tabuľky'!$B$61*Kalkulačka!$H$3/10000/POWER(1+Kalkulačka!$H$7,CF!P22/10000) -> 202.4599572 | Q29: ='Pomocné tabuľky'!$B$61*Kalkulačka!$H$3/10000/POWER(1+Kalkulačka!$H$7,CF!Q22/10000) -> 190.8926169 | R29: ='Pomocné tabuľky'!$B$61*Kalkulačka!$H$3/10000/POWER(1+Kalkulačka!$H$7,CF!R22/10000) -> 179.9861647
B30: Čisté kumulatívne náklady | C30: =C23 -> 34012 | D30: =C30+D23 -> 34899.24938 | E30: 35735.80668 | F30: 36524.56815 | G30: 37268.26455 | H30: 37969.47062 | I30: 38630.61401 | J30: 39253.98365 | K30: 39841.73772 | L30: 40395.91106 | M30: 40918.42228 | N30: 41411.08037 | O30: 41875.59094 | P30: 42313.56219 | Q30: 42726.5104 | R30: 43115.86524
A32: ='Pomocné tabuľky'!C55 -> Kompakt - hybrid | B32: Počet kilometrov | C32: 0 | D32: =Kalkulačka!$H$3*CF!D1 -> 15000 | E32: =Kalkulačka!$H$3*CF!E1 -> 30000 | F32: =Kalkulačka!$H$3*CF!F1 -> 45000 | G32: =Kalkulačka!$H$3*CF!G1 -> 60000 | H32: =Kalkulačka!$H$3*CF!H1 -> 75000 | I32: =Kalkulačka!$H$3*CF!I1 -> 90000 | J32: =Kalkulačka!$H$3*CF!J1 -> 105000 | K32: =Kalkulačka!$H$3*CF!K1 -> 120000 | L32: =Kalkulačka!$H$3*CF!L1 -> 135000 | M32: =Kalkulačka!$H$3*CF!M1 -> 150000 | N32: =Kalkulačka!$H$3*CF!N1 -> 165000 | O32: =Kalkulačka!$H$3*CF!O1 -> 180000 | P32: =Kalkulačka!$H$3*CF!P1 -> 195000 | Q32: =Kalkulačka!$H$3*CF!Q1 -> 210000 | R32: =Kalkulačka!$H$3*CF!R1 -> 225000
B33: Celkové náklady v priebehu životnosti | C33: =SUM(C34:C39) -> 29006 | D33: =SUM(D34:D39) -> 1285.080911 | E33: 1211.659143 | F33: 1142.432251 | G33: 1077.160566 | H33: 1015.618111 | I33: 957.5918208 | J33: 902.8808026 | K33: 851.2956418 | L33: 802.6577458 | M33: 756.7987257 | N33: 713.5598133 | O33: 672.7913114 | P33: 634.3520757 | Q33: 598.109026 | R33: 563.9366854
B34: Nákup auta | C34: ='Pomocné tabuľky'!C56 -> 28860
B35: Dotácia | C35: =-'Pomocné tabuľky'!C57 -> 0
B36: Registračná daň | C36: ='Pomocné tabuľky'!C58 -> 146
B37: Poistenie | D37: ='Pomocné tabuľky'!$C$59/POWER(1+Kalkulačka!$H$7,CF!D32/10000) -> 130.7378043 | E37: ='Pomocné tabuľky'!$C$59/POWER(1+Kalkulačka!$H$7,CF!E32/10000) -> 123.2682351 | F37: ='Pomocné tabuľky'!$C$59/POWER(1+Kalkulačka!$H$7,CF!F32/10000) -> 116.225432 | G37: ='Pomocné tabuľky'!$C$59/POWER(1+Kalkulačka!$H$7,CF!G32/10000) -> 109.5850121 | H37: ='Pomocné tabuľky'!$C$59/POWER(1+Kalkulačka!$H$7,CF!H32/10000) -> 103.3239858 | I37: ='Pomocné tabuľky'!$C$59/POWER(1+Kalkulačka!$H$7,CF!I32/10000) -> 97.42067676 | J37: ='Pomocné tabuľky'!$C$59/POWER(1+Kalkulačka!$H$7,CF!J32/10000) -> 91.85464715 | K37: ='Pomocné tabuľky'!$C$59/POWER(1+Kalkulačka!$H$7,CF!K32/10000) -> 86.60662689 | L37: ='Pomocné tabuľky'!$C$59/POWER(1+Kalkulačka!$H$7,CF!L32/10000) -> 81.65844685 | M37: ='Pomocné tabuľky'!$C$59/POWER(1+Kalkulačka!$H$7,CF!M32/10000) -> 76.99297595 | N37: ='Pomocné tabuľky'!$C$59/POWER(1+Kalkulačka!$H$7,CF!N32/10000) -> 72.5940619 | O37: ='Pomocné tabuľky'!$C$59/POWER(1+Kalkulačka!$H$7,CF!O32/10000) -> 68.44647526 | P37: ='Pomocné tabuľky'!$C$59/POWER(1+Kalkulačka!$H$7,CF!P32/10000) -> 64.53585669 | Q37: ='Pomocné tabuľky'!$C$59/POWER(1+Kalkulačka!$H$7,CF!Q32/10000) -> 60.84866727 | R37: ='Pomocné tabuľky'!$C$59/POWER(1+Kalkulačka!$H$7,CF!R32/10000) -> 57.3721416
B38: Palivo | D38: ='Pomocné tabuľky'!$C$60*Kalkulačka!$H$3/10000/POWER(1+Kalkulačka!$H$7,CF!D32/10000) -> 532.0515245 | E38: ='Pomocné tabuľky'!$C$60*Kalkulačka!$H$3/10000/POWER(1+Kalkulačka!$H$7,CF!E32/10000) -> 501.653311 | F38: ='Pomocné tabuľky'!$C$60*Kalkulačka!$H$3/10000/POWER(1+Kalkulačka!$H$7,CF!F32/10000) -> 472.9918679 | G38: ='Pomocné tabuľky'!$C$60*Kalkulačka!$H$3/10000/POWER(1+Kalkulačka!$H$7,CF!G32/10000) -> 445.9679668 | H38: ='Pomocné tabuľky'!$C$60*Kalkulačka!$H$3/10000/POWER(1+Kalkulačka!$H$7,CF!H32/10000) -> 420.4880483 | I38: ='Pomocné tabuľky'!$C$60*Kalkulačka!$H$3/10000/POWER(1+Kalkulačka!$H$7,CF!I32/10000) -> 396.4638985 | J38: ='Pomocné tabuľky'!$C$60*Kalkulačka!$H$3/10000/POWER(1+Kalkulačka!$H$7,CF!J32/10000) -> 373.8123438 | K38: ='Pomocné tabuľky'!$C$60*Kalkulačka!$H$3/10000/POWER(1+Kalkulačka!$H$7,CF!K32/10000) -> 352.4549622 | L38: ='Pomocné tabuľky'!$C$60*Kalkulačka!$H$3/10000/POWER(1+Kalkulačka!$H$7,CF!L32/10000) -> 332.3178124 | M38: ='Pomocné tabuľky'!$C$60*Kalkulačka!$H$3/10000/POWER(1+Kalkulačka!$H$7,CF!M32/10000) -> 313.3311779 | N38: ='Pomocné tabuľky'!$C$60*Kalkulačka!$H$3/10000/POWER(1+Kalkulačka!$H$7,CF!N32/10000) -> 295.4293252 | O38: ='Pomocné tabuľky'!$C$60*Kalkulačka!$H$3/10000/POWER(1+Kalkulačka!$H$7,CF!O32/10000) -> 278.5502763 | P38: ='Pomocné tabuľky'!$C$60*Kalkulačka!$H$3/10000/POWER(1+Kalkulačka!$H$7,CF!P32/10000) -> 262.6355943 | Q38: ='Pomocné tabuľky'!$C$60*Kalkulačka!$H$3/10000/POWER(1+Kalkulačka!$H$7,CF!Q32/10000) -> 247.6301813 | R38: ='Pomocné tabuľky'!$C$60*Kalkulačka!$H$3/10000/POWER(1+Kalkulačka!$H$7,CF!R32/10000) -> 233.482087
B39: Údržba | D39: ='Pomocné tabuľky'!$C$61*Kalkulačka!$H$3/10000/POWER(1+Kalkulačka!$H$7,CF!D32/10000) -> 622.2915827 | E39: ='Pomocné tabuľky'!$C$61*Kalkulačka!$H$3/10000/POWER(1+Kalkulačka!$H$7,CF!E32/10000) -> 586.7375967 | F39: ='Pomocné tabuľky'!$C$61*Kalkulačka!$H$3/10000/POWER(1+Kalkulačka!$H$7,CF!F32/10000) -> 553.214951 | G39: ='Pomocné tabuľky'!$C$61*Kalkulačka!$H$3/10000/POWER(1+Kalkulačka!$H$7,CF!G32/10000) -> 521.607587 | H39: ='Pomocné tabuľky'!$C$61*Kalkulačka!$H$3/10000/POWER(1+Kalkulačka!$H$7,CF!H32/10000) -> 491.806077 | I39: ='Pomocné tabuľky'!$C$61*Kalkulačka!$H$3/10000/POWER(1+Kalkulačka!$H$7,CF!I32/10000) -> 463.7072455 | J39: ='Pomocné tabuľky'!$C$61*Kalkulačka!$H$3/10000/POWER(1+Kalkulačka!$H$7,CF!J32/10000) -> 437.2138116 | K39: ='Pomocné tabuľky'!$C$61*Kalkulačka!$H$3/10000/POWER(1+Kalkulačka!$H$7,CF!K32/10000) -> 412.2340527 | L39: ='Pomocné tabuľky'!$C$61*Kalkulačka!$H$3/10000/POWER(1+Kalkulačka!$H$7,CF!L32/10000) -> 388.6814865 | M39: ='Pomocné tabuľky'!$C$61*Kalkulačka!$H$3/10000/POWER(1+Kalkulačka!$H$7,CF!M32/10000) -> 366.4745718 | N39: ='Pomocné tabuľky'!$C$61*Kalkulačka!$H$3/10000/POWER(1+Kalkulačka!$H$7,CF!N32/10000) -> 345.5364262 | O39: ='Pomocné tabuľky'!$C$61*Kalkulačka!$H$3/10000/POWER(1+Kalkulačka!$H$7,CF!O32/10000) -> 325.7945599 | P39: ='Pomocné tabuľky'!$C$61*Kalkulačka!$H$3/10000/POWER(1+Kalkulačka!$H$7,CF!P32/10000) -> 307.1806247 | Q39: ='Pomocné tabuľky'!$C$61*Kalkulačka!$H$3/10000/POWER(1+Kalkulačka!$H$7,CF!Q32/10000) -> 289.6301774 | R39: ='Pomocné tabuľky'!$C$61*Kalkulačka!$H$3/10000/POWER(1+Kalkulačka!$H$7,CF!R32/10000) -> 273.0824568
B40: Čisté kumulatívne náklady | C40: =C33 -> 29006 | D40: =C40+D33 -> 30291.08091 | E40: 31502.74005 | F40: 32645.17231 | G40: 33722.33287 | H40: 34737.95098 | I40: 35695.5428 | J40: 36598.42361 | K40: 37449.71925 | L40: 38252.37699 | M40: 39009.17572 | N40: 39722.73553 | O40: 40395.52684 | P40: 41029.87892 | Q40: 41627.98795 | R40: 42191.92463
A42: ='Pomocné tabuľky'!D55 -> Kompakt - štandard | B42: Počet kilometrov | C42: 0 | D42: =Kalkulačka!$H$3*CF!D1 -> 15000 | E42: =Kalkulačka!$H$3*CF!E1 -> 30000 | F42: =Kalkulačka!$H$3*CF!F1 -> 45000 | G42: =Kalkulačka!$H$3*CF!G1 -> 60000 | H42: =Kalkulačka!$H$3*CF!H1 -> 75000 | I42: =Kalkulačka!$H$3*CF!I1 -> 90000 | J42: =Kalkulačka!$H$3*CF!J1 -> 105000 | K42: =Kalkulačka!$H$3*CF!K1 -> 120000 | L42: =Kalkulačka!$H$3*CF!L1 -> 135000 | M42: =Kalkulačka!$H$3*CF!M1 -> 150000 | N42: =Kalkulačka!$H$3*CF!N1 -> 165000 | O42: =Kalkulačka!$H$3*CF!O1 -> 180000 | P42: =Kalkulačka!$H$3*CF!P1 -> 195000 | Q42: =Kalkulačka!$H$3*CF!Q1 -> 210000 | R42: =Kalkulačka!$H$3*CF!R1 -> 225000
B43: Celkové náklady v priebehu životnosti | C43: =SUM(C44:C49) -> 15579.38462 | D43: =SUM(D44:D49) -> 1984.132469 | E43: 1870.771113 | F43: 1763.88654 | G43: 1663.108707 | H43: 1568.088711 | I43: 1478.497585 | J43: 1394.025154 | K43: 1314.378969 | L43: 1239.283286 | M43: 1168.478117 | N43: 1101.718329 | O43: 1038.772792 | P43: 979.4235826 | Q43: 923.4652292 | R43: 870.7039985
B44: Nákup auta | C44: ='Pomocné tabuľky'!D56 -> 15359.23077
B45: Dotácia | C45: ='Pomocné tabuľky'!D57 -> 0
B46: Registračná daň | C46: ='Pomocné tabuľky'!D58 -> 220.1538462
B47: Poistenie | D47: ='Pomocné tabuľky'!$D$59/POWER(1+Kalkulačka!$H$7,CF!D42/10000) -> 130.8980915 | E47: ='Pomocné tabuľky'!$D$59/POWER(1+Kalkulačka!$H$7,CF!E42/10000) -> 123.4193645 | F47: ='Pomocné tabuľky'!$D$59/POWER(1+Kalkulačka!$H$7,CF!F42/10000) -> 116.3679267 | G47: ='Pomocné tabuľky'!$D$59/POWER(1+Kalkulačka!$H$7,CF!G42/10000) -> 109.7193656 | H47: ='Pomocné tabuľky'!$D$59/POWER(1+Kalkulačka!$H$7,CF!H42/10000) -> 103.4506631 | I47: ='Pomocné tabuľky'!$D$59/POWER(1+Kalkulačka!$H$7,CF!I42/10000) -> 97.5401165 | J47: ='Pomocné tabuľky'!$D$59/POWER(1+Kalkulačka!$H$7,CF!J42/10000) -> 91.96726283 | K47: ='Pomocné tabuľky'!$D$59/POWER(1+Kalkulačka!$H$7,CF!K42/10000) -> 86.71280839 | L47: ='Pomocné tabuľky'!$D$59/POWER(1+Kalkulačka!$H$7,CF!L42/10000) -> 81.75856177 | M47: ='Pomocné tabuľky'!$D$59/POWER(1+Kalkulačka!$H$7,CF!M42/10000) -> 77.08737091 | N47: ='Pomocné tabuľky'!$D$59/POWER(1+Kalkulačka!$H$7,CF!N42/10000) -> 72.68306371 | O47: ='Pomocné tabuľky'!$D$59/POWER(1+Kalkulačka!$H$7,CF!O42/10000) -> 68.53039204 | P47: ='Pomocné tabuľky'!$D$59/POWER(1+Kalkulačka!$H$7,CF!P42/10000) -> 64.61497897 | Q47: ='Pomocné tabuľky'!$D$59/POWER(1+Kalkulačka!$H$7,CF!Q42/10000) -> 60.92326898 | R47: ='Pomocné tabuľky'!$D$59/POWER(1+Kalkulačka!$H$7,CF!R42/10000) -> 57.44248102
B48: Palivo | D48: ='Pomocné tabuľky'!$D$60*Kalkulačka!$H$3/10000/POWER(1+Kalkulačka!$H$7,CF!D42/10000) -> 1174.370833 | E48: ='Pomocné tabuľky'!$D$60*Kalkulačka!$H$3/10000/POWER(1+Kalkulačka!$H$7,CF!E42/10000) -> 1107.27437 | F48: ='Pomocné tabuľky'!$D$60*Kalkulačka!$H$3/10000/POWER(1+Kalkulačka!$H$7,CF!F42/10000) -> 1044.011394 | G48: ='Pomocné tabuľky'!$D$60*Kalkulačka!$H$3/10000/POWER(1+Kalkulačka!$H$7,CF!G42/10000) -> 984.362883 | H48: ='Pomocné tabuľky'!$D$60*Kalkulačka!$H$3/10000/POWER(1+Kalkulačka!$H$7,CF!H42/10000) -> 928.1223278 | I48: ='Pomocné tabuľky'!$D$60*Kalkulačka!$H$3/10000/POWER(1+Kalkulačka!$H$7,CF!I42/10000) -> 875.0950186 | J48: ='Pomocné tabuľky'!$D$60*Kalkulačka!$H$3/10000/POWER(1+Kalkulačka!$H$7,CF!J42/10000) -> 825.0973698 | K48: ='Pomocné tabuľky'!$D$60*Kalkulačka!$H$3/10000/POWER(1+Kalkulačka!$H$7,CF!K42/10000) -> 777.956285 | L48: ='Pomocné tabuľky'!$D$60*Kalkulačka!$H$3/10000/POWER(1+Kalkulačka!$H$7,CF!L42/10000) -> 733.5085573 | M48: ='Pomocné tabuľky'!$D$60*Kalkulačka!$H$3/10000/POWER(1+Kalkulačka!$H$7,CF!M42/10000) -> 691.6003046 | N48: ='Pomocné tabuľky'!$D$60*Kalkulačka!$H$3/10000/POWER(1+Kalkulačka!$H$7,CF!N42/10000) -> 652.0864365 | O48: ='Pomocné tabuľky'!$D$60*Kalkulačka!$H$3/10000/POWER(1+Kalkulačka!$H$7,CF!O42/10000) -> 614.8301524 | P48: ='Pomocné tabuľky'!$D$60*Kalkulačka!$H$3/10000/POWER(1+Kalkulačka!$H$7,CF!P42/10000) -> 579.7024676 | Q48: ='Pomocné tabuľky'!$D$60*Kalkulačka!$H$3/10000/POWER(1+Kalkulačka!$H$7,CF!Q42/10000) -> 546.5817667 | R48: ='Pomocné tabuľky'!$D$60*Kalkulačka!$H$3/10000/POWER(1+Kalkulačka!$H$7,CF!R42/10000) -> 515.3533828
B49: Údržba | D49: ='Pomocné tabuľky'!$D$61*Kalkulačka!$H$3/10000/POWER(1+Kalkulačka!$H$7,CF!D42/10000) -> 678.8635447 | E49: ='Pomocné tabuľky'!$D$61*Kalkulačka!$H$3/10000/POWER(1+Kalkulačka!$H$7,CF!E42/10000) -> 640.0773782 | F49: ='Pomocné tabuľky'!$D$61*Kalkulačka!$H$3/10000/POWER(1+Kalkulačka!$H$7,CF!F42/10000) -> 603.5072193 | G49: ='Pomocné tabuľky'!$D$61*Kalkulačka!$H$3/10000/POWER(1+Kalkulačka!$H$7,CF!G42/10000) -> 569.0264585 | H49: ='Pomocné tabuľky'!$D$61*Kalkulačka!$H$3/10000/POWER(1+Kalkulačka!$H$7,CF!H42/10000) -> 536.5157204 | I49: ='Pomocné tabuľky'!$D$61*Kalkulačka!$H$3/10000/POWER(1+Kalkulačka!$H$7,CF!I42/10000) -> 505.8624496 | J49: ='Pomocné tabuľky'!$D$61*Kalkulačka!$H$3/10000/POWER(1+Kalkulačka!$H$7,CF!J42/10000) -> 476.9605218 | K49: ='Pomocné tabuľky'!$D$61*Kalkulačka!$H$3/10000/POWER(1+Kalkulačka!$H$7,CF!K42/10000) -> 449.7098757 | L49: ='Pomocné tabuľky'!$D$61*Kalkulačka!$H$3/10000/POWER(1+Kalkulačka!$H$7,CF!L42/10000) -> 424.0161671 | M49: ='Pomocné tabuľky'!$D$61*Kalkulačka!$H$3/10000/POWER(1+Kalkulačka!$H$7,CF!M42/10000) -> 399.790442 | N49: ='Pomocné tabuľky'!$D$61*Kalkulačka!$H$3/10000/POWER(1+Kalkulačka!$H$7,CF!N42/10000) -> 376.9488286 | O49: ='Pomocné tabuľky'!$D$61*Kalkulačka!$H$3/10000/POWER(1+Kalkulačka!$H$7,CF!O42/10000) -> 355.4122471 | P49: ='Pomocné tabuľky'!$D$61*Kalkulačka!$H$3/10000/POWER(1+Kalkulačka!$H$7,CF!P42/10000) -> 335.106136 | Q49: ='Pomocné tabuľky'!$D$61*Kalkulačka!$H$3/10000/POWER(1+Kalkulačka!$H$7,CF!Q42/10000) -> 315.9601935 | R49: ='Pomocné tabuľky'!$D$61*Kalkulačka!$H$3/10000/POWER(1+Kalkulačka!$H$7,CF!R42/10000) -> 297.9081347
B50: Čisté kumulatívne náklady | C50: =C43 -> 15579.38462 | D50: =C50+D43 -> 17563.51708 | E50: 19434.2882 | F50: 21198.17474 | G50: 22861.28344 | H50: 24429.37216 | I50: 25907.86974 | J50: 27301.89489 | K50: 28616.27386 | L50: 29855.55715 | M50: 31024.03527 | N50: 32125.7536 | O50: 33164.52639 | P50: 34143.94997 | Q50: 35067.4152 | R50: 35938.1192
A52: ='Pomocné tabuľky'!E55 -> Luxusná trieda - elektromobil | B52: Počet kilometrov | C52: 0 | D52: =Kalkulačka!$H$3*CF!D1 -> 15000 | E52: =Kalkulačka!$H$3*CF!E1 -> 30000 | F52: =Kalkulačka!$H$3*CF!F1 -> 45000 | G52: =Kalkulačka!$H$3*CF!G1 -> 60000 | H52: =Kalkulačka!$H$3*CF!H1 -> 75000 | I52: =Kalkulačka!$H$3*CF!I1 -> 90000 | J52: =Kalkulačka!$H$3*CF!J1 -> 105000 | K52: =Kalkulačka!$H$3*CF!K1 -> 120000 | L52: =Kalkulačka!$H$3*CF!L1 -> 135000 | M52: =Kalkulačka!$H$3*CF!M1 -> 150000 | N52: =Kalkulačka!$H$3*CF!N1 -> 165000 | O52: =Kalkulačka!$H$3*CF!O1 -> 180000 | P52: =Kalkulačka!$H$3*CF!P1 -> 195000 | Q52: =Kalkulačka!$H$3*CF!Q1 -> 210000 | R52: =Kalkulačka!$H$3*CF!R1 -> 225000
B53: Celkové náklady v priebehu životnosti | C53: =SUM(C54:C59) -> 84033 | D53: =SUM(D54:D59) -> 977.2806446 | E53: 921.4447258 | F53: 868.7989344 | G53: 819.1610059 | H53: 772.3590891 | I53: 728.2311514 | J53: 686.6244178 | K53: 647.3948419 | L53: 610.4066072 | M53: 575.5316571 | N53: 542.6492511 | O53: 511.6455474 | P53: 482.4132083 | Q53: 454.8510286 | R53: 428.8635855
B54: Nákup auta | C54: ='Pomocné tabuľky'!E56 -> 84000
B55: Dotácia | C55: =-'Pomocné tabuľky'!E57 -> 0
B56: Registračná daň | C56: ='Pomocné tabuľky'!E58 -> 33
B57: Poistenie | D57: ='Pomocné tabuľky'!$E$59/POWER(1+Kalkulačka!$H$7,CF!D52/10000) -> 164.5678376 | E57: ='Pomocné tabuľky'!$E$59/POWER(1+Kalkulačka!$H$7,CF!E52/10000) -> 155.1654244 | F57: ='Pomocné tabuľky'!$E$59/POWER(1+Kalkulačka!$H$7,CF!F52/10000) -> 146.3002084 | G57: ='Pomocné tabuľky'!$E$59/POWER(1+Kalkulačka!$H$7,CF!G52/10000) -> 137.9414973 | H57: ='Pomocné tabuľky'!$E$59/POWER(1+Kalkulačka!$H$7,CF!H52/10000) -> 130.0603525 | I57: ='Pomocné tabuľky'!$E$59/POWER(1+Kalkulačka!$H$7,CF!I52/10000) -> 122.6294888 | J57: ='Pomocné tabuľky'!$E$59/POWER(1+Kalkulačka!$H$7,CF!J52/10000) -> 115.6231798 | K57: ='Pomocné tabuľky'!$E$59/POWER(1+Kalkulačka!$H$7,CF!K52/10000) -> 109.017169 | L57: ='Pomocné tabuľky'!$E$59/POWER(1+Kalkulačka!$H$7,CF!L52/10000) -> 102.7885858 | M57: ='Pomocné tabuľky'!$E$59/POWER(1+Kalkulačka!$H$7,CF!M52/10000) -> 96.9158663 | N57: ='Pomocné tabuľky'!$E$59/POWER(1+Kalkulačka!$H$7,CF!N52/10000) -> 91.37867852 | O57: ='Pomocné tabuľky'!$E$59/POWER(1+Kalkulačka!$H$7,CF!O52/10000) -> 86.15785224 | P57: ='Pomocné tabuľky'!$E$59/POWER(1+Kalkulačka!$H$7,CF!P52/10000) -> 81.23531247 | Q57: ='Pomocné tabuľky'!$E$59/POWER(1+Kalkulačka!$H$7,CF!Q52/10000) -> 76.59401691 | R57: ='Pomocné tabuľky'!$E$59/POWER(1+Kalkulačka!$H$7,CF!R52/10000) -> 72.21789698
B58: Palivo | D58: ='Pomocné tabuľky'!$E$60*Kalkulačka!$H$3/10000/POWER(1+Kalkulačka!$H$7,CF!D52/10000) -> 402.566082 | E58: ='Pomocné tabuľky'!$E$60*Kalkulačka!$H$3/10000/POWER(1+Kalkulačka!$H$7,CF!E52/10000) -> 379.5658853 | F58: ='Pomocné tabuľky'!$E$60*Kalkulačka!$H$3/10000/POWER(1+Kalkulačka!$H$7,CF!F52/10000) -> 357.879781 | G58: ='Pomocné tabuľky'!$E$60*Kalkulačka!$H$3/10000/POWER(1+Kalkulačka!$H$7,CF!G52/10000) -> 337.4326899 | H58: ='Pomocné tabuľky'!$E$60*Kalkulačka!$H$3/10000/POWER(1+Kalkulačka!$H$7,CF!H52/10000) -> 318.1538222 | I58: ='Pomocné tabuľky'!$E$60*Kalkulačka!$H$3/10000/POWER(1+Kalkulačka!$H$7,CF!I52/10000) -> 299.9764326 | J58: ='Pomocné tabuľky'!$E$60*Kalkulačka!$H$3/10000/POWER(1+Kalkulačka!$H$7,CF!J52/10000) -> 282.8375894 | K58: ='Pomocné tabuľky'!$E$60*Kalkulačka!$H$3/10000/POWER(1+Kalkulačka!$H$7,CF!K52/10000) -> 266.6779563 | L58: ='Pomocné tabuľky'!$E$60*Kalkulačka!$H$3/10000/POWER(1+Kalkulačka!$H$7,CF!L52/10000) -> 251.4415871 | M58: ='Pomocné tabuľky'!$E$60*Kalkulačka!$H$3/10000/POWER(1+Kalkulačka!$H$7,CF!M52/10000) -> 237.0757321 | N58: ='Pomocné tabuľky'!$E$60*Kalkulačka!$H$3/10000/POWER(1+Kalkulačka!$H$7,CF!N52/10000) -> 223.5306553 | O58: ='Pomocné tabuľky'!$E$60*Kalkulačka!$H$3/10000/POWER(1+Kalkulačka!$H$7,CF!O52/10000) -> 210.7594625 | P58: ='Pomocné tabuľky'!$E$60*Kalkulačka!$H$3/10000/POWER(1+Kalkulačka!$H$7,CF!P52/10000) -> 198.7179386 | Q58: ='Pomocné tabuľky'!$E$60*Kalkulačka!$H$3/10000/POWER(1+Kalkulačka!$H$7,CF!Q52/10000) -> 187.3643948 | R58: ='Pomocné tabuľky'!$E$60*Kalkulačka!$H$3/10000/POWER(1+Kalkulačka!$H$7,CF!R52/10000) -> 176.6595239
B59: Údržba | D59: ='Pomocné tabuľky'!$E$61*Kalkulačka!$H$3/10000/POWER(1+Kalkulačka!$H$7,CF!D52/10000) -> 410.1467249 | E59: ='Pomocné tabuľky'!$E$61*Kalkulačka!$H$3/10000/POWER(1+Kalkulačka!$H$7,CF!E52/10000) -> 386.713416 | F59: ='Pomocné tabuľky'!$E$61*Kalkulačka!$H$3/10000/POWER(1+Kalkulačka!$H$7,CF!F52/10000) -> 364.618945 | G59: ='Pomocné tabuľky'!$E$61*Kalkulačka!$H$3/10000/POWER(1+Kalkulačka!$H$7,CF!G52/10000) -> 343.7868187 | H59: ='Pomocné tabuľky'!$E$61*Kalkulačka!$H$3/10000/POWER(1+Kalkulačka!$H$7,CF!H52/10000) -> 324.1449144 | I59: ='Pomocné tabuľky'!$E$61*Kalkulačka!$H$3/10000/POWER(1+Kalkulačka!$H$7,CF!I52/10000) -> 305.62523 | J59: ='Pomocné tabuľky'!$E$61*Kalkulačka!$H$3/10000/POWER(1+Kalkulačka!$H$7,CF!J52/10000) -> 288.1636486 | K59: ='Pomocné tabuľky'!$E$61*Kalkulačka!$H$3/10000/POWER(1+Kalkulačka!$H$7,CF!K52/10000) -> 271.6997166 | L59: ='Pomocné tabuľky'!$E$61*Kalkulačka!$H$3/10000/POWER(1+Kalkulačka!$H$7,CF!L52/10000) -> 256.1764343 | M59: ='Pomocné tabuľky'!$E$61*Kalkulačka!$H$3/10000/POWER(1+Kalkulačka!$H$7,CF!M52/10000) -> 241.5400587 | N59: ='Pomocné tabuľky'!$E$61*Kalkulačka!$H$3/10000/POWER(1+Kalkulačka!$H$7,CF!N52/10000) -> 227.7399173 | O59: ='Pomocné tabuľky'!$E$61*Kalkulačka!$H$3/10000/POWER(1+Kalkulačka!$H$7,CF!O52/10000) -> 214.7282326 | P59: ='Pomocné tabuľky'!$E$61*Kalkulačka!$H$3/10000/POWER(1+Kalkulačka!$H$7,CF!P52/10000) -> 202.4599572 | Q59: ='Pomocné tabuľky'!$E$61*Kalkulačka!$H$3/10000/POWER(1+Kalkulačka!$H$7,CF!Q52/10000) -> 190.8926169 | R59: ='Pomocné tabuľky'!$E$61*Kalkulačka!$H$3/10000/POWER(1+Kalkulačka!$H$7,CF!R52/10000) -> 179.9861647
B60: Čisté kumulatívne náklady | C60: =C53 -> 84033 | D60: =C60+D53 -> 85010.28064 | E60: 85931.72537 | F60: 86800.5243 | G60: 87619.68531 | H60: 88392.0444 | I60: 89120.27555 | J60: 89806.89997 | K60: 90454.29481 | L60: 91064.70142 | M60: 91640.23308 | N60: 92182.88233 | O60: 92694.52787 | P60: 93176.94108 | Q60: 93631.79211 | R60: 94060.6557
A62: ='Pomocné tabuľky'!F55 -> Luxusná trieda - hybrid | B62: Počet kilometrov | C62: 0 | D62: =Kalkulačka!$H$3*CF!D1 -> 15000 | E62: =Kalkulačka!$H$3*CF!E1 -> 30000 | F62: =Kalkulačka!$H$3*CF!F1 -> 45000 | G62: =Kalkulačka!$H$3*CF!G1 -> 60000 | H62: =Kalkulačka!$H$3*CF!H1 -> 75000 | I62: =Kalkulačka!$H$3*CF!I1 -> 90000 | J62: =Kalkulačka!$H$3*CF!J1 -> 105000 | K62: =Kalkulačka!$H$3*CF!K1 -> 120000 | L62: =Kalkulačka!$H$3*CF!L1 -> 135000 | M62: =Kalkulačka!$H$3*CF!M1 -> 150000 | N62: =Kalkulačka!$H$3*CF!N1 -> 165000 | O62: =Kalkulačka!$H$3*CF!O1 -> 180000 | P62: =Kalkulačka!$H$3*CF!P1 -> 195000 | Q62: =Kalkulačka!$H$3*CF!Q1 -> 210000 | R62: =Kalkulačka!$H$3*CF!R1 -> 225000
B63: Celkové náklady v priebehu životnosti | C63: =SUM(C64:C69) -> 95669.09091 | D63: =SUM(D64:D69) -> 1157.952805 | E63: 1091.79437 | F63: 1029.415828 | G63: 970.601219 | H63: 915.1469223 | I63: 862.8609494 | J63: 813.5622816 | K63: 767.0802421 | L63: 723.2539059 | M63: 681.931542 | N63: 642.9700887 | O63: 606.2346577 | P63: 571.5980676 | Q63: 538.9404032 | R63: 508.1486007
B64: Nákup auta | C64: ='Pomocné tabuľky'!F56 -> 94246.36364
B65: Dotácia | C65: =-'Pomocné tabuľky'!F57 -> 0
B66: Registračná daň | C66: ='Pomocné tabuľky'!F58 -> 1422.727273
B67: Poistenie | D67: ='Pomocné tabuľky'!$F$59/POWER(1+Kalkulačka!$H$7,CF!D62/10000) -> 170.8687542 | E67: ='Pomocné tabuľky'!$F$59/POWER(1+Kalkulačka!$H$7,CF!E62/10000) -> 161.1063447 | F67: ='Pomocné tabuľky'!$F$59/POWER(1+Kalkulačka!$H$7,CF!F62/10000) -> 151.9017003 | G67: ='Pomocné tabuľky'!$F$59/POWER(1+Kalkulačka!$H$7,CF!G62/10000) -> 143.2229538 | H67: ='Pomocné tabuľky'!$F$59/POWER(1+Kalkulačka!$H$7,CF!H62/10000) -> 135.0400584 | I67: ='Pomocné tabuľky'!$F$59/POWER(1+Kalkulačka!$H$7,CF!I62/10000) -> 127.3246844 | J67: ='Pomocné tabuľky'!$F$59/POWER(1+Kalkulačka!$H$7,CF!J62/10000) -> 120.0501202 | K67: ='Pomocné tabuľky'!$F$59/POWER(1+Kalkulačka!$H$7,CF!K62/10000) -> 113.1911808 | L67: ='Pomocné tabuľky'!$F$59/POWER(1+Kalkulačka!$H$7,CF!L62/10000) -> 106.7241197 | M67: ='Pomocné tabuľky'!$F$59/POWER(1+Kalkulačka!$H$7,CF!M62/10000) -> 100.6265475 | N67: ='Pomocné tabuľky'!$F$59/POWER(1+Kalkulačka!$H$7,CF!N62/10000) -> 94.87735383 | O67: ='Pomocné tabuľky'!$F$59/POWER(1+Kalkulačka!$H$7,CF!O62/10000) -> 89.45663435 | P67: ='Pomocné tabuľky'!$F$59/POWER(1+Kalkulačka!$H$7,CF!P62/10000) -> 84.34562207 | Q67: ='Pomocné tabuľky'!$F$59/POWER(1+Kalkulačka!$H$7,CF!Q62/10000) -> 79.52662219 | R67: ='Pomocné tabuľky'!$F$59/POWER(1+Kalkulačka!$H$7,CF!R62/10000) -> 74.98295089
B68: Palivo | D68: ='Pomocné tabuľky'!$F$60*Kalkulačka!$H$3/10000/POWER(1+Kalkulačka!$H$7,CF!D62/10000) -> 364.7924687 | E68: ='Pomocné tabuľky'!$F$60*Kalkulačka!$H$3/10000/POWER(1+Kalkulačka!$H$7,CF!E62/10000) -> 343.9504283 | F68: ='Pomocné tabuľky'!$F$60*Kalkulačka!$H$3/10000/POWER(1+Kalkulačka!$H$7,CF!F62/10000) -> 324.2991763 | G68: ='Pomocné tabuľky'!$F$60*Kalkulačka!$H$3/10000/POWER(1+Kalkulačka!$H$7,CF!G62/10000) -> 305.7706783 | H68: ='Pomocné tabuľky'!$F$60*Kalkulačka!$H$3/10000/POWER(1+Kalkulačka!$H$7,CF!H62/10000) -> 288.3007869 | I68: ='Pomocné tabuľky'!$F$60*Kalkulačka!$H$3/10000/POWER(1+Kalkulačka!$H$7,CF!I62/10000) -> 271.8290196 | J68: ='Pomocné tabuľky'!$F$60*Kalkulačka!$H$3/10000/POWER(1+Kalkulačka!$H$7,CF!J62/10000) -> 256.2983497 | K68: ='Pomocné tabuľky'!$F$60*Kalkulačka!$H$3/10000/POWER(1+Kalkulačka!$H$7,CF!K62/10000) -> 241.6550086 | L68: ='Pomocné tabuľky'!$F$60*Kalkulačka!$H$3/10000/POWER(1+Kalkulačka!$H$7,CF!L62/10000) -> 227.8482996 | M68: ='Pomocné tabuľky'!$F$60*Kalkulačka!$H$3/10000/POWER(1+Kalkulačka!$H$7,CF!M62/10000) -> 214.8304227 | N68: ='Pomocné tabuľky'!$F$60*Kalkulačka!$H$3/10000/POWER(1+Kalkulačka!$H$7,CF!N62/10000) -> 202.5563087 | O68: ='Pomocné tabuľky'!$F$60*Kalkulačka!$H$3/10000/POWER(1+Kalkulačka!$H$7,CF!O62/10000) -> 190.9834635 | P68: ='Pomocné tabuľky'!$F$60*Kalkulačka!$H$3/10000/POWER(1+Kalkulačka!$H$7,CF!P62/10000) -> 180.0718209 | Q68: ='Pomocné tabuľky'!$F$60*Kalkulačka!$H$3/10000/POWER(1+Kalkulačka!$H$7,CF!Q62/10000) -> 169.7836036 | R68: ='Pomocné tabuľky'!$F$60*Kalkulačka!$H$3/10000/POWER(1+Kalkulačka!$H$7,CF!R62/10000) -> 160.083193
B69: Údržba | D69: ='Pomocné tabuľky'!$F$61*Kalkulačka!$H$3/10000/POWER(1+Kalkulačka!$H$7,CF!D62/10000) -> 622.2915827 | E69: ='Pomocné tabuľky'!$F$61*Kalkulačka!$H$3/10000/POWER(1+Kalkulačka!$H$7,CF!E62/10000) -> 586.7375967 | F69: ='Pomocné tabuľky'!$F$61*Kalkulačka!$H$3/10000/POWER(1+Kalkulačka!$H$7,CF!F62/10000) -> 553.214951 | G69: ='Pomocné tabuľky'!$F$61*Kalkulačka!$H$3/10000/POWER(1+Kalkulačka!$H$7,CF!G62/10000) -> 521.607587 | H69: ='Pomocné tabuľky'!$F$61*Kalkulačka!$H$3/10000/POWER(1+Kalkulačka!$H$7,CF!H62/10000) -> 491.806077 | I69: ='Pomocné tabuľky'!$F$61*Kalkulačka!$H$3/10000/POWER(1+Kalkulačka!$H$7,CF!I62/10000) -> 463.7072455 | J69: ='Pomocné tabuľky'!$F$61*Kalkulačka!$H$3/10000/POWER(1+Kalkulačka!$H$7,CF!J62/10000) -> 437.2138116 | K69: ='Pomocné tabuľky'!$F$61*Kalkulačka!$H$3/10000/POWER(1+Kalkulačka!$H$7,CF!K62/10000) -> 412.2340527 | L69: ='Pomocné tabuľky'!$F$61*Kalkulačka!$H$3/10000/POWER(1+Kalkulačka!$H$7,CF!L62/10000) -> 388.6814865 | M69: ='Pomocné tabuľky'!$F$61*Kalkulačka!$H$3/10000/POWER(1+Kalkulačka!$H$7,CF!M62/10000) -> 366.4745718 | N69: ='Pomocné tabuľky'!$F$61*Kalkulačka!$H$3/10000/POWER(1+Kalkulačka!$H$7,CF!N62/10000) -> 345.5364262 | O69: ='Pomocné tabuľky'!$F$61*Kalkulačka!$H$3/10000/POWER(1+Kalkulačka!$H$7,CF!O62/10000) -> 325.7945599 | P69: ='Pomocné tabuľky'!$F$61*Kalkulačka!$H$3/10000/POWER(1+Kalkulačka!$H$7,CF!P62/10000) -> 307.1806247 | Q69: ='Pomocné tabuľky'!$F$61*Kalkulačka!$H$3/10000/POWER(1+Kalkulačka!$H$7,CF!Q62/10000) -> 289.6301774 | R69: ='Pomocné tabuľky'!$F$61*Kalkulačka!$H$3/10000/POWER(1+Kalkulačka!$H$7,CF!R62/10000) -> 273.0824568
B70: Čisté kumulatívne náklady | C70: =C63 -> 95669.09091 | D70: =C70+D63 -> 96827.04371 | E70: 97918.83808 | F70: 98948.25391 | G70: 99918.85513 | H70: 100834.0021 | I70: 101696.863 | J70: 102510.4253 | K70: 103277.5055 | L70: 104000.7594 | M70: 104682.691 | N70: 105325.6611 | O70: 105931.8957 | P70: 106503.4938 | Q70: 107042.4342 | R70: 107550.5828
A72: ='Pomocné tabuľky'!G55 -> Luxusná trieda - štandard | B72: Počet kilometrov | C72: 0 | D72: =Kalkulačka!$H$3*CF!D1 -> 15000 | E72: =Kalkulačka!$H$3*CF!E1 -> 30000 | F72: =Kalkulačka!$H$3*CF!F1 -> 45000 | G72: =Kalkulačka!$H$3*CF!G1 -> 60000 | H72: =Kalkulačka!$H$3*CF!H1 -> 75000 | I72: =Kalkulačka!$H$3*CF!I1 -> 90000 | J72: =Kalkulačka!$H$3*CF!J1 -> 105000 | K72: =Kalkulačka!$H$3*CF!K1 -> 120000 | L72: =Kalkulačka!$H$3*CF!L1 -> 135000 | M72: =Kalkulačka!$H$3*CF!M1 -> 150000 | N72: =Kalkulačka!$H$3*CF!N1 -> 165000 | O72: =Kalkulačka!$H$3*CF!O1 -> 180000 | P72: =Kalkulačka!$H$3*CF!P1 -> 195000 | Q72: =Kalkulačka!$H$3*CF!Q1 -> 210000 | R72: =Kalkulačka!$H$3*CF!R1 -> 225000
B73: Celkové náklady v priebehu životnosti | C73: =SUM(C74:C79) -> 58445 | D73: =SUM(D74:D79) -> 2337.349578 | E73: 2203.807527 | F73: 2077.895263 | G73: 1959.176867 | H73: 1847.241323 | I73: 1741.7011 | J73: 1642.19081 | K73: 1548.365936 | L73: 1459.90165 | M73: 1376.491679 | N73: 1297.847251 | O73: 1223.696091 | P73: 1153.78148 | Q73: 1087.861369 | R73: 1025.707535
B74: Nákup auta | C74: ='Pomocné tabuľky'!G56 -> 57187.5
B75: Dotácia | C75: =-'Pomocné tabuľky'!G57 -> 0
B76: Registračná daň | C76: ='Pomocné tabuľky'!G58 -> 1257.5
B77: Poistenie | D77: ='Pomocné tabuľky'!$G$59/POWER(1+Kalkulačka!$H$7,CF!D72/10000) -> 182.5624359 | E77: ='Pomocné tabuľky'!$G$59/POWER(1+Kalkulačka!$H$7,CF!E72/10000) -> 172.1319199 | F77: ='Pomocné tabuľky'!$G$59/POWER(1+Kalkulačka!$H$7,CF!F72/10000) -> 162.2973407 | G77: ='Pomocné tabuľky'!$G$59/POWER(1+Kalkulačka!$H$7,CF!G72/10000) -> 153.02465 | H77: ='Pomocné tabuľky'!$G$59/POWER(1+Kalkulačka!$H$7,CF!H72/10000) -> 144.2817449 | I77: ='Pomocné tabuľky'!$G$59/POWER(1+Kalkulačka!$H$7,CF!I72/10000) -> 136.0383567 | J77: ='Pomocné tabuľky'!$G$59/POWER(1+Kalkulačka!$H$7,CF!J72/10000) -> 128.2659459 | K77: ='Pomocné tabuľky'!$G$59/POWER(1+Kalkulačka!$H$7,CF!K72/10000) -> 120.9376037 | L77: ='Pomocné tabuľky'!$G$59/POWER(1+Kalkulačka!$H$7,CF!L72/10000) -> 114.0279588 | M77: ='Pomocné tabuľky'!$G$59/POWER(1+Kalkulačka!$H$7,CF!M72/10000) -> 107.5130893 | N77: ='Pomocné tabuľky'!$G$59/POWER(1+Kalkulačka!$H$7,CF!N72/10000) -> 101.3704402 | O77: ='Pomocné tabuľky'!$G$59/POWER(1+Kalkulačka!$H$7,CF!O72/10000) -> 95.57874493 | P77: ='Pomocné tabuľky'!$G$59/POWER(1+Kalkulačka!$H$7,CF!P72/10000) -> 90.1179522 | Q77: ='Pomocné tabuľky'!$G$59/POWER(1+Kalkulačka!$H$7,CF!Q72/10000) -> 84.96915621 | R77: ='Pomocné tabuľky'!$G$59/POWER(1+Kalkulačka!$H$7,CF!R72/10000) -> 80.11453135
B78: Palivo | D78: ='Pomocné tabuľky'!$G$60*Kalkulačka!$H$3/10000/POWER(1+Kalkulačka!$H$7,CF!D72/10000) -> 1475.923597 | E78: ='Pomocné tabuľky'!$G$60*Kalkulačka!$H$3/10000/POWER(1+Kalkulačka!$H$7,CF!E72/10000) -> 1391.598229 | F78: ='Pomocné tabuľky'!$G$60*Kalkulačka!$H$3/10000/POWER(1+Kalkulačka!$H$7,CF!F72/10000) -> 1312.090703 | G78: ='Pomocné tabuľky'!$G$60*Kalkulačka!$H$3/10000/POWER(1+Kalkulačka!$H$7,CF!G72/10000) -> 1237.125758 | H78: ='Pomocné tabuľky'!$G$60*Kalkulačka!$H$3/10000/POWER(1+Kalkulačka!$H$7,CF!H72/10000) -> 1166.443857 | I78: ='Pomocné tabuľky'!$G$60*Kalkulačka!$H$3/10000/POWER(1+Kalkulačka!$H$7,CF!I72/10000) -> 1099.800294 | J78: ='Pomocné tabuľky'!$G$60*Kalkulačka!$H$3/10000/POWER(1+Kalkulačka!$H$7,CF!J72/10000) -> 1036.964342 | K78: ='Pomocné tabuľky'!$G$60*Kalkulačka!$H$3/10000/POWER(1+Kalkulačka!$H$7,CF!K72/10000) -> 977.7184568 | L78: ='Pomocné tabuľky'!$G$60*Kalkulačka!$H$3/10000/POWER(1+Kalkulačka!$H$7,CF!L72/10000) -> 921.857524 | M78: ='Pomocné tabuľky'!$G$60*Kalkulačka!$H$3/10000/POWER(1+Kalkulačka!$H$7,CF!M72/10000) -> 869.1881479 | N78: ='Pomocné tabuľky'!$G$60*Kalkulačka!$H$3/10000/POWER(1+Kalkulačka!$H$7,CF!N72/10000) -> 819.5279821 | O78: ='Pomocné tabuľky'!$G$60*Kalkulačka!$H$3/10000/POWER(1+Kalkulačka!$H$7,CF!O72/10000) -> 772.7050985 | P78: ='Pomocné tabuľky'!$G$60*Kalkulačka!$H$3/10000/POWER(1+Kalkulačka!$H$7,CF!P72/10000) -> 728.5573919 | Q78: ='Pomocné tabuľky'!$G$60*Kalkulačka!$H$3/10000/POWER(1+Kalkulačka!$H$7,CF!Q72/10000) -> 686.9320189 | R78: ='Pomocné tabuľky'!$G$60*Kalkulačka!$H$3/10000/POWER(1+Kalkulačka!$H$7,CF!R72/10000) -> 647.6848685
B79: Údržba | D79: ='Pomocné tabuľky'!$G$61*Kalkulačka!$H$3/10000/POWER(1+Kalkulačka!$H$7,CF!D72/10000) -> 678.8635447 | E79: ='Pomocné tabuľky'!$G$61*Kalkulačka!$H$3/10000/POWER(1+Kalkulačka!$H$7,CF!E72/10000) -> 640.0773782 | F79: ='Pomocné tabuľky'!$G$61*Kalkulačka!$H$3/10000/POWER(1+Kalkulačka!$H$7,CF!F72/10000) -> 603.5072193 | G79: ='Pomocné tabuľky'!$G$61*Kalkulačka!$H$3/10000/POWER(1+Kalkulačka!$H$7,CF!G72/10000) -> 569.0264585 | H79: ='Pomocné tabuľky'!$G$61*Kalkulačka!$H$3/10000/POWER(1+Kalkulačka!$H$7,CF!H72/10000) -> 536.5157204 | I79: ='Pomocné tabuľky'!$G$61*Kalkulačka!$H$3/10000/POWER(1+Kalkulačka!$H$7,CF!I72/10000) -> 505.8624496 | J79: ='Pomocné tabuľky'!$G$61*Kalkulačka!$H$3/10000/POWER(1+Kalkulačka!$H$7,CF!J72/10000) -> 476.9605218 | K79: ='Pomocné tabuľky'!$G$61*Kalkulačka!$H$3/10000/POWER(1+Kalkulačka!$H$7,CF!K72/10000) -> 449.7098757 | L79: ='Pomocné tabuľky'!$G$61*Kalkulačka!$H$3/10000/POWER(1+Kalkulačka!$H$7,CF!L72/10000) -> 424.0161671 | M79: ='Pomocné tabuľky'!$G$61*Kalkulačka!$H$3/10000/POWER(1+Kalkulačka!$H$7,CF!M72/10000) -> 399.790442 | N79: ='Pomocné tabuľky'!$G$61*Kalkulačka!$H$3/10000/POWER(1+Kalkulačka!$H$7,CF!N72/10000) -> 376.9488286 | O79: ='Pomocné tabuľky'!$G$61*Kalkulačka!$H$3/10000/POWER(1+Kalkulačka!$H$7,CF!O72/10000) -> 355.4122471 | P79: ='Pomocné tabuľky'!$G$61*Kalkulačka!$H$3/10000/POWER(1+Kalkulačka!$H$7,CF!P72/10000) -> 335.106136 | Q79: ='Pomocné tabuľky'!$G$61*Kalkulačka!$H$3/10000/POWER(1+Kalkulačka!$H$7,CF!Q72/10000) -> 315.9601935 | R79: ='Pomocné tabuľky'!$G$61*Kalkulačka!$H$3/10000/POWER(1+Kalkulačka!$H$7,CF!R72/10000) -> 297.9081347
B80: Čisté kumulatívne náklady | C80: =C73 -> 58445 | D80: =C80+D73 -> 60782.34958 | E80: 62986.1571 | F80: 65064.05237 | G80: 67023.22923 | H80: 68870.47056 | I80: 70612.17166 | J80: 72254.36247 | K80: 73802.7284 | L80: 75262.63005 | M80: 76639.12173 | N80: 77936.96898 | O80: 79160.66507 | P80: 80314.44655 | Q80: 81402.30792 | R80: 82428.01546
A82: ='Pomocné tabuľky'!H55 -> Mini - elektromobil | B82: Počet kilometrov | C82: 0 | D82: =Kalkulačka!$H$3*CF!D1 -> 15000 | E82: =Kalkulačka!$H$3*CF!E1 -> 30000 | F82: =Kalkulačka!$H$3*CF!F1 -> 45000 | G82: =Kalkulačka!$H$3*CF!G1 -> 60000 | H82: =Kalkulačka!$H$3*CF!H1 -> 75000 | I82: =Kalkulačka!$H$3*CF!I1 -> 90000 | J82: =Kalkulačka!$H$3*CF!J1 -> 105000 | K82: =Kalkulačka!$H$3*CF!K1 -> 120000 | L82: =Kalkulačka!$H$3*CF!L1 -> 135000 | M82: =Kalkulačka!$H$3*CF!M1 -> 150000 | N82: =Kalkulačka!$H$3*CF!N1 -> 165000 | O82: =Kalkulačka!$H$3*CF!O1 -> 180000 | P82: =Kalkulačka!$H$3*CF!P1 -> 195000 | Q82: =Kalkulačka!$H$3*CF!Q1 -> 210000 | R82: =Kalkulačka!$H$3*CF!R1 -> 225000
B83: Celkové náklady v priebehu životnosti | C83: =SUM(C84:C89) -> 26009.25 | D83: =SUM(D84:D89) -> 783.0114792 | E83: 738.2749282 | F83: 696.0943538 | G83: 656.3237229 | H83: 618.8253458 | I83: 583.4693997 | J83: 550.1334791 | K83: 518.7021718 | L83: 489.0666597 | M83: 461.1243419 | N83: 434.7784796 | O83: 409.9378609 | P83: 386.5164852 | Q83: 364.4332656 | R83: 343.6117479
B84: Nákup auta | C84: ='Pomocné tabuľky'!H56 -> 25976.25
B85: Dotácia | C85: =-'Pomocné tabuľky'!H57 -> 0
B86: Registračná daň | C86: ='Pomocné tabuľky'!J58 -> 33
B87: Poistenie | D87: ='Pomocné tabuľky'!$H$59/POWER(1+Kalkulačka!$H$7,CF!D82/10000) -> 110.9128674 | E87: ='Pomocné tabuľky'!$H$59/POWER(1+Kalkulačka!$H$7,CF!E82/10000) -> 104.5759754 | F87: ='Pomocné tabuľky'!$H$59/POWER(1+Kalkulačka!$H$7,CF!F82/10000) -> 98.60113522 | G87: ='Pomocné tabuľky'!$H$59/POWER(1+Kalkulačka!$H$7,CF!G82/10000) -> 92.96766134 | H87: ='Pomocné tabuľky'!$H$59/POWER(1+Kalkulačka!$H$7,CF!H82/10000) -> 87.65605017 | I87: ='Pomocné tabuľky'!$H$59/POWER(1+Kalkulačka!$H$7,CF!I82/10000) -> 82.64791241 | J87: ='Pomocné tabuľky'!$H$59/POWER(1+Kalkulačka!$H$7,CF!J82/10000) -> 77.92590942 | K87: ='Pomocné tabuľky'!$H$59/POWER(1+Kalkulačka!$H$7,CF!K82/10000) -> 73.47369318 | L87: ='Pomocné tabuľky'!$H$59/POWER(1+Kalkulačka!$H$7,CF!L82/10000) -> 69.27584972 | M87: ='Pomocné tabuľky'!$H$59/POWER(1+Kalkulačka!$H$7,CF!M82/10000) -> 65.3178457 | N87: ='Pomocné tabuľky'!$H$59/POWER(1+Kalkulačka!$H$7,CF!N82/10000) -> 61.58597814 | O87: ='Pomocné tabuľky'!$H$59/POWER(1+Kalkulačka!$H$7,CF!O82/10000) -> 58.06732698 | P87: ='Pomocné tabuľky'!$H$59/POWER(1+Kalkulačka!$H$7,CF!P82/10000) -> 54.74971031 | Q87: ='Pomocné tabuľky'!$H$59/POWER(1+Kalkulačka!$H$7,CF!Q82/10000) -> 51.62164224 | R87: ='Pomocné tabuľky'!$H$59/POWER(1+Kalkulačka!$H$7,CF!R82/10000) -> 48.67229311
B88: Palivo | D88: ='Pomocné tabuľky'!$H$60*Kalkulačka!$H$3/10000/POWER(1+Kalkulačka!$H$7,CF!D82/10000) -> 261.9518869 | E88: ='Pomocné tabuľky'!$H$60*Kalkulačka!$H$3/10000/POWER(1+Kalkulačka!$H$7,CF!E82/10000) -> 246.9855368 | F88: ='Pomocné tabuľky'!$H$60*Kalkulačka!$H$3/10000/POWER(1+Kalkulačka!$H$7,CF!F82/10000) -> 232.8742736 | G88: ='Pomocné tabuľky'!$H$60*Kalkulačka!$H$3/10000/POWER(1+Kalkulačka!$H$7,CF!G82/10000) -> 219.5692428 | H88: ='Pomocné tabuľky'!$H$60*Kalkulačka!$H$3/10000/POWER(1+Kalkulačka!$H$7,CF!H82/10000) -> 207.0243812 | I88: ='Pomocné tabuľky'!$H$60*Kalkulačka!$H$3/10000/POWER(1+Kalkulačka!$H$7,CF!I82/10000) -> 195.1962573 | J88: ='Pomocné tabuľky'!$H$60*Kalkulačka!$H$3/10000/POWER(1+Kalkulačka!$H$7,CF!J82/10000) -> 184.0439211 | K88: ='Pomocné tabuľky'!$H$60*Kalkulačka!$H$3/10000/POWER(1+Kalkulačka!$H$7,CF!K82/10000) -> 173.528762 | L88: ='Pomocné tabuľky'!$H$60*Kalkulačka!$H$3/10000/POWER(1+Kalkulačka!$H$7,CF!L82/10000) -> 163.6143757 | M88: ='Pomocné tabuľky'!$H$60*Kalkulačka!$H$3/10000/POWER(1+Kalkulačka!$H$7,CF!M82/10000) -> 154.2664375 | N88: ='Pomocné tabuľky'!$H$60*Kalkulačka!$H$3/10000/POWER(1+Kalkulačka!$H$7,CF!N82/10000) -> 145.4525842 | O88: ='Pomocné tabuľky'!$H$60*Kalkulačka!$H$3/10000/POWER(1+Kalkulačka!$H$7,CF!O82/10000) -> 137.1423012 | P88: ='Pomocné tabuľky'!$H$60*Kalkulačka!$H$3/10000/POWER(1+Kalkulačka!$H$7,CF!P82/10000) -> 129.3068177 | Q88: ='Pomocné tabuľky'!$H$60*Kalkulačka!$H$3/10000/POWER(1+Kalkulačka!$H$7,CF!Q82/10000) -> 121.9190064 | R88: ='Pomocné tabuľky'!$H$60*Kalkulačka!$H$3/10000/POWER(1+Kalkulačka!$H$7,CF!R82/10000) -> 114.9532901
B89: Údržba | D89: ='Pomocné tabuľky'!$H$61*Kalkulačka!$H$3/10000/POWER(1+Kalkulačka!$H$7,CF!D82/10000) -> 410.1467249 | E89: ='Pomocné tabuľky'!$H$61*Kalkulačka!$H$3/10000/POWER(1+Kalkulačka!$H$7,CF!E82/10000) -> 386.713416 | F89: ='Pomocné tabuľky'!$H$61*Kalkulačka!$H$3/10000/POWER(1+Kalkulačka!$H$7,CF!F82/10000) -> 364.618945 | G89: ='Pomocné tabuľky'!$H$61*Kalkulačka!$H$3/10000/POWER(1+Kalkulačka!$H$7,CF!G82/10000) -> 343.7868187 | H89: ='Pomocné tabuľky'!$H$61*Kalkulačka!$H$3/10000/POWER(1+Kalkulačka!$H$7,CF!H82/10000) -> 324.1449144 | I89: ='Pomocné tabuľky'!$H$61*Kalkulačka!$H$3/10000/POWER(1+Kalkulačka!$H$7,CF!I82/10000) -> 305.62523 | J89: ='Pomocné tabuľky'!$H$61*Kalkulačka!$H$3/10000/POWER(1+Kalkulačka!$H$7,CF!J82/10000) -> 288.1636486 | K89: ='Pomocné tabuľky'!$H$61*Kalkulačka!$H$3/10000/POWER(1+Kalkulačka!$H$7,CF!K82/10000) -> 271.6997166 | L89: ='Pomocné tabuľky'!$H$61*Kalkulačka!$H$3/10000/POWER(1+Kalkulačka!$H$7,CF!L82/10000) -> 256.1764343 | M89: ='Pomocné tabuľky'!$H$61*Kalkulačka!$H$3/10000/POWER(1+Kalkulačka!$H$7,CF!M82/10000) -> 241.5400587 | N89: ='Pomocné tabuľky'!$H$61*Kalkulačka!$H$3/10000/POWER(1+Kalkulačka!$H$7,CF!N82/10000) -> 227.7399173 | O89: ='Pomocné tabuľky'!$H$61*Kalkulačka!$H$3/10000/POWER(1+Kalkulačka!$H$7,CF!O82/10000) -> 214.7282326 | P89: ='Pomocné tabuľky'!$H$61*Kalkulačka!$H$3/10000/POWER(1+Kalkulačka!$H$7,CF!P82/10000) -> 202.4599572 | Q89: ='Pomocné tabuľky'!$H$61*Kalkulačka!$H$3/10000/POWER(1+Kalkulačka!$H$7,CF!Q82/10000) -> 190.8926169 | R89: ='Pomocné tabuľky'!$H$61*Kalkulačka!$H$3/10000/POWER(1+Kalkulačka!$H$7,CF!R82/10000) -> 179.9861647
B90: Čisté kumulatívne náklady | C90: =C83 -> 26009.25 | D90: =C90+D83 -> 26792.26148 | E90: 27530.53641 | F90: 28226.63076 | G90: 28882.95448 | H90: 29501.77983 | I90: 30085.24923 | J90: 30635.38271 | K90: 31154.08488 | L90: 31643.15154 | M90: 32104.27588 | N90: 32539.05436 | O90: 32948.99222 | P90: 33335.50871 | Q90: 33699.94197 | R90: 34043.55372
A92: ='Pomocné tabuľky'!J55 -> Van - elektromobil | B92: Počet kilometrov | C92: 0 | D92: =Kalkulačka!$H$3*CF!D1 -> 15000 | E92: =Kalkulačka!$H$3*CF!E1 -> 30000 | F92: =Kalkulačka!$H$3*CF!F1 -> 45000 | G92: =Kalkulačka!$H$3*CF!G1 -> 60000 | H92: =Kalkulačka!$H$3*CF!H1 -> 75000 | I92: =Kalkulačka!$H$3*CF!I1 -> 90000 | J92: =Kalkulačka!$H$3*CF!J1 -> 105000 | K92: =Kalkulačka!$H$3*CF!K1 -> 120000 | L92: =Kalkulačka!$H$3*CF!L1 -> 135000 | M92: =Kalkulačka!$H$3*CF!M1 -> 150000 | N92: =Kalkulačka!$H$3*CF!N1 -> 165000 | O92: =Kalkulačka!$H$3*CF!O1 -> 180000 | P92: =Kalkulačka!$H$3*CF!P1 -> 195000 | Q92: =Kalkulačka!$H$3*CF!Q1 -> 210000 | R92: =Kalkulačka!$H$3*CF!R1 -> 225000
B93: Celkové náklady v priebehu životnosti | C93: =SUM(C94:C99) -> 34919 | D93: =SUM(D94:D99) -> 857.6217519 | E93: 808.6224201 | F93: 762.4226145 | G93: 718.862387 | H93: 677.7909281 | I93: 639.0660445 | J93: 602.553667 | K93: 568.1273865 | L93: 535.6680159 | M93: 505.0631778 | N93: 476.2069156 | O93: 448.999326 | P93: 423.3462139 | Q93: 399.1587659 | R93: 376.3532426
B94: Nákup auta | C94: ='Pomocné tabuľky'!J56 -> 34886
B95: Dotácia | C95: =-'Pomocné tabuľky'!J57 -> 0
B96: Registračná daň | C96: ='Pomocné tabuľky'!J58 -> 33
B97: Poistenie | D97: ='Pomocné tabuľky'!$J$59/POWER(1+Kalkulačka!$H$7,CF!D92/10000) -> 114.0999903 | E97: ='Pomocné tabuľky'!$J$59/POWER(1+Kalkulačka!$H$7,CF!E92/10000) -> 107.5810053 | F97: ='Pomocné tabuľky'!$J$59/POWER(1+Kalkulačka!$H$7,CF!F92/10000) -> 101.4344759 | G97: ='Pomocné tabuľky'!$J$59/POWER(1+Kalkulačka!$H$7,CF!G92/10000) -> 95.63912202 | H97: ='Pomocné tabuľky'!$J$59/POWER(1+Kalkulačka!$H$7,CF!H92/10000) -> 90.1748797 | I97: ='Pomocné tabuľky'!$J$59/POWER(1+Kalkulačka!$H$7,CF!I92/10000) -> 85.02283122 | J97: ='Pomocné tabuľky'!$J$59/POWER(1+Kalkulačka!$H$7,CF!J92/10000) -> 80.1651397 | K97: ='Pomocné tabuľky'!$J$59/POWER(1+Kalkulačka!$H$7,CF!K92/10000) -> 75.58498736 | L97: ='Pomocné tabuľky'!$J$59/POWER(1+Kalkulačka!$H$7,CF!L92/10000) -> 71.26651728 | M97: ='Pomocné tabuľky'!$J$59/POWER(1+Kalkulačka!$H$7,CF!M92/10000) -> 67.19477853 | N97: ='Pomocné tabuľky'!$J$59/POWER(1+Kalkulačka!$H$7,CF!N92/10000) -> 63.35567436 | O97: ='Pomocné tabuľky'!$J$59/POWER(1+Kalkulačka!$H$7,CF!O92/10000) -> 59.73591344 | P97: ='Pomocné tabuľky'!$J$59/POWER(1+Kalkulačka!$H$7,CF!P92/10000) -> 56.32296381 | Q97: ='Pomocné tabuľky'!$J$59/POWER(1+Kalkulačka!$H$7,CF!Q92/10000) -> 53.10500953 | R97: ='Pomocné tabuľky'!$J$59/POWER(1+Kalkulačka!$H$7,CF!R92/10000) -> 50.07090973
B98: Palivo | D98: ='Pomocné tabuľky'!$J$60*Kalkulačka!$H$3/10000/POWER(1+Kalkulačka!$H$7,CF!D92/10000) -> 333.3750367 | E98: ='Pomocné tabuľky'!$J$60*Kalkulačka!$H$3/10000/POWER(1+Kalkulačka!$H$7,CF!E92/10000) -> 314.3279988 | F98: ='Pomocné tabuľky'!$J$60*Kalkulačka!$H$3/10000/POWER(1+Kalkulačka!$H$7,CF!F92/10000) -> 296.3691937 | G98: ='Pomocné tabuľky'!$J$60*Kalkulačka!$H$3/10000/POWER(1+Kalkulačka!$H$7,CF!G92/10000) -> 279.4364463 | H98: ='Pomocné tabuľky'!$J$60*Kalkulačka!$H$3/10000/POWER(1+Kalkulačka!$H$7,CF!H92/10000) -> 263.471134 | I98: ='Pomocné tabuľky'!$J$60*Kalkulačka!$H$3/10000/POWER(1+Kalkulačka!$H$7,CF!I92/10000) -> 248.4179833 | J98: ='Pomocné tabuľky'!$J$60*Kalkulačka!$H$3/10000/POWER(1+Kalkulačka!$H$7,CF!J92/10000) -> 234.2248787 | K98: ='Pomocné tabuľky'!$J$60*Kalkulačka!$H$3/10000/POWER(1+Kalkulačka!$H$7,CF!K92/10000) -> 220.8426826 | L98: ='Pomocné tabuľky'!$J$60*Kalkulačka!$H$3/10000/POWER(1+Kalkulačka!$H$7,CF!L92/10000) -> 208.2250643 | M98: ='Pomocné tabuľky'!$J$60*Kalkulačka!$H$3/10000/POWER(1+Kalkulačka!$H$7,CF!M92/10000) -> 196.3283406 | N98: ='Pomocné tabuľky'!$J$60*Kalkulačka!$H$3/10000/POWER(1+Kalkulačka!$H$7,CF!N92/10000) -> 185.111324 | O98: ='Pomocné tabuľky'!$J$60*Kalkulačka!$H$3/10000/POWER(1+Kalkulačka!$H$7,CF!O92/10000) -> 174.5351799 | P98: ='Pomocné tabuľky'!$J$60*Kalkulačka!$H$3/10000/POWER(1+Kalkulačka!$H$7,CF!P92/10000) -> 164.5632929 | Q98: ='Pomocné tabuľky'!$J$60*Kalkulačka!$H$3/10000/POWER(1+Kalkulačka!$H$7,CF!Q92/10000) -> 155.1611394 | R98: ='Pomocné tabuľky'!$J$60*Kalkulačka!$H$3/10000/POWER(1+Kalkulačka!$H$7,CF!R92/10000) -> 146.2961682
B99: Údržba | D99: ='Pomocné tabuľky'!$J$61*Kalkulačka!$H$3/10000/POWER(1+Kalkulačka!$H$7,CF!D92/10000) -> 410.1467249 | E99: ='Pomocné tabuľky'!$J$61*Kalkulačka!$H$3/10000/POWER(1+Kalkulačka!$H$7,CF!E92/10000) -> 386.713416 | F99: ='Pomocné tabuľky'!$J$61*Kalkulačka!$H$3/10000/POWER(1+Kalkulačka!$H$7,CF!F92/10000) -> 364.618945 | G99: ='Pomocné tabuľky'!$J$61*Kalkulačka!$H$3/10000/POWER(1+Kalkulačka!$H$7,CF!G92/10000) -> 343.7868187 | H99: ='Pomocné tabuľky'!$J$61*Kalkulačka!$H$3/10000/POWER(1+Kalkulačka!$H$7,CF!H92/10000) -> 324.1449144 | I99: ='Pomocné tabuľky'!$J$61*Kalkulačka!$H$3/10000/POWER(1+Kalkulačka!$H$7,CF!I92/10000) -> 305.62523 | J99: ='Pomocné tabuľky'!$J$61*Kalkulačka!$H$3/10000/POWER(1+Kalkulačka!$H$7,CF!J92/10000) -> 288.1636486 | K99: ='Pomocné tabuľky'!$J$61*Kalkulačka!$H$3/10000/POWER(1+Kalkulačka!$H$7,CF!K92/10000) -> 271.6997166 | L99: ='Pomocné tabuľky'!$J$61*Kalkulačka!$H$3/10000/POWER(1+Kalkulačka!$H$7,CF!L92/10000) -> 256.1764343 | M99: ='Pomocné tabuľky'!$J$61*Kalkulačka!$H$3/10000/POWER(1+Kalkulačka!$H$7,CF!M92/10000) -> 241.5400587 | N99: ='Pomocné tabuľky'!$J$61*Kalkulačka!$H$3/10000/POWER(1+Kalkulačka!$H$7,CF!N92/10000) -> 227.7399173 | O99: ='Pomocné tabuľky'!$J$61*Kalkulačka!$H$3/10000/POWER(1+Kalkulačka!$H$7,CF!O92/10000) -> 214.7282326 | P99: ='Pomocné tabuľky'!$J$61*Kalkulačka!$H$3/10000/POWER(1+Kalkulačka!$H$7,CF!P92/10000) -> 202.4599572 | Q99: ='Pomocné tabuľky'!$J$61*Kalkulačka!$H$3/10000/POWER(1+Kalkulačka!$H$7,CF!Q92/10000) -> 190.8926169 | R99: ='Pomocné tabuľky'!$J$61*Kalkulačka!$H$3/10000/POWER(1+Kalkulačka!$H$7,CF!R92/10000) -> 179.9861647
B100: Čisté kumulatívne náklady | C100: =C93 -> 34919 | D100: =C100+D93 -> 35776.62175 | E100: 36585.24417 | F100: 37347.66679 | G100: 38066.52917 | H100: 38744.3201 | I100: 39383.38615 | J100: 39985.93981 | K100: 40554.0672 | L100: 41089.73522 | M100: 41594.79839 | N100: 42071.00531 | O100: 42520.00463 | P100: 42943.35085 | Q100: 43342.50961 | R100: 43718.86286
A102: ='Pomocné tabuľky'!L55 -> Stredná trieda - elektromobil | B102: Počet kilometrov | C102: 0 | D102: =Kalkulačka!$H$3*CF!D1 -> 15000 | E102: =Kalkulačka!$H$3*CF!E1 -> 30000 | F102: =Kalkulačka!$H$3*CF!F1 -> 45000 | G102: =Kalkulačka!$H$3*CF!G1 -> 60000 | H102: =Kalkulačka!$H$3*CF!H1 -> 75000 | I102: =Kalkulačka!$H$3*CF!I1 -> 90000 | J102: =Kalkulačka!$H$3*CF!J1 -> 105000 | K102: =Kalkulačka!$H$3*CF!K1 -> 120000 | L102: =Kalkulačka!$H$3*CF!L1 -> 135000 | M102: =Kalkulačka!$H$3*CF!M1 -> 150000 | N102: =Kalkulačka!$H$3*CF!N1 -> 165000 | O102: =Kalkulačka!$H$3*CF!O1 -> 180000 | P102: =Kalkulačka!$H$3*CF!P1 -> 195000 | Q102: =Kalkulačka!$H$3*CF!Q1 -> 210000 | R102: =Kalkulačka!$H$3*CF!R1 -> 225000
B103: Celkové náklady v priebehu životnosti | C103: =SUM(C104:C109) -> 40929.66667 | D103: =SUM(D104:D109) -> 869.7962738 | E103: 820.1013634 | F103: 773.2457202 | G103: 729.0671258 | H103: 687.4126296 | I103: 648.13802 | J103: 611.1073246 | K103: 576.1923397 | L103: 543.2721864 | M103: 512.2328919 | N103: 482.9669954 | O103: 455.3731757 | P103: 429.3559003 | Q103: 404.825095 | R103: 381.6958319
B104: Nákup auta | C104: ='Pomocné tabuľky'!L56 -> 40896.66667
B105: Dotácia | C105: =-'Pomocné tabuľky'!L57 -> 0
B106: Registračná daň | C106: ='Pomocné tabuľky'!L58 -> 33
B107: Poistenie | D107: ='Pomocné tabuľky'!$L$59/POWER(1+Kalkulačka!$H$7,CF!D102/10000) -> 150.7359929 | E107: ='Pomocné tabuľky'!$L$59/POWER(1+Kalkulačka!$H$7,CF!E102/10000) -> 142.1238479 | F107: ='Pomocné tabuľky'!$L$59/POWER(1+Kalkulačka!$H$7,CF!F102/10000) -> 134.0037488 | G107: ='Pomocné tabuľky'!$L$59/POWER(1+Kalkulačka!$H$7,CF!G102/10000) -> 126.3475832 | H107: ='Pomocné tabuľky'!$L$59/POWER(1+Kalkulačka!$H$7,CF!H102/10000) -> 119.1288447 | I107: ='Pomocné tabuľky'!$L$59/POWER(1+Kalkulačka!$H$7,CF!I102/10000) -> 112.3225414 | J107: ='Pomocné tabuľky'!$L$59/POWER(1+Kalkulačka!$H$7,CF!J102/10000) -> 105.9051092 | K107: ='Pomocné tabuľky'!$L$59/POWER(1+Kalkulačka!$H$7,CF!K102/10000) -> 99.85433032 | L107: ='Pomocné tabuľky'!$L$59/POWER(1+Kalkulačka!$H$7,CF!L102/10000) -> 94.14925643 | M107: ='Pomocné tabuľky'!$L$59/POWER(1+Kalkulačka!$H$7,CF!M102/10000) -> 88.77013605 | N107: ='Pomocné tabuľky'!$L$59/POWER(1+Kalkulačka!$H$7,CF!N102/10000) -> 83.69834614 | O107: ='Pomocné tabuľky'!$L$59/POWER(1+Kalkulačka!$H$7,CF!O102/10000) -> 78.91632771 | P107: ='Pomocné tabuľky'!$L$59/POWER(1+Kalkulačka!$H$7,CF!P102/10000) -> 74.40752495 | Q107: ='Pomocné tabuľky'!$L$59/POWER(1+Kalkulačka!$H$7,CF!Q102/10000) -> 70.15632797 | R107: ='Pomocné tabuľky'!$L$59/POWER(1+Kalkulačka!$H$7,CF!R102/10000) -> 66.14801874
B108: Palivo | D108: ='Pomocné tabuľky'!$L$60*Kalkulačka!$H$3/10000/POWER(1+Kalkulačka!$H$7,CF!D102/10000) -> 308.913556 | E108: ='Pomocné tabuľky'!$L$60*Kalkulačka!$H$3/10000/POWER(1+Kalkulačka!$H$7,CF!E102/10000) -> 291.2640995 | F108: ='Pomocné tabuľky'!$L$60*Kalkulačka!$H$3/10000/POWER(1+Kalkulačka!$H$7,CF!F102/10000) -> 274.6230264 | G108: ='Pomocné tabuľky'!$L$60*Kalkulačka!$H$3/10000/POWER(1+Kalkulačka!$H$7,CF!G102/10000) -> 258.9327239 | H108: ='Pomocné tabuľky'!$L$60*Kalkulačka!$H$3/10000/POWER(1+Kalkulačka!$H$7,CF!H102/10000) -> 244.1388705 | I108: ='Pomocné tabuľky'!$L$60*Kalkulačka!$H$3/10000/POWER(1+Kalkulačka!$H$7,CF!I102/10000) -> 230.1902486 | J108: ='Pomocné tabuľky'!$L$60*Kalkulačka!$H$3/10000/POWER(1+Kalkulačka!$H$7,CF!J102/10000) -> 217.0385669 | K108: ='Pomocné tabuľky'!$L$60*Kalkulačka!$H$3/10000/POWER(1+Kalkulačka!$H$7,CF!K102/10000) -> 204.6382928 | L108: ='Pomocné tabuľky'!$L$60*Kalkulačka!$H$3/10000/POWER(1+Kalkulačka!$H$7,CF!L102/10000) -> 192.9464956 | M108: ='Pomocné tabuľky'!$L$60*Kalkulačka!$H$3/10000/POWER(1+Kalkulačka!$H$7,CF!M102/10000) -> 181.9226972 | N108: ='Pomocné tabuľky'!$L$60*Kalkulačka!$H$3/10000/POWER(1+Kalkulačka!$H$7,CF!N102/10000) -> 171.528732 | O108: ='Pomocné tabuľky'!$L$60*Kalkulačka!$H$3/10000/POWER(1+Kalkulačka!$H$7,CF!O102/10000) -> 161.7286154 | P108: ='Pomocné tabuľky'!$L$60*Kalkulačka!$H$3/10000/POWER(1+Kalkulačka!$H$7,CF!P102/10000) -> 152.4884182 | Q108: ='Pomocné tabuľky'!$L$60*Kalkulačka!$H$3/10000/POWER(1+Kalkulačka!$H$7,CF!Q102/10000) -> 143.7761501 | R108: ='Pomocné tabuľky'!$L$60*Kalkulačka!$H$3/10000/POWER(1+Kalkulačka!$H$7,CF!R102/10000) -> 135.5616485
B109: Údržba | D109: ='Pomocné tabuľky'!$L$61*Kalkulačka!$H$3/10000/POWER(1+Kalkulačka!$H$7,CF!D102/10000) -> 410.1467249 | E109: ='Pomocné tabuľky'!$L$61*Kalkulačka!$H$3/10000/POWER(1+Kalkulačka!$H$7,CF!E102/10000) -> 386.713416 | F109: ='Pomocné tabuľky'!$L$61*Kalkulačka!$H$3/10000/POWER(1+Kalkulačka!$H$7,CF!F102/10000) -> 364.618945 | G109: ='Pomocné tabuľky'!$L$61*Kalkulačka!$H$3/10000/POWER(1+Kalkulačka!$H$7,CF!G102/10000) -> 343.7868187 | H109: ='Pomocné tabuľky'!$L$61*Kalkulačka!$H$3/10000/POWER(1+Kalkulačka!$H$7,CF!H102/10000) -> 324.1449144 | I109: ='Pomocné tabuľky'!$L$61*Kalkulačka!$H$3/10000/POWER(1+Kalkulačka!$H$7,CF!I102/10000) -> 305.62523 | J109: ='Pomocné tabuľky'!$L$61*Kalkulačka!$H$3/10000/POWER(1+Kalkulačka!$H$7,CF!J102/10000) -> 288.1636486 | K109: ='Pomocné tabuľky'!$L$61*Kalkulačka!$H$3/10000/POWER(1+Kalkulačka!$H$7,CF!K102/10000) -> 271.6997166 | L109: ='Pomocné tabuľky'!$L$61*Kalkulačka!$H$3/10000/POWER(1+Kalkulačka!$H$7,CF!L102/10000) -> 256.1764343 | M109: ='Pomocné tabuľky'!$L$61*Kalkulačka!$H$3/10000/POWER(1+Kalkulačka!$H$7,CF!M102/10000) -> 241.5400587 | N109: ='Pomocné tabuľky'!$L$61*Kalkulačka!$H$3/10000/POWER(1+Kalkulačka!$H$7,CF!N102/10000) -> 227.7399173 | O109: ='Pomocné tabuľky'!$L$61*Kalkulačka!$H$3/10000/POWER(1+Kalkulačka!$H$7,CF!O102/10000) -> 214.7282326 | P109: ='Pomocné tabuľky'!$L$61*Kalkulačka!$H$3/10000/POWER(1+Kalkulačka!$H$7,CF!P102/10000) -> 202.4599572 | Q109: ='Pomocné tabuľky'!$L$61*Kalkulačka!$H$3/10000/POWER(1+Kalkulačka!$H$7,CF!Q102/10000) -> 190.8926169 | R109: ='Pomocné tabuľky'!$L$61*Kalkulačka!$H$3/10000/POWER(1+Kalkulačka!$H$7,CF!R102/10000) -> 179.9861647
B110: Čisté kumulatívne náklady | C110: =C103 -> 40929.66667 | D110: =C110+D103 -> 41799.46294 | E110: 42619.5643 | F110: 43392.81002 | G110: 44121.87715 | H110: 44809.28978 | I110: 45457.4278 | J110: 46068.53512 | K110: 46644.72746 | L110: 47187.99965 | M110: 47700.23254 | N110: 48183.19954 | O110: 48638.57271 | P110: 49067.92861 | Q110: 49472.75371 | R110: 49854.44954
A112: ='Pomocné tabuľky'!M55 -> Stredná trieda - hybrid | B112: Počet kilometrov | C112: 0 | D112: =Kalkulačka!$H$3*CF!D1 -> 15000 | E112: =Kalkulačka!$H$3*CF!E1 -> 30000 | F112: =Kalkulačka!$H$3*CF!F1 -> 45000 | G112: =Kalkulačka!$H$3*CF!G1 -> 60000 | H112: =Kalkulačka!$H$3*CF!H1 -> 75000 | I112: =Kalkulačka!$H$3*CF!I1 -> 90000 | J112: =Kalkulačka!$H$3*CF!J1 -> 105000 | K112: =Kalkulačka!$H$3*CF!K1 -> 120000 | L112: =Kalkulačka!$H$3*CF!L1 -> 135000 | M112: =Kalkulačka!$H$3*CF!M1 -> 150000 | N112: =Kalkulačka!$H$3*CF!N1 -> 165000 | O112: =Kalkulačka!$H$3*CF!O1 -> 180000 | P112: =Kalkulačka!$H$3*CF!P1 -> 195000 | Q112: =Kalkulačka!$H$3*CF!Q1 -> 210000 | R112: =Kalkulačka!$H$3*CF!R1 -> 225000
B113: Celkové náklady v priebehu životnosti | C113: =SUM(C114:C119) -> 36351.85714 | D113: =SUM(D114:D119) -> 1208.630842 | E113: 1139.576969 | F113: 1074.468417 | G113: 1013.079775 | H113: 955.1985103 | I113: 900.6242314 | J113: 849.1679975 | K113: 800.6516623 | L113: 754.9072577 | M113: 711.7764123 | N113: 671.1098032 | O113: 632.7666387 | P113: 596.6141713 | Q113: 562.5272377 | R113: 530.3878258
B114: Nákup auta | C114: ='Pomocné tabuľky'!M56 -> 36042.85714
B115: Dotácia | C115: =-'Pomocné tabuľky'!M57 -> 0
B116: Registračná daň | C116: ='Pomocné tabuľky'!M58 -> 309
B117: Poistenie | D117: ='Pomocné tabuľky'!$M$59/POWER(1+Kalkulačka!$H$7,CF!D112/10000) -> 135.1288661 | E117: ='Pomocné tabuľky'!$M$59/POWER(1+Kalkulačka!$H$7,CF!E112/10000) -> 127.4084181 | F117: ='Pomocné tabuľky'!$M$59/POWER(1+Kalkulačka!$H$7,CF!F112/10000) -> 120.1290699 | G117: ='Pomocné tabuľky'!$M$59/POWER(1+Kalkulačka!$H$7,CF!G112/10000) -> 113.2656198 | H117: ='Pomocné tabuľky'!$M$59/POWER(1+Kalkulačka!$H$7,CF!H112/10000) -> 106.7943058 | I117: ='Pomocné tabuľky'!$M$59/POWER(1+Kalkulačka!$H$7,CF!I112/10000) -> 100.6927236 | J117: ='Pomocné tabuľky'!$M$59/POWER(1+Kalkulačka!$H$7,CF!J112/10000) -> 94.93974894 | K117: ='Pomocné tabuľky'!$M$59/POWER(1+Kalkulačka!$H$7,CF!K112/10000) -> 89.51546458 | L117: ='Pomocné tabuľky'!$M$59/POWER(1+Kalkulačka!$H$7,CF!L112/10000) -> 84.4010911 | M117: ='Pomocné tabuľky'!$M$59/POWER(1+Kalkulačka!$H$7,CF!M112/10000) -> 79.57892206 | N117: ='Pomocné tabuľky'!$M$59/POWER(1+Kalkulačka!$H$7,CF!N112/10000) -> 75.03226266 | O117: ='Pomocné tabuľky'!$M$59/POWER(1+Kalkulačka!$H$7,CF!O112/10000) -> 70.74537194 | P117: ='Pomocné tabuľky'!$M$59/POWER(1+Kalkulačka!$H$7,CF!P112/10000) -> 66.70340828 | Q117: ='Pomocné tabuľky'!$M$59/POWER(1+Kalkulačka!$H$7,CF!Q112/10000) -> 62.89237805 | R117: ='Pomocné tabuľky'!$M$59/POWER(1+Kalkulačka!$H$7,CF!R112/10000) -> 59.29908708
B118: Palivo | D118: ='Pomocné tabuľky'!$M$60*Kalkulačka!$H$3/10000/POWER(1+Kalkulačka!$H$7,CF!D112/10000) -> 451.2103928 | E118: ='Pomocné tabuľky'!$M$60*Kalkulačka!$H$3/10000/POWER(1+Kalkulačka!$H$7,CF!E112/10000) -> 425.4309537 | F118: ='Pomocné tabuľky'!$M$60*Kalkulačka!$H$3/10000/POWER(1+Kalkulačka!$H$7,CF!F112/10000) -> 401.1243962 | G118: ='Pomocné tabuľky'!$M$60*Kalkulačka!$H$3/10000/POWER(1+Kalkulačka!$H$7,CF!G112/10000) -> 378.2065687 | H118: ='Pomocné tabuľky'!$M$60*Kalkulačka!$H$3/10000/POWER(1+Kalkulačka!$H$7,CF!H112/10000) -> 356.5981276 | I118: ='Pomocné tabuľky'!$M$60*Kalkulačka!$H$3/10000/POWER(1+Kalkulačka!$H$7,CF!I112/10000) -> 336.2242624 | J118: ='Pomocné tabuľky'!$M$60*Kalkulačka!$H$3/10000/POWER(1+Kalkulačka!$H$7,CF!J112/10000) -> 317.0144369 | K118: ='Pomocné tabuľky'!$M$60*Kalkulačka!$H$3/10000/POWER(1+Kalkulačka!$H$7,CF!K112/10000) -> 298.902145 | L118: ='Pomocné tabuľky'!$M$60*Kalkulačka!$H$3/10000/POWER(1+Kalkulačka!$H$7,CF!L112/10000) -> 281.8246801 | M118: ='Pomocné tabuľky'!$M$60*Kalkulačka!$H$3/10000/POWER(1+Kalkulačka!$H$7,CF!M112/10000) -> 265.7229185 | N118: ='Pomocné tabuľky'!$M$60*Kalkulačka!$H$3/10000/POWER(1+Kalkulačka!$H$7,CF!N112/10000) -> 250.5411144 | O118: ='Pomocné tabuľky'!$M$60*Kalkulačka!$H$3/10000/POWER(1+Kalkulačka!$H$7,CF!O112/10000) -> 236.2267069 | P118: ='Pomocné tabuľky'!$M$60*Kalkulačka!$H$3/10000/POWER(1+Kalkulačka!$H$7,CF!P112/10000) -> 222.7301384 | Q118: ='Pomocné tabuľky'!$M$60*Kalkulačka!$H$3/10000/POWER(1+Kalkulačka!$H$7,CF!Q112/10000) -> 210.0046823 | R118: ='Pomocné tabuľky'!$M$60*Kalkulačka!$H$3/10000/POWER(1+Kalkulačka!$H$7,CF!R112/10000) -> 198.006282
B119: Údržba | D119: ='Pomocné tabuľky'!$M$61*Kalkulačka!$H$3/10000/POWER(1+Kalkulačka!$H$7,CF!D112/10000) -> 622.2915827 | E119: ='Pomocné tabuľky'!$M$61*Kalkulačka!$H$3/10000/POWER(1+Kalkulačka!$H$7,CF!E112/10000) -> 586.7375967 | F119: ='Pomocné tabuľky'!$M$61*Kalkulačka!$H$3/10000/POWER(1+Kalkulačka!$H$7,CF!F112/10000) -> 553.214951 | G119: ='Pomocné tabuľky'!$M$61*Kalkulačka!$H$3/10000/POWER(1+Kalkulačka!$H$7,CF!G112/10000) -> 521.607587 | H119: ='Pomocné tabuľky'!$M$61*Kalkulačka!$H$3/10000/POWER(1+Kalkulačka!$H$7,CF!H112/10000) -> 491.806077 | I119: ='Pomocné tabuľky'!$M$61*Kalkulačka!$H$3/10000/POWER(1+Kalkulačka!$H$7,CF!I112/10000) -> 463.7072455 | J119: ='Pomocné tabuľky'!$M$61*Kalkulačka!$H$3/10000/POWER(1+Kalkulačka!$H$7,CF!J112/10000) -> 437.2138116 | K119: ='Pomocné tabuľky'!$M$61*Kalkulačka!$H$3/10000/POWER(1+Kalkulačka!$H$7,CF!K112/10000) -> 412.2340527 | L119: ='Pomocné tabuľky'!$M$61*Kalkulačka!$H$3/10000/POWER(1+Kalkulačka!$H$7,CF!L112/10000) -> 388.6814865 | M119: ='Pomocné tabuľky'!$M$61*Kalkulačka!$H$3/10000/POWER(1+Kalkulačka!$H$7,CF!M112/10000) -> 366.4745718 | N119: ='Pomocné tabuľky'!$M$61*Kalkulačka!$H$3/10000/POWER(1+Kalkulačka!$H$7,CF!N112/10000) -> 345.5364262 | O119: ='Pomocné tabuľky'!$M$61*Kalkulačka!$H$3/10000/POWER(1+Kalkulačka!$H$7,CF!O112/10000) -> 325.7945599 | P119: ='Pomocné tabuľky'!$M$61*Kalkulačka!$H$3/10000/POWER(1+Kalkulačka!$H$7,CF!P112/10000) -> 307.1806247 | Q119: ='Pomocné tabuľky'!$M$61*Kalkulačka!$H$3/10000/POWER(1+Kalkulačka!$H$7,CF!Q112/10000) -> 289.6301774 | R119: ='Pomocné tabuľky'!$M$61*Kalkulačka!$H$3/10000/POWER(1+Kalkulačka!$H$7,CF!R112/10000) -> 273.0824568
B120: Čisté kumulatívne náklady | C120: =C113 -> 36351.85714 | D120: =C120+D113 -> 37560.48798 | E120: 38700.06495 | F120: 39774.53337 | G120: 40787.61315 | H120: 41742.81166 | I120: 42643.43589 | J120: 43492.60388 | K120: 44293.25555 | L120: 45048.1628 | M120: 45759.93922 | N120: 46431.04902 | O120: 47063.81566 | P120: 47660.42983 | Q120: 48222.95707 | R120: 48753.34489
A122: ='Pomocné tabuľky'!N55 -> Stredná trieda - štandard | B122: Počet kilometrov | C122: 0 | D122: =Kalkulačka!$H$3*CF!D1 -> 15000 | E122: =Kalkulačka!$H$3*CF!E1 -> 30000 | F122: =Kalkulačka!$H$3*CF!F1 -> 45000 | G122: =Kalkulačka!$H$3*CF!G1 -> 60000 | H122: =Kalkulačka!$H$3*CF!H1 -> 75000 | I122: =Kalkulačka!$H$3*CF!I1 -> 90000 | J122: =Kalkulačka!$H$3*CF!J1 -> 105000 | K122: =Kalkulačka!$H$3*CF!K1 -> 120000 | L122: =Kalkulačka!$H$3*CF!L1 -> 135000 | M122: =Kalkulačka!$H$3*CF!M1 -> 150000 | N122: =Kalkulačka!$H$3*CF!N1 -> 165000 | O122: =Kalkulačka!$H$3*CF!O1 -> 180000 | P122: =Kalkulačka!$H$3*CF!P1 -> 195000 | Q122: =Kalkulačka!$H$3*CF!Q1 -> 210000 | R122: =Kalkulačka!$H$3*CF!R1 -> 225000
B123: Celkové náklady v priebehu životnosti | C123: =SUM(C124:C129) -> 23022.72 | D123: =SUM(D124:D129) -> 2157.877149 | E123: 2034.58907 | F123: 1918.344928 | G123: 1808.742275 | H123: 1705.401656 | I123: 1607.965296 | J123: 1516.095862 | K123: 1429.475293 | L123: 1347.803701 | M123: 1270.79833 | N123: 1198.192582 | O123: 1129.735088 | P123: 1065.188843 | Q123: 1004.33038 | R123: 946.9490024
B124: Nákup auta | C124: ='Pomocné tabuľky'!N56 -> 22755.2
B125: Dotácia | C125: =-'Pomocné tabuľky'!N57 -> 0
B126: Registračná daň | C126: ='Pomocné tabuľky'!N58 -> 267.52
B127: Poistenie | D127: ='Pomocné tabuľky'!$N$59/POWER(1+Kalkulačka!$H$7,CF!D122/10000) -> 164.4916541 | E127: ='Pomocné tabuľky'!$N$59/POWER(1+Kalkulačka!$H$7,CF!E122/10000) -> 155.0935935 | F127: ='Pomocné tabuľky'!$N$59/POWER(1+Kalkulačka!$H$7,CF!F122/10000) -> 146.2324815 | G127: ='Pomocné tabuľky'!$N$59/POWER(1+Kalkulačka!$H$7,CF!G122/10000) -> 137.8776399 | H127: ='Pomocné tabuľky'!$N$59/POWER(1+Kalkulačka!$H$7,CF!H122/10000) -> 130.0001436 | I127: ='Pomocné tabuľky'!$N$59/POWER(1+Kalkulačka!$H$7,CF!I122/10000) -> 122.5727198 | J127: ='Pomocné tabuľky'!$N$59/POWER(1+Kalkulačka!$H$7,CF!J122/10000) -> 115.5696543 | K127: ='Pomocné tabuľky'!$N$59/POWER(1+Kalkulačka!$H$7,CF!K122/10000) -> 108.9667016 | L127: ='Pomocné tabuľky'!$N$59/POWER(1+Kalkulačka!$H$7,CF!L122/10000) -> 102.7410018 | M127: ='Pomocné tabuľky'!$N$59/POWER(1+Kalkulačka!$H$7,CF!M122/10000) -> 96.87100093 | N127: ='Pomocné tabuľky'!$N$59/POWER(1+Kalkulačka!$H$7,CF!N122/10000) -> 91.33637649 | O127: ='Pomocné tabuľky'!$N$59/POWER(1+Kalkulačka!$H$7,CF!O122/10000) -> 86.11796709 | P127: ='Pomocné tabuľky'!$N$59/POWER(1+Kalkulačka!$H$7,CF!P122/10000) -> 81.19770611 | Q127: ='Pomocné tabuľky'!$N$59/POWER(1+Kalkulačka!$H$7,CF!Q122/10000) -> 76.55855916 | R127: ='Pomocné tabuľky'!$N$59/POWER(1+Kalkulačka!$H$7,CF!R122/10000) -> 72.18446507
B128: Palivo | D128: ='Pomocné tabuľky'!$N$60*Kalkulačka!$H$3/10000/POWER(1+Kalkulačka!$H$7,CF!D122/10000) -> 1314.521951 | E128: ='Pomocné tabuľky'!$N$60*Kalkulačka!$H$3/10000/POWER(1+Kalkulačka!$H$7,CF!E122/10000) -> 1239.418099 | F128: ='Pomocné tabuľky'!$N$60*Kalkulačka!$H$3/10000/POWER(1+Kalkulačka!$H$7,CF!F122/10000) -> 1168.605227 | G128: ='Pomocné tabuľky'!$N$60*Kalkulačka!$H$3/10000/POWER(1+Kalkulačka!$H$7,CF!G122/10000) -> 1101.838176 | H128: ='Pomocné tabuľky'!$N$60*Kalkulačka!$H$3/10000/POWER(1+Kalkulačka!$H$7,CF!H122/10000) -> 1038.885792 | I128: ='Pomocné tabuľky'!$N$60*Kalkulačka!$H$3/10000/POWER(1+Kalkulačka!$H$7,CF!I122/10000) -> 979.5301267 | J128: ='Pomocné tabuľky'!$N$60*Kalkulačka!$H$3/10000/POWER(1+Kalkulačka!$H$7,CF!J122/10000) -> 923.5656861 | K128: ='Pomocné tabuľky'!$N$60*Kalkulačka!$H$3/10000/POWER(1+Kalkulačka!$H$7,CF!K122/10000) -> 870.7987159 | L128: ='Pomocné tabuľky'!$N$60*Kalkulačka!$H$3/10000/POWER(1+Kalkulačka!$H$7,CF!L122/10000) -> 821.0465319 | M128: ='Pomocné tabuľky'!$N$60*Kalkulačka!$H$3/10000/POWER(1+Kalkulačka!$H$7,CF!M122/10000) -> 774.1368875 | N128: ='Pomocné tabuľky'!$N$60*Kalkulačka!$H$3/10000/POWER(1+Kalkulačka!$H$7,CF!N122/10000) -> 729.9073772 | O128: ='Pomocné tabuľky'!$N$60*Kalkulačka!$H$3/10000/POWER(1+Kalkulačka!$H$7,CF!O122/10000) -> 688.2048741 | P128: ='Pomocné tabuľky'!$N$60*Kalkulačka!$H$3/10000/POWER(1+Kalkulačka!$H$7,CF!P122/10000) -> 648.8850005 | Q128: ='Pomocné tabuľky'!$N$60*Kalkulačka!$H$3/10000/POWER(1+Kalkulačka!$H$7,CF!Q122/10000) -> 611.8116271 | R128: ='Pomocné tabuľky'!$N$60*Kalkulačka!$H$3/10000/POWER(1+Kalkulačka!$H$7,CF!R122/10000) -> 576.8564026
B129: Údržba | D129: ='Pomocné tabuľky'!$N$61*Kalkulačka!$H$3/10000/POWER(1+Kalkulačka!$H$7,CF!D122/10000) -> 678.8635447 | E129: ='Pomocné tabuľky'!$N$61*Kalkulačka!$H$3/10000/POWER(1+Kalkulačka!$H$7,CF!E122/10000) -> 640.0773782 | F129: ='Pomocné tabuľky'!$N$61*Kalkulačka!$H$3/10000/POWER(1+Kalkulačka!$H$7,CF!F122/10000) -> 603.5072193 | G129: ='Pomocné tabuľky'!$N$61*Kalkulačka!$H$3/10000/POWER(1+Kalkulačka!$H$7,CF!G122/10000) -> 569.0264585 | H129: ='Pomocné tabuľky'!$N$61*Kalkulačka!$H$3/10000/POWER(1+Kalkulačka!$H$7,CF!H122/10000) -> 536.5157204 | I129: ='Pomocné tabuľky'!$N$61*Kalkulačka!$H$3/10000/POWER(1+Kalkulačka!$H$7,CF!I122/10000) -> 505.8624496 | J129: ='Pomocné tabuľky'!$N$61*Kalkulačka!$H$3/10000/POWER(1+Kalkulačka!$H$7,CF!J122/10000) -> 476.9605218 | K129: ='Pomocné tabuľky'!$N$61*Kalkulačka!$H$3/10000/POWER(1+Kalkulačka!$H$7,CF!K122/10000) -> 449.7098757 | L129: ='Pomocné tabuľky'!$N$61*Kalkulačka!$H$3/10000/POWER(1+Kalkulačka!$H$7,CF!L122/10000) -> 424.0161671 | M129: ='Pomocné tabuľky'!$N$61*Kalkulačka!$H$3/10000/POWER(1+Kalkulačka!$H$7,CF!M122/10000) -> 399.790442 | N129: ='Pomocné tabuľky'!$N$61*Kalkulačka!$H$3/10000/POWER(1+Kalkulačka!$H$7,CF!N122/10000) -> 376.9488286 | O129: ='Pomocné tabuľky'!$N$61*Kalkulačka!$H$3/10000/POWER(1+Kalkulačka!$H$7,CF!O122/10000) -> 355.4122471 | P129: ='Pomocné tabuľky'!$N$61*Kalkulačka!$H$3/10000/POWER(1+Kalkulačka!$H$7,CF!P122/10000) -> 335.106136 | Q129: ='Pomocné tabuľky'!$N$61*Kalkulačka!$H$3/10000/POWER(1+Kalkulačka!$H$7,CF!Q122/10000) -> 315.9601935 | R129: ='Pomocné tabuľky'!$N$61*Kalkulačka!$H$3/10000/POWER(1+Kalkulačka!$H$7,CF!R122/10000) -> 297.9081347
B130: Čisté kumulatívne náklady | C130: =C123 -> 23022.72 | D130: =C130+D123 -> 25180.59715 | E130: 27215.18622 | F130: 29133.53115 | G130: 30942.27342 | H130: 32647.67508 | I130: 34255.64037 | J130: 35771.73624 | K130: 37201.21153 | L130: 38549.01523 | M130: 39819.81356 | N130: 41018.00614 | O130: 42147.74123 | P130: 43212.93007 | Q130: 44217.26045 | R130: 45164.20946

Sheet Data (hidden)
A1: Link | B1: Typ | C1: Trieda | D1: Výrobca | E1: Model | F1: Celý názov | G1: Rok uvedenia | H1: Status výroby | I1: Cena s DPH | J1: Dotácia | K1: Hmotnosť | L1: Celkový kombinovaný výkon(kW) | M1: CO2 (g/km) | N1: Objem motora | O1: Kapacita batérie(kWh) | P1: Dojazd (km) | Q1: Palivo | R1: Spotreba (l/100km) | S1: Spotreba kombinovaná (Wh/km) | T1: Spotreba paliva na 100,000km (EUR) | U1: Reg. Daň** | V1: Daň z mot. Vozidiel*** | W1: Poplatky | X1: Prevádzkové emisie na 100,000km (g CO2) | Y1: Emisie z výroby/km | Z1: Spolu E z výroby | AA1: Celkové emisie v tonách | AB1: Celkové náklady | AC1: Údržba | AD1: Poistenie | AE1: Opravy na 10000 km jazdy | AF1: Formát obrázka | AG1: jpg_nazov_auta
A2: https://webauto.sk/audi-a4-allroad-2-0-tdi-quattro-s-tronic/ | B2: Standard | C2: Stredná trieda | D2: Audi | E2: A4 Allroad 2.0 TDI Quattro STR | F2: =CONCATENATE(D2," ",E2) -> Audi A4 Allroad 2.0 TDI Quattro STR | G2: 2017 | H2: 1 | I2: 43700 | J2: =IF(OR(B2="Elektromobil",B2="Plug-in"),Kalkulačka!$H$8,0) -> 0 | K2: 2245 | L2: 120 | M2: 128 | N2: 1968 | O2: 0 | P2: =58/R2*100 -> 753.2467532 | Q2: nafta | R2: 7.7 | S2: 0 | T2: =R2*1000*Kalkulačka!$H$5 -> 9555.7 | U2: =MAX(IF(OR(B2="Hybrid",B2="Plug-in"),0.5*VLOOKUP(L2,Predpoklady!$A$10:$C$25,3,1),VLOOKUP(L2,Predpoklady!$A$10:$C$25,3,1)),33) -> 360 | X2: =M2*100000 -> 12800000 | Y2: =Predpoklady!$B$5 -> 28 | Z2: =Predpoklady!$C$5 -> 7000000 | AA2: =(X2+Z2)/1000000 -> 19.8 | AB2: =I2+T2+U2 -> 53615.7 | AC2: =IF(B2="Elektromobil",Kalkulačka!$H$9,IF(B2="Standard",Kalkulačka!$H$11,Kalkulačka!$H$10))*10 -> 4800 | AD2: 180.54 | AE2: =AC2/10 -> 480 | AF2: .jpg | AG2: =CONCATENATE(F2,AF2) -> Audi A4 Allroad 2.0 TDI Quattro STR.jpg
A3: https://www.auto-motor-und-sport.de/test/audi-a3-tfsi-a3-e-tron-vergleich-test/ | B3: Plug-in | C3: Stredná trieda | D3: Audi | E3: A3 Sportback 1.4 TFSI e-tron Ambition | F3: Audi A3 Sportback 1.4 TFSI e-tron Ambition | G3: 2014 | H3: 0 | I3: 39400 | J3: =IF(OR(B3="Elektromobil",B3="Plug-in"),Kalkulačka!$H$8,0) -> 0 | K3: 2050 | L3: 150 | M3: 35 | N3: 1395 | O3: 8.8 | P3: =0.6*O3/S3*1000+0.4*40/R3*100 -> 986.3046757 | Q3: benzín + elektrina | R3: 1.7 | S3: 117 | T3: =R3*1000*Kalkulačka!$H$4*0.4+S3/1000*100000*Kalkulačka!$H$6*0.6 -> 1947.835 | U3: =MAX(IF(OR(B3="Hybrid",B3="Plug-in"),0.5*VLOOKUP(L3,Predpoklady!$A$10:$C$25,3,1),VLOOKUP(L3,Predpoklady!$A$10:$C$25,3,1)),33) -> 435 | X3: =(0.6*Predpoklady!$B$1*S3/1000+0.4*M3)*100000 -> 2705720 | Y3: =Predpoklady!$B$3 -> 37 | Z3: =Predpoklady!$C$3 -> 11000000 | AA3: 13.70572 | AB3: 41782.835 | AC3: =IF(B3="Elektromobil",Kalkulačka!$H$9,IF(B3="Standard",Kalkulačka!$H$11,Kalkulačka!$H$10))*10 -> 4400 | AD3: 148.32 | AE3: 440 | AF3: .jpg | AG3: =CONCATENATE(F3,AF3) -> Audi A3 Sportback 1.4 TFSI e-tron Ambition.jpg
A4: https://www.automobile-catalog.com/car/2017/2503520/audi_a6_2_0_tdi_190_quattro_s-tronic.html | B4: Standard | C4: Luxusné | D4: Audi | E4: A6 2.0 TDI Quattro | F4: Audi A6 2.0 TDI Quattro | G4: 2017 | H4: 0 | I4: 57750 | J4: =IF(OR(B4="Elektromobil",B4="Plug-in"),Kalkulačka!$H$8,0) -> 0 | K4: 2240 | L4: 140 | M4: 128 | N4: 1968 | O4: 0 | P4: =73/R4*100 -> 848.8372093 | Q4: nafta | R4: 8.6 | S4: 0 | T4: =R4*1000*Kalkulačka!$H$5 -> 10672.6 | U4: =MAX(IF(OR(B4="Hybrid",B4="Plug-in"),0.5*VLOOKUP(L4,Predpoklady!$A$10:$C$25,3,1),VLOOKUP(L4,Predpoklady!$A$10:$C$25,3,1)),33) -> 700 | V4: =148*8 -> 1184 | W4: =U4+V4 -> 1884 | X4: =M4*100000 -> 12800000 | Y4: =Predpoklady!$B$5 -> 28 | Z4: =Predpoklady!$C$4 -> 8000000 | AA4: 20.8 | AB4: 69122.6 | AC4: =IF(B4="Elektromobil",Kalkulačka!$H$9,IF(B4="Standard",Kalkulačka!$H$11,Kalkulačka!$H$10))*10 -> 4800 | AD4: 170.73 | AE4: 480 | AF4: .jpg | AG4: =CONCATENATE(F4,AF4) -> Audi A6 2.0 TDI Quattro.jpg
A5: https://www.audi.sk/e-tron/e-tron/cennik-a-katalog | B5: Elektromobil | C5: SUV | D5: Audi | E5: e-tron advanced 55 quattro | F5: Audi e-tron advanced 55 quattro | G5: 2019 | H5: 1 | I5: 81400 | J5: =IF(OR(B5="Elektromobil",B5="Plug-in"),Kalkulačka!$H$8,0) -> 0 | K5: 2565 | L5: 265 | M5: 0 | N5: 0 | O5: 95 | P5: =O5/S5*1000 -> 413.0434783 | Q5: elektrina | R5: 0 | S5: 230 | T5: =S5*100000*0.001*Kalkulačka!$H$6 -> 3409.75 | U5: =Predpoklady!$B$27 -> 33 | X5: =S5*100000*0.001*Predpoklady!$B$1 -> 4278000 | Y5: =Predpoklady!$B$2 -> 42 | Z5: =Predpoklady!$C$2 -> 10500000 | AA5: 14.778 | AB5: 84842.75 | AC5: =IF(B5="Elektromobil",Kalkulačka!$H$9,IF(B5="Standard",Kalkulačka!$H$11,Kalkulačka!$H$10))*10 -> 2900 | AD5: 279.99 | AE5: 290
A6: https://www.ultimatespecs.com/car-specs/Audi/106213/Audi-Q7-II-30-TDI-e-tron-Quattro-Design-5-seats.html | B6: Plug-in | C6: SUV | D6: Audi | E6: Q7 3.0 TDI e-tron Quattro | F6: Audi Q7 3.0 TDI e-tron Quattro | G6: 2016 | H6: 0 | I6: 84000 | J6: =IF(OR(B6="Elektromobil",B6="Plug-in"),Kalkulačka!$H$8,0) -> 0 | K6: 3185 | L6: 192.39 | M6: 46 | N6: 2967 | O6: 17.3 | P6: =0.6*O6/S6*1000+0.4*40/R6*100 -> 997.2845787 | Q6: nafta + elektrina | R6: 1.7 | S6: 185 | T6: =R6*1000*Kalkulačka!$H$5*0.4+S6/1000*100000*Kalkulačka!$H$6*0.6 -> 2489.455 | U6: =MAX(IF(OR(B6="Hybrid",B6="Plug-in"),0.5*VLOOKUP(L6,Predpoklady!$A$10:$C$25,3,1),VLOOKUP(L6,Predpoklady!$A$10:$C$25,3,1)),33) -> 950 | X6: =(0.6*Predpoklady!$B$1*S6/1000+0.4*M6)*100000 -> 3904600 | Y6: =Predpoklady!$B$3 -> 37 | Z6: =Predpoklady!$C$3 -> 11000000 | AA6: 14.9046 | AB6: 87439.455 | AC6: =IF(B6="Elektromobil",Kalkulačka!$H$9,IF(B6="Standard",Kalkulačka!$H$11,Kalkulačka!$H$10))*10 -> 4400 | AD6: 190.03 | AE6: 440 | AF6: .jpg | AG6: =CONCATENATE(F6,AF6) -> Audi Q7 3.0 TDI e-tron Quattro.jpg
A7: https://www.auto-data.net/en/audi-q7-typ-4m-e-tron-3.0-tdi-374hp-quattro-s-tronic-23166 | B7: Standard | C7: SUV | D7: Audi | E7: Q7 50 TDI Quattro | F7: Audi Q7 50 TDI Quattro | G7: 2018 | H7: 1 | I7: 65400 | J7: =IF(OR(B7="Elektromobil",B7="Plug-in"),Kalkulačka!$H$8,0) -> 0 | K7: 2990 | L7: 210 | M7: 178 | N7: 2967 | O7: 0 | P7: =85/R7*100 -> 664.0625 | Q7: nafta | R7: 12.8 | S7: 0 | T7: =R7*1000*Kalkulačka!$H$5 -> 15884.8 | U7: =MAX(IF(OR(B7="Hybrid",B7="Plug-in"),0.5*VLOOKUP(L7,Predpoklady!$A$10:$C$25,3,1),VLOOKUP(L7,Predpoklady!$A$10:$C$25,3,1)),33) -> 2300 | X7: =M7*100000 -> 17800000 | Y7: =Predpoklady!$B$5 -> 28 | Z7: =Predpoklady!$C$5 -> 7000000 | AA7: 24.8 | AB7: 83584.8 | AC7: =IF(B7="Elektromobil",Kalkulačka!$H$9,IF(B7="Standard",Kalkulačka!$H$11,Kalkulačka!$H$10))*10 -> 4800 | AD7: 361.92 | AE7: 480 | AF7: .jpg | AG7: Audi Q7 50 TDI Quattro.jpg
A8: https://www.cars-data.com/en/audi-tt-coupe-1.8-tfsi-specs/69685/tech | B8: Standard | C8: Luxusné | D8: Audi | E8: TT Coupe 1.8 TFSI | F8: Audi TT Coupe 1.8 TFSI | G8: 2015 | H8: 0 | I8: 25000 | J8: =IF(OR(B8="Elektromobil",B8="Plug-in"),Kalkulačka!$H$8,0) -> 0 | K8: 1610 | L8: 132 | M8: 134 | N8: 1798 | O8: 0 | P8: =50/R8*100 -> 675.6756757 | Q8: benzín | R8: 7.4 | S8: 0 | T8: =R8*1000*Kalkulačka!$H$4 -> 9871.6 | U8: =MAX(IF(OR(B8="Hybrid",B8="Plug-in"),0.5*VLOOKUP(L8,Predpoklady!$A$10:$C$25,3,1),VLOOKUP(L8,Predpoklady!$A$10:$C$25,3,1)),33) -> 530 | X8: =M8*100000 -> 13400000 | Y8: =Predpoklady!$B$4 -> 32 | Z8: =Predpoklady!$C$4 -> 8000000 | AA8: 21.4 | AB8: 35401.6 | AC8: =IF(B8="Elektromobil",Kalkulačka!$H$9,IF(B8="Standard",Kalkulačka!$H$11,Kalkulačka!$H$10))*10 -> 4800 | AD8: 235.14 | AE8: 480 | AF8: .jpg | AG8: Audi TT Coupe 1.8 TFSI.jpg
A9: https://www.automobile-catalog.com/car/2018/2407655/bmw_120i_5-door.html | B9: Standard | C9: Stredná trieda | D9: BMW | E9: 120i | F9: BMW 120i | G9: 2016 | H9: 0 | I9: 30150 | J9: =IF(OR(B9="Elektromobil",B9="Plug-in"),Kalkulačka!$H$8,0) -> 0 | K9: 1930 | L9: 135 | M9: 131 | N9: 1998 | O9: 0 | P9: =52/R9*100 -> 504.8543689 | Q9: benzín | R9: 10.3 | S9: 0 | T9: =R9*1000*Kalkulačka!$H$4 -> 13740.2 | U9: =MAX(IF(OR(B9="Hybrid",B9="Plug-in"),0.5*VLOOKUP(L9,Predpoklady!$A$10:$C$25,3,1),VLOOKUP(L9,Predpoklady!$A$10:$C$25,3,1)),33) -> 700 | X9: =M9*100000 -> 13100000 | Y9: =Predpoklady!$B$4 -> 32 | Z9: =Predpoklady!$C$4 -> 8000000 | AA9: 21.1 | AB9: 44590.2 | AC9: =IF(B9="Elektromobil",Kalkulačka!$H$9,IF(B9="Standard",Kalkulačka!$H$11,Kalkulačka!$H$10))*10 -> 4800 | AD9: 291.01 | AE9: 480 | AF9: .jpg | AG9: BMW 120i.jpg
A10: https://www.bmw.sk/sk/all-models/2-series/activetourer/2018/iperformance.html | B10: Plug-in | C10: Stredná trieda | D10: BMW | E10: 225xe iPerformance | F10: BMW 225xe iPerformance | G10: 2015 | H10: 0 | I10: 37750 | J10: =IF(OR(B10="Elektromobil",B10="Plug-in"),Kalkulačka!$H$8,0) -> 0 | K10: 1735 | L10: 165 | M10: 61 | N10: 1499 | O10: 6.1 | P10: =0.6*O10/S10*1000+0.4*36/R10*100 -> 565.1594203 | Q10: benzín + elektrina | R10: 2.7 | S10: 115 | T10: =R10*1000*Kalkulačka!$H$4*0.4+S10/1000*100000*Kalkulačka!$H$6*0.6 -> 2463.645 | U10: =MAX(IF(OR(B10="Hybrid",B10="Plug-in"),0.5*VLOOKUP(L10,Predpoklady!$A$10:$C$25,3,1),VLOOKUP(L10,Predpoklady!$A$10:$C$25,3,1)),33) -> 550 | X10: =(0.6*Predpoklady!$B$1*S10/1000+0.4*M10)*100000 -> 3723400 | Y10: =Predpoklady!$B$3 -> 37 | Z10: =Predpoklady!$C$3 -> 11000000 | AA10: 14.7234 | AB10: 40763.645 | AC10: =IF(B10="Elektromobil",Kalkulačka!$H$9,IF(B10="Standard",Kalkulačka!$H$11,Kalkulačka!$H$10))*10 -> 4400 | AD10: 149.28 | AE10: 440 | AF10: .jpg | AG10: BMW 225xe iPerformance.jpg
A11: https://insideevs.com/news/365541/bmw-330e-sedan-specs-photos-videos/ | B11: Plug-in | C11: Luxusné | D11: BMW | E11: 330e iPerformance | F11: BMW 330e iPerformance | G11: 2019 | H11: 1 | I11: 49150 | J11: =IF(OR(B11="Elektromobil",B11="Plug-in"),Kalkulačka!$H$8,0) -> 0 | K11: 1740 | L11: 215 | M11: 41 | N11: 1998 | O11: 10.8 | P11: =0.6*O11/S11*1000+0.4*40/R11*100 -> 930.966811 | Q11: benzín + elektrina | R11: 1.8 | S11: 154 | T11: =R11*1000*Kalkulačka!$H$4*0.4+S11/1000*100000*Kalkulačka!$H$6*0.6 -> 2330.31 | U11: =MAX(IF(OR(B11="Hybrid",B11="Plug-in"),0.5*VLOOKUP(L11,Predpoklady!$A$10:$C$25,3,1),VLOOKUP(L11,Predpoklady!$A$10:$C$25,3,1)),33) -> 1150 | X11: =(0.6*Predpoklady!$B$1*S11/1000+0.4*M11)*100000 -> 3358640 | Y11: =Predpoklady!$B$3 -> 37 | Z11: =Predpoklady!$C$3 -> 11000000 | AA11: 14.35864 | AB11: 52630.31 | AC11: =IF(B11="Elektromobil",Kalkulačka!$H$9,IF(B11="Standard",Kalkulačka!$H$11,Kalkulačka!$H$10))*10 -> 4400 | AD11: 170.73 | AE11: 440 | AF11: .jpg | AG11: BMW 330e iPerformance.jpg
A12: https://insideevs.com/news/364479/bmw-specs-new-530e-phev/ | B12: Plug-in | C12: Luxusné | D12: BMW | E12: 530e iPerformance | F12: BMW 530e iPerformance | G12: 2017 | H12: 1 | I12: 61350 | J12: =IF(OR(B12="Elektromobil",B12="Plug-in"),Kalkulačka!$H$8,0) -> 0 | K12: 2420 | L12: 185 | M12: 49 | N12: 1998 | O12: 10.8 | P12: =0.6*O12/S12*1000+0.4*46/R12*100 -> 878.4415584 | Q12: benzín + elektrina | R12: 2.2 | S12: 154 | T12: =R12*1000*Kalkulačka!$H$4*0.4+S12/1000*100000*Kalkulačka!$H$6*0.6 -> 2543.75 | U12: =MAX(IF(OR(B12="Hybrid",B12="Plug-in"),0.5*VLOOKUP(L12,Predpoklady!$A$10:$C$25,3,1),VLOOKUP(L12,Predpoklady!$A$10:$C$25,3,1)),33) -> 950 | X12: =(0.6*Predpoklady!$B$1*S12/1000+0.4*M12)*100000 -> 3678640 | Y12: =Predpoklady!$B$3 -> 37 | Z12: =Predpoklady!$C$3 -> 11000000 | AA12: 14.67864 | AB12: 64843.75 | AC12: =IF(B12="Elektromobil",Kalkulačka!$H$9,IF(B12="Standard",Kalkulačka!$H$11,Kalkulačka!$H$10))*10 -> 4400 | AD12: 178.6 | AE12: 440 | AF12: .jpg | AG12: BMW 530e iPerformance.jpg
A13: https://www.bmw.sk/content/bmw/marketSK/bmw_sk/sk_SK/ssl/configurator.html#/7R21/FLCSW,S01CB,S01DE,S0230,S0255,S02PA,S02VB,S02WT,S0302,S0322,S03DS,S0428,S0465,S0494,S04K2,S04NE,S04UR,S0548,S0552,S05AC,S05AS,S05DM,S0610,S0676,S06AC,S06AE,S06AK,S06C3,S06NW,S06U3,S06U8,S07NH,S0851,S0879,S08KA,S08R9,S08TF,S08TL/G11/esl/new/ | B13: Standard | C13: Luxusné | D13: BMW | E13: 730d xDrive | F13: BMW 730d xDrive | G13: 2017 | H13: 1 | I13: 96300 | J13: =IF(OR(B13="Elektromobil",B13="Plug-in"),Kalkulačka!$H$8,0) -> 0 | K13: 2550 | L13: 195 | M13: 191 | N13: 2993 | O13: 0 | P13: =80/R13*100 -> 1095.890411 | Q13: nafta | R13: 7.3 | S13: 0 | T13: =R13*1000*Kalkulačka!$H$5 -> 9059.3 | U13: =MAX(IF(OR(B13="Hybrid",B13="Plug-in"),0.5*VLOOKUP(L13,Predpoklady!$A$10:$C$25,3,1),VLOOKUP(L13,Predpoklady!$A$10:$C$25,3,1)),33) -> 1900 | V13: =180*8 -> 1440 | W13: =U13+V13 -> 3340 | X13: =M13*100000 -> 19100000 | Y13: =Predpoklady!$B$5 -> 28 | Z13: =Predpoklady!$C$5 -> 7000000 | AA13: 26.1 | AB13: 107259.3 | AC13: =IF(B13="Elektromobil",Kalkulačka!$H$9,IF(B13="Standard",Kalkulačka!$H$11,Kalkulačka!$H$10))*10 -> 4800 | AD13: 190.03 | AE13: 480 | AF13: .jpg | AG13: BMW 730d xDrive .jpg
A14: https://www.mojelektromobil.sk/model/bmw-740e-iperformance/ | B14: Plug-in | C14: Luxusné | D14: BMW | E14: 740e iPerformance | F14: BMW 740e iPerformance | G14: 2017 | H14: 1 | I14: 99350 | J14: =IF(OR(B14="Elektromobil",B14="Plug-in"),Kalkulačka!$H$8,0) -> 0 | K14: 1975 | L14: 240 | M14: 45 | N14: 1998 | O14: 9.2 | P14: =0.6*O14/S14*1000+0.4*46/R14*100 -> 779.125 | Q14: benzín + elektrina | R14: 2.5 | S14: 128 | T14: =R14*1000*Kalkulačka!$H$4*0.4+S14/1000*100000*Kalkulačka!$H$6*0.6 -> 2472.56 | U14: =MAX(IF(OR(B14="Hybrid",B14="Plug-in"),0.5*VLOOKUP(L14,Predpoklady!$A$10:$C$25,3,1),VLOOKUP(L14,Predpoklady!$A$10:$C$25,3,1)),33) -> 1350 | X14: =(0.6*Predpoklady!$B$1*S14/1000+0.4*M14)*100000 -> 3228480 | Y14: =Predpoklady!$B$3 -> 37 | Z14: =Predpoklady!$C$3 -> 11000000 | AA14: 14.22848 | AB14: 103172.56 | AC14: =IF(B14="Elektromobil",Kalkulačka!$H$9,IF(B14="Standard",Kalkulačka!$H$11,Kalkulačka!$H$10))*10 -> 4400 | AD14: 178.6 | AE14: 440 | AF14: .jpg | AG14: BMW 740e iPerformance.jpg
A15: https://www.bmw.sk/content/dam/bmw/marketSK/bmw_sk/topics/pricelists-brochures/pricelists/pricelist_2018/G11_12-7sed-SK-0318-www.pdf.asset.1522942647379.pdf | B15: Plug-in | C15: Luxusné | D15: BMW | E15: 740Le iPerformance | F15: BMW 740Le iPerformance | G15: 2016 | H15: 0 | I15: 108400 | J15: =IF(OR(B15="Elektromobil",B15="Plug-in"),Kalkulačka!$H$8,0) -> 0 | K15: 2075 | L15: 240 | M15: 45 | N15: 1998 | O15: 9.2 | P15: =0.6*O15/S15*1000+0.4*46/R15*100 -> 962.4615385 | Q15: benzín + elektrina | R15: 2 | S15: 130 | T15: =R15*1000*Kalkulačka!$H$4*0.4+S15/1000*100000*Kalkulačka!$H$6*0.6 -> 2223.55 | U15: =MAX(IF(OR(B15="Hybrid",B15="Plug-in"),0.5*VLOOKUP(L15,Predpoklady!$A$10:$C$25,3,1),VLOOKUP(L15,Predpoklady!$A$10:$C$25,3,1)),33) -> 1350 | X15: =(0.6*Predpoklady!$B$1*S15/1000+0.4*M15)*100000 -> 3250800 | Y15: =Predpoklady!$B$3 -> 37 | Z15: =Predpoklady!$C$3 -> 11000000 | AA15: 14.2508 | AB15: 111973.55 | AC15: =IF(B15="Elektromobil",Kalkulačka!$H$9,IF(B15="Standard",Kalkulačka!$H$11,Kalkulačka!$H$10))*10 -> 4400 | AD15: 178.6 | AE15: 440 | AF15: .jpg | AG15: BMW 740Le iPerformance.jpg
A16: https://www.bmw.sk/content/dam/bmw/marketSK/bmw_sk/topics/pricelists-brochures/pricelists/pricelist_2018/G11_12-7sed-SK-0318-www.pdf.asset.1522942647379.pdf | B16: Plug-in | C16: Luxusné | D16: BMW | E16: 740Le xDrive iPerformance | F16: BMW 740Le xDrive iPerformance | G16: 2016 | H16: 0 | I16: 119000 | J16: =IF(OR(B16="Elektromobil",B16="Plug-in"),Kalkulačka!$H$8,0) -> 0 | K16: 2000 | L16: 240 | M16: 49 | N16: 1998 | O16: 9.2 | P16: =0.6*O16/S16*1000+0.4*46/R16*100 -> 917.0793651 | Q16: benzín + elektrina | R16: 2.1 | S16: 135 | T16: =R16*1000*Kalkulačka!$H$4*0.4+S16/1000*100000*Kalkulačka!$H$6*0.6 -> 2321.385 | U16: =MAX(IF(OR(B16="Hybrid",B16="Plug-in"),0.5*VLOOKUP(L16,Predpoklady!$A$10:$C$25,3,1),VLOOKUP(L16,Predpoklady!$A$10:$C$25,3,1)),33) -> 1350 | X16: =(0.6*Predpoklady!$B$1*S16/1000+0.4*M16)*100000 -> 3466600 | Y16: =Predpoklady!$B$3 -> 37 | Z16: =Predpoklady!$C$3 -> 11000000 | AA16: 14.4666 | AB16: 122671.385 | AC16: =IF(B16="Elektromobil",Kalkulačka!$H$9,IF(B16="Standard",Kalkulačka!$H$11,Kalkulačka!$H$10))*10 -> 4400 | AD16: 178.6 | AE16: 440 | AF16: .jpg | AG16: BMW 740Le xDrive iPerformance.jpg
A17: https://www.autopalacebratislava.sk/preview-file/cars/I01%20BMW%20i3%20SK-1117-www.pdf | B17: Plug-in | C17: Kompakt | D17: BMW | E17: i3 94 Ah (REX) | F17: BMW i3 94 Ah (REX) | G17: 2016 | H17: 0 | I17: 46800 | J17: =IF(OR(B17="Elektromobil",B17="Plug-in"),Kalkulačka!$H$8,0) -> 0 | K17: 1315 | L17: 135 | M17: 14 | N17: 647 | O17: 27.2 | P17: =0.6*O17/S17*1000+0.4*9/R17*100 -> 653.7728938 | Q17: benzín + elektrina | R17: 0.7 | S17: 117 | T17: =R17*1000*Kalkulačka!$H$4*0.4+S17/1000*100000*Kalkulačka!$H$6*0.6 -> 1414.235 | U17: =MAX(IF(OR(B17="Hybrid",B17="Plug-in"),0.5*VLOOKUP(L17,Predpoklady!$A$10:$C$25,3,1),VLOOKUP(L17,Predpoklady!$A$10:$C$25,3,1)),33) -> 350 | X17: =(0.6*Predpoklady!$B$1*S17/1000+0.4*M17)*100000 -> 1865720 | Y17: =Predpoklady!$B$3 -> 37 | Z17: =Predpoklady!$C$3 -> 11000000 | AA17: 12.86572 | AB17: 48564.235 | AC17: =IF(B17="Elektromobil",Kalkulačka!$H$9,IF(B17="Standard",Kalkulačka!$H$11,Kalkulačka!$H$10))*10 -> 4400 | AD17: 155.2 | AE17: 440 | AF17: .jpg | AG17: BMW i3 94 Ah (REX).jpg
A18: https://www.autopalacebratislava.sk/preview-file/cars/I01%20BMW%20i3%20SK-1117-www.pdf | B18: Elektromobil | C18: Kompakt | D18: BMW | E18: i3s 94 Ah | F18: BMW i3s 94 Ah | G18: 2016 | H18: 0 | I18: 42000 | J18: =IF(OR(B18="Elektromobil",B18="Plug-in"),Kalkulačka!$H$8,0) -> 0 | K18: 1195 | L18: 125 | M18: 0 | N18: 0 | O18: 27.2 | P18: =O18/S18*1000 -> 158.1395349 | Q18: elektrina | R18: 0 | S18: 172 | T18: =S18*100000*0.001*Kalkulačka!$H$6 -> 2549.9 | U18: =Predpoklady!$B$27 -> 33 | X18: =S18*100000*0.001*Predpoklady!$B$1 -> 3199200 | Y18: =Predpoklady!$B$2 -> 42 | Z18: =Predpoklady!$C$2 -> 10500000 | AA18: 13.6992 | AB18: 44582.9 | AC18: =IF(B18="Elektromobil",Kalkulačka!$H$9,IF(B18="Standard",Kalkulačka!$H$11,Kalkulačka!$H$10))*10 -> 2900 | AD18: 155.2 | AE18: 290 | AF18: .jpg | AG18: BMW i3s 94 Ah.jpg
A19: https://www.bmw.sk/content/dam/bmw/marketSK/bmw_sk/topics/pricelists-brochures/brochures/old_brochures/i8_PSL_SLK_web.pdf.asset.1511952714492.pdf | B19: Plug-in | C19: Luxusné | D19: BMW | E19: i8 | F19: BMW i8 | G19: 2017 | H19: 1 | I19: 143250 | J19: =IF(OR(B19="Elektromobil",B19="Plug-in"),Kalkulačka!$H$8,0) -> 0 | K19: 1610 | L19: 266 | M19: 49 | N19: 1499 | O19: 7.1 | P19: =0.6*O19/S19*1000+0.4*42/R19*100 -> 832.7692308 | Q19: benzín + elektrina | R19: 2.1 | S19: 130 | T19: =R19*1000*Kalkulačka!$H$4*0.4+S19/1000*100000*Kalkulačka!$H$6*0.6 -> 2276.91 | U19: =MAX(IF(OR(B19="Hybrid",B19="Plug-in"),0.5*VLOOKUP(L19,Predpoklady!$A$10:$C$25,3,1),VLOOKUP(L19,Predpoklady!$A$10:$C$25,3,1)),33) -> 1950 | X19: =(0.6*Predpoklady!$B$1*S19/1000+0.4*M19)*100000 -> 3410800 | Y19: =Predpoklady!$B$3 -> 37 | Z19: =Predpoklady!$C$3 -> 11000000 | AA19: 14.4108 | AB19: 147476.91 | AC19: =IF(B19="Elektromobil",Kalkulačka!$H$9,IF(B19="Standard",Kalkulačka!$H$11,Kalkulačka!$H$10))*10 -> 4400 | AD19: 170.73 | AE19: 440 | AF19: .jpg | AG19: BMW i8.jpg
A20: https://www.bmw.sk/content/dam/bmw/marketSK/bmw_sk/topics/pricelists-brochures/pricelists/pricelist_2019/march/G05_X5_0419_SK_online.pdf.asset.1551987095332.pdf | B20: Standard | C20: SUV | D20: BMW | E20: X5 xDrive40i | F20: BMW X5 xDrive40i | G20: 2018 | H20: 1 | I20: 69500 | J20: =IF(OR(B20="Elektromobil",B20="Plug-in"),Kalkulačka!$H$8,0) -> 0 | K20: 2135 | L20: 250 | M20: 270 | N20: 2998 | O20: 0 | P20: =83/R20*100 -> 697.4789916 | Q20: benzín | R20: 11.9 | S20: 0 | T20: =R20*1000*Kalkulačka!$H$4 -> 15874.6 | U20: =MAX(IF(OR(B20="Hybrid",B20="Plug-in"),0.5*VLOOKUP(L20,Predpoklady!$A$10:$C$25,3,1),VLOOKUP(L20,Predpoklady!$A$10:$C$25,3,1)),33) -> 2700 | X20: =M20*100000 -> 27000000 | Y20: =Predpoklady!$B$4 -> 32 | Z20: =Predpoklady!$C$4 -> 8000000 | AA20: 35 | AB20: 88074.6 | AC20: =IF(B20="Elektromobil",Kalkulačka!$H$9,IF(B20="Standard",Kalkulačka!$H$11,Kalkulačka!$H$10))*10 -> 4800 | AD20: 319.58 | AE20: 480 | AF20: .jpg | AG20: BMW X5 xDrive40i.jpg
A21: https://www.bmw.sk/content/dam/bmw/marketSK/bmw_sk/topics/pricelists-brochures/pricelists/pricelist_2019/march/F16_X6_0419_SK_online.pdf.asset.1551987160218.pdf | B21: Standard | C21: SUV | D21: BMW | E21: X6 xDrive40d | F21: BMW X6 xDrive40d | G21: 2018 | H21: 1 | I21: 78550 | J21: =IF(OR(B21="Elektromobil",B21="Plug-in"),Kalkulačka!$H$8,0) -> 0 | K21: 2110 | L21: 230 | M21: 230 | N21: 2993 | O21: 0 | P21: =85/R21*100 -> 965.9090909 | Q21: nafta | R21: 8.8 | S21: 0 | T21: =R21*1000*Kalkulačka!$H$5 -> 10920.8 | U21: =MAX(IF(OR(B21="Hybrid",B21="Plug-in"),0.5*VLOOKUP(L21,Predpoklady!$A$10:$C$25,3,1),VLOOKUP(L21,Predpoklady!$A$10:$C$25,3,1)),33) -> 2700 | X21: =M21*100000 -> 23000000 | Y21: =Predpoklady!$B$5 -> 28 | Z21: =Predpoklady!$C$5 -> 7000000 | AA21: 30 | AB21: 92170.8 | AC21: =IF(B21="Elektromobil",Kalkulačka!$H$9,IF(B21="Standard",Kalkulačka!$H$11,Kalkulačka!$H$10))*10 -> 4800 | AD21: 319.58 | AE21: 480 | AF21: .jpg | AG21: BMW X6 xDrive40d.jpg
A22: https://www.cars-data.com/en/citroen-c3-puretech-110-shine-specs/75423/tech | B22: Standard | C22: Kompakt | D22: Citroën | E22: C3 PureTech 110 Shine | F22: Citroën C3 PureTech 110 Shine | G22: 2016 | H22: 1 | I22: 13790 | J22: =IF(OR(B22="Elektromobil",B22="Plug-in"),Kalkulačka!$H$8,0) -> 0 | K22: 1600 | L22: 81 | M22: 103 | N22: 1199 | O22: 0 | P22: =45/R22*100 -> 803.5714286 | Q22: benzín | R22: 5.6 | S22: 0 | T22: =R22*1000*Kalkulačka!$H$4 -> 7470.4 | U22: =MAX(IF(OR(B22="Hybrid",B22="Plug-in"),0.5*VLOOKUP(L22,Predpoklady!$A$10:$C$25,3,1),VLOOKUP(L22,Predpoklady!$A$10:$C$25,3,1)),33) -> 90 | X22: =M22*100000 -> 10300000 | Y22: =Predpoklady!$B$4 -> 32 | Z22: =Predpoklady!$C$4 -> 8000000 | AA22: 18.3 | AB22: 21350.4 | AC22: =IF(B22="Elektromobil",Kalkulačka!$H$9,IF(B22="Standard",Kalkulačka!$H$11,Kalkulačka!$H$10))*10 -> 4800 | AD22: 111.79 | AE22: 480 | AF22: .jpg | AG22: Citroën C3 PureTech 110 Shine.jpg
A23: https://www.ultimatespecs.com/car-specs/Citroen/111583/Citroen-C4-Cactus-Phase-2-PureTech-110.html | B23: Standard | C23: Stredná trieda | D23: Citroen | E23: C4 Cactus PureTech 110 | F23: Citroen C4 Cactus PureTech 110 | G23: 2018 | H23: 1 | I23: 14490 | J23: =IF(OR(B23="Elektromobil",B23="Plug-in"),Kalkulačka!$H$8,0) -> 0 | K23: 1575 | L23: 81 | M23: 137 | N23: 1199 | O23: 0 | P23: =50/R23*100 -> 793.6507937 | Q23: benzín | R23: 6.3 | S23: 0 | T23: =R23*1000*Kalkulačka!$H$4 -> 8404.2 | U23: =MAX(IF(OR(B23="Hybrid",B23="Plug-in"),0.5*VLOOKUP(L23,Predpoklady!$A$10:$C$25,3,1),VLOOKUP(L23,Predpoklady!$A$10:$C$25,3,1)),33) -> 90 | X23: =M23*100000 -> 13700000 | Y23: =Predpoklady!$B$4 -> 32 | Z23: =Predpoklady!$C$4 -> 8000000 | AA23: 21.7 | AB23: 22984.2 | AC23: =IF(B23="Elektromobil",Kalkulačka!$H$9,IF(B23="Standard",Kalkulačka!$H$11,Kalkulačka!$H$10))*10 -> 4800 | AD23: 182.54 | AE23: 480 | AF23: .jpg | AG23: Citroen C4 Cactus PureTech 110.jpg
A24: https://www.cars-data.com/en/citroen-c-zero-specs/9494 | B24: Elektromobil | C24: Mini | D24: Citroën | E24: C-Zero | F24: Citroën C-Zero | G24: 2010 | H24: 1 | I24: 29640 | J24: =IF(OR(B24="Elektromobil",B24="Plug-in"),Kalkulačka!$H$8,0) -> 0 | K24: 1450 | L24: 47 | M24: 0 | N24: 0 | O24: 16 | P24: =O24/S24*1000 -> 128 | Q24: elektrina | R24: 0 | S24: 125 | T24: =S24*100000*0.001*Kalkulačka!$H$6 -> 1853.125 | U24: =Predpoklady!$B$27 -> 33 | X24: =S24*100000*0.001*Predpoklady!$B$1 -> 2325000 | Y24: =Predpoklady!$B$2 -> 42 | Z24: =Predpoklady!$C$2 -> 10500000 | AA24: 12.825 | AB24: 31526.125 | AC24: =IF(B24="Elektromobil",Kalkulačka!$H$9,IF(B24="Standard",Kalkulačka!$H$11,Kalkulačka!$H$10))*10 -> 2900 | AD24: 121.38 | AE24: 290 | AF24: .jpg | AG24: Citroën C-Zero.jpg
A25: https://www.automobile-catalog.com/car/2018/2607095/dacia_duster_sce_115_4x2.html | B25: Standard | C25: SUV | D25: Dacia | E25: Duster SCe 4x2 | F25: Dacia Duster SCe 4x2 | G25: 2018 | H25: 1 | I25: 14990 | J25: =IF(OR(B25="Elektromobil",B25="Plug-in"),Kalkulačka!$H$8,0) -> 0 | K25: 1712 | L25: 84 | M25: 149 | N25: 1597 | O25: 0 | P25: =50/R25*100 -> 625 | Q25: benzín | R25: 8 | S25: 0 | T25: =R25*1000*Kalkulačka!$H$4 -> 10672 | U25: =MAX(IF(OR(B25="Hybrid",B25="Plug-in"),0.5*VLOOKUP(L25,Predpoklady!$A$10:$C$25,3,1),VLOOKUP(L25,Predpoklady!$A$10:$C$25,3,1)),33) -> 90 | X25: =M25*100000 -> 14900000 | Y25: =Predpoklady!$B$4 -> 32 | Z25: =Predpoklady!$C$4 -> 8000000 | AA25: 22.9 | AB25: 25752 | AC25: =IF(B25="Elektromobil",Kalkulačka!$H$9,IF(B25="Standard",Kalkulačka!$H$11,Kalkulačka!$H$10))*10 -> 4800 | AD25: 126.44 | AE25: 480 | AF25: .jpg | AG25: Dacia Duster SCe 4x2.jpg
A26: https://www.ultimatespecs.com/car-specs/Dacia/109339/Dacia-Logan-MCV-Stepway-TCe-90.html | B26: Standard | C26: Stredná trieda | D26: Dacia | E26: Logan MCV TCe 90 Stepway | F26: Dacia Logan MCV TCe 90 Stepway | G26: 2017 | H26: 1 | I26: 11190 | J26: =IF(OR(B26="Elektromobil",B26="Plug-in"),Kalkulačka!$H$8,0) -> 0 | K26: 1620 | L26: 66 | M26: 115 | N26: 898 | O26: 0 | P26: =50/R26*100 -> 862.0689655 | Q26: benzín | R26: 5.8 | S26: 0 | T26: =R26*1000*Kalkulačka!$H$4 -> 7737.2 | U26: =MAX(IF(OR(B26="Hybrid",B26="Plug-in"),0.5*VLOOKUP(L26,Predpoklady!$A$10:$C$25,3,1),VLOOKUP(L26,Predpoklady!$A$10:$C$25,3,1)),33) -> 33 | X26: =M26*100000 -> 11500000 | Y26: =Predpoklady!$B$4 -> 32 | Z26: =Predpoklady!$C$4 -> 8000000 | AA26: 19.5 | AB26: 18960.2 | AC26: =IF(B26="Elektromobil",Kalkulačka!$H$9,IF(B26="Standard",Kalkulačka!$H$11,Kalkulačka!$H$10))*10 -> 4800 | AD26: 130.78 | AE26: 480 | AF26: .jpg | AG26: Dacia Logan MCV TCe 90 Stepway.jpg
A27: https://www.cars-data.com/en/dacia-sandero-stepway-tce-90-ambiance-specs/73627/tech | B27: Standard | C27: Stredná trieda | D27: Dacia | E27: Sandero Stepway Tce 90 Ambience | F27: Dacia Sandero Stepway Tce 90 Ambience | G27: 2016 | H27: 0 | I27: 10590 | J27: =IF(OR(B27="Elektromobil",B27="Plug-in"),Kalkulačka!$H$8,0) -> 0 | K27: 1520 | L27: 66 | M27: 115 | N27: 898 | O27: 0 | P27: =50/R27*100 -> 862.0689655 | Q27: benzín | R27: 5.8 | S27: 0 | T27: =R27*1000*Kalkulačka!$H$4 -> 7737.2 | U27: =MAX(IF(OR(B27="Hybrid",B27="Plug-in"),0.5*VLOOKUP(L27,Predpoklady!$A$10:$C$25,3,1),VLOOKUP(L27,Predpoklady!$A$10:$C$25,3,1)),33) -> 33 | X27: =M27*100000 -> 11500000 | Y27: =Predpoklady!$B$4 -> 32 | Z27: =Predpoklady!$C$4 -> 8000000 | AA27: 19.5 | AB27: 18360.2 | AC27: =IF(B27="Elektromobil",Kalkulačka!$H$9,IF(B27="Standard",Kalkulačka!$H$11,Kalkulačka!$H$10))*10 -> 4800 | AD27: 105.22 | AE27: 480 | AF27: .jpg | AG27: Dacia Sandero Stepway Tce 90 Ambience.jpg
A28: https://www.automobile-catalog.com/car/2016/2182325/fiat_500_twinair_turbo_85.html | B28: Standard | C28: Mini | D28: Fiat | E28: 500 TwinAir | F28: Fiat 500 TwinAir | G28: 2015 | H28: 1 | I28: 16350 | J28: =IF(OR(B28="Elektromobil",B28="Plug-in"),Kalkulačka!$H$8,0) -> 0 | K28: 1370 | L28: 63 | M28: 116 | N28: 875 | O28: 0 | P28: =35/R28*100 -> 546.875 | Q28: benzín | R28: 6.4 | S28: 0 | T28: =R28*1000*Kalkulačka!$H$4 -> 8537.6 | U28: =MAX(IF(OR(B28="Hybrid",B28="Plug-in"),0.5*VLOOKUP(L28,Predpoklady!$A$10:$C$25,3,1),VLOOKUP(L28,Predpoklady!$A$10:$C$25,3,1)),33) -> 33 | X28: =M28*100000 -> 11600000 | Y28: =Predpoklady!$B$4 -> 32 | Z28: =Predpoklady!$C$4 -> 8000000 | AA28: 19.6 | AB28: 24920.6 | AC28: =IF(B28="Elektromobil",Kalkulačka!$H$9,IF(B28="Standard",Kalkulačka!$H$11,Kalkulačka!$H$10))*10 -> 4800 | AD28: 115.74 | AE28: 480 | AF28: .png | AG28: Fiat 500 TwinAir.png
A29: https://www.teslamagazin.sk/fiat-500e-test/ | B29: Elektromobil | C29: Mini | D29: Fiat | E29: 500e | F29: Fiat 500e | G29: 2013 | H29: 1 | I29: 28600 | J29: =IF(OR(B29="Elektromobil",B29="Plug-in"),Kalkulačka!$H$8,0) -> 0 | K29: 1350 | L29: 83 | M29: 0 | N29: 0 | O29: 24 | P29: 135 | Q29: elektrina | R29: 0 | S29: =O29/P29*1000 -> 177.7777778 | T29: =S29*100000*0.001*Kalkulačka!$H$6 -> 2635.555556 | U29: =Predpoklady!$B$27 -> 33 | X29: =S29*100000*0.001*Predpoklady!$B$1 -> 3306666.667 | Y29: =Predpoklady!$B$2 -> 42 | Z29: =Predpoklady!$C$2 -> 10500000 | AA29: 13.80666667 | AB29: 31268.55556 | AC29: =IF(B29="Elektromobil",Kalkulačka!$H$9,IF(B29="Standard",Kalkulačka!$H$11,Kalkulačka!$H$10))*10 -> 2900 | AD29: 104 | AE29: 290 | AF29: .jpg | AG29: Fiat 500e.jpg
A30: https://www.cars-data.com/en/fiat-panda-1.2-69-popstar-specs/72415/tech | B30: Standard | C30: Kompakt | D30: Fiat | E30: Panda 1.2 | F30: Fiat Panda 1.2 | G30: 2016 | H30: 1 | I30: 9340 | J30: =IF(OR(B30="Elektromobil",B30="Plug-in"),Kalkulačka!$H$8,0) -> 0 | K30: 1420 | L30: 51 | M30: 119 | N30: 1242 | O30: 0 | P30: =37/R30*100 -> 616.6666667 | Q30: benzín | R30: 6 | S30: 0 | T30: =R30*1000*Kalkulačka!$H$4 -> 8004 | U30: =MAX(IF(OR(B30="Hybrid",B30="Plug-in"),0.5*VLOOKUP(L30,Predpoklady!$A$10:$C$25,3,1),VLOOKUP(L30,Predpoklady!$A$10:$C$25,3,1)),33) -> 33 | X30: =M30*100000 -> 11900000 | Y30: =Predpoklady!$B$4 -> 32 | Z30: =Predpoklady!$C$4 -> 8000000 | AA30: 19.9 | AB30: 17377 | AC30: =IF(B30="Elektromobil",Kalkulačka!$H$9,IF(B30="Standard",Kalkulačka!$H$11,Kalkulačka!$H$10))*10 -> 4800 | AD30: 116.79 | AE30: 480 | AF30: .jpg | AG30: Fiat Panda 1.2 .jpg
A31: https://www.auto-data.net/en/ford-focus-iv-hatchback-1.0-ecoboost-125hp-32955 | B31: Standard | C31: Stredná trieda | D31: Ford | E31: Focus Hatchback 1.0 Ecoboost | F31: Ford Focus Hatchback 1.0 Ecoboost | G31: 2018 | H31: 1 | I31: 17590 | J31: =IF(OR(B31="Elektromobil",B31="Plug-in"),Kalkulačka!$H$8,0) -> 0 | K31: 1735 | L31: 74 | M31: 110 | N31: 999 | O31: 0 | P31: =52/R31*100 -> 866.6666667 | Q31: benzín | R31: 6 | S31: 0 | T31: =R31*1000*Kalkulačka!$H$4 -> 8004 | U31: =MAX(IF(OR(B31="Hybrid",B31="Plug-in"),0.5*VLOOKUP(L31,Predpoklady!$A$10:$C$25,3,1),VLOOKUP(L31,Predpoklady!$A$10:$C$25,3,1)),33) -> 33 | X31: 11000000 | Y31: =Predpoklady!$B$4 -> 32 | Z31: =Predpoklady!$C$4 -> 8000000 | AA31: 19 | AB31: 25627 | AC31: =IF(B31="Elektromobil",Kalkulačka!$H$9,IF(B31="Standard",Kalkulačka!$H$11,Kalkulačka!$H$10))*10 -> 4800 | AD31: 155.04 | AE31: 480 | AF31: .jpg | AG31: Ford Focus Hatchback 1.0 Ecoboost.jpg
A32: https://fordcms.blob.core.windows.net/media/Slovakia/Pricelist/Kuga%201805.pdf | B32: Standard | C32: SUV | D32: Ford | E32: Kuga 1.5 Ecoboost | F32: Ford Kuga 1.5 Ecoboost | G32: 2018 | H32: 1 | I32: 22980 | J32: =IF(OR(B32="Elektromobil",B32="Plug-in"),Kalkulačka!$H$8,0) -> 0 | K32: 2100 | L32: 88 | M32: 145 | N32: 1499 | O32: 0 | P32: =59/R32*100 -> 746.835443 | Q32: benzín | R32: 7.9 | S32: 0 | T32: =R32*1000*Kalkulačka!$H$4 -> 10538.6 | U32: =MAX(IF(OR(B32="Hybrid",B32="Plug-in"),0.5*VLOOKUP(L32,Predpoklady!$A$10:$C$25,3,1),VLOOKUP(L32,Predpoklady!$A$10:$C$25,3,1)),33) -> 110 | X32: 14500000 | Y32: =Predpoklady!$B$4 -> 32 | Z32: =Predpoklady!$C$4 -> 8000000 | AA32: 22.5 | AB32: 33628.6 | AC32: =IF(B32="Elektromobil",Kalkulačka!$H$9,IF(B32="Standard",Kalkulačka!$H$11,Kalkulačka!$H$10))*10 -> 4800 | AD32: 201.84 | AE32: 480 | AF32: .jpg | AG32: Ford Kuga 1.5 Ecoboost.jpg
A33: https://www.honda.sk/content/dam/local/slovakia/cars/katalogy/Cenn%C3%ADk_Civic_04_2019.pdf | B33: Standard | C33: Stredná trieda | D33: Honda | E33: Civic S 1.0 VTEC TURBO | F33: Honda Civic S 1.0 VTEC TURBO | G33: 2018 | H33: 1 | I33: 17190 | J33: =IF(OR(B33="Elektromobil",B33="Plug-in"),Kalkulačka!$H$8,0) -> 0 | K33: 1775 | L33: 93 | M33: 110 | N33: 988 | O33: 0 | P33: =46/R33*100 -> 779.6610169 | Q33: benzín | R33: 5.9 | S33: 0 | T33: =R33*1000*Kalkulačka!$H$4 -> 7870.6 | U33: =MAX(IF(OR(B33="Hybrid",B33="Plug-in"),0.5*VLOOKUP(L33,Predpoklady!$A$10:$C$25,3,1),VLOOKUP(L33,Predpoklady!$A$10:$C$25,3,1)),33) -> 150 | X33: 11000000 | Y33: =Predpoklady!$B$4 -> 32 | Z33: =Predpoklady!$C$4 -> 8000000 | AA33: 19 | AB33: 25210.6 | AC33: =IF(B33="Elektromobil",Kalkulačka!$H$9,IF(B33="Standard",Kalkulačka!$H$11,Kalkulačka!$H$10))*10 -> 4800 | AD33: 182.54 | AE33: 480 | AF33: .jpg | AG33: Honda Civic S 1.0 VTEC TURBO.jpg
A34: https://www.hyundai.sk/files/download/model/i20-2018/cennik-hyundai-i20-2018-10.pdf | B34: Standard | C34: Kompakt | D34: Hyundai | E34: i20 1.0 T-GDI | F34: =CONCATENATE(D34," ",E34) -> Hyundai i20 1.0 T-GDI | G34: 2018 | H34: 1 | I34: 12690 | J34: =IF(OR(B34="Elektromobil",B34="Plug-in"),Kalkulačka!$H$8,0) -> 0 | K34: 1600 | L34: 74 | M34: 111 | N34: 998 | O34: 0 | P34: =40/R34*100 -> 677.9661017 | Q34: benzín | R34: 5.9 | S34: 0 | T34: =R34*1000*Kalkulačka!$H$4 -> 7870.6 | U34: =MAX(IF(OR(B34="Hybrid",B34="Plug-in"),0.5*VLOOKUP(L34,Predpoklady!$A$10:$C$25,3,1),VLOOKUP(L34,Predpoklady!$A$10:$C$25,3,1)),33) -> 33 | X34: 11100000 | Y34: =Predpoklady!$B$4 -> 32 | Z34: =Predpoklady!$C$4 -> 8000000 | AA34: =(X34+Z34)/1000000 -> 19.1 | AB34: 20593.6 | AC34: =IF(B34="Elektromobil",Kalkulačka!$H$9,IF(B34="Standard",Kalkulačka!$H$11,Kalkulačka!$H$10))*10 -> 4800 | AD34: 105.22 | AE34: =AC34/10 -> 480 | AF34: .jpg | AG34: Hyundai i20 1.0 T-GDI.jpg
A35: https://www.hyundai.sk/files/download/model/i30-2017/cennik-hyundai-i30-n-line-2018-10.pdf | B35: Standard | C35: Stredná trieda | D35: Hyundai | E35: i30 1.4i | F35: Hyundai i30 1.4i | G35: 2018 | H35: 1 | I35: 15990 | J35: =IF(OR(B35="Elektromobil",B35="Plug-in"),Kalkulačka!$H$8,0) -> 0 | K35: 1850 | L35: 73.6 | M35: 120 | N35: 1368 | O35: 0 | P35: =50/R35*100 -> 641.025641 | Q35: benzín | R35: 7.8 | S35: 0 | T35: =R35*1000*Kalkulačka!$H$4 -> 10405.2 | U35: =MAX(IF(OR(B35="Hybrid",B35="Plug-in"),0.5*VLOOKUP(L35,Predpoklady!$A$10:$C$25,3,1),VLOOKUP(L35,Predpoklady!$A$10:$C$25,3,1)),33) -> 33 | X35: 12000000 | Y35: =Predpoklady!$B$4 -> 32 | Z35: =Predpoklady!$C$4 -> 8000000 | AA35: 20 | AB35: 26428.2 | AC35: =IF(B35="Elektromobil",Kalkulačka!$H$9,IF(B35="Standard",Kalkulačka!$H$11,Kalkulačka!$H$10))*10 -> 4800 | AD35: 107.23 | AE35: 480 | AF35: .jpg | AG35: Hyundai i30 1.4i.jpg
A36: https://www.hyundai.sk/files/download/model/i30-fastback-2017/technicke-udaje-hyundai-i30-fastback-2019.pdf | B36: Standard | C36: Stredná trieda | D36: Hyundai | E36: i30 fastback 1.4 T-GDi | F36: Hyundai i30 fastback 1.4 T-GDi | G36: 2018 | H36: 1 | I36: 21690 | J36: =IF(OR(B36="Elektromobil",B36="Plug-in"),Kalkulačka!$H$8,0) -> 0 | K36: 1439 | L36: 103 | M36: 145 | N36: 1353 | O36: 0 | P36: =50/R36*100 -> 632.9113924 | Q36: benzín | R36: 7.9 | S36: 0 | T36: =R36*1000*Kalkulačka!$H$4 -> 10538.6 | U36: =MAX(IF(OR(B36="Hybrid",B36="Plug-in"),0.5*VLOOKUP(L36,Predpoklady!$A$10:$C$25,3,1),VLOOKUP(L36,Predpoklady!$A$10:$C$25,3,1)),33) -> 210 | X36: 14500000 | Y36: =Predpoklady!$B$4 -> 32 | Z36: =Predpoklady!$C$4 -> 8000000 | AA36: 22.5 | AB36: 32438.6 | AC36: =IF(B36="Elektromobil",Kalkulačka!$H$9,IF(B36="Standard",Kalkulačka!$H$11,Kalkulačka!$H$10))*10 -> 4800 | AD36: 210.6 | AE36: 480 | AF36: .jpg | AG36: Hyundai i30 fastback 1.4 T-GDi.jpg
A37: https://www.hyundai.sk/files/download/model/ioniq-plug-in-hybrid-2016/technicke-udaje-hyundai-ioniq-plugin-2018-12.pdf | B37: Plug-in | C37: Stredná trieda | D37: Hyundai | E37: Ioniq 1,6 PHEV | F37: Hyundai Ioniq 1,6 PHEV | G37: 2016 | H37: 1 | I37: 34740 | J37: =IF(OR(B37="Elektromobil",B37="Plug-in"),Kalkulačka!$H$8,0) -> 0 | K37: 1870 | L37: 77 | M37: 26 | N37: 1580 | O37: 8.9 | P37: =0.6*O37/S37*1000+0.4*45/R37*100 -> 1674.235977 | Q37: benzín + elektrina | R37: 1.1 | S37: 141 | T37: =R37*1000*Kalkulačka!$H$4*0.4+S37/1000*100000*Kalkulačka!$H$6*0.6 -> 1841.155 | U37: =MAX(IF(OR(B37="Hybrid",B37="Plug-in"),0.5*VLOOKUP(L37,Predpoklady!$A$10:$C$25,3,1),VLOOKUP(L37,Predpoklady!$A$10:$C$25,3,1)),33) -> 33 | V37: =148*8/2 -> 592 | W37: =U37+V37 -> 625 | X37: =(0.6*Predpoklady!$B$1*S37/1000+0.4*M37)*100000 -> 2613560 | Y37: =Predpoklady!$B$3 -> 37 | Z37: =Predpoklady!$C$3 -> 11000000 | AA37: 13.61356 | AB37: 36614.155 | AC37: =IF(B37="Elektromobil",Kalkulačka!$H$9,IF(B37="Standard",Kalkulačka!$H$11,Kalkulačka!$H$10))*10 -> 4400 | AD37: 126.44 | AE37: 440 | AF37: .jpg | AG37: Hyundai Ioniq 1,6 PHEV .jpg
A38: https://www.hyundai.sk/files/download/model/ioniq-electric-2016/technicke-udaje-hyundai-ioniq-electric-2018-12.pdf | B38: Elektromobil | C38: Stredná trieda | D38: Hyundai | E38: Ioniq Electric BEV | F38: Hyundai Ioniq Electric BEV | G38: 2016 | H38: 1 | I38: 37490 | J38: =IF(OR(B38="Elektromobil",B38="Plug-in"),Kalkulačka!$H$8,0) -> 0 | K38: 1880 | L38: 88 | M38: 0 | N38: 0 | O38: 28 | P38: =O38/S38*1000 -> 243.4782609 | Q38: elektrina | R38: 0 | S38: 115 | T38: =S38*100000*0.001*Kalkulačka!$H$6 -> 1704.875 | U38: =Predpoklady!$B$27 -> 33 | V38: 0 | W38: =U38+V38 -> 33 | X38: =S38*100000*0.001*Predpoklady!$B$1 -> 2139000 | Y38: =Predpoklady!$B$2 -> 42 | Z38: =Predpoklady!$C$2 -> 10500000 | AA38: 12.639 | AB38: 39227.875 | AC38: =IF(B38="Elektromobil",Kalkulačka!$H$9,IF(B38="Standard",Kalkulačka!$H$11,Kalkulačka!$H$10))*10 -> 2900 | AD38: 134.34 | AE38: 290 | AF38: .jpg | AG38: Hyundai Ioniq Electric BEV.jpg
A39: https://www.hyundai.sk/files/download/model/ioniq-hybrid-2016/technicke-udaje-hyundai-ioniq-hybrid-2019.pdf | B39: Hybrid | C39: Stredná trieda | D39: Hyundai | E39: Ioniq HEV | F39: Hyundai Ioniq HEV | G39: 2016 | H39: 1 | I39: 25190 | J39: =IF(OR(B39="Elektromobil",B39="Plug-in"),Kalkulačka!$H$8,0) -> 0 | K39: 1870 | L39: 104 | M39: 119 | N39: 1580 | O39: 1.56 | P39: =43/R39*100 -> 895.8333333 | Q39: benzín / elektrina | R39: 4.8 | S39: 0 | T39: =R39*1000*Kalkulačka!$H$4 -> 6403.2 | U39: =MAX(IF(OR(B39="Hybrid",B39="Plug-in"),0.5*VLOOKUP(L39,Predpoklady!$A$10:$C$25,3,1),VLOOKUP(L39,Predpoklady!$A$10:$C$25,3,1)),33) -> 105 | X39: =M39*100000 -> 11900000 | Y39: =Predpoklady!$B$3 -> 37 | Z39: =Predpoklady!$C$3 -> 11000000 | AA39: 22.9 | AB39: 31698.2 | AC39: =IF(B39="Elektromobil",Kalkulačka!$H$9,IF(B39="Standard",Kalkulačka!$H$11,Kalkulačka!$H$10))*10 -> 4400 | AD39: 134.3 | AE39: 440 | AF39: .jpg | AG39: Hyundai Ioniq HEV.jpg
A40: https://www.hyundai.sk/files/download/model/kona-2017/technicke-udaje-hyundai-kona-2019.pdf | B40: Standard | C40: SUV | D40: Hyundai | E40: Kona 1.6 T-GDi | F40: Hyundai Kona 1.6 T-GDi | G40: 2018 | H40: 1 | I40: 22290 | J40: =IF(OR(B40="Elektromobil",B40="Plug-in"),Kalkulačka!$H$8,0) -> 0 | K40: 1496 | L40: 130 | M40: 170 | N40: 1999 | O40: 0 | P40: =50/R40*100 -> 531.9148936 | Q40: benzín | R40: 9.4 | S40: 0 | T40: =R40*1000*Kalkulačka!$H$4 -> 12539.6 | U40: =MAX(IF(OR(B40="Hybrid",B40="Plug-in"),0.5*VLOOKUP(L40,Predpoklady!$A$10:$C$25,3,1),VLOOKUP(L40,Predpoklady!$A$10:$C$25,3,1)),33) -> 530 | X40: =M40*100000 -> 17000000 | Y40: =Predpoklady!$B$4 -> 32 | Z40: =Predpoklady!$C$4 -> 8000000 | AA40: 25 | AB40: 35359.6 | AC40: =IF(B40="Elektromobil",Kalkulačka!$H$9,IF(B40="Standard",Kalkulačka!$H$11,Kalkulačka!$H$10))*10 -> 4800 | AD40: 171 | AE40: 480 | AF40: .jpg | AG40: Hyundai Kona 1.6 T-GDi.jpg
A41: https://www.hyundai.sk/files/download/model/kona-electric-2018/technicke-udaje-hyundai-kona-electric-2019.pdf | B41: Elektromobil | C41: SUV | D41: Hyundai | E41: Kona Electric | F41: Hyundai Kona Electric | G41: 2019 | H41: 1 | I41: 41390 | J41: =IF(OR(B41="Elektromobil",B41="Plug-in"),Kalkulačka!$H$8,0) -> 0 | K41: 2170 | L41: 150 | M41: 0 | N41: 0 | O41: 64 | P41: 449 | Q41: elektrina | R41: 0 | S41: =O41/P41*1000 -> 142.5389755 | T41: =S41*100000*0.001*Kalkulačka!$H$6 -> 2113.140312 | U41: =Predpoklady!$B$27 -> 33 | X41: =S41*100000*0.001*Predpoklady!$B$1 -> 2651224.944 | Y41: =Predpoklady!$B$2 -> 42 | Z41: =Predpoklady!$C$2 -> 10500000 | AA41: 13.15122494 | AB41: 43536.14031 | AC41: =IF(B41="Elektromobil",Kalkulačka!$H$9,IF(B41="Standard",Kalkulačka!$H$11,Kalkulačka!$H$10))*10 -> 2900 | AD41: 136.48 | AE41: 290 | AF41: .jpg | AG41: Hyundai Kona Electric.jpg
A42: https://www.hyundai.sk/files/download/model/tucson-2018/technicke-udaje-hyundai-tucson-2019.pdf | B42: Standard | C42: SUV | D42: Hyundai | E42: Tucson 1.6 CRDi | F42: Hyundai Tucson 1.6 CRDi | G42: 2016 | H42: 1 | I42: 29440 | J42: =IF(OR(B42="Elektromobil",B42="Plug-in"),Kalkulačka!$H$8,0) -> 0 | K42: 2085 | L42: 100 | M42: 173 | N42: 1685 | O42: 0 | P42: =62/R42*100 -> 885.7142857 | Q42: nafta | R42: 7 | S42: 0 | T42: =R42*1000*Kalkulačka!$H$5 -> 8687 | U42: =MAX(IF(OR(B42="Hybrid",B42="Plug-in"),0.5*VLOOKUP(L42,Predpoklady!$A$10:$C$25,3,1),VLOOKUP(L42,Predpoklady!$A$10:$C$25,3,1)),33) -> 210 | X42: =M42*100000 -> 17300000 | Y42: =Predpoklady!$B$5 -> 28 | Z42: =Predpoklady!$C$5 -> 7000000 | AA42: 24.3 | AB42: 38337 | AC42: =IF(B42="Elektromobil",Kalkulačka!$H$9,IF(B42="Standard",Kalkulačka!$H$11,Kalkulačka!$H$10))*10 -> 4800 | AD42: 168.3 | AE42: 480 | AF42: .jpg | AG42: Hyundai Tucson 1.6 CRDi.jpg
A43: https://www.jaguar.sk/storage/Hy7uxxz2VuRQgSbsEafaz4Ru/Jaguar-E-PACE-Brochure.pdf | B43: Standard | C43: SUV | D43: Jaguar | E43: E-Pace Standard | F43: Jaguar E-Pace Standard | G43: 2019 | H43: 1 | I43: 36000 | J43: =IF(OR(B43="Elektromobil",B43="Plug-in"),Kalkulačka!$H$8,0) -> 0 | K43: 1775 | L43: 150 | M43: 197 | N43: 1999 | O43: 0 | P43: =56/R43*100 -> 777.7777778 | Q43: nafta | R43: 7.2 | S43: 0 | T43: =R43*1000*Kalkulačka!$H$5 -> 8935.2 | U43: =MAX(IF(OR(B43="Hybrid",B43="Plug-in"),0.5*VLOOKUP(L43,Predpoklady!$A$10:$C$25,3,1),VLOOKUP(L43,Predpoklady!$A$10:$C$25,3,1)),33) -> 870 | X43: =M43*100000 -> 19700000 | Y43: =Predpoklady!$B$5 -> 28 | Z43: =Predpoklady!$C$5 -> 7000000 | AA43: 26.7 | AB43: 45805.2 | AC43: =IF(B43="Elektromobil",Kalkulačka!$H$9,IF(B43="Standard",Kalkulačka!$H$11,Kalkulačka!$H$10))*10 -> 4800 | AD43: 264.56 | AE43: 480 | AF43: .jpg | AG43: Jaguar E-Pace Standard.jpg
A44: https://www.jaguar.sk/storage/axthG3CV6BaDuma9zbsgNKfA/Jaguar-F-PACE-Brochure.pdf | B44: Standard | C44: SUV | D44: Jaguar | E44: F-Pace Pure | F44: Jaguar F-Pace Pure | G44: 2018 | H44: 1 | I44: 45580 | J44: =IF(OR(B44="Elektromobil",B44="Plug-in"),Kalkulačka!$H$8,0) -> 0 | K44: 1775 | L44: 180 | M44: 173 | N44: 1999 | O44: 0 | P44: =60/R44*100 -> 681.8181818 | Q44: nafta | R44: 8.8 | S44: 0 | T44: =R44*1000*Kalkulačka!$H$5 -> 10920.8 | U44: =MAX(IF(OR(B44="Hybrid",B44="Plug-in"),0.5*VLOOKUP(L44,Predpoklady!$A$10:$C$25,3,1),VLOOKUP(L44,Predpoklady!$A$10:$C$25,3,1)),33) -> 1900 | X44: =M44*100000 -> 17300000 | Y44: =Predpoklady!$B$5 -> 28 | Z44: =Predpoklady!$C$5 -> 7000000 | AA44: 24.3 | AB44: 58400.8 | AC44: =IF(B44="Elektromobil",Kalkulačka!$H$9,IF(B44="Standard",Kalkulačka!$H$11,Kalkulačka!$H$10))*10 -> 4800 | AD44: 292.07 | AE44: 480 | AF44: .jpg | AG44: Jaguar F-Pace Pure.jpg
A45: https://www.jaguar.sk/storage/ggTvY8L5S18xZfvmovpKUQnW/Jaguar-I-PACE-Brochure.pdf | B45: Elektromobil | C45: SUV | D45: Jaguar | E45: I-Pace | F45: Jaguar I-Pace | G45: 2018 | H45: 1 | I45: 77570 | J45: =IF(OR(B45="Elektromobil",B45="Plug-in"),Kalkulačka!$H$8,0) -> 0 | K45: 2130 | L45: 294 | M45: 0 | N45: 0 | O45: 90 | P45: =O45/S45*1000 -> 362.9032258 | Q45: elektrina | R45: 0 | S45: 248 | T45: =S45*100000*0.001*Kalkulačka!$H$6 -> 3676.6 | U45: =Predpoklady!$B$27 -> 33 | X45: =S45*100000*0.001*Predpoklady!$B$1 -> 4612800 | Y45: =Predpoklady!$B$2 -> 42 | Z45: =Predpoklady!$C$2 -> 10500000 | AA45: 15.1128 | AB45: 81279.6 | AC45: =IF(B45="Elektromobil",Kalkulačka!$H$9,IF(B45="Standard",Kalkulačka!$H$11,Kalkulačka!$H$10))*10 -> 2900 | AD45: 262.56 | AE45: 290 | AF45: .jpg | AG45: Jaguar I-Pace.jpg
A46: https://www.kia.com/content/dam/kwcms/kme/sk/sk/assets/contents/utility/cennik_2019/q4-2019/cennik_eNIRO_4Q2019_1_10_final.pdf | B46: Elektromobil | C46: SUV | D46: Kia | E46: e-Niro | F46: Kia e-Niro | G46: 2018 | H46: 1 | I46: 42580 | J46: =IF(OR(B46="Elektromobil",B46="Plug-in"),Kalkulačka!$H$8,0) -> 0 | K46: 1737 | L46: 150 | M46: 0 | N46: 0 | O46: 64 | P46: =O46/S46*1000 -> 402.5157233 | Q46: elektrina | R46: 0 | S46: 159 | T46: =S46*100000*0.001*Kalkulačka!$H$6 -> 2357.175 | U46: =Predpoklady!$B$27 -> 33 | X46: =S46*100000*0.001*Predpoklady!$B$1 -> 2957400 | Y46: =Predpoklady!$B$2 -> 42 | Z46: =Predpoklady!$C$2 -> 10500000 | AA46: 13.4574 | AB46: 44970.175 | AC46: =IF(B46="Elektromobil",Kalkulačka!$H$9,IF(B46="Standard",Kalkulačka!$H$11,Kalkulačka!$H$10))*10 -> 2900 | AD46: 124 | AE46: 290 | AF46: .jpg | AG46: Kia e-Niro.jpg
A47: https://www.kia.com/content/dam/kwcms/kme/sk/sk/assets/contents/utility/cennik_2018/cennik_Kia_Soul_EV_31082018.pdf | B47: Elektromobil | C47: Kompakt | D47: Kia | E47: Soul EV | F47: Kia Soul EV | G47: 2019 | H47: 1 | I47: 31790 | J47: =IF(OR(B47="Elektromobil",B47="Plug-in"),Kalkulačka!$H$8,0) -> 0 | K47: 1960 | L47: 81.4 | M47: 0 | N47: 0 | O47: 30 | P47: =O47/S47*1000 -> 204.0816327 | Q47: elektrina | R47: 0 | S47: 147 | T47: =S47*100000*0.001*Kalkulačka!$H$6 -> 2179.275 | U47: =Predpoklady!$B$27 -> 33 | V47: 0 | W47: =U47+V47 -> 33 | X47: =S47*100000*0.001*Predpoklady!$B$1 -> 2734200 | Y47: =Predpoklady!$B$2 -> 42 | Z47: =Predpoklady!$C$2 -> 10500000 | AA47: 13.2342 | AB47: 34002.275 | AC47: =IF(B47="Elektromobil",Kalkulačka!$H$9,IF(B47="Standard",Kalkulačka!$H$11,Kalkulačka!$H$10))*10 -> 2900 | AD47: 127.48 | AE47: 290 | AF47: .jpg | AG47: Kia Soul EV.jpg
A48: https://www.ultimatespecs.com/car-specs/Kia/113852/Kia-Ceed-2019-10-T-GDi.html | B48: Standard | C48: Stredná trieda | D48: Kia | E48: Ceed 1.0 T-Gdi | F48: Kia Ceed 1.0 T-Gdi | G48: 2018 | H48: 1 | I48: 16290 | J48: =IF(OR(B48="Elektromobil",B48="Plug-in"),Kalkulačka!$H$8,0) -> 0 | K48: 1820 | L48: 88.3 | M48: 128 | N48: 998 | O48: 0 | P48: =50/R48*100 -> 793.6507937 | Q48: benzín | R48: 6.3 | S48: 0 | T48: =R48*1000*Kalkulačka!$H$4 -> 8404.2 | U48: =MAX(IF(OR(B48="Hybrid",B48="Plug-in"),0.5*VLOOKUP(L48,Predpoklady!$A$10:$C$25,3,1),VLOOKUP(L48,Predpoklady!$A$10:$C$25,3,1)),33) -> 110 | V48: =115*8 -> 920 | W48: =U48+V48 -> 1030 | X48: =M48*100000 -> 12800000 | Y48: =Predpoklady!$B$4 -> 32 | Z48: =Predpoklady!$C$4 -> 8000000 | AA48: 20.8 | AB48: =I48+T48+U48+V48 -> 25724.2 | AC48: =IF(B48="Elektromobil",Kalkulačka!$H$9,IF(B48="Standard",Kalkulačka!$H$11,Kalkulačka!$H$10))*10 -> 4800 | AD48: 115.76 | AE48: 480 | AF48: .jpg | AG48: Kia Ceed 1.0 T-Gdi.jpg
A49: https://www.auto-data.net/en/kia-niro-1.6-gdi-141hp-dct-hybrid-22800 | B49: Hybrid | C49: SUV | D49: Kia | E49: Niro 1.6 GDI Hybrid | F49: Kia Niro 1.6 GDI Hybrid | G49: 2016 | H49: 1 | I49: 23590 | J49: =IF(OR(B49="Elektromobil",B49="Plug-in"),Kalkulačka!$H$8,0) -> 0 | K49: 1930 | L49: 104 | M49: 89 | N49: 1591 | O49: 1.56 | P49: =45/R49*100 -> 1153.846154 | Q49: benzín / elektrina | R49: 3.9 | S49: 0 | T49: =R49*1000*Kalkulačka!$H$4 -> 5202.6 | U49: =MAX(IF(OR(B49="Hybrid",B49="Plug-in"),0.5*VLOOKUP(L49,Predpoklady!$A$10:$C$25,3,1),VLOOKUP(L49,Predpoklady!$A$10:$C$25,3,1)),33) -> 105 | V49: =148*8/2 -> 592 | W49: =U49+V49 -> 697 | X49: =M49*100000 -> 8900000 | Y49: =Predpoklady!$B$3 -> 37 | Z49: =Predpoklady!$C$3 -> 11000000 | AA49: 19.9 | AB49: =I49+T49+U49 -> 28897.6 | AC49: =IF(B49="Elektromobil",Kalkulačka!$H$9,IF(B49="Standard",Kalkulačka!$H$11,Kalkulačka!$H$10))*10 -> 4400 | AD49: 134.34 | AE49: 440 | AF49: .jpg | AG49: Kia Niro 1.6 GDI Hybrid.jpg
A50: https://touchit.sk/testovali-sme-manazersky-plug-in-hybrid-kia-optima-sports-wagon-phev/151444 | B50: Plug-in | C50: Stredná trieda | D50: Kia | E50: Optima 2.0 Gdi PHEV | F50: Kia Optima 2.0 Gdi PHEV | G50: 2019 | H50: 1 | I50: 44180 | J50: =IF(OR(B50="Elektromobil",B50="Plug-in"),Kalkulačka!$H$8,0) -> 0 | K50: 2200 | L50: 151 | M50: 33 | N50: 1999 | O50: 9.8 | P50: =0.6*O50/S50*1000+0.4*55/R50*100 -> 362.4824356 | Q50: benzín + elektrina | R50: 7 | S50: 122 | T50: =R50*1000*Kalkulačka!$H$4*0.4+S50/1000*100000*Kalkulačka!$H$6*0.6 -> 4820.39 | U50: =MAX(IF(OR(B50="Hybrid",B50="Plug-in"),0.5*VLOOKUP(L50,Predpoklady!$A$10:$C$25,3,1),VLOOKUP(L50,Predpoklady!$A$10:$C$25,3,1)),33) -> 435 | V50: =148*8/2 -> 592 | W50: =U50+V50 -> 1027 | X50: =(0.6*Predpoklady!$B$1*S50/1000+0.4*M50)*100000 -> 2681520 | Y50: =Predpoklady!$B$3 -> 37 | Z50: =Predpoklady!$C$3 -> 11000000 | AA50: 13.68152 | AB50: 49435.39 | AC50: =IF(B50="Elektromobil",Kalkulačka!$H$9,IF(B50="Standard",Kalkulačka!$H$11,Kalkulačka!$H$10))*10 -> 4400 | AD50: 168.3 | AE50: 440 | AF50: .jpg | AG50: Kia Optima 2.0 Gdi PHEV.jpg
A51: https://www.kia.com/content/dam/kwcms/kme/sk/sk/assets/contents/utility/cennik_2018/cennik_rio_MY19_3Q2018.pdf | B51: Standard | C51: Kompakt | D51: Kia | E51: Rio 1.0 T-GDI | F51: Kia Rio 1.0 T-GDI | G51: 2017 | H51: 1 | I51: 13990 | J51: =IF(OR(B51="Elektromobil",B51="Plug-in"),Kalkulačka!$H$8,0) -> 0 | K51: 1600 | L51: 88 | M51: 102 | N51: 998 | O51: 0 | P51: =45/R51*100 -> 803.5714286 | Q51: benzín | R51: 5.6 | S51: 0 | T51: =R51*1000*Kalkulačka!$H$4 -> 7470.4 | U51: =MAX(IF(OR(B51="Hybrid",B51="Plug-in"),0.5*VLOOKUP(L51,Predpoklady!$A$10:$C$25,3,1),VLOOKUP(L51,Predpoklady!$A$10:$C$25,3,1)),33) -> 110 | V51: =115*8 -> 920 | W51: =U51+V51 -> 1030 | X51: =M51*100000 -> 10200000 | Y51: =Predpoklady!$B$4 -> 32 | Z51: =Predpoklady!$C$4 -> 8000000 | AA51: 18.2 | AB51: 21570.4 | AC51: =IF(B51="Elektromobil",Kalkulačka!$H$9,IF(B51="Standard",Kalkulačka!$H$11,Kalkulačka!$H$10))*10 -> 4800 | AD51: 113.21 | AE51: 480 | AF51: .jpg | AG51: Kia Rio 1.0 T-GDI.jpg
A52: https://www.auto-data.net/en/kia-sportage-iv-1.6-gdi-132hp-22728 | B52: Standard | C52: Stredná trieda | D52: Kia | E52: Sportage 1.6 GDI | F52: Kia Sportage 1.6 GDI | G52: 2016 | H52: 0 | I52: 20290 | J52: =IF(OR(B52="Elektromobil",B52="Plug-in"),Kalkulačka!$H$8,0) -> 0 | K52: 1895 | L52: 97 | M52: 156 | N52: 1591 | O52: 0 | P52: =62/R52*100 -> 720.9302326 | Q52: benzín | R52: 8.6 | S52: 0 | T52: =R52*1000*Kalkulačka!$H$4 -> 11472.4 | U52: =MAX(IF(OR(B52="Hybrid",B52="Plug-in"),0.5*VLOOKUP(L52,Predpoklady!$A$10:$C$25,3,1),VLOOKUP(L52,Predpoklady!$A$10:$C$25,3,1)),33) -> 150 | X52: 15600000 | Y52: =Predpoklady!$B$4 -> 32 | Z52: =Predpoklady!$C$4 -> 8000000 | AA52: 23.6 | AB52: 31912.4 | AC52: =IF(B52="Elektromobil",Kalkulačka!$H$9,IF(B52="Standard",Kalkulačka!$H$11,Kalkulačka!$H$10))*10 -> 4800 | AD52: 134.34 | AE52: 480 | AF52: .jpg | AG52: Kia Sportage 1.6 GDI.jpg
A53: https://www.landrover.sk/discovery-hse | B53: Standard | C53: SUV | D53: Land Rover | E53: Discovery HSE | F53: Land Rover Discovery HSE | G53: 2019 | H53: 1 | I53: 71330 | J53: =IF(OR(B53="Elektromobil",B53="Plug-in"),Kalkulačka!$H$8,0) -> 0 | K53: 2580 | L53: 224 | M53: 194 | N53: 1997 | O53: 0 | P53: =77/R53*100 -> 647.0588235 | Q53: nafta | R53: 11.9 | S53: 0 | T53: =R53*1000*Kalkulačka!$H$5 -> 14767.9 | U53: =MAX(IF(OR(B53="Hybrid",B53="Plug-in"),0.5*VLOOKUP(L53,Predpoklady!$A$10:$C$25,3,1),VLOOKUP(L53,Predpoklady!$A$10:$C$25,3,1)),33) -> 2300 | X53: 19400000 | Y53: =Predpoklady!$B$4 -> 32 | Z53: =Predpoklady!$C$4 -> 8000000 | AA53: 27.4 | AB53: 88397.9 | AC53: =IF(B53="Elektromobil",Kalkulačka!$H$9,IF(B53="Standard",Kalkulačka!$H$11,Kalkulačka!$H$10))*10 -> 4800 | AD53: 232.31 | AE53: 480 | AF53: .jpg | AG53: Land Rover Discovery HSE.jpg
A54: https://sk.cdn.mazda.media/dd1acd82cf4d4aaca4f458ee28fe9d24/fbacf43b5c44464a89d045baec8321f4.pdf?4a53aa | B54: Standard | C54: Stredná trieda | D54: Mazda | E54: 3 Sedan Skyactiv-G122 | F54: Mazda 3 Sedan Skyactiv-G122 | G54: 2019 | H54: 1 | I54: 22490 | J54: =IF(OR(B54="Elektromobil",B54="Plug-in"),Kalkulačka!$H$8,0) -> 0 | K54: 1364 | L54: 90 | M54: 117 | N54: 1998 | O54: 0 | P54: =51/R54*100 -> 784.6153846 | Q54: benzín | R54: 6.5 | S54: 0 | T54: =R54*1000*Kalkulačka!$H$4 -> 8671 | U54: =MAX(IF(OR(B54="Hybrid",B54="Plug-in"),0.5*VLOOKUP(L54,Predpoklady!$A$10:$C$25,3,1),VLOOKUP(L54,Predpoklady!$A$10:$C$25,3,1)),33) -> 110 | X54: 11700000 | Y54: =Predpoklady!$B$4 -> 32 | Z54: =Predpoklady!$C$4 -> 8000000 | AA54: 19.7 | AB54: 31271 | AC54: =IF(B54="Elektromobil",Kalkulačka!$H$9,IF(B54="Standard",Kalkulačka!$H$11,Kalkulačka!$H$10))*10 -> 4800 | AD54: 210.46 | AE54: 480
A55: https://sk.cdn.mazda.media/2d2b7589d8e44415aec44268a988eaf7/c8792ac12f6d4a1191b0cda55fda3935.pdf?49f8cd | B55: Standard | C55: Stredná trieda | D55: Mazda | E55: 6 SkyActiv-G 2.0 | F55: Mazda 6 SkyActiv-G 2.0 | G55: 2018 | H55: 1 | I55: 27390 | J55: =IF(OR(B55="Elektromobil",B55="Plug-in"),Kalkulačka!$H$8,0) -> 0 | K55: 2042 | L55: 107 | M55: 155 | N55: 1998 | O55: 0 | P55: =62/R55*100 -> 712.6436782 | Q55: benzín | R55: 8.7 | S55: 0 | T55: =R55*1000*Kalkulačka!$H$4 -> 11605.8 | U55: =MAX(IF(OR(B55="Hybrid",B55="Plug-in"),0.5*VLOOKUP(L55,Predpoklady!$A$10:$C$25,3,1),VLOOKUP(L55,Predpoklady!$A$10:$C$25,3,1)),33) -> 260 | X55: 15500000 | Y55: =Predpoklady!$B$4 -> 32 | Z55: =Predpoklady!$C$4 -> 8000000 | AA55: 23.5 | AB55: 39255.8 | AC55: =IF(B55="Elektromobil",Kalkulačka!$H$9,IF(B55="Standard",Kalkulačka!$H$11,Kalkulačka!$H$10))*10 -> 4800 | AD55: 163.92 | AE55: 480 | AF55: .jpg | AG55: =CONCATENATE(F55,AF55) -> Mazda 6 SkyActiv-G 2.0.jpg
A56: https://www.mazda.sk/assets/slovakia/Pricelists/cx-3/mazda_cx3_cenik_sk.pdf | B56: Standard | C56: SUV | D56: Mazda | E56: CX-3 2WD | F56: Mazda CX-3 2WD | G56: 2018 | H56: 1 | I56: 15690 | J56: =IF(OR(B56="Elektromobil",B56="Plug-in"),Kalkulačka!$H$8,0) -> 0 | K56: 1692 | L56: 89 | M56: 141 | N56: 1998 | O56: 0 | P56: =48/R56*100 -> 640 | Q56: benzín | R56: 7.5 | S56: 0 | T56: =R56*1000*Kalkulačka!$H$4 -> 10005 | U56: =MAX(IF(OR(B56="Hybrid",B56="Plug-in"),0.5*VLOOKUP(L56,Predpoklady!$A$10:$C$25,3,1),VLOOKUP(L56,Predpoklady!$A$10:$C$25,3,1)),33) -> 110 | X56: 14100000 | Y56: =Predpoklady!$B$4 -> 32 | Z56: =Predpoklady!$C$4 -> 8000000 | AA56: 22.1 | AB56: 25805 | AC56: =IF(B56="Elektromobil",Kalkulačka!$H$9,IF(B56="Standard",Kalkulačka!$H$11,Kalkulačka!$H$10))*10 -> 4800 | AD56: 171 | AE56: 480 | AF56: .jpg | AG56: =CONCATENATE(F56,AF56) -> Mazda CX-3 2WD.jpg
A57: https://www.mazda.sk/assets/slovakia/brochure/mazda_cx5_cennik_sk.pdf | B57: Standard | C57: SUV | D57: Mazda | E57: CX-5 2WD | F57: Mazda CX-5 2WD | G57: 2018 | H57: 1 | I57: 24400 | J57: =IF(OR(B57="Elektromobil",B57="Plug-in"),Kalkulačka!$H$8,0) -> 0 | K57: 2020 | L57: 121 | M57: 146 | N57: 1998 | O57: 0 | P57: =56/R57*100 -> 727.2727273 | Q57: benzín | R57: 7.7 | S57: 0 | T57: =R57*1000*Kalkulačka!$H$4 -> 10271.8 | U57: =MAX(IF(OR(B57="Hybrid",B57="Plug-in"),0.5*VLOOKUP(L57,Predpoklady!$A$10:$C$25,3,1),VLOOKUP(L57,Predpoklady!$A$10:$C$25,3,1)),33) -> 360 | X57: 14600000 | Y57: =Predpoklady!$B$4 -> 32 | Z57: =Predpoklady!$C$4 -> 8000000 | AA57: 22.6 | AB57: 35031.8 | AC57: =IF(B57="Elektromobil",Kalkulačka!$H$9,IF(B57="Standard",Kalkulačka!$H$11,Kalkulačka!$H$10))*10 -> 4800 | AD57: 299.76 | AE57: 480 | AF57: .jpg | AG57: =CONCATENATE(F57,AF57) -> Mazda CX-5 2WD.jpg
A58: https://www.auto-data.net/en/mercedes-benz-b-class-w246-facelift-2014-b-250-211hp-4matic-dct-20901 | B58: Standard | C58: Stredná trieda | D58: Mercedes | E58: B 250 | F58: Mercedes B 250 | G58: 2014 | H58: 0 | I58: 34290 | J58: =IF(OR(B58="Elektromobil",B58="Plug-in"),Kalkulačka!$H$8,0) -> 0 | K58: 1990 | L58: 155 | M58: 156 | N58: 1991 | O58: 0 | P58: =50/R58*100 -> 595.2380952 | Q58: benzín | R58: 8.4 | S58: 0 | T58: =R58*1000*Kalkulačka!$H$4 -> 11205.6 | U58: =MAX(IF(OR(B58="Hybrid",B58="Plug-in"),0.5*VLOOKUP(L58,Predpoklady!$A$10:$C$25,3,1),VLOOKUP(L58,Predpoklady!$A$10:$C$25,3,1)),33) -> 1100 | X58: 15600000 | Y58: =Predpoklady!$B$4 -> 32 | Z58: =Predpoklady!$C$4 -> 8000000 | AA58: 23.6 | AB58: 46595.6 | AC58: =IF(B58="Elektromobil",Kalkulačka!$H$9,IF(B58="Standard",Kalkulačka!$H$11,Kalkulačka!$H$10))*10 -> 4800 | AD58: 170.73 | AE58: 480 | AF58: .jpg | AG58: =CONCATENATE(F58,AF58) -> Mercedes B 250.jpg
A59: https://podkapotou.zoznam.sk/cl/1000614/1588919/TEST--Citroen-Berlingo-XTR-120-BlueHDi---univerzalny-pomocnik | B59: Standard | C59: Nákladné | D59: Citroën | E59: Berlingo XTR 120 | F59: Citroën Berlingo XTR 120 | G59: 2015 | H59: 1 | I59: 16690 | J59: =IF(B59="Standard","0",Kalkulačka!$H$8) -> 0 | K59: 2085 | L59: 88 | M59: 115 | N59: 1560 | O59: 0 | P59: =60/R59*100 -> 983.6065574 | Q59: benzín | R59: 6.1 | S59: 0 | T59: =R59*1000*Kalkulačka!$H$4 -> 8137.4 | U59: =MAX(IF(OR(B59="Hybrid",B59="Plug-in"),0.5*VLOOKUP(L59,Predpoklady!$A$10:$C$25,3,1),VLOOKUP(L59,Predpoklady!$A$10:$C$25,3,1)),33) -> 110 | X59: 11500000 | Y59: =Predpoklady!$B$4 -> 32 | Z59: =Predpoklady!$C$4 -> 8000000 | AA59: 19.5 | AB59: 24937.4 | AC59: =IF(B59="Elektromobil",Kalkulačka!$H$9,IF(B59="Standard",Kalkulačka!$H$11,Kalkulačka!$H$10))*10 -> 4800 | AD59: 123.72 | AE59: 480
A60: https://fdrive.cz/clanky/mercedes-b-electric-drive-170 | B60: Elektromobil | C60: Stredná trieda | D60: Mercedes | E60: B 250e | F60: Mercedes B 250e | G60: 2015 | H60: 0 | I60: 40800 | J60: =IF(OR(B60="Elektromobil",B60="Plug-in"),Kalkulačka!$H$8,0) -> 0 | K60: 1725 | L60: 132 | M60: 0 | N60: 0 | O60: 28 | P60: =O60/S60*1000 -> 155.5555556 | Q60: elektrina | R60: 0 | S60: 180 | T60: =S60*100000*0.001*Kalkulačka!$H$6 -> 2668.5 | U60: =Predpoklady!$B$27 -> 33 | X60: =S60*100000*0.001*Predpoklady!$B$1 -> 3348000 | Y60: =Predpoklady!$B$2 -> 42 | Z60: =Predpoklady!$C$2 -> 10500000 | AA60: 13.848 | AB60: 43501.5 | AC60: =IF(B60="Elektromobil",Kalkulačka!$H$9,IF(B60="Standard",Kalkulačka!$H$11,Kalkulačka!$H$10))*10 -> 2900 | AD60: 170.73 | AE60: 290 | AF60: .jpg | AG60: =CONCATENATE(F60,AF60) -> Mercedes B 250e.jpg
A61: https://www.mercedes-benz.sk/passengercars/mercedes-benz-cars/brochures-pricelists/trieda-c-sedan/_jcr_content/par/productinfotextimage/interactions.attachments.0.cennik_Trieda_C_sedan_W205_2019_07_30_O.pdf | B61: Standard | C61: Luxusné | D61: Mercedes | E61: C 300 4MATIC | F61: Mercedes C 300 4MATIC | G61: 2019 | H61: 1 | I61: 49700 | J61: =IF(OR(B61="Elektromobil",B61="Plug-in"),Kalkulačka!$H$8,0) -> 0 | K61: 1515 | L61: 200 | M61: 154 | N61: 1991 | O61: 0 | P61: =66/R61*100 -> 725.2747253 | Q61: benzín | R61: 9.1 | S61: 0 | T61: =R61*1000*Kalkulačka!$H$4 -> 12139.4 | U61: =MAX(IF(OR(B61="Hybrid",B61="Plug-in"),0.5*VLOOKUP(L61,Predpoklady!$A$10:$C$25,3,1),VLOOKUP(L61,Predpoklady!$A$10:$C$25,3,1)),33) -> 1900 | V61: =148*8 -> 1184 | W61: =U61+V61 -> 3084 | X61: =M61*100000 -> 15400000 | Y61: =Predpoklady!$B$4 -> 32 | Z61: =Predpoklady!$C$4 -> 8000000 | AA61: 23.4 | AB61: =I61+T61+U61+V61 -> 64923.4 | AC61: =IF(B61="Elektromobil",Kalkulačka!$H$9,IF(B61="Standard",Kalkulačka!$H$11,Kalkulačka!$H$10))*10 -> 4800 | AD61: 178.6 | AE61: 480 | AF61: .jpg | AG61: Mercedes C 300 4MATIC.jpg
A62: https://www.automobilrevue.cz/rubriky/automobily/predstavujeme/mercedes-benz-c-350-e-w205-druhy-hybrid_44745.html | B62: Plug-in | C62: Luxusné | D62: Mercedes | E62: C 350e sedan | F62: Mercedes C 350e sedan | G62: 2015 | H62: 0 | I62: 47800 | J62: =IF(OR(B62="Elektromobil",B62="Plug-in"),Kalkulačka!$H$8,0) -> 0 | K62: 2305 | L62: 205 | M62: 48 | N62: 1991 | O62: 6.2 | P62: =0.6*O62/S62*1000+0.4*50/R62*100 -> 932.4871355 | Q62: benzín + elektrina | R62: 2.2 | S62: 159 | T62: =R62*1000*Kalkulačka!$H$4*0.4+S62/1000*100000*Kalkulačka!$H$6*0.6 -> 2588.225 | U62: =MAX(IF(OR(B62="Hybrid",B62="Plug-in"),0.5*VLOOKUP(L62,Predpoklady!$A$10:$C$25,3,1),VLOOKUP(L62,Predpoklady!$A$10:$C$25,3,1)),33) -> 1150 | X62: =(0.6*Predpoklady!$B$1*S62/1000+0.4*M62)*100000 -> 3694440 | Y62: =Predpoklady!$B$3 -> 37 | Z62: =Predpoklady!$C$3 -> 11000000 | AA62: 14.69444 | AB62: =I62+T62+U62 -> 51538.225 | AC62: =IF(B62="Elektromobil",Kalkulačka!$H$9,IF(B62="Standard",Kalkulačka!$H$11,Kalkulačka!$H$10))*10 -> 4400 | AD62: 178.6 | AE62: 440 | AF62: .jpg | AG62: Mercedes C 350e sedan.jpg
A63: https://fdrive.cz/katalog/mercedes-benz-e-350-e | B63: Plug-in | C63: Luxusné | D63: Mercedes | E63: E 350e sedan | F63: Mercedes E 350e sedan | G63: 2016 | H63: 0 | I63: 62700 | J63: =IF(OR(B63="Elektromobil",B63="Plug-in"),Kalkulačka!$H$8,0) -> 0 | K63: 2565 | L63: 210 | M63: 57 | N63: 1991 | O63: 8.8 | P63: =0.6*O63/S63*1000+0.4*50/R63*100 -> 991.4920635 | Q63: benzín + elektrina | R63: 2.1 | S63: 135 | T63: =R63*1000*Kalkulačka!$H$4*0.4+S63/1000*100000*Kalkulačka!$H$6*0.6 -> 2321.385 | U63: =MAX(IF(OR(B63="Hybrid",B63="Plug-in"),0.5*VLOOKUP(L63,Predpoklady!$A$10:$C$25,3,1),VLOOKUP(L63,Predpoklady!$A$10:$C$25,3,1)),33) -> 1150 | X63: =(0.6*Predpoklady!$B$1*S63/1000+0.4*M63)*100000 -> 3786600 | Y63: =Predpoklady!$B$3 -> 37 | Z63: =Predpoklady!$C$3 -> 11000000 | AA63: 14.7866 | AB63: 66171.385 | AC63: =IF(B63="Elektromobil",Kalkulačka!$H$9,IF(B63="Standard",Kalkulačka!$H$11,Kalkulačka!$H$10))*10 -> 4400 | AD63: 178.81 | AE63: 440 | AF63: .jpg | AG63: Mercedes E 350e sedan.jpg
A64: https://www.auto-data.net/en/mercedes-benz-e-class-w213-e-350e-286hp-g-tronic-plug-in-hybrid-29701 | B64: Plug-in | C64: SUV | D64: Mercedes | E64: GLC 350e 4MATIC | F64: Mercedes GLC 350e 4MATIC | G64: 2016 | H64: 0 | I64: 67000 | J64: =IF(OR(B64="Elektromobil",B64="Plug-in"),Kalkulačka!$H$8,0) -> 0 | K64: 2605 | L64: 240 | M64: 64 | N64: 1991 | O64: 8.8 | P64: =0.6*O64/S64*1000+0.4*50/R64*100 -> 776.9051243 | Q64: benzín + elektrina | R64: 2.7 | S64: 146 | T64: =R64*1000*Kalkulačka!$H$4*0.4+S64/1000*100000*Kalkulačka!$H$6*0.6 -> 2739.39 | U64: =MAX(IF(OR(B64="Hybrid",B64="Plug-in"),0.5*VLOOKUP(L64,Predpoklady!$A$10:$C$25,3,1),VLOOKUP(L64,Predpoklady!$A$10:$C$25,3,1)),33) -> 1350 | X64: =(0.6*Predpoklady!$B$1*S64/1000+0.4*M64)*100000 -> 4189360 | Y64: =Predpoklady!$B$3 -> 37 | Z64: =Predpoklady!$C$3 -> 11000000 | AA64: 15.18936 | AB64: 71089.39 | AC64: =IF(B64="Elektromobil",Kalkulačka!$H$9,IF(B64="Standard",Kalkulačka!$H$11,Kalkulačka!$H$10))*10 -> 4400 | AD64: 178.81 | AE64: 440 | AF64: .jpg | AG64: Mercedes GLC 350e 4MATIC.jpg
A65: https://www.autohled.cz/a/mercedes-benz/gle/500-e-4matic/1380 | B65: Plug-in | C65: SUV | D65: Mercedes | E65: GLE 500e 4MATIC | F65: Mercedes GLE 500e 4MATIC | G65: 2015 | H65: 0 | I65: 73700 | J65: =IF(OR(B65="Elektromobil",B65="Plug-in"),Kalkulačka!$H$8,0) -> 0 | K65: 3050 | L65: 325 | M65: 80 | N65: 2996 | O65: 8.8 | P65: =0.6*O65/S65*1000+0.4*80/R65*100 -> 947.2857143 | Q65: benzín + elektrina | R65: 3.5 | S65: 160 | T65: =R65*1000*Kalkulačka!$H$4*0.4+S65/1000*100000*Kalkulačka!$H$6*0.6 -> 3290.8 | U65: =MAX(IF(OR(B65="Hybrid",B65="Plug-in"),0.5*VLOOKUP(L65,Predpoklady!$A$10:$C$25,3,1),VLOOKUP(L65,Predpoklady!$A$10:$C$25,3,1)),33) -> 1950 | X65: =(0.6*Predpoklady!$B$1*S65/1000+0.4*M65)*100000 -> 4985600 | Y65: =Predpoklady!$B$3 -> 37 | Z65: =Predpoklady!$C$3 -> 11000000 | AA65: 15.9856 | AB65: 78940.8 | AC65: =IF(B65="Elektromobil",Kalkulačka!$H$9,IF(B65="Standard",Kalkulačka!$H$11,Kalkulačka!$H$10))*10 -> 4400 | AD65: 200.12 | AE65: 440 | AF65: .jpg | AG65: Mercedes GLE 500e 4MATIC.jpg
A66: https://fdrive.cz/clanky/mercedes-benz-s500-e-416 | B66: Plug-in | C66: Luxusné | D66: Mercedes | E66: S 500e | F66: =CONCATENATE(D66," ",E66) -> Mercedes S 500e | G66: 2014 | H66: 0 | I66: 109000 | J66: =IF(OR(B66="Elektromobil",B66="Plug-in"),Kalkulačka!$H$8,0) -> 0 | K66: 2825 | L66: 325 | M66: 65 | N66: 2996 | O66: 8.7 | P66: =0.6*O66/S66*1000+0.4*70/R66*100 -> 1033.677419 | Q66: benzín + elektrina | R66: 2.8 | S66: 155 | T66: =R66*1000*Kalkulačka!$H$4*0.4+S66/1000*100000*Kalkulačka!$H$6*0.6 -> 2872.805 | U66: =MAX(IF(OR(B66="Hybrid",B66="Plug-in"),0.5*VLOOKUP(L66,Predpoklady!$A$10:$C$25,3,1),VLOOKUP(L66,Predpoklady!$A$10:$C$25,3,1)),33) -> 1950 | X66: =(0.6*Predpoklady!$B$1*S66/1000+0.4*M66)*100000 -> 4329800 | Y66: =Predpoklady!$B$3 -> 37 | Z66: =Predpoklady!$C$3 -> 11000000 | AA66: =(X66+Z66)/1000000 -> 15.3298 | AB66: 113822.805 | AC66: =IF(B66="Elektromobil",Kalkulačka!$H$9,IF(B66="Standard",Kalkulačka!$H$11,Kalkulačka!$H$10))*10 -> 4400 | AD66: 200.12 | AE66: =AC66/10 -> 440 | AF66: .jpg | AG66: Mercedes S 500e.jpg
A67: https://ev-database.org/car/1135/Mercedes-EQC-400-4MATIC | B67: Elektromobil | C67: SUV | D67: Mercedes-Benz | E67: EQC | F67: Mercedes-Benz EQC | G67: 2019 | H67: 1 | I67: 76300 | J67: =IF(OR(B67="Elektromobil",B67="Plug-in"),Kalkulačka!$H$8,0) -> 0 | K67: 2495 | L67: 300 | M67: 0 | N67: 0 | O67: 80 | P67: =O67/S67*1000 -> 470.5882353 | Q67: elektrina | R67: 0 | S67: 170 | T67: =S67*100000*0.001*Kalkulačka!$H$6 -> 2520.25 | U67: =Predpoklady!$B$27 -> 33 | X67: =S67*100000*0.001*Predpoklady!$B$1 -> 3162000 | Y67: =Predpoklady!$B$2 -> 42 | Z67: =Predpoklady!$C$2 -> 10500000 | AA67: 13.662 | AB67: 78853.25 | AC67: =IF(B67="Elektromobil",Kalkulačka!$H$9,IF(B67="Standard",Kalkulačka!$H$11,Kalkulačka!$H$10))*10 -> 2900 | AD67: 271.44 | AE67: 290
A68: https://www.mini.sk/content/dam/MINI/marketCSREG/mini_sk/Quickentry-pricelists/F60_Countryman_0719_SK_online.pdf.asset.1567526696774.pdf | B68: Plug-in | C68: Stredná trieda | D68: MINI | E68: Countryman S E All4 | F68: MINI Countryman S E All4 | G68: 2017 | H68: 1 | I68: 37150 | J68: =IF(OR(B68="Elektromobil",B68="Plug-in"),Kalkulačka!$H$8,0) -> 0 | K68: 1660 | L68: 165 | M68: 40 | N68: 1499 | O68: 6.5 | P68: =0.6*O68/S68*1000+0.4*36/R68*100 -> 581.7032967 | Q68: benzín + elektrina | R68: 2.6 | S68: 140 | T68: =R68*1000*Kalkulačka!$H$4*0.4+S68/1000*100000*Kalkulačka!$H$6*0.6 -> 2632.66 | U68: =MAX(IF(OR(B68="Hybrid",B68="Plug-in"),0.5*VLOOKUP(L68,Predpoklady!$A$10:$C$25,3,1),VLOOKUP(L68,Predpoklady!$A$10:$C$25,3,1)),33) -> 550 | X68: =(0.6*Predpoklady!$B$1*S68/1000+0.4*M68)*100000 -> 3162400 | Y68: =Predpoklady!$B$3 -> 37 | Z68: =Predpoklady!$C$3 -> 11000000 | AA68: 14.1624 | AB68: 40332.66 | AC68: =IF(B68="Elektromobil",Kalkulačka!$H$9,IF(B68="Standard",Kalkulačka!$H$11,Kalkulačka!$H$10))*10 -> 4400 | AD68: 149.28 | AE68: 440 | AF68: .jpg | AG68: =CONCATENATE(F68,AF68) -> MINI Countryman S E All4.jpg
A69: https://www.autocar.co.uk/car-review/mitsubishi/outlander-phev/first-drives/mitsubishi-outlander-phev-2018-review | B69: Plug-in | C69: SUV | D69: Mitsubishi | E69: Outlander PHEV | F69: Mitsubishi Outlander PHEV | G69: 2018 | H69: 1 | I69: 46990 | J69: =IF(OR(B69="Elektromobil",B69="Plug-in"),Kalkulačka!$H$8,0) -> 0 | K69: 2370 | L69: 149 | M69: 46 | N69: 1998 | O69: 13.8 | P69: =0.6*O69/S69*1000+0.4*45/R69*100 -> 1107.817612 | Q69: benzín + elektrina | R69: 1.7 | S69: 169 | T69: =R69*1000*Kalkulačka!$H$4*0.4+S69/1000*100000*Kalkulačka!$H$6*0.6 -> 2410.375 | U69: =MAX(IF(OR(B69="Hybrid",B69="Plug-in"),0.5*VLOOKUP(L69,Predpoklady!$A$10:$C$25,3,1),VLOOKUP(L69,Predpoklady!$A$10:$C$25,3,1)),33) -> 435 | X69: =(0.6*Predpoklady!$B$1*S69/1000+0.4*M69)*100000 -> 3726040 | Y69: =Predpoklady!$B$3 -> 37 | Z69: =Predpoklady!$C$3 -> 11000000 | AA69: 14.72604 | AB69: 49835.375 | AC69: =IF(B69="Elektromobil",Kalkulačka!$H$9,IF(B69="Standard",Kalkulačka!$H$11,Kalkulačka!$H$10))*10 -> 4400 | AD69: 178.6 | AE69: 440 | AF69: .jpg | AG69: =CONCATENATE(F69,AF69) -> Mitsubishi Outlander PHEV .jpg
A70: http://eautoportal.sk/model/citroen-berlingo-electric/ | B70: Elektromobil | C70: Nákladné | D70: Citroën | E70: Berlingo Furgon Electric | F70: Citroën Berlingo Furgon Electric | G70: 2017 | H70: 1 | I70: 29700 | J70: =IF(B70="Standard","0",Kalkulačka!$H$8) -> 0 | K70: 2010 | L70: 49 | M70: 0 | N70: 0 | O70: 22.5 | P70: =O70/S70*1000 -> 150 | Q70: elektrina | R70: 0 | S70: 150 | T70: =S70*100000*0.001*Kalkulačka!$H$6 -> 2223.75 | U70: =Predpoklady!$B$27 -> 33 | X70: =S70*100000*0.001*Predpoklady!$B$1 -> 2790000 | Y70: =Predpoklady!$B$2 -> 42 | Z70: =Predpoklady!$C$2 -> 10500000 | AA70: 13.29 | AB70: 31956.75 | AC70: =IF(B70="Elektromobil",Kalkulačka!$H$9,IF(B70="Standard",Kalkulačka!$H$11,Kalkulačka!$H$10))*10 -> 2900 | AD70: 123.72 | AE70: 290
A71: https://www-europe.nissan-cdn.net/content/dam/Nissan/sk/brochures/Pricelists/e-NV200_SK.pdf | B71: Elektromobil | C71: Nákladné | D71: Nissan | E71: eNV 200 VAN | F71: Nissan eNV 200 VAN | G71: 2017 | H71: 1 | I71: 36240 | J71: =IF(B71="Standard","0",Kalkulačka!$H$8) -> 0 | K71: 2220 | L71: 80.9 | M71: 0 | N71: 0 | O71: 40 | P71: 242.4242424 | Q71: elektrina | R71: 0 | S71: 165 | T71: =S71*100000*0.001*Kalkulačka!$H$6 -> 2446.125 | U71: =Predpoklady!$B$27 -> 33 | X71: =S71*100000*0.001*Predpoklady!$B$1 -> 3069000 | Y71: =Predpoklady!$B$2 -> 42 | Z71: =Predpoklady!$C$2 -> 10500000 | AA71: 13.569 | AB71: 38719.125 | AC71: =IF(B71="Elektromobil",Kalkulačka!$H$9,IF(B71="Standard",Kalkulačka!$H$11,Kalkulačka!$H$10))*10 -> 2900 | AD71: 120.45 | AE71: 290
A72: https://www-europe.nissan-cdn.net/content/dam/Nissan/sk/brochures/Pricelists/e-NV200_SK.pdf | B72: Elektromobil | C72: Nákladné | D72: Nissan | E72: eNV 200 KOMBI | F72: Nissan eNV 200 KOMBI | G72: 2017 | H72: 1 | I72: 36240 | J72: =IF(B72="Standard","0",Kalkulačka!$H$8) -> 0 | K72: 2220 | L72: 80.9 | M72: 0 | N72: 0 | O72: 40 | P72: 242.4242424 | Q72: elektrina | R72: 0 | S72: 165 | T72: =S72*100000*0.001*Kalkulačka!$H$6 -> 2446.125 | U72: =Predpoklady!$B$27 -> 33 | X72: =S72*100000*0.001*Predpoklady!$B$1 -> 3069000 | Y72: =Predpoklady!$B$2 -> 42 | Z72: =Predpoklady!$C$2 -> 10500000 | AA72: 13.569 | AB72: 38719.125 | AC72: =IF(B72="Elektromobil",Kalkulačka!$H$9,IF(B72="Standard",Kalkulačka!$H$11,Kalkulačka!$H$10))*10 -> 2900 | AD72: 120.45 | AE72: 290
A73: https://www-europe.nissan-cdn.net/content/dam/Nissan/sk/brochures/Pricelists/e-NV200_SK.pdf | B73: Elektromobil | C73: Nákladné | D73: Nissan | E73: eNV 200 EVALIA | F73: Nissan eNV 200 EVALIA | G73: 2017 | H73: 1 | I73: 39000 | J73: =IF(B73="Standard","0",Kalkulačka!$H$8) -> 0 | K73: 2220 | L73: 80.9 | M73: 0 | N73: 0 | O73: 40 | P73: 242.4242424 | Q73: elektrina | R73: 0 | S73: 165 | T73: =S73*100000*0.001*Kalkulačka!$H$6 -> 2446.125 | U73: =Predpoklady!$B$27 -> 33 | X73: =S73*100000*0.001*Predpoklady!$B$1 -> 3069000 | Y73: =Predpoklady!$B$2 -> 42 | Z73: =Predpoklady!$C$2 -> 10500000 | AA73: 13.569 | AB73: 41479.125 | AC73: =IF(B73="Elektromobil",Kalkulačka!$H$9,IF(B73="Standard",Kalkulačka!$H$11,Kalkulačka!$H$10))*10 -> 2900 | AD73: 120 | AE73: 290
A74: https://www.mojelektromobil.sk/model/peugeot-partner-furgon-electric/ | B74: Elektromobil | C74: Nákladné | D74: Peugeot | E74: Partner Furgon Electric | F74: Peugeot Partner Furgon Electric | G74: 2017 | H74: 1 | I74: 33250 | J74: =IF(B74="Standard","0",Kalkulačka!$H$8) -> 0 | K74: 2010 | L74: 49 | M74: 0 | N74: 0 | O74: 22.5 | P74: 150 | Q74: elektrina | R74: 0 | S74: 150 | T74: =S74*100000*0.001*Kalkulačka!$H$6 -> 2223.75 | U74: =Predpoklady!$B$27 -> 33 | X74: =S74*100000*0.001*Predpoklady!$B$1 -> 2790000 | Y74: =Predpoklady!$B$2 -> 42 | Z74: =Predpoklady!$C$2 -> 10500000 | AA74: 13.29 | AB74: 35506.75 | AC74: =IF(B74="Elektromobil",Kalkulačka!$H$9,IF(B74="Standard",Kalkulačka!$H$11,Kalkulačka!$H$10))*10 -> 2900 | AD74: 120.45 | AE74: 290
A75: http://www.hybrid.cz/nissan-leaf-cena-dojezd-specifikace | B75: Elektromobil | C75: Kompakt | D75: Nissan | E75: Leaf 2013 | F75: Nissan Leaf 2013 | G75: 2013 | H75: 0 | I75: 29200 | J75: =IF(OR(B75="Elektromobil",B75="Plug-in"),Kalkulačka!$H$8,0) -> 0 | K75: 1945 | L75: 80 | M75: 0 | N75: 0 | O75: 24 | P75: 129.0322581 | Q75: elektrina | R75: 0 | S75: 186 | T75: =S75*100000*0.001*Kalkulačka!$H$6 -> 2757.45 | U75: =Predpoklady!$B$27 -> 33 | V75: 0 | W75: =U75+V75 -> 33 | X75: =S75*100000*0.001*Predpoklady!$B$1 -> 3459600 | Y75: =Predpoklady!$B$2 -> 42 | Z75: =Predpoklady!$C$2 -> 10500000 | AA75: 13.9596 | AB75: 31990.45 | AC75: =IF(B75="Elektromobil",Kalkulačka!$H$9,IF(B75="Standard",Kalkulačka!$H$11,Kalkulačka!$H$10))*10 -> 2900 | AD75: 129.7 | AE75: 290 | AF75: .jpg | AG75: =CONCATENATE(F75,AF75) -> Nissan Leaf 2013.jpg
A76: http://www.hybrid.cz/nissan-leaf-cena-dojezd-specifikace | B76: Elektromobil | C76: Kompakt | D76: Nissan | E76: Leaf 2017 | F76: Nissan Leaf 2017 | G76: 2017 | H76: 0 | I76: 34300 | J76: =IF(OR(B76="Elektromobil",B76="Plug-in"),Kalkulačka!$H$8,0) -> 0 | K76: 1945 | L76: 110 | M76: 0 | N76: 0 | O76: 30 | P76: 160.4278075 | Q76: elektrina | R76: 0 | S76: 187 | T76: =S76*100000*0.001*Kalkulačka!$H$6 -> 2772.275 | U76: =Predpoklady!$B$27 -> 33 | V76: 0 | W76: =U76+V76 -> 33 | X76: =S76*100000*0.001*Predpoklady!$B$1 -> 3478200 | Y76: =Predpoklady!$B$2 -> 42 | Z76: =Predpoklady!$C$2 -> 10500000 | AA76: 13.9782 | AB76: 37105.275 | AC76: =IF(B76="Elektromobil",Kalkulačka!$H$9,IF(B76="Standard",Kalkulačka!$H$11,Kalkulačka!$H$10))*10 -> 2900 | AD76: 126.44 | AE76: 290 | AF76: .jpg | AG76: Nissan Leaf 2017.jpg
A77: https://www-europe.nissan-cdn.net/content/dam/Nissan/sk/brochures/Pricelists/NEW_LEAF_SK.pdf | B77: Elektromobil | C77: Kompakt | D77: Nissan | E77: Leaf 2018 | F77: Nissan Leaf 2018 | G77: 2018 | H77: 1 | I77: 36130 | J77: =IF(OR(B77="Elektromobil",B77="Plug-in"),Kalkulačka!$H$8,0) -> 0 | K77: 2019 | L77: 110 | M77: 0 | N77: 0 | O77: 40 | P77: 194.1747573 | Q77: elektrina | R77: 0 | S77: 206 | T77: =S77*100000*0.001*Kalkulačka!$H$6 -> 3053.95 | U77: =Predpoklady!$B$27 -> 33 | X77: =S77*100000*0.001*Predpoklady!$B$1 -> 3831600 | Y77: =Predpoklady!$B$2 -> 42 | Z77: =Predpoklady!$C$2 -> 10500000 | AA77: 14.3316 | AB77: 39216.95 | AC77: =IF(B77="Elektromobil",Kalkulačka!$H$9,IF(B77="Standard",Kalkulačka!$H$11,Kalkulačka!$H$10))*10 -> 2900 | AD77: 126.44 | AE77: 290 | AF77: .jpg | AG77: Nissan Leaf 2018.jpg
A78: https://www.startitup.sk/na-slovensko-prichadza-nissan-leaf-e-s-64-kwh-bateriou-a-dojazdom-takmer-400-kilometrov/ | B78: Elektromobil | C78: Kompakt | D78: Nissan | E78: Leaf 3.ZERO e+ | F78: Nissan Leaf 3.ZERO e+ | G78: 2018 | H78: 1 | I78: 44750 | J78: =IF(OR(B78="Elektromobil",B78="Plug-in"),Kalkulačka!$H$8,0) -> 0 | K78: 2019 | L78: 160 | M78: 0 | N78: 0 | O78: 64 | P78: 385 | Q78: elektrina | R78: 0 | S78: =O78*1000/P78 -> 166.2337662 | T78: =S78*100000*0.001*Kalkulačka!$H$6 -> 2464.415584 | U78: =Predpoklady!$B$27 -> 33 | X78: =S78*100000*0.001*Predpoklady!$B$1 -> 3091948.052 | Y78: =Predpoklady!$B$2 -> 42 | Z78: =Predpoklady!$C$2 -> 10500000 | AA78: 13.59194805 | AB78: 47247.41558 | AC78: =IF(B78="Elektromobil",Kalkulačka!$H$9,IF(B78="Standard",Kalkulačka!$H$11,Kalkulačka!$H$10))*10 -> 2900 | AD78: 136.63 | AE78: 290 | AF78: .jpg | AG78: Nissan Leaf 3.ZERO e+ .jpg
A79: https://www-europe.nissan-cdn.net/content/dam/Nissan/sk/brochures/Pricelists/NEW_QASHQAI_SK.pdf | B79: Standard | C79: SUV | D79: Nissan | E79: Qashqai 1.6 DIG-T 160 N-CONNECTA | F79: Nissan Qashqai 1.6 DIG-T 160 N-CONNECTA | G79: 2018 | H79: 1 | I79: 27270 | J79: =IF(OR(B79="Elektromobil",B79="Plug-in"),Kalkulačka!$H$8,0) -> 0 | K79: 2030 | L79: 120 | M79: 134 | N79: 1618 | O79: 0 | P79: =55/R79*100 -> 743.2432432 | Q79: benzín | R79: 7.4 | S79: 0 | T79: =R79*1000*Kalkulačka!$H$4 -> 9871.6 | U79: =MAX(IF(OR(B79="Hybrid",B79="Plug-in"),0.5*VLOOKUP(L79,Predpoklady!$A$10:$C$25,3,1),VLOOKUP(L79,Predpoklady!$A$10:$C$25,3,1)),33) -> 360 | X79: =M79*100000 -> 13400000 | Y79: =Predpoklady!$B$4 -> 32 | Z79: =Predpoklady!$C$4 -> 8000000 | AA79: 21.4 | AB79: 37501.6 | AC79: =IF(B79="Elektromobil",Kalkulačka!$H$9,IF(B79="Standard",Kalkulačka!$H$11,Kalkulačka!$H$10))*10 -> 4800 | AD79: 169.9 | AE79: 480 | AF79: .jpg | AG79: Nissan Qashqai 1.6 DIG-T 160 N-CONNECTA.jpg
A80: https://www-europe.nissan-cdn.net/content/dam/Nissan/sk/brochures/Pricelists/NEW_X-TRAIL_SK.pdf | B80: Standard | C80: SUV | D80: Nissan | E80: X-Trail dCi 150 VISIA | F80: Nissan X-Trail dCi 150 VISIA | G80: 2019 | H80: 1 | I80: 23100 | J80: =IF(OR(B80="Elektromobil",B80="Plug-in"),Kalkulačka!$H$8,0) -> 0 | K80: 2295 | L80: 110 | M80: 179 | N80: 1749 | O80: 0 | P80: =60/R80*100 -> 882.3529412 | Q80: nafta | R80: 6.8 | S80: 0 | T80: =R80*1000*Kalkulačka!$H$5 -> 8438.8 | U80: =MAX(IF(OR(B80="Hybrid",B80="Plug-in"),0.5*VLOOKUP(L80,Predpoklady!$A$10:$C$25,3,1),VLOOKUP(L80,Predpoklady!$A$10:$C$25,3,1)),33) -> 260 | X80: =M80*100000 -> 17900000 | Y80: =Predpoklady!$B$5 -> 28 | Z80: =Predpoklady!$C$5 -> 7000000 | AA80: 24.9 | AB80: 31798.8 | AC80: =IF(B80="Elektromobil",Kalkulačka!$H$9,IF(B80="Standard",Kalkulačka!$H$11,Kalkulačka!$H$10))*10 -> 4800 | AD80: 183.17 | AE80: 480 | AF80: .jpg | AG80: Nissan X-Trail dCi 150 VISIA.jpg
A81: https://www.mojelektromobil.sk/opel-ampera-e-predaj-europsky-trh/ | B81: Elektromobil | C81: Kompakt | D81: Opel | E81: Ampera-e | F81: Opel Ampera-e | G81: 2017 | H81: 1 | I81: 37000 | J81: =IF(OR(B81="Elektromobil",B81="Plug-in"),Kalkulačka!$H$8,0) -> 0 | K81: 1616 | L81: 152 | M81: 0 | N81: 0 | O81: 60 | P81: =O81/S81*1000 -> 392.1568627 | Q81: elektrina | R81: 0 | S81: 153 | T81: =S81*100000*0.001*Kalkulačka!$H$6 -> 2268.225 | U81: =Predpoklady!$B$27 -> 33 | X81: =S81*100000*0.001*Predpoklady!$B$1 -> 2845800 | Y81: =Predpoklady!$B$2 -> 42 | Z81: =Predpoklady!$C$2 -> 10500000 | AA81: 13.3458 | AB81: 39301.225 | AC81: =IF(B81="Elektromobil",Kalkulačka!$H$9,IF(B81="Standard",Kalkulačka!$H$11,Kalkulačka!$H$10))*10 -> 2900 | AD81: 130.58 | AE81: 290 | AF81: .jpg | AG81: Opel Ampera-e.jpg
A82: https://www.opel.sk/content/dam/opel/slovakia/brochure-library/pricelists/SK_Astra.pdf | B82: Standard | C82: Kompakt | D82: Opel | E82: Astra 1.6 Turbo Innovation | F82: Opel Astra 1.6 Turbo Innovation | G82: 2017 | H82: 1 | I82: 22990 | J82: =IF(OR(B82="Elektromobil",B82="Plug-in"),Kalkulačka!$H$8,0) -> 0 | K82: 1890 | L82: 147 | M82: 138 | N82: 1598 | O82: 0 | P82: =62/R82*100 -> 815.7894737 | Q82: benzín | R82: 7.6 | S82: 0 | T82: =R82*1000*Kalkulačka!$H$4 -> 10138.4 | U82: =MAX(IF(OR(B82="Hybrid",B82="Plug-in"),0.5*VLOOKUP(L82,Predpoklady!$A$10:$C$25,3,1),VLOOKUP(L82,Predpoklady!$A$10:$C$25,3,1)),33) -> 870 | X82: =M82*100000 -> 13800000 | Y82: =Predpoklady!$B$4 -> 32 | Z82: =Predpoklady!$C$4 -> 8000000 | AA82: 21.8 | AB82: 33998.4 | AC82: =IF(B82="Elektromobil",Kalkulačka!$H$9,IF(B82="Standard",Kalkulačka!$H$11,Kalkulačka!$H$10))*10 -> 4800 | AD82: 180.04 | AE82: 480 | AF82: .jpg | AG82: Opel Astra 1.6 Turbo Innovation.jpg
A83: https://www.opel.sk/vozidla/corsa/5-dverova/subory-na-stiahnutie.html | B83: Standard | C83: Kompakt | D83: Opel | E83: Corsa Gsi 1.4 Turbo | F83: Opel Corsa Gsi 1.4 Turbo | G83: 2018 | H83: 1 | I83: 17190 | J83: =IF(OR(B83="Elektromobil",B83="Plug-in"),Kalkulačka!$H$8,0) -> 0 | K83: 1720 | L83: 110 | M83: 133 | N83: 1364 | O83: 0 | P83: =45/R83*100 -> 608.1081081 | Q83: benzín | R83: 7.4 | S83: 0 | T83: =R83*1000*Kalkulačka!$H$4 -> 9871.6 | U83: =MAX(IF(OR(B83="Hybrid",B83="Plug-in"),0.5*VLOOKUP(L83,Predpoklady!$A$10:$C$25,3,1),VLOOKUP(L83,Predpoklady!$A$10:$C$25,3,1)),33) -> 260 | X83: =M83*100000 -> 13300000 | Y83: =Predpoklady!$B$4 -> 32 | Z83: =Predpoklady!$C$4 -> 8000000 | AA83: 21.3 | AB83: 27321.6 | AC83: =IF(B83="Elektromobil",Kalkulačka!$H$9,IF(B83="Standard",Kalkulačka!$H$11,Kalkulačka!$H$10))*10 -> 4800 | AD83: 205.27 | AE83: 480 | AF83: .jpg | AG83: Opel Corsa Gsi 1.4 Turbo.jpg
A84: https://www.opel.sk/vozidla/insignia/grand-sport/subory-na-stiahnutie.html | B84: Standard | C84: Stredná trieda | D84: Opel | E84: Insignia Grand Sport 1.5 Turbo | F84: Opel Insignia Grand Sport 1.5 Turbo | G84: 2018 | H84: 1 | I84: 25240 | J84: =IF(OR(B84="Elektromobil",B84="Plug-in"),Kalkulačka!$H$8,0) -> 0 | K84: 2015 | L84: 103 | M84: 132 | N84: 1490 | O84: 0 | P84: =62/R84*100 -> 861.1111111 | Q84: benzín | R84: 7.2 | S84: 0 | T84: =R84*1000*Kalkulačka!$H$4 -> 9604.8 | U84: =MAX(IF(OR(B84="Hybrid",B84="Plug-in"),0.5*VLOOKUP(L84,Predpoklady!$A$10:$C$25,3,1),VLOOKUP(L84,Predpoklady!$A$10:$C$25,3,1)),33) -> 210 | X84: =M84*100000 -> 13200000 | Y84: =Predpoklady!$B$4 -> 32 | Z84: =Predpoklady!$C$4 -> 8000000 | AA84: 21.2 | AB84: 35054.8 | AC84: =IF(B84="Elektromobil",Kalkulačka!$H$9,IF(B84="Standard",Kalkulačka!$H$11,Kalkulačka!$H$10))*10 -> 4800 | AD84: 211.92 | AE84: 480 | AF84: .jpg | AG84: Opel Insignia Grand Sport 1.5 Turbo.jpg
A85: https://media-ct-ndp.peugeot.com/file/32/8/ion-04-2017.pdf | B85: Elektromobil | C85: Mini | D85: Peugeot | E85: iON | F85: Peugeot iON | G85: 2016 | H85: 1 | I85: 29640 | J85: =IF(OR(B85="Elektromobil",B85="Plug-in"),Kalkulačka!$H$8,0) -> 0 | K85: 1450 | L85: 49 | M85: 0 | N85: 0 | O85: 16 | P85: 150 | Q85: elektrina | R85: 0 | S85: =O85/P85*1000 -> 106.6666667 | T85: =S85*100000*0.001*Kalkulačka!$H$6 -> 1581.333333 | U85: =Predpoklady!$B$27 -> 33 | V85: 0 | W85: =U85+V85 -> 33 | X85: =S85*100000*0.001*Predpoklady!$B$1 -> 1984000 | Y85: =Predpoklady!$B$2 -> 42 | Z85: =Predpoklady!$C$2 -> 10500000 | AA85: 12.484 | AB85: 31254.33333 | AC85: =IF(B85="Elektromobil",Kalkulačka!$H$9,IF(B85="Standard",Kalkulačka!$H$11,Kalkulačka!$H$10))*10 -> 2900 | AD85: 120.81 | AE85: 290 | AF85: .jpg | AG85: Peugeot iON.jpg
A86: https://media-ct-ndp.peugeot.com/file/57/8/2008-2019-01.pdf | B86: Standard | C86: Stredná trieda | D86: Peugeot | E86: 2008 1.2 PureTech 110 | F86: Peugeot 2008 1.2 PureTech 110 | G86: 2018 | H86: 1 | I86: 18480 | J86: =IF(OR(B86="Elektromobil",B86="Plug-in"),Kalkulačka!$H$8,0) -> 0 | K86: 1690 | L86: 81 | M86: 110 | N86: 1199 | O86: 0 | P86: =50/R86*100 -> 847.4576271 | Q86: benzín | R86: 5.9 | S86: 0 | T86: =R86*1000*Kalkulačka!$H$4 -> 7870.6 | U86: =MAX(IF(OR(B86="Hybrid",B86="Plug-in"),0.5*VLOOKUP(L86,Predpoklady!$A$10:$C$25,3,1),VLOOKUP(L86,Predpoklady!$A$10:$C$25,3,1)),33) -> 90 | X86: =M86*100000 -> 11000000 | Y86: =Predpoklady!$B$4 -> 32 | Z86: =Predpoklady!$C$4 -> 8000000 | AA86: 19 | AB86: 26440.6 | AC86: =IF(B86="Elektromobil",Kalkulačka!$H$9,IF(B86="Standard",Kalkulačka!$H$11,Kalkulačka!$H$10))*10 -> 4800 | AD86: 139.1 | AE86: 480 | AF86: .jpg | AG86: Peugeot 2008 1.2 PureTech 110.jpg
A87: https://ev-database.org/car/1168/Peugeot-e-208 | B87: Elektromobil | C87: Kompakt | D87: Peugeot | E87: e-208 | F87: Peugeot e-208 | G87: 2019 | H87: 1 | I87: 30450 | J87: =IF(OR(B87="Elektromobil",B87="Plug-in"),Kalkulačka!$H$8,0) -> 0 | K87: 1455 | L87: 100 | M87: 0 | N87: 0 | O87: 50 | P87: 340 | Q87: elektrina | R87: 0 | S87: =O87/P87*1000 -> 147.0588235 | T87: =S87*100000*0.001*Kalkulačka!$H$6 -> 2180.147059 | U87: =Predpoklady!$B$27 -> 33 | X87: =S87*100000*0.001*Predpoklady!$B$1 -> 2735294.118 | Y87: =Predpoklady!$B$2 -> 42 | Z87: =Predpoklady!$C$2 -> 10500000 | AA87: 13.23529412 | AB87: 32663.14706 | AC87: =IF(B87="Elektromobil",Kalkulačka!$H$9,IF(B87="Standard",Kalkulačka!$H$11,Kalkulačka!$H$10))*10 -> 2900 | AD87: 183.24 | AE87: 290
A88: http://porsche.sk/nove-modely/cayenne/cayenne-e-hybrid?gclid=EAIaIQobChMIp_S4v52h3gIVDYuyCh2ifQWVEAAYASAAEgIYOvD_BwE&gclsrc=aw.ds | B88: Plug-in | C88: Luxusné | D88: Porsche | E88: Cayenne S E-Hybrid | F88: Porsche Cayenne S E-Hybrid | G88: 2014 | H88: 1 | I88: 92460 | J88: =IF(OR(B88="Elektromobil",B88="Plug-in"),Kalkulačka!$H$8,0) -> 0 | K88: 3050 | L88: 306 | M88: 78 | N88: 2995 | O88: 10.8 | P88: =0.6*O88/S88*1000+0.4*80/R88*100 -> 972.1812553 | Q88: benzín + elektrina | R88: 3.4 | S88: 209 | T88: =R88*1000*Kalkulačka!$H$4*0.4+S88/1000*100000*Kalkulačka!$H$6*0.6 -> 3673.295 | U88: =MAX(IF(OR(B88="Hybrid",B88="Plug-in"),0.5*VLOOKUP(L88,Predpoklady!$A$10:$C$25,3,1),VLOOKUP(L88,Predpoklady!$A$10:$C$25,3,1)),33) -> 1950 | X88: =(0.6*Predpoklady!$B$1*S88/1000+0.4*M88)*100000 -> 5452440 | Y88: =Predpoklady!$B$3 -> 37 | Z88: =Predpoklady!$C$3 -> 11000000 | AA88: 16.45244 | AB88: 98083.295 | AC88: =IF(B88="Elektromobil",Kalkulačka!$H$9,IF(B88="Standard",Kalkulačka!$H$11,Kalkulačka!$H$10))*10 -> 4400 | AD88: 190.03 | AE88: 440 | AF88: .jpg | AG88: =CONCATENATE(F88,AF88) -> Porsche Cayenne S E-Hybrid.jpg
A89: https://porsche.sk/nove-vozidla/ponuka-skladovych-vozidiel?id=213609 | B89: Plug-in | C89: Luxusné | D89: Porsche | E89: Panamera 4 E-Hybrid | F89: Porsche Panamera 4 E-Hybrid | G89: 2017 | H89: 1 | I89: 144250 | J89: =IF(OR(B89="Elektromobil",B89="Plug-in"),Kalkulačka!$H$8,0) -> 0 | K89: 2710 | L89: 243 | M89: 56 | N89: 2894 | O89: 14.1 | P89: =0.6*O89/S89*1000+0.4*80/R89*100 -> 1333.207547 | Q89: benzín + elektrina | R89: 2.5 | S89: 159 | T89: =R89*1000*Kalkulačka!$H$4*0.4+S89/1000*100000*Kalkulačka!$H$6*0.6 -> 2748.305 | U89: =MAX(IF(OR(B89="Hybrid",B89="Plug-in"),0.5*VLOOKUP(L89,Predpoklady!$A$10:$C$25,3,1),VLOOKUP(L89,Predpoklady!$A$10:$C$25,3,1)),33) -> 1350 | X89: =(0.6*Predpoklady!$B$1*S89/1000+0.4*M89)*100000 -> 4014440 | Y89: =Predpoklady!$B$3 -> 37 | Z89: =Predpoklady!$C$3 -> 11000000 | AA89: 15.01444 | AB89: 148348.305 | AC89: =IF(B89="Elektromobil",Kalkulačka!$H$9,IF(B89="Standard",Kalkulačka!$H$11,Kalkulačka!$H$10))*10 -> 4400 | AD89: 190.03 | AE89: 440 | AF89: .jpg | AG89: Porsche Panamera 4 E-Hybrid.jpg
A90: https://www.landrover.sk/system/car_models/price_lists/000/000/009/original/L494_RR_Sport_MY19.pdf?1536051066 | B90: Standard | C90: SUV | D90: Range Rover | E90: Sport S | F90: Range Rover Sport S | G90: 2018 | H90: 1 | I90: 71160 | J90: =IF(OR(B90="Elektromobil",B90="Plug-in"),Kalkulačka!$H$8,0) -> 0 | K90: 2134 | L90: 190 | M90: 182 | N90: 2993 | O90: 0 | P90: =86/R90*100 -> 1246.376812 | Q90: nafta | R90: 6.9 | S90: 0 | T90: =R90*1000*Kalkulačka!$H$5 -> 8562.9 | U90: =MAX(IF(OR(B90="Hybrid",B90="Plug-in"),0.5*VLOOKUP(L90,Predpoklady!$A$10:$C$25,3,1),VLOOKUP(L90,Predpoklady!$A$10:$C$25,3,1)),33) -> 1900 | X90: =M90*100000 -> 18200000 | Y90: =Predpoklady!$B$5 -> 28 | Z90: =Predpoklady!$C$5 -> 7000000 | AA90: 25.2 | AB90: 81622.9 | AC90: =IF(B90="Elektromobil",Kalkulačka!$H$9,IF(B90="Standard",Kalkulačka!$H$11,Kalkulačka!$H$10))*10 -> 4800 | AD90: 319.58 | AE90: 480 | AF90: .jpg | AG90: Range Rover Sport S.jpg
A91: https://www.renault.sk/content/dam/Renault/SK/PDF/brochures/clio-brochure.pdf | B91: Standard | C91: Kompakt | D91: Renault | E91: Clio Energy TCe 90 | F91: Renault Clio Energy TCe 90 | G91: 2016 | H91: 1 | I91: 10690 | J91: =IF(OR(B91="Elektromobil",B91="Plug-in"),Kalkulačka!$H$8,0) -> 0 | K91: 1695 | L91: 56 | M91: 118 | N91: 898 | O91: 0 | P91: =45/R91*100 -> 692.3076923 | Q91: nafta | R91: 6.5 | S91: 0 | T91: =R91*1000*Kalkulačka!$H$5 -> 8066.5 | U91: =MAX(IF(OR(B91="Hybrid",B91="Plug-in"),0.5*VLOOKUP(L91,Predpoklady!$A$10:$C$25,3,1),VLOOKUP(L91,Predpoklady!$A$10:$C$25,3,1)),33) -> 33 | X91: =M91*100000 -> 11800000 | Y91: =Predpoklady!$B$5 -> 28 | Z91: =Predpoklady!$C$5 -> 7000000 | AA91: 18.8 | AB91: 18789.5 | AC91: =IF(B91="Elektromobil",Kalkulačka!$H$9,IF(B91="Standard",Kalkulačka!$H$11,Kalkulačka!$H$10))*10 -> 4800 | AD91: 131 | AE91: 480 | AF91: .jpg | AG91: Renault Clio Energy TCe 90.jpg
A92: https://www.renault.sk/content/dam/Renault/SK/PDF/pricelists/kadjar-price.pdf | B92: Standard | C92: SUV | D92: Renault | E92: Kadjar TCe 140 GPF | F92: Renault Kadjar TCe 140 GPF | G92: 2018 | H92: 1 | I92: 20490 | J92: =IF(OR(B92="Elektromobil",B92="Plug-in"),Kalkulačka!$H$8,0) -> 0 | K92: 1889 | L92: 103 | M92: 150 | N92: 1332 | O92: 0 | P92: =55/R92*100 -> 833.3333333 | Q92: benzín | R92: 6.6 | S92: 0 | T92: =R92*1000*Kalkulačka!$H$4 -> 8804.4 | U92: =MAX(IF(OR(B92="Hybrid",B92="Plug-in"),0.5*VLOOKUP(L92,Predpoklady!$A$10:$C$25,3,1),VLOOKUP(L92,Predpoklady!$A$10:$C$25,3,1)),33) -> 210 | X92: =M92*100000 -> 15000000 | Y92: =Predpoklady!$B$4 -> 32 | Z92: =Predpoklady!$C$4 -> 8000000 | AA92: 23 | AB92: 29504.4 | AC92: =IF(B92="Elektromobil",Kalkulačka!$H$9,IF(B92="Standard",Kalkulačka!$H$11,Kalkulačka!$H$10))*10 -> 4800 | AD92: 210.6 | AE92: 480 | AF92: .jpg | AG92: Renault Kadjar TCe 140 GPF.jpg
A93: https://www.renault.sk/content/dam/Renault/SK/PDF/pricelists/megane-price.pdf | B93: Standard | C93: Stredná trieda | D93: Renault | E93: Megane TCe 100 GPF | F93: Renault Megane TCe 100 GPF | G93: 2018 | H93: 1 | I93: 13990 | J93: =IF(OR(B93="Elektromobil",B93="Plug-in"),Kalkulačka!$H$8,0) -> 0 | K93: 1814 | L93: 75 | M93: 143 | N93: 1333 | O93: 0 | P93: =49.7/R93*100 -> 788.8888889 | Q93: benzín | R93: 6.3 | S93: 0 | T93: =R93*1000*Kalkulačka!$H$4 -> 8404.2 | U93: =MAX(IF(OR(B93="Hybrid",B93="Plug-in"),0.5*VLOOKUP(L93,Predpoklady!$A$10:$C$25,3,1),VLOOKUP(L93,Predpoklady!$A$10:$C$25,3,1)),33) -> 33 | X93: =M93*100000 -> 14300000 | Y93: =Predpoklady!$B$4 -> 32 | Z93: =Predpoklady!$C$4 -> 8000000 | AA93: 22.3 | AB93: 22427.2 | AC93: =IF(B93="Elektromobil",Kalkulačka!$H$9,IF(B93="Standard",Kalkulačka!$H$11,Kalkulačka!$H$10))*10 -> 4800 | AD93: 187.68 | AE93: 480 | AF93: .jpg | AG93: Renault Megane TCe 100 GPF.jpg
A94: https://www.renault.sk/content/dam/Renault/SK/PDF/pricelists/zoe-price.pdf | B94: Elektromobil | C94: Mini | D94: Renault | E94: Zoe R90 | F94: Renault Zoe R90 | G94: 2016 | H94: 0 | I94: 31300 | J94: =IF(OR(B94="Elektromobil",B94="Plug-in"),Kalkulačka!$H$8,0) -> 0 | K94: 1966 | L94: 68 | M94: 0 | N94: 0 | O94: 41 | P94: =O94/S94*1000 -> 308.2706767 | Q94: elektrina | R94: 0 | S94: 133 | T94: =S94*100000*0.001*Kalkulačka!$H$6 -> 1971.725 | U94: =Predpoklady!$B$27 -> 33 | V94: 0 | W94: =U94+V94 -> 33 | X94: =S94*100000*0.001*Predpoklady!$B$1 -> 2473800 | Y94: =Predpoklady!$B$2 -> 42 | Z94: =Predpoklady!$C$2 -> 10500000 | AA94: 12.9738 | AB94: =I94+T94+U94 -> 33304.725 | AC94: =IF(B94="Elektromobil",Kalkulačka!$H$9,IF(B94="Standard",Kalkulačka!$H$11,Kalkulačka!$H$10))*10 -> 2900 | AD94: 134.34 | AE94: 290 | AF94: .jpg | AG94: Renault Zoe R90 .jpg
A95: https://www.renault.sk/content/dam/Renault/SK/PDF/pricelists/grand-scenic-price.pdf | B95: Standard | C95: Stredná trieda | D95: Renault | E95: Grand Scenic Tce 115 Zen | F95: Renault Grand Scenic Tce 115 Zen | G95: 2016 | H95: 1 | I95: 19390 | J95: =IF(OR(B95="Elektromobil",B95="Plug-in"),Kalkulačka!$H$8,0) -> 0 | K95: 2160 | L95: 85 | M95: 129 | N95: 1198 | O95: 0 | P95: =50/R95*100 -> 694.4444444 | Q95: benzín | R95: 7.2 | S95: 0 | T95: =R95*1000*Kalkulačka!$H$4 -> 9604.8 | U95: =MAX(IF(OR(B95="Hybrid",B95="Plug-in"),0.5*VLOOKUP(L95,Predpoklady!$A$10:$C$25,3,1),VLOOKUP(L95,Predpoklady!$A$10:$C$25,3,1)),33) -> 90 | X95: =M95*100000 -> 12900000 | Y95: =Predpoklady!$B$4 -> 32 | Z95: =Predpoklady!$C$4 -> 8000000 | AA95: 20.9 | AB95: 29084.8 | AC95: =IF(B95="Elektromobil",Kalkulačka!$H$9,IF(B95="Standard",Kalkulačka!$H$11,Kalkulačka!$H$10))*10 -> 4800 | AD95: 152.64 | AE95: 480 | AF95: .jpg | AG95: Renault Grand Scenic Tce 115 Zen.jpg
A96: https://www.seat.sk/konfigurovat-kupit/cenniky-katalogy-a-technicke-udaje | B96: Standard | C96: Stredná trieda | D96: Seat | E96: Alhambra 1.4 TSI FR | F96: Seat Alhambra 1.4 TSI FR | G96: 2017 | H96: 1 | I96: 34170 | J96: =IF(OR(B96="Elektromobil",B96="Plug-in"),Kalkulačka!$H$8,0) -> 0 | K96: 2430 | L96: 110 | M96: 191 | N96: 1395 | O96: 0 | P96: =70/R96*100 -> 804.5977011 | Q96: benzín | R96: 8.7 | S96: 0 | T96: =R96*1000*Kalkulačka!$H$4 -> 11605.8 | U96: =MAX(IF(OR(B96="Hybrid",B96="Plug-in"),0.5*VLOOKUP(L96,Predpoklady!$A$10:$C$25,3,1),VLOOKUP(L96,Predpoklady!$A$10:$C$25,3,1)),33) -> 260 | X96: =M96*100000 -> 19100000 | Y96: =Predpoklady!$B$4 -> 32 | Z96: =Predpoklady!$C$4 -> 8000000 | AA96: 27.1 | AB96: 46035.8 | AC96: =IF(B96="Elektromobil",Kalkulačka!$H$9,IF(B96="Standard",Kalkulačka!$H$11,Kalkulačka!$H$10))*10 -> 4800 | AD96: 167 | AE96: 480 | AF96: .jpg | AG96: Seat Alhambra 1.4 TSI FR.jpg
A97: https://www.seat.sk/konfigurovat-kupit/cenniky-katalogy-a-technicke-udaje | B97: Standard | C97: SUV | D97: Seat | E97: Ateca 1.0 ECO TSI 115 | F97: Seat Ateca 1.0 ECO TSI 115 | G97: 2018 | H97: 1 | I97: 19120 | J97: =IF(OR(B97="Elektromobil",B97="Plug-in"),Kalkulačka!$H$8,0) -> 0 | K97: 1860 | L97: 85 | M97: 139 | N97: 999 | O97: 0 | P97: =50/R97*100 -> 806.4516129 | Q97: benzín | R97: 6.2 | S97: 0 | T97: =R97*1000*Kalkulačka!$H$4 -> 8270.8 | U97: =MAX(IF(OR(B97="Hybrid",B97="Plug-in"),0.5*VLOOKUP(L97,Predpoklady!$A$10:$C$25,3,1),VLOOKUP(L97,Predpoklady!$A$10:$C$25,3,1)),33) -> 90 | X97: =M97*100000 -> 13900000 | Y97: =Predpoklady!$B$4 -> 32 | Z97: =Predpoklady!$C$4 -> 8000000 | AA97: 21.9 | AB97: 27480.8 | AC97: =IF(B97="Elektromobil",Kalkulačka!$H$9,IF(B97="Standard",Kalkulačka!$H$11,Kalkulačka!$H$10))*10 -> 4800 | AD97: 182.54 | AE97: 480 | AF97: .jpg | AG97: Seat Ateca 1.0 ECO TSI 115.jpg
A98: https://www.seat.sk/konfigurovat-kupit/cenniky-katalogy-a-technicke-udaje | B98: Standard | C98: Kompakt | D98: Seat | E98: Ibiza 1.0 ECO TSI 95 | F98: =CONCATENATE(D98," ",E98) -> Seat Ibiza 1.0 ECO TSI 95 | G98: 2017 | H98: 1 | I98: 12320 | J98: =IF(OR(B98="Elektromobil",B98="Plug-in"),Kalkulačka!$H$8,0) -> 0 | K98: 1660 | L98: 70 | M98: 129 | N98: 999 | O98: 0 | P98: =40/R98*100 -> 701.754386 | Q98: benzín | R98: 5.7 | S98: 0 | T98: =R98*1000*Kalkulačka!$H$4 -> 7603.8 | U98: =MAX(IF(OR(B98="Hybrid",B98="Plug-in"),0.5*VLOOKUP(L98,Predpoklady!$A$10:$C$25,3,1),VLOOKUP(L98,Predpoklady!$A$10:$C$25,3,1)),33) -> 33 | X98: =M98*100000 -> 12900000 | Y98: =Predpoklady!$B$4 -> 32 | Z98: =Predpoklady!$C$4 -> 8000000 | AA98: =(X98+Z98)/1000000 -> 20.9 | AB98: 19956.8 | AC98: =IF(B98="Elektromobil",Kalkulačka!$H$9,IF(B98="Standard",Kalkulačka!$H$11,Kalkulačka!$H$10))*10 -> 4800 | AD98: 153.48 | AE98: =AC98/10 -> 480 | AF98: .jpg | AG98: Seat Ibiza 1.0 ECO TSI 95.jpg
A99: https://www.seat.sk/konfigurovat-kupit/cenniky-katalogy-a-technicke-udaje | B99: Standard | C99: Stredná trieda | D99: Seat | E99: Leon 5D 1.0 ECO TSI 86 | F99: Seat Leon 5D 1.0 ECO TSI 86 | G99: 2017 | H99: 1 | I99: 14640 | J99: =IF(OR(B99="Elektromobil",B99="Plug-in"),Kalkulačka!$H$8,0) -> 0 | K99: 1710 | L99: 63 | M99: 137 | N99: 999 | O99: 0 | P99: =50/R99*100 -> 819.6721311 | Q99: benzín | R99: 6.1 | S99: 0 | T99: =R99*1000*Kalkulačka!$H$4 -> 8137.4 | U99: =MAX(IF(OR(B99="Hybrid",B99="Plug-in"),0.5*VLOOKUP(L99,Predpoklady!$A$10:$C$25,3,1),VLOOKUP(L99,Predpoklady!$A$10:$C$25,3,1)),33) -> 33 | X99: =M99*100000 -> 13700000 | Y99: =Predpoklady!$B$4 -> 32 | Z99: =Predpoklady!$C$4 -> 8000000 | AA99: 21.7 | AB99: 22810.4 | AC99: =IF(B99="Elektromobil",Kalkulačka!$H$9,IF(B99="Standard",Kalkulačka!$H$11,Kalkulačka!$H$10))*10 -> 4800 | AD99: 153.48 | AE99: 480 | AF99: .png | AG99: Seat Leon 5D 1.0 ECO TSI 86.png
A100: https://www.vyberamauto.sk/katalog/smart/forfour-electric-drive-2017//cennik/ | B100: Elektromobil | C100: Mini | D100: Smart | E100: electric drive forfour | F100: Smart electric drive forfour | G100: 2017 | H100: 1 | I100: 24200 | J100: =IF(OR(B100="Elektromobil",B100="Plug-in"),Kalkulačka!$H$8,0) -> 0 | K100: 1560 | L100: 60 | M100: 0 | N100: 0 | O100: 17.6 | P100: =O100/S100*1000 -> 134.351145 | Q100: elektrina | R100: 0 | S100: 131 | T100: =S100*100000*0.001*Kalkulačka!$H$6 -> 1942.075 | U100: =Predpoklady!$B$27 -> 33 | X100: =S100*100000*0.001*Predpoklady!$B$1 -> 2436600 | Y100: =Predpoklady!$B$2 -> 42 | Z100: =Predpoklady!$C$2 -> 10500000 | AA100: 12.9366 | AB100: 26175.075 | AC100: =IF(B100="Elektromobil",Kalkulačka!$H$9,IF(B100="Standard",Kalkulačka!$H$11,Kalkulačka!$H$10))*10 -> 2900 | AD100: 113.21 | AE100: 290 | AF100: .jpg | AG100: Smart electric drive forfour.jpg
A101: https://www.vyberamauto.sk/katalog/smart/fortwo-electric-drive-2017/cennik/ | B101: Elektromobil | C101: Mini | D101: Smart | E101: electric drive fortwo | F101: Smart electric drive fortwo | G101: 2017 | H101: 1 | I101: 23800 | J101: =IF(OR(B101="Elektromobil",B101="Plug-in"),Kalkulačka!$H$8,0) -> 0 | K101: 1310 | L101: 60 | M101: 0 | N101: 0 | O101: 17.6 | P101: =O101/S101*1000 -> 136.4341085 | Q101: elektrina | R101: 0 | S101: 129 | T101: =S101*100000*0.001*Kalkulačka!$H$6 -> 1912.425 | U101: =Predpoklady!$B$27 -> 33 | X101: =S101*100000*0.001*Predpoklady!$B$1 -> 2399400 | Y101: =Predpoklady!$B$2 -> 42 | Z101: =Predpoklady!$C$2 -> 10500000 | AA101: 12.8994 | AB101: 25745.425 | AC101: =IF(B101="Elektromobil",Kalkulačka!$H$9,IF(B101="Standard",Kalkulačka!$H$11,Kalkulačka!$H$10))*10 -> 2900 | AD101: 113.21 | AE101: 290 | AF101: .jpg | AG101: Smart electric drive fortwo.jpg
A102: https://www.smart.com/int/en/smart/CZ/pdf/ceniky/Cenik_smart_8_2018.pdf | B102: Standard | C102: Mini | D102: Smart | E102: forfour | F102: Smart forfour | G102: 2015 | H102: 0 | I102: 12920 | J102: =IF(OR(B102="Elektromobil",B102="Plug-in"),Kalkulačka!$H$8,0) -> 0 | K102: 1420 | L102: 66 | M102: 123 | N102: 898 | O102: 0 | P102: =28/R102*100 -> 518.5185185 | Q102: benzín | R102: 5.4 | S102: 0 | T102: =R102*1000*Kalkulačka!$H$4 -> 7203.6 | U102: =MAX(IF(OR(B102="Hybrid",B102="Plug-in"),0.5*VLOOKUP(L102,Predpoklady!$A$10:$C$25,3,1),VLOOKUP(L102,Predpoklady!$A$10:$C$25,3,1)),33) -> 33 | X102: =M102*100000 -> 12300000 | Y102: =Predpoklady!$B$4 -> 32 | Z102: =Predpoklady!$C$4 -> 8000000 | AA102: 20.3 | AB102: 20156.6 | AC102: =IF(B102="Elektromobil",Kalkulačka!$H$9,IF(B102="Standard",Kalkulačka!$H$11,Kalkulačka!$H$10))*10 -> 4800 | AD102: 113.21 | AE102: 480 | AF102: .jpg | AG102: Smart forfour.jpg
A103: https://www.smart.com/content/dam/smart/CZ/pdf/ceniky/Cenik_smart_8_2018.pdf | B103: Standard | C103: Mini | D103: Smart | E103: fortwo | F103: Smart fortwo | G103: 2015 | H103: 0 | I103: 12720 | J103: =IF(OR(B103="Elektromobil",B103="Plug-in"),Kalkulačka!$H$8,0) -> 0 | K103: 1170 | L103: 66 | M103: 119 | N103: 898 | O103: 0 | P103: =28/R103*100 -> 538.4615385 | Q103: benzín | R103: 5.2 | S103: 0 | T103: =R103*1000*Kalkulačka!$H$4 -> 6936.8 | U103: =MAX(IF(OR(B103="Hybrid",B103="Plug-in"),0.5*VLOOKUP(L103,Predpoklady!$A$10:$C$25,3,1),VLOOKUP(L103,Predpoklady!$A$10:$C$25,3,1)),33) -> 33 | X103: =M103*100000 -> 11900000 | Y103: =Predpoklady!$B$4 -> 32 | Z103: =Predpoklady!$C$4 -> 8000000 | AA103: 19.9 | AB103: 19689.8 | AC103: =IF(B103="Elektromobil",Kalkulačka!$H$9,IF(B103="Standard",Kalkulačka!$H$11,Kalkulačka!$H$10))*10 -> 4800 | AD103: 113.21 | AE103: 480 | AF103: .jpg | AG103: Smart fortwo.jpg
A104: https://www.suzuki.sk/automobily/modely | B104: Standard | C104: SUV | D104: Suzuki | E104: SX4 S-Cross 1,4 BOOSTERJET 2WD | F104: Suzuki SX4 S-Cross 1,4 BOOSTERJET 2WD | G104: 2017 | H104: 1 | I104: 17700 | J104: =IF(OR(B104="Elektromobil",B104="Plug-in"),Kalkulačka!$H$8,0) -> 0 | K104: 1240 | L104: 103 | M104: 164 | N104: 1373 | O104: 0 | P104: =47/R104*100 -> 652.7777778 | Q104: benzín | R104: 7.2 | S104: 0 | T104: =R104*1000*Kalkulačka!$H$4 -> 9604.8 | U104: =MAX(IF(OR(B104="Hybrid",B104="Plug-in"),0.5*VLOOKUP(L104,Predpoklady!$A$10:$C$25,3,1),VLOOKUP(L104,Predpoklady!$A$10:$C$25,3,1)),33) -> 210 | X104: =M104*100000 -> 16400000 | Y104: =Predpoklady!$B$4 -> 32 | Z104: =Predpoklady!$C$4 -> 8000000 | AA104: 24.4 | AB104: 27514.8 | AC104: =IF(B104="Elektromobil",Kalkulačka!$H$9,IF(B104="Standard",Kalkulačka!$H$11,Kalkulačka!$H$10))*10 -> 4800 | AD104: 108.96 | AE104: 480 | AF104: .jpg | AG104: Suzuki SX4 S-Cross 1,4 BOOSTERJET 2WD.jpg
A105: https://www.suzuki.sk/automobily/modely | B105: Standard | C105: SUV | D105: Suzuki | E105: Vitara 1,4 Boosterjet | F105: Suzuki Vitara 1,4 Boosterjet | G105: 2015 | H105: 1 | I105: 17190 | J105: =IF(OR(B105="Elektromobil",B105="Plug-in"),Kalkulačka!$H$8,0) -> 0 | K105: 1870 | L105: 103 | M105: 148 | N105: 1373 | O105: 0 | P105: =66/R105*100 -> 1000 | Q105: benzín | R105: 6.6 | S105: 0 | T105: =R105*1000*Kalkulačka!$H$4 -> 8804.4 | U105: =MAX(IF(OR(B105="Hybrid",B105="Plug-in"),0.5*VLOOKUP(L105,Predpoklady!$A$10:$C$25,3,1),VLOOKUP(L105,Predpoklady!$A$10:$C$25,3,1)),33) -> 210 | X105: =M105*100000 -> 14800000 | Y105: =Predpoklady!$B$4 -> 32 | Z105: =Predpoklady!$C$4 -> 8000000 | AA105: 22.8 | AB105: 26204.4 | AC105: =IF(B105="Elektromobil",Kalkulačka!$H$9,IF(B105="Standard",Kalkulačka!$H$11,Kalkulačka!$H$10))*10 -> 4800 | AD105: 134.34 | AE105: 480 | AF105: .jpg | AG105: Suzuki Vitara 1,4 Boosterjet.jpg
A106: https://webapps.skoda-auto.sk/Cenniky-a-katalogy/cenniky/Skoda_Citigo-iV_cennik.pdf?201910021219&_ga=2.257823692.653028250.1570359681-486551992.1568746916 | B106: Elektromobil | C106: Kompakt | D106: Škoda | E106: CITIGOe IV | F106: Škoda CITIGOe IV | G106: 2019 | H106: 1 | I106: 21190 | J106: =IF(OR(B106="Elektromobil",B106="Plug-in"),Kalkulačka!$H$8,0) -> 0 | K106: 1160 | L106: 61 | M106: 0 | N106: 0 | O106: 36.8 | P106: 265 | Q106: elektrina | R106: 0 | S106: =O106/P106*1000 -> 138.8679245 | T106: =S106*100000*0.001*Kalkulačka!$H$6 -> 2058.716981 | U106: =MAX(IF(OR(B106="Hybrid",B106="Plug-in"),0.5*VLOOKUP(L106,Predpoklady!$A$10:$C$25,3,1),VLOOKUP(L106,Predpoklady!$A$10:$C$25,3,1)),33) -> 33 | X106: =S106*100000*0.001*Predpoklady!$B$1 -> 2582943.396 | Y106: =Predpoklady!$B$4 -> 32 | Z106: =Predpoklady!$C$4 -> 8000000 | AA106: 10.5829434 | AB106: 23281.71698 | AC106: =IF(B106="Elektromobil",Kalkulačka!$H$9,IF(B106="Standard",Kalkulačka!$H$11,Kalkulačka!$H$10))*10 -> 2900 | AD106: 160.92 | AE106: 290
A107: https://webapps.skoda-auto.sk/Cenniky-a-katalogy/cenniky/Skoda_Fabia_cennik.pdf?201907170142&_ga=2.230497052.1894893320.1570359683-68f7c902-901f-4033-8088-c4be136ce0df | B107: Standard | C107: Kompakt | D107: Škoda | E107: Fabia 1.0 TSI 81kW Active | F107: Škoda Fabia 1.0 TSI 81kW Active | G107: 2017 | H107: 1 | I107: 12300 | J107: =IF(OR(B107="Elektromobil",B107="Plug-in"),Kalkulačka!$H$8,0) -> 0 | K107: 1564 | L107: 81 | M107: 125 | N107: 1197 | O107: 0 | P107: =45/R107*100 -> 818.1818182 | Q107: benzín | R107: 5.5 | S107: 0 | T107: =R107*1000*Kalkulačka!$H$4 -> 7337 | U107: =MAX(IF(OR(B107="Hybrid",B107="Plug-in"),0.5*VLOOKUP(L107,Predpoklady!$A$10:$C$25,3,1),VLOOKUP(L107,Predpoklady!$A$10:$C$25,3,1)),33) -> 90 | X107: =M107*100000 -> 12500000 | Y107: =Predpoklady!$B$4 -> 32 | Z107: =Predpoklady!$C$4 -> 8000000 | AA107: 20.5 | AB107: 19727 | AC107: =IF(B107="Elektromobil",Kalkulačka!$H$9,IF(B107="Standard",Kalkulačka!$H$11,Kalkulačka!$H$10))*10 -> 4800 | AD107: 105.22 | AE107: 480 | AF107: .jpg | AG107: =CONCATENATE(F107,AF107) -> Škoda Fabia 1.0 TSI 81kW Active.jpg
A108: https://www.skoda-auto.sk/modely/kamiq/kamiq | B108: Standard | C108: SUV | D108: Škoda | E108: Kamiq 1.0 TSI Active | F108: Škoda Kamiq 1.0 TSI Active | G108: 2019 | H108: 1 | I108: 16290 | J108: =IF(OR(B108="Elektromobil",B108="Plug-in"),Kalkulačka!$H$8,0) -> 0 | K108: 1390 | L108: 85 | M108: 167 | N108: 999 | O108: 0 | P108: =50/R108*100 -> 675.6756757 | Q108: benzín | R108: 7.4 | S108: 0 | T108: =R108*1000*Kalkulačka!$H$4 -> 9871.6 | U108: =MAX(IF(OR(B108="Hybrid",B108="Plug-in"),0.5*VLOOKUP(L108,Predpoklady!$A$10:$C$25,3,1),VLOOKUP(L108,Predpoklady!$A$10:$C$25,3,1)),33) -> 90 | X108: 16700000 | Y108: =Predpoklady!$B$4 -> 32 | Z108: =Predpoklady!$C$4 -> 8000000 | AA108: 24.7 | AB108: 26251.6 | AC108: =IF(B108="Elektromobil",Kalkulačka!$H$9,IF(B108="Standard",Kalkulačka!$H$11,Kalkulačka!$H$10))*10 -> 4800 | AD108: 195.48 | AE108: 480
A109: https://webapps.skoda-auto.sk/Cenniky-a-katalogy/cenniky/Skoda_Karoq_cennik.pdf?201908220307&_ga=2.205385744.1894893320.1570359683-68f7c902-901f-4033-8088-c4be136ce0df | B109: Standard | C109: SUV | D109: Škoda | E109: Karoq 1.5 TSI ACT 110 | F109: Škoda Karoq 1.5 TSI ACT 110 | G109: 2018 | H109: 1 | I109: 22460 | J109: =IF(OR(B109="Elektromobil",B109="Plug-in"),Kalkulačka!$H$8,0) -> 0 | K109: 1916 | L109: 110 | M109: 187 | N109: 1498 | O109: 0 | P109: =50/R109*100 -> 609.7560976 | Q109: benzín | R109: 8.2 | S109: 0 | T109: =R109*1000*Kalkulačka!$H$4 -> 10938.8 | U109: =MAX(IF(OR(B109="Hybrid",B109="Plug-in"),0.5*VLOOKUP(L109,Predpoklady!$A$10:$C$25,3,1),VLOOKUP(L109,Predpoklady!$A$10:$C$25,3,1)),33) -> 260 | X109: 18700000 | Y109: =Predpoklady!$B$4 -> 32 | Z109: =Predpoklady!$C$4 -> 8000000 | AA109: 26.7 | AB109: 33658.8 | AC109: =IF(B109="Elektromobil",Kalkulačka!$H$9,IF(B109="Standard",Kalkulačka!$H$11,Kalkulačka!$H$10))*10 -> 4800 | AD109: 213.96 | AE109: 480 | AF109: .jpg | AG109: =CONCATENATE(F109,AF109) -> Škoda Karoq 1.5 TSI ACT 110.jpg
A110: https://webapps.skoda-auto.sk/Cenniky-a-katalogy/cenniky/Skoda_Kodiaq_cennik.pdf?201908211035&_ga=2.201807889.1894893320.1570359683-68f7c902-901f-4033-8088-c4be136ce0df | B110: Standard | C110: SUV | D110: Škoda | E110: Kodiaq 1.5 TSI ACT 110 | F110: Škoda Kodiaq 1.5 TSI ACT 110 | G110: 2018 | H110: 1 | I110: 24170 | J110: =IF(OR(B110="Elektromobil",B110="Plug-in"),Kalkulačka!$H$8,0) -> 0 | K110: 2077 | L110: 110 | M110: 209 | N110: 1498 | O110: 0 | P110: =50/R110*100 -> 543.4782609 | Q110: benzín | R110: 9.2 | S110: 0 | T110: =R110*1000*Kalkulačka!$H$4 -> 12272.8 | U110: =MAX(IF(OR(B110="Hybrid",B110="Plug-in"),0.5*VLOOKUP(L110,Predpoklady!$A$10:$C$25,3,1),VLOOKUP(L110,Predpoklady!$A$10:$C$25,3,1)),33) -> 260 | X110: 20900000 | Y110: =Predpoklady!$B$4 -> 32 | Z110: =Predpoklady!$C$4 -> 8000000 | AA110: 28.9 | AB110: 36702.8 | AC110: =IF(B110="Elektromobil",Kalkulačka!$H$9,IF(B110="Standard",Kalkulačka!$H$11,Kalkulačka!$H$10))*10 -> 4800 | AD110: 178.81 | AE110: 480 | AF110: .jpg | AG110: =CONCATENATE(F110,AF110) -> Škoda Kodiaq 1.5 TSI ACT 110.jpg
A111: https://webapps.skoda-auto.sk/Cenniky-a-katalogy/cenniky/Skoda_Octavia_cennik.pdf?201907170143&_ga=2.234755998.1894893320.1570359683-68f7c902-901f-4033-8088-c4be136ce0df | B111: Standard | C111: Stredná trieda | D111: Škoda | E111: Octavia 1.6 TDI | F111: Škoda Octavia 1.6 TDI | G111: 2017 | H111: 1 | I111: 19830 | J111: =IF(OR(B111="Elektromobil",B111="Plug-in"),Kalkulačka!$H$8,0) -> 0 | K111: 1855 | L111: 85 | M111: 151 | N111: 1598 | O111: 0 | P111: =50/R111*100 -> 862.0689655 | Q111: nafta | R111: 5.8 | S111: 0 | T111: =R111*1000*Kalkulačka!$H$5 -> 7197.8 | U111: =MAX(IF(OR(B111="Hybrid",B111="Plug-in"),0.5*VLOOKUP(L111,Predpoklady!$A$10:$C$25,3,1),VLOOKUP(L111,Predpoklady!$A$10:$C$25,3,1)),33) -> 90 | V111: =148*8 -> 1184 | W111: =U111+V111 -> 1274 | X111: 15100000 | Y111: =Predpoklady!$B$5 -> 28 | Z111: =Predpoklady!$C$4 -> 8000000 | AA111: 23.1 | AB111: 27117.8 | AC111: =IF(B111="Elektromobil",Kalkulačka!$H$9,IF(B111="Standard",Kalkulačka!$H$11,Kalkulačka!$H$10))*10 -> 4800 | AD111: 155.2 | AE111: 480 | AF111: .jpg | AG111: =CONCATENATE(F111,AF111) -> Škoda Octavia 1.6 TDI.jpg
A112: https://www.skoda-auto.sk/modely/scala/scala | B112: Standard | C112: Stredná trieda | D112: Škoda | E112: Scala 1.0 TSI Ambition | F112: Škoda Scala 1.0 TSI Ambition | G112: 2019 | H112: 1 | I112: 16230 | J112: =IF(OR(B112="Elektromobil",B112="Plug-in"),Kalkulačka!$H$8,0) -> 0 | K112: 1368 | L112: 85 | M112: 163 | N112: 999 | O112: 0 | P112: =50/R112*100 -> 694.4444444 | Q112: benzín | R112: 7.2 | S112: 0 | T112: =R112*1000*Kalkulačka!$H$4 -> 9604.8 | U112: =MAX(IF(OR(B112="Hybrid",B112="Plug-in"),0.5*VLOOKUP(L112,Predpoklady!$A$10:$C$25,3,1),VLOOKUP(L112,Predpoklady!$A$10:$C$25,3,1)),33) -> 90 | X112: 16300000 | Y112: =Predpoklady!$B$4 -> 32 | Z112: =Predpoklady!$C$4 -> 8000000 | AA112: 24.3 | AB112: 25924.8 | AC112: =IF(B112="Elektromobil",Kalkulačka!$H$9,IF(B112="Standard",Kalkulačka!$H$11,Kalkulačka!$H$10))*10 -> 4800 | AD112: 195.48 | AE112: 480
A113: https://webapps.skoda-auto.sk/Cenniky-a-katalogy/cenniky/Skoda_Superb_cennik.pdf?201908010229&_ga=2.7280690.1894893320.1570359683-68f7c902-901f-4033-8088-c4be136ce0df | B113: Standard | C113: Stredná trieda | D113: Škoda | E113: Superb 2.0 TDI SCR Active | F113: Škoda Superb 2.0 TDI SCR Active | G113: 2017 | H113: 1 | I113: 27670 | J113: =IF(OR(B113="Elektromobil",B113="Plug-in"),Kalkulačka!$H$8,0) -> 0 | K113: 2030 | L113: 110 | M113: 156 | N113: 1968 | O113: 0 | P113: =66/R113*100 -> 1118.644068 | Q113: nafta | R113: 5.9 | S113: 0 | T113: =R113*1000*Kalkulačka!$H$5 -> 7321.9 | U113: =MAX(IF(OR(B113="Hybrid",B113="Plug-in"),0.5*VLOOKUP(L113,Predpoklady!$A$10:$C$25,3,1),VLOOKUP(L113,Predpoklady!$A$10:$C$25,3,1)),33) -> 260 | V113: =148*8 -> 1184 | W113: =U113+V113 -> 1444 | X113: 15600000 | Y113: =Predpoklady!$B$5 -> 28 | Z113: =Predpoklady!$C$5 -> 7000000 | AA113: 22.6 | AB113: 35251.9 | AC113: =IF(B113="Elektromobil",Kalkulačka!$H$9,IF(B113="Standard",Kalkulačka!$H$11,Kalkulačka!$H$10))*10 -> 4800 | AD113: 168.3 | AE113: 480 | AF113: .jpg | AG113: =CONCATENATE(F113,AF113) -> Škoda Superb 2.0 TDI SCR Active.jpg
A114: https://www.tesla.com/cs_cz/model3 | B114: Elektromobil | C114: Stredná trieda | D114: Tesla | E114: Model 3 Standard Range Plus | F114: Tesla Model 3 Standard Range Plus | G114: 2019 | H114: 1 | I114: 44400 | J114: =IF(OR(B114="Elektromobil",B114="Plug-in"),Kalkulačka!$H$8,0) -> 0 | K114: 1610 | L114: 175 | M114: 0 | N114: 0 | O114: 50 | P114: =O114/S114*1000 -> 340.1360544 | Q114: elektrina | R114: 0 | S114: 147 | T114: =S114*100000*0.001*Kalkulačka!$H$6 -> 2179.275 | U114: =Predpoklady!$B$27 -> 33 | X114: =S114*100000*0.001*Predpoklady!$B$1 -> 2734200 | Y114: =Predpoklady!$B$2 -> 42 | Z114: =Predpoklady!$C$2 -> 10500000 | AA114: 13.2342 | AB114: 46612.275 | AC114: =IF(B114="Elektromobil",Kalkulačka!$H$9,IF(B114="Standard",Kalkulačka!$H$11,Kalkulačka!$H$10))*10 -> 2900 | AD114: 174.54 | AE114: 290 | AF114: .jpeg | AG114: Tesla Model 3 Standard Range Plus.jpeg
A115: https://www.tesla.com/cs_CZ/models/design#battery | B115: Elektromobil | C115: Luxusné | D115: Tesla | E115: Model S Long Range | F115: Tesla Model S Long Range | G115: 2019 | H115: 1 | I115: 84000 | J115: =IF(OR(B115="Elektromobil",B115="Plug-in"),Kalkulačka!$H$8,0) -> 0 | K115: 2590 | L115: 311 | M115: 0 | N115: 0 | O115: 100 | P115: =O115/S115*1000 -> 520.8333333 | Q115: elektrina | R115: 0 | S115: 192 | T115: =S115*100000*0.001*Kalkulačka!$H$6 -> 2846.4 | U115: =Predpoklady!$B$27 -> 33 | X115: =S115*100000*0.001*Predpoklady!$B$1 -> 3571200 | Y115: =Predpoklady!$B$2 -> 42 | Z115: =Predpoklady!$C$2 -> 10500000 | AA115: 14.0712 | AB115: 86879.4 | AC115: =IF(B115="Elektromobil",Kalkulačka!$H$9,IF(B115="Standard",Kalkulačka!$H$11,Kalkulačka!$H$10))*10 -> 2900 | AD115: 174.54 | AE115: 290 | AF115: .jpg | AG115: Tesla Model S Long Range.jpg
A116: https://www.tesla.com/cs_CZ/modelx/design#battery | B116: Elektromobil | C116: SUV | D116: Tesla | E116: Model X Long Range | F116: Tesla Model X Long Range | G116: 2019 | H116: 1 | I116: 91000 | J116: =IF(OR(B116="Elektromobil",B116="Plug-in"),Kalkulačka!$H$8,0) -> 0 | K116: 3020 | L116: 311 | M116: 0 | N116: 0 | O116: 100 | P116: =O116/S116*1000 -> 462.962963 | Q116: elektrina | R116: 0 | S116: 216 | T116: =S116*100000*0.001*Kalkulačka!$H$6 -> 3202.2 | U116: =Predpoklady!$B$27 -> 33 | X116: =S116*100000*0.001*Predpoklady!$B$1 -> 4017600 | Y116: =Predpoklady!$B$2 -> 42 | Z116: =Predpoklady!$C$2 -> 10500000 | AA116: 14.5176 | AB116: 94235.2 | AC116: =IF(B116="Elektromobil",Kalkulačka!$H$9,IF(B116="Standard",Kalkulačka!$H$11,Kalkulačka!$H$10))*10 -> 2900 | AD116: 174.54 | AE116: 290 | AF116: .jpg | AG116: Tesla Model X Long Range.jpg
A117: https://pdf.sites.toyota.sk/limitovana_ponuka.pdf | B117: Hybrid | C117: Kompakt | D117: Toyota | E117: CH-R 1.8 Hybrid Executive | F117: Toyota CH-R 1.8 Hybrid Executive | G117: 2016 | H117: 1 | I117: 24990 | J117: =IF(OR(B117="Elektromobil",B117="Plug-in"),Kalkulačka!$H$8,0) -> 0 | K117: 1860 | L117: 90 | M117: 87 | N117: 1798 | O117: 1.31 | P117: =43/R117*100 -> 1048.780488 | Q117: benzín / elektrina | R117: 4.1 | S117: 0 | T117: =R117*1000*Kalkulačka!$H$4 -> 5469.4 | U117: =MAX(IF(OR(B117="Hybrid",B117="Plug-in"),0.5*VLOOKUP(L117,Predpoklady!$A$10:$C$25,3,1),VLOOKUP(L117,Predpoklady!$A$10:$C$25,3,1)),33) -> 55 | V117: =148*8/2 -> 592 | W117: =U117+V117 -> 647 | X117: =M117*100000 -> 8700000 | Y117: =Predpoklady!$B$3 -> 37 | Z117: =Predpoklady!$C$3 -> 11000000 | AA117: 19.7 | AB117: 30514.4 | AC117: =IF(B117="Elektromobil",Kalkulačka!$H$9,IF(B117="Standard",Kalkulačka!$H$11,Kalkulačka!$H$10))*10 -> 4400 | AD117: 134.34 | AE117: 440 | AF117: .jpg | AG117: Toyota CH-R 1.8 Hybrid Executive.jpg
A118: https://pdf.sites.toyota.sk/cennik_prius_plug_in.pdf | B118: Plug-in | C118: Stredná trieda | D118: Toyota | E118: Prius Plug-In hybrid 1.8 Plug-in Hybrid | F118: Toyota Prius Plug-In hybrid 1.8 Plug-in Hybrid | G118: 2017 | H118: 1 | I118: 33890 | J118: =IF(OR(B118="Elektromobil",B118="Plug-in"),Kalkulačka!$H$8,0) -> 0 | K118: 1550 | L118: 90 | M118: 30 | N118: 1798 | O118: 8.8 | P118: =0.6*O118/S118*1000+0.4*45/R118*100 -> 899.7235023 | Q118: benzín + elektrina | R118: 2.1 | S118: 124 | T118: =R118*1000*Kalkulačka!$H$4*0.4+S118/1000*100000*Kalkulačka!$H$6*0.6 -> 2223.54 | U118: =MAX(IF(OR(B118="Hybrid",B118="Plug-in"),0.5*VLOOKUP(L118,Predpoklady!$A$10:$C$25,3,1),VLOOKUP(L118,Predpoklady!$A$10:$C$25,3,1)),33) -> 55 | V118: =148*8/2 -> 592 | W118: =U118+V118 -> 647 | X118: =(0.6*Predpoklady!$B$1*S118/1000+0.4*M118)*100000 -> 2583840 | Y118: =Predpoklady!$B$3 -> 37 | Z118: =Predpoklady!$C$3 -> 11000000 | AA118: 13.58384 | AB118: 36168.54 | AC118: =IF(B118="Elektromobil",Kalkulačka!$H$9,IF(B118="Standard",Kalkulačka!$H$11,Kalkulačka!$H$10))*10 -> 4400 | AD118: 127.3 | AE118: 440 | AF118: .jpg | AG118: Toyota Prius Plug-In hybrid 1.8 Plug-in Hybrid.jpg
A119: https://pdf.sites.toyota.sk/cennik_rav4.pdf | B119: Standard | C119: SUV | D119: Toyota | E119: RAV4 2.0 | F119: Toyota RAV4 2.0 | G119: 2018 | H119: 1 | I119: 23990 | J119: =IF(OR(B119="Elektromobil",B119="Plug-in"),Kalkulačka!$H$8,0) -> 0 | K119: 2135 | L119: 130 | M119: 124 | N119: 1984 | O119: 0 | P119: =55/R119*100 -> 797.1014493 | Q119: benzín | R119: 6.9 | S119: 0 | T119: =R119*1000*Kalkulačka!$H$4 -> 9204.6 | U119: =MAX(IF(OR(B119="Hybrid",B119="Plug-in"),0.5*VLOOKUP(L119,Predpoklady!$A$10:$C$25,3,1),VLOOKUP(L119,Predpoklady!$A$10:$C$25,3,1)),33) -> 530 | X119: =M119*100000 -> 12400000 | Y119: =Predpoklady!$B$5 -> 28 | Z119: =Predpoklady!$C$5 -> 7000000 | AA119: 19.4 | AB119: 33724.6 | AC119: =IF(B119="Elektromobil",Kalkulačka!$H$9,IF(B119="Standard",Kalkulačka!$H$11,Kalkulačka!$H$10))*10 -> 4800 | AD119: 171 | AE119: 480 | AF119: .jpg | AG119: Toyota RAV4 2.0.jpg
A120: https://pdf.sites.toyota.sk/cennik_rav4.pdf | B120: Hybrid | C120: SUV | D120: Toyota | E120: RAV4 2.5 Hybrid | F120: Toyota RAV4 2.5 Hybrid | G120: 2018 | H120: 1 | I120: 30590 | J120: =IF(OR(B120="Elektromobil",B120="Plug-in"),Kalkulačka!$H$8,0) -> 0 | K120: 2205 | L120: 160 | M120: 105 | N120: 2494 | O120: 27.4 | P120: =56/R120*100 -> 800 | Q120: benzín / elektrina | R120: 7 | S120: 0 | T120: =R120*1000*Kalkulačka!$H$4 -> 9338 | U120: =MAX(IF(OR(B120="Hybrid",B120="Plug-in"),0.5*VLOOKUP(L120,Predpoklady!$A$10:$C$25,3,1),VLOOKUP(L120,Predpoklady!$A$10:$C$25,3,1)),33) -> 550 | X120: 10500000 | Y120: =Predpoklady!$B$3 -> 37 | Z120: =Predpoklady!$C$3 -> 11000000 | AA120: 21.5 | AB120: 40478 | AC120: =IF(B120="Elektromobil",Kalkulačka!$H$9,IF(B120="Standard",Kalkulačka!$H$11,Kalkulačka!$H$10))*10 -> 4400 | AD120: 136.48 | AE120: 440 | AF120: .jpg | AG120: Toyota RAV4 2.5 Hybrid.jpg
A121: https://pdf.sites.toyota.sk/limitovana_ponuka.pdf | B121: Hybrid | C121: Kompakt | D121: Toyota | E121: Yaris 1.5 Hybrid | F121: Toyota Yaris 1.5 Hybrid | G121: 2017 | H121: 1 | I121: 14790 | J121: =IF(OR(B121="Elektromobil",B121="Plug-in"),Kalkulačka!$H$8,0) -> 0 | K121: 1565 | L121: 74 | M121: 75 | N121: 1497 | O121: 1.3 | P121: =36/R121*100 -> 1090.909091 | Q121: benzín / elektrina | R121: 3.3 | S121: 0 | T121: =R121*1000*Kalkulačka!$H$4 -> 4402.2 | U121: =MAX(IF(OR(B121="Hybrid",B121="Plug-in"),0.5*VLOOKUP(L121,Predpoklady!$A$10:$C$25,3,1),VLOOKUP(L121,Predpoklady!$A$10:$C$25,3,1)),33) -> 33 | V121: =115*8/2 -> 460 | W121: =U121+V121 -> 493 | X121: 7500000 | Y121: =Predpoklady!$B$3 -> 37 | Z121: =Predpoklady!$C$3 -> 11000000 | AA121: 18.5 | AB121: 19225.2 | AC121: =IF(B121="Elektromobil",Kalkulačka!$H$9,IF(B121="Standard",Kalkulačka!$H$11,Kalkulačka!$H$10))*10 -> 4400 | AD121: 126.44 | AE121: 440 | AF121: .jpg | AG121: Toyota Yaris 1.5 Hybrid.jpg
A122: https://pdf.sites.toyota.sk/limitovana_ponuka.pdf | B122: Standard | C122: Kompakt | D122: Toyota | E122: Yaris 1.5 VVT-i Executive | F122: Toyota Yaris 1.5 VVT-i Executive | G122: 2019 | H122: 1 | I122: 11390 | J122: =IF(OR(B122="Elektromobil",B122="Plug-in"),Kalkulačka!$H$8,0) -> 0 | K122: 1500 | L122: 82 | M122: 112 | N122: 1497 | O122: 0 | P122: =42/R122*100 -> 700 | Q122: benzín | R122: 6 | S122: 0 | T122: =R122*1000*Kalkulačka!$H$4 -> 8004 | U122: =MAX(IF(OR(B122="Hybrid",B122="Plug-in"),0.5*VLOOKUP(L122,Predpoklady!$A$10:$C$25,3,1),VLOOKUP(L122,Predpoklady!$A$10:$C$25,3,1)),33) -> 90 | V122: =115*8 -> 920 | W122: =U122+V122 -> 1010 | X122: 11200000 | Y122: =Predpoklady!$B$4 -> 32 | Z122: =Predpoklady!$C$4 -> 8000000 | AA122: 19.2 | AB122: 19484 | AC122: =IF(B122="Elektromobil",Kalkulačka!$H$9,IF(B122="Standard",Kalkulačka!$H$11,Kalkulačka!$H$10))*10 -> 4800 | AD122: 121.38 | AE122: 480 | AF122: .jpg | AG122: Toyota Yaris 1.5 VVT-i Executive.jpg
A123: https://www.vw.sk/up/up | B123: Standard | C123: Mini | D123: Volkswagen | E123: 1.0 move up! | F123: Volkswagen 1.0 move up! | G123: 2011 | H123: 1 | I123: 9910 | J123: =IF(OR(B123="Elektromobil",B123="Plug-in"),Kalkulačka!$H$8,0) -> 0 | K123: 1330 | L123: 44 | M123: 96 | N123: 999 | O123: 0 | P123: =35/R123*100 -> 714.2857143 | Q123: benzín | R123: 4.9 | S123: 0 | T123: =R123*1000*Kalkulačka!$H$4 -> 6536.6 | U123: =MAX(IF(OR(B123="Hybrid",B123="Plug-in"),0.5*VLOOKUP(L123,Predpoklady!$A$10:$C$25,3,1),VLOOKUP(L123,Predpoklady!$A$10:$C$25,3,1)),33) -> 33 | X123: 9600000 | Y123: =Predpoklady!$B$4 -> 32 | Z123: =Predpoklady!$C$4 -> 8000000 | AA123: 17.6 | AB123: 16479.6 | AC123: =IF(B123="Elektromobil",Kalkulačka!$H$9,IF(B123="Standard",Kalkulačka!$H$11,Kalkulačka!$H$10))*10 -> 4800 | AD123: 121.38 | AE123: 480 | AF123: .jpg | AG123: Volkswagen 1.0 move up!.jpg
A124: https://www.vw.sk/arteon | B124: Standard | C124: Stredná trieda | D124: Volkswagen | E124: Arteon 2.0 TSI 4MOTION | F124: Volkswagen Arteon 2.0 TSI 4MOTION | G124: 2017 | H124: 1 | I124: 48720 | J124: =IF(OR(B124="Elektromobil",B124="Plug-in"),Kalkulačka!$H$8,0) -> 0 | K124: 2250 | L124: 200 | M124: 160 | N124: 1984 | O124: 0 | P124: =66/R124*100 -> 785.7142857 | Q124: benzín | R124: 8.4 | S124: 0 | T124: =R124*1000*Kalkulačka!$H$4 -> 11205.6 | U124: =MAX(IF(OR(B124="Hybrid",B124="Plug-in"),0.5*VLOOKUP(L124,Predpoklady!$A$10:$C$25,3,1),VLOOKUP(L124,Predpoklady!$A$10:$C$25,3,1)),33) -> 1900 | X124: 16000000 | Y124: =Predpoklady!$B$4 -> 32 | Z124: =Predpoklady!$C$4 -> 8000000 | AA124: 24 | AB124: 61825.6 | AC124: =IF(B124="Elektromobil",Kalkulačka!$H$9,IF(B124="Standard",Kalkulačka!$H$11,Kalkulačka!$H$10))*10 -> 4800 | AD124: 311.16 | AE124: 480 | AF124: .jpg | AG124: Volkswagen Arteon 2.0 TSI 4MOTION.jpg
A125: https://www.vw.sk/e-golf | B125: Elektromobil | C125: Kompakt | D125: Volkswagen | E125: e-Golf | F125: Volkswagen e-Golf | G125: 2017 | H125: 1 | I125: 32980 | J125: =IF(OR(B125="Elektromobil",B125="Plug-in"),Kalkulačka!$H$8,0) -> 0 | K125: 2020 | L125: 100 | M125: 0 | N125: 0 | O125: 35.8 | P125: =O125/S125*1000 -> 253.9007092 | Q125: elektrina | R125: 0 | S125: 141 | T125: =S125*100000*0.001*Kalkulačka!$H$6 -> 2090.325 | U125: =Predpoklady!$B$27 -> 33 | V125: 0 | W125: =U125+V125 -> 33 | X125: =S125*100000*0.001*Predpoklady!$B$1 -> 2622600 | Y125: =Predpoklady!$B$2 -> 42 | Z125: =Predpoklady!$C$2 -> 10500000 | AA125: 13.1226 | AB125: 35103.325 | AC125: =IF(B125="Elektromobil",Kalkulačka!$H$9,IF(B125="Standard",Kalkulačka!$H$11,Kalkulačka!$H$10))*10 -> 2900 | AD125: 127.3 | AE125: 290 | AF125: .jpg | AG125: Volkswagen e-Golf.jpg
A126: https://www.vw.sk/e-up | B126: Elektromobil | C126: Mini | D126: Volkswagen | E126: e-UP! | F126: Volkswagen e-UP! | G126: 2018 | H126: 1 | I126: 22170 | J126: =IF(OR(B126="Elektromobil",B126="Plug-in"),Kalkulačka!$H$8,0) -> 0 | K126: 1530 | L126: 61 | M126: 0 | N126: 0 | O126: 32.3 | P126: =O126/S126*1000 -> 254.3307087 | Q126: elektrina | R126: 0 | S126: 127 | T126: =S126*100000*0.001*Kalkulačka!$H$6 -> 1882.775 | U126: =Predpoklady!$B$27 -> 33 | V126: 0 | W126: =U126+V126 -> 33 | X126: =S126*100000*0.001*Predpoklady!$B$1 -> 2362200 | Y126: =Predpoklady!$B$2 -> 42 | Z126: =Predpoklady!$C$2 -> 10500000 | AA126: 12.8622 | AB126: =I126+T126+U126 -> 24085.775 | AC126: =IF(B126="Elektromobil",Kalkulačka!$H$9,IF(B126="Standard",Kalkulačka!$H$11,Kalkulačka!$H$10))*10 -> 2900 | AD126: 121.38 | AE126: 290 | AF126: .jpg | AG126: Volkswagen e-UP!.jpg
A127: https://www.vw.sk/golf/golf | B127: Standard | C127: Kompakt | D127: Volkswagen | E127: Golf 1.6 TDI | F127: Volkswagen Golf 1.6 TDI | G127: 2014 | H127: 1 | I127: 19850 | J127: =IF(OR(B127="Elektromobil",B127="Plug-in"),Kalkulačka!$H$8,0) -> 0 | K127: 1820 | L127: 85 | M127: 111 | N127: 1598 | O127: 0 | P127: =50/R127*100 -> 1063.829787 | Q127: nafta | R127: 4.7 | S127: 0 | T127: =R127*1000*Kalkulačka!$H$5 -> 5832.7 | U127: =MAX(IF(OR(B127="Hybrid",B127="Plug-in"),0.5*VLOOKUP(L127,Predpoklady!$A$10:$C$25,3,1),VLOOKUP(L127,Predpoklady!$A$10:$C$25,3,1)),33) -> 90 | V127: =148*8 -> 1184 | W127: =U127+V127 -> 1274 | X127: =M127*100000 -> 11100000 | Y127: =Predpoklady!$B$4 -> 32 | Z127: =Predpoklady!$C$4 -> 8000000 | AA127: 19.1 | AB127: 25772.7 | AC127: =IF(B127="Elektromobil",Kalkulačka!$H$9,IF(B127="Standard",Kalkulačka!$H$11,Kalkulačka!$H$10))*10 -> 4800 | AD127: 128.96 | AE127: 480 | AF127: .jpg | AG127: Volkswagen Golf 1.6 TDI.jpg
A128: https://www.vw.sk/passat | B128: Standard | C128: Stredná trieda | D128: Volkswagen | E128: Passat 2.0 TDI EVO | F128: Volkswagen Passat 2.0 TDI EVO | G128: 2019 | H128: 1 | I128: 27190 | J128: =IF(OR(B128="Elektromobil",B128="Plug-in"),Kalkulačka!$H$8,0) -> 0 | K128: 2040 | L128: 110 | M128: 109 | N128: 1968 | O128: 0 | P128: =66/R128*100 -> 1269.230769 | Q128: nafta | R128: 5.2 | S128: 0 | T128: =R128*1000*Kalkulačka!$H$5 -> 6453.2 | U128: =MAX(IF(OR(B128="Hybrid",B128="Plug-in"),0.5*VLOOKUP(L128,Predpoklady!$A$10:$C$25,3,1),VLOOKUP(L128,Predpoklady!$A$10:$C$25,3,1)),33) -> 260 | V128: =148*8 -> 1184 | W128: =U128+V128 -> 1444 | X128: 10900000 | Y128: =Predpoklady!$B$5 -> 28 | Z128: =Predpoklady!$C$5 -> 7000000 | AA128: 17.9 | AB128: 33903.2 | AC128: =IF(B128="Elektromobil",Kalkulačka!$H$9,IF(B128="Standard",Kalkulačka!$H$11,Kalkulačka!$H$10))*10 -> 4800 | AD128: 178.81 | AE128: 480 | AF128: .jpg | AG128: Volkswagen Passat 2.0 TDI EVO.jpg
A129: https://www.vw.sk/polo/polo-gti | B129: Standard | C129: Kompakt | D129: Volkswagen | E129: Polo 2.0 TSI GTI | F129: Volkswagen Polo 2.0 TSI GTI | G129: 2017 | H129: 1 | I129: 21140 | J129: =IF(OR(B129="Elektromobil",B129="Plug-in"),Kalkulačka!$H$8,0) -> 0 | K129: 1750 | L129: 147 | M129: 144 | N129: 1984 | O129: 0 | P129: =40/R129*100 -> 487.804878 | Q129: benzín | R129: 8.2 | S129: 0 | T129: =R129*1000*Kalkulačka!$H$4 -> 10938.8 | U129: =MAX(IF(OR(B129="Hybrid",B129="Plug-in"),0.5*VLOOKUP(L129,Predpoklady!$A$10:$C$25,3,1),VLOOKUP(L129,Predpoklady!$A$10:$C$25,3,1)),33) -> 870 | X129: 14400000 | Y129: =Predpoklady!$B$4 -> 32 | Z129: =Predpoklady!$C$4 -> 8000000 | AA129: 22.4 | AB129: 32948.8 | AC129: =IF(B129="Elektromobil",Kalkulačka!$H$9,IF(B129="Standard",Kalkulačka!$H$11,Kalkulačka!$H$10))*10 -> 4800 | AD129: 126.44 | AE129: 480 | AF129: .jpg | AG129: Volkswagen Polo 2.0 TSI GTI.jpg
A130: https://www.vw.sk/tiguan | B130: Standard | C130: SUV | D130: Volkswagen | E130: Tiguan 2.0 TDI | F130: =CONCATENATE(D130," ",E130) -> Volkswagen Tiguan 2.0 TDI | G130: 2017 | H130: 1 | I130: 28900 | J130: =IF(OR(B130="Elektromobil",B130="Plug-in"),Kalkulačka!$H$8,0) -> 0 | K130: 2060 | L130: 110 | M130: 126 | N130: 1968 | O130: 0 | P130: =58/R130*100 -> 1035.714286 | Q130: nafta | R130: 5.6 | S130: 0 | T130: =R130*1000*Kalkulačka!$H$5 -> 6949.6 | U130: =MAX(IF(OR(B130="Hybrid",B130="Plug-in"),0.5*VLOOKUP(L130,Predpoklady!$A$10:$C$25,3,1),VLOOKUP(L130,Predpoklady!$A$10:$C$25,3,1)),33) -> 260 | X130: 12600000 | Y130: =Predpoklady!$B$5 -> 28 | Z130: =Predpoklady!$C$5 -> 7000000 | AA130: =(X130+Z130)/1000000 -> 19.6 | AB130: 36109.6 | AC130: =IF(B130="Elektromobil",Kalkulačka!$H$9,IF(B130="Standard",Kalkulačka!$H$11,Kalkulačka!$H$10))*10 -> 4800 | AD130: 180.54 | AE130: =AC130/10 -> 480 | AF130: .jpg | AG130: Volkswagen Tiguan 2.0 TDI.jpg
A131: https://www.vw.sk/novy-touareg | B131: Standard | C131: SUV | D131: Volkswagen | E131: Touareg 3.0 V6 TDI | F131: Volkswagen Touareg 3.0 V6 TDI | G131: 2016 | H131: 1 | I131: 49990 | J131: =IF(OR(B131="Elektromobil",B131="Plug-in"),Kalkulačka!$H$8,0) -> 0 | K131: 2850 | L131: 170 | M131: 205 | N131: 2967 | O131: 0 | P131: =75/R131*100 -> 974.025974 | Q131: nafta | R131: 7.7 | S131: 0 | T131: =R131*1000*Kalkulačka!$H$5 -> 9555.7 | U131: =MAX(IF(OR(B131="Hybrid",B131="Plug-in"),0.5*VLOOKUP(L131,Predpoklady!$A$10:$C$25,3,1),VLOOKUP(L131,Predpoklady!$A$10:$C$25,3,1)),33) -> 1250 | V131: =180*8 -> 1440 | W131: =U131+V131 -> 2690 | X131: 20500000 | Y131: =Predpoklady!$B$5 -> 28 | Z131: =Predpoklady!$C$5 -> 7000000 | AA131: 27.5 | AB131: 60795.7 | AC131: =IF(B131="Elektromobil",Kalkulačka!$H$9,IF(B131="Standard",Kalkulačka!$H$11,Kalkulačka!$H$10))*10 -> 4800 | AD131: 200.12 | AE131: 480 | AF131: .jpg | AG131: Volkswagen Touareg 3.0 V6 TDI.jpg
A132: https://www.vw.sk/touran | B132: Standard | C132: Kompakt | D132: Volkswagen | E132: Touran 1.5 TSI | F132: Volkswagen Touran 1.5 TSI | G132: 2016 | H132: 1 | I132: 21990 | J132: =IF(OR(B132="Elektromobil",B132="Plug-in"),Kalkulačka!$H$8,0) -> 0 | K132: 2090 | L132: 110 | M132: 132 | N132: 1498 | O132: 0 | P132: =58/R132*100 -> 828.5714286 | Q132: benzín | R132: 7 | S132: 0 | T132: =R132*1000*Kalkulačka!$H$4 -> 9338 | U132: =MAX(IF(OR(B132="Hybrid",B132="Plug-in"),0.5*VLOOKUP(L132,Predpoklady!$A$10:$C$25,3,1),VLOOKUP(L132,Predpoklady!$A$10:$C$25,3,1)),33) -> 260 | X132: 13200000 | Y132: =Predpoklady!$B$4 -> 32 | Z132: =Predpoklady!$C$4 -> 8000000 | AA132: 21.2 | AB132: 31588 | AC132: =IF(B132="Elektromobil",Kalkulačka!$H$9,IF(B132="Standard",Kalkulačka!$H$11,Kalkulačka!$H$10))*10 -> 4800 | AD132: 205.99 | AE132: 480 | AF132: .jpg | AG132: Volkswagen Touran 1.5 TSI.jpg
A133: https://www.vw.sk/t-roc/t-roc | B133: Standard | C133: SUV | D133: Volkswagen | E133: T-Roc 1.0 TSI | F133: Volkswagen T-Roc 1.0 TSI | G133: 2018 | H133: 1 | I133: 16990 | J133: =IF(OR(B133="Elektromobil",B133="Plug-in"),Kalkulačka!$H$8,0) -> 0 | K133: 1780 | L133: 85 | M133: 120 | N133: 999 | O133: 0 | P133: =50/R133*100 -> 862.0689655 | Q133: benzín | R133: 5.8 | S133: 0 | T133: =R133*1000*Kalkulačka!$H$4 -> 7737.2 | U133: =MAX(IF(OR(B133="Hybrid",B133="Plug-in"),0.5*VLOOKUP(L133,Predpoklady!$A$10:$C$25,3,1),VLOOKUP(L133,Predpoklady!$A$10:$C$25,3,1)),33) -> 90 | X133: 12000000 | Y133: =Predpoklady!$B$4 -> 32 | Z133: =Predpoklady!$C$4 -> 8000000 | AA133: 20 | AB133: 24817.2 | AC133: =IF(B133="Elektromobil",Kalkulačka!$H$9,IF(B133="Standard",Kalkulačka!$H$11,Kalkulačka!$H$10))*10 -> 4800 | AD133: 155.04 | AE133: 480 | AF133: .jpg | AG133: Volkswagen T-Roc 1.0 TSI.jpg
A134: http://pdf.najbezpecnejsieauto.sk/Cennik/XC90-MY20.pdf | B134: Plug-in | C134: SUV | D134: Volvo | E134: XC90 T8 eAWD Twin Engine Momentum Pro | F134: Volvo XC90 T8 eAWD Twin Engine Momentum Pro | G134: 2016 | H134: 1 | I134: 80000 | J134: =IF(OR(B134="Elektromobil",B134="Plug-in"),Kalkulačka!$H$8,0) -> 0 | K134: 2381 | L134: 290 | M134: 55 | N134: 1969 | O134: 9.6 | P134: =0.6*O134/S134*1000+0.4*50/R134*100 -> 984.029304 | Q134: benzín + elektrina | R134: 2.1 | S134: 182 | T134: =R134*1000*Kalkulačka!$H$4*0.4+S134/1000*100000*Kalkulačka!$H$6*0.6 -> 2739.45 | U134: =MAX(IF(OR(B134="Hybrid",B134="Plug-in"),0.5*VLOOKUP(L134,Predpoklady!$A$10:$C$25,3,1),VLOOKUP(L134,Predpoklady!$A$10:$C$25,3,1)),33) -> 1950 | X134: =(0.6*Predpoklady!$B$1*S134/1000+0.4*M134)*100000 -> 4231120 | Y134: =Predpoklady!$B$3 -> 37 | Z134: =Predpoklady!$C$3 -> 11000000 | AA134: 15.23112 | AB134: 84689.45 | AC134: =IF(B134="Elektromobil",Kalkulačka!$H$9,IF(B134="Standard",Kalkulačka!$H$11,Kalkulačka!$H$10))*10 -> 4400 | AD134: 178.81 | AE134: 440 | AF134: .jpg | AG134: Volvo XC90 T8 eAWD Twin Engine Momentum Pro.jpg
A135: http://zd-sr.sk/konfiguracia | B135: Elektromobil | C135: Mini | D135: ZhiDou | E135: D2 | F135: ZhiDou D2 | G135: 2017 | H135: 1 | I135: 18460 | J135: =IF(OR(B135="Elektromobil",B135="Plug-in"),Kalkulačka!$H$8,0) -> 0 | K135: 704 | L135: 30 | M135: 0 | N135: 0 | O135: 18 | P135: 257 | Q135: elektrina | R135: 0 | S135: =O135/P135*1000 -> 70.03891051 | T135: =S135*100000*0.001*Kalkulačka!$H$6 -> 1038.326848 | U135: =MAX(IF(OR(B135="Hybrid",B135="Plug-in"),0.5*VLOOKUP(L135,Predpoklady!$A$10:$C$25,3,1),VLOOKUP(L135,Predpoklady!$A$10:$C$25,3,1)),33) -> 33 | X135: =S135*100000*0.001*Predpoklady!$B$1 -> 1302723.735 | Y135: =Predpoklady!$B$2 -> 42 | Z135: =Predpoklady!$C$2 -> 10500000 | AA135: 11.80272374 | AB135: 19531.32685 | AC135: =IF(B135="Elektromobil",Kalkulačka!$H$9,IF(B135="Standard",Kalkulačka!$H$11,Kalkulačka!$H$10))*10 -> 2900 | AD135: 112.74 | AE135: 290 | AF135: .jpg | AG135: ZhiDou D2.jpg

Sheet Predpoklady (hidden)
A1: Emisie na výrobu 1 kWh elektriny | B1: 186 | C1: g CO2
A2: Emisie z výroby elektroauta (g/km) | B2: =70*150000/250000 -> 42 | C2: =70*150000 -> 10500000 | D2: Shades of Green
A3: Emisie z výroby hybridu (g/km) | B3: =(B2+B4)/2 -> 37 | C3: =(70+40)/2*200000 -> 11000000
A4: Emisie z výroby - benzín (g/km) | B4: =40*200000/250000 -> 32 | C4: =40*200000 -> 8000000
A5: Emisie z výroby - nafta (g(km) | B5: =35*200000/250000 -> 28 | C5: =35*200000 -> 7000000
A7: Registračná daň
A8: Výkon motora v kW | C8: Sadzba poplatku | E8: Vek vozidla od dňa prvej evidencie (vrátane tohto dňa) | F8: Koeficient zostatkovej hodnoty vozidla
A9: nad | B9: do (vrátane) | C9: v eurách | E9: prvá evidencia | F9: 1,00
A10: 0 | B10: 80 | C10: 33 | E10: do 1 roka | F10: 0,82
A11: 81 | B11: 86 | C11: 90 | E11: do 2 rokov | F11: 0,68
A12: 87 | B12: 92 | C12: 110 | E12: do 3 rokov | F12: 0,56
A13: 93 | B13: 98 | C13: 150 | E13: do 4 rokov | F13: 0,46
A14: 99 | B14: 104 | C14: 210 | E14: do 5 rokov | F14: 0,38
A15: 105 | B15: 110 | C15: 260 | E15: do 6 rokov | F15: 0,32
A16: 111 | B16: 121 | C16: 360 | E16: do 7 rokov | F16: 0,26
A17: 122 | B17: 132 | C17: 530 | E17: do 8 rokov | F17: 0,23
A18: 133 | B18: 143 | C18: 700 | E18: do 9 rokov | F18: 0,19
A19: 144 | B19: 154 | C19: 870 | E19: do 10 rokov | F19: 0,16
A20: 155 | B20: 165 | C20: 1100 | E20: do 11 rokov | F20: 0,14
A21: 166 | B21: 176 | C21: 1250 | E21: do 12 rokov | F21: 0,12
A22: 177 | B22: 202 | C22: 1900 | E22: do 13 rokov | F22: 0,10
A23: 203 | B23: 228 | C23: 2300 | E23: do 14 rokov | F23: 0,09
A24: 229 | B24: 254 | C24: 2700 | E24: do 15 rokov | F24: 0,08
A25: 255 | B25: a viac | C25: 3900 | E25: do 16 rokov | F25: 0,07
E26: nad 16 rokov | F26: 0,06
A27: najnižšia možná registračná daň (EUR) | B27: 33
A28: autá na alternatívny pohon | B28: 0.5
A29: poistenie | B29: www.porovnaniepoistenia.sk
A30: Triedy | B30: Mini | D30: Pohon | E30: Elektromobily
B31: Kompakt | E31: Hybridy
B32: Stredná | E32: Spaľovanie
B33: Luxusná
B34: Nákladné
A36: https://www.nextgreencar.com/tools/emissions-calculator/
A38: Dobíjanie za kilowatthodinu
A39: greenway | B39: 0,30 - 0,45 € + 0,10 € za minútu
A40: domácnosť | B40: 0.11

Sheet Emisie (hidden)
B1: 100 000 km | O1: 200 000 km
B2: =Kalkulačka!C5 -> Mercedes B 250e | C2: =Kalkulačka!D5 -> Mercedes B 250 | D2: Kompakt - elektromobil | E2: Kompakt - hybrid | F2: Kompakt - štandard | G2: Luxusná trieda - elektromobil | H2: Luxusná trieda - hybrid | I2: Luxusná trieda - štandard | J2: Mini - elektromobil | K2: Van - Elektromobil | L2: Stredná trieda - elektromobil | M2: Stredná trieda - hybrid | N2: Stredná trieda - štandard | O2: =Kalkulačka!C5 -> Mercedes B 250e | P2: =Kalkulačka!D5 -> Mercedes B 250 | Q2: Kompakt - elektromobil | R2: Kompakt - hybrid | S2: Kompakt - štandard | T2: Luxusná trieda - elektromobil | U2: Luxusná trieda - hybrid | V2: Luxusná trieda - štandard | W2: Mini - elektromobil | X2: Van - Elektromobil | Y2: Stredná trieda - elektromobil | Z2: Stredná trieda - hybrid | AA2: Stredná trieda - štandard
A3: Prevádzka | B3: =VLOOKUP($B$2,Data!$F$2:$X$135,19,FALSE)/1000000 -> 3.348 | C3: =VLOOKUP($C$2,Data!$F$2:$X$135,19,FALSE)/1000000 -> 15.6 | D3: =HLOOKUP(D$2,'Pomocné tabuľky'!$B$55:$N$63,9,FALSE) -> 3.058138557 | E3: =HLOOKUP(E$2,'Pomocné tabuľky'!$B$55:$N$63,9,FALSE) -> 6.021906667 | F3: =HLOOKUP(F$2,'Pomocné tabuľky'!$B$55:$N$63,9,FALSE) -> 12.13076923 | G3: =HLOOKUP(G$2,'Pomocné tabuľky'!$B$55:$N$63,9,FALSE) -> 3.5712 | H3: =HLOOKUP(H$2,'Pomocné tabuľky'!$B$55:$N$63,9,FALSE) -> 3.788334545 | I3: =HLOOKUP(I$2,'Pomocné tabuľky'!$B$55:$N$63,9,FALSE) -> 15.175 | J3: =HLOOKUP(J$2,'Pomocné tabuľky'!$B$55:$N$63,9,FALSE) -> 2.3237988 | K3: =HLOOKUP(K$2,'Pomocné tabuľky'!$B$55:$N$63,9,FALSE) -> 2.9574 | L3: =HLOOKUP(L$2,'Pomocné tabuľky'!$B$55:$N$63,9,FALSE) -> 2.7404 | M3: =HLOOKUP(M$2,'Pomocné tabuľky'!$B$55:$N$63,9,FALSE) -> 4.195777143 | N3: =HLOOKUP(N$2,'Pomocné tabuľky'!$B$55:$N$63,9,FALSE) -> 13.616 | O3: =B3:N3*2 -> 6.696 | P3: 31.2 | Q3: 6.116277113 | R3: 12.04381333 | S3: 24.26153846 | T3: 7.1424 | U3: 7.576669091 | V3: 30.35 | W3: 4.647597601 | X3: 5.9148 | Y3: 5.4808 | Z3: 8.391554286 | AA3: 27.232
A4: Výroba | B4: =VLOOKUP($B$2,Data!$F$2:$Z$135,21,FALSE)/1000000 -> 10.5 | C4: =VLOOKUP($C$2,Data!$F$2:$Z$135,21,FALSE)/1000000 -> 8 | D4: =HLOOKUP(D$2,'Pomocné tabuľky'!$B$55:$N$63,8,FALSE) -> 10.25 | E4: =HLOOKUP(E$2,'Pomocné tabuľky'!$B$55:$N$63,8,FALSE) -> 11 | F4: =HLOOKUP(F$2,'Pomocné tabuľky'!$B$55:$N$63,8,FALSE) -> 7.923076923 | G4: =HLOOKUP(G$2,'Pomocné tabuľky'!$B$55:$N$63,8,FALSE) -> 10.5 | H4: =HLOOKUP(H$2,'Pomocné tabuľky'!$B$55:$N$63,8,FALSE) -> 11 | I4: =HLOOKUP(I$2,'Pomocné tabuľky'!$B$55:$N$63,8,FALSE) -> 7.75 | J4: =HLOOKUP(J$2,'Pomocné tabuľky'!$B$55:$N$63,8,FALSE) -> 10.5 | K4: =HLOOKUP(K$2,'Pomocné tabuľky'!$B$55:$N$63,8,FALSE) -> 10.5 | L4: =HLOOKUP(L$2,'Pomocné tabuľky'!$B$55:$N$63,8,FALSE) -> 10.5 | M4: =HLOOKUP(M$2,'Pomocné tabuľky'!$B$55:$N$63,8,FALSE) -> 11 | N4: =HLOOKUP(N$2,'Pomocné tabuľky'!$B$55:$N$63,8,FALSE) -> 7.88 | O4: =B4 -> 10.5 | P4: =C4 -> 8 | Q4: 10.25 | R4: 11 | S4: 7.923076923 | T4: 10.5 | U4: 11 | V4: 7.75 | W4: 10.5 | X4: 10.5 | Y4: 10.5 | Z4: 11 | AA4: 7.88
B6: 100 000 km | E6: 200 000 km
B7: Kompakt - elektromobil | C7: Kompakt - hybrid | D7: Kompakt - štandard | E7: Kompakt - elektromobil | F7: Kompakt - hybrid | G7: Kompakt - štandard
A8: Prevádzka | B8: =HLOOKUP(B7,$D$2:$S$3,2,FALSE) -> 3.058138557 | C8: =HLOOKUP(C7,$D$2:$S$3,2,FALSE) -> 6.021906667 | D8: =HLOOKUP(D7,$D$2:$S$3,2,FALSE) -> 12.13076923 | E8: =HLOOKUP(E7,$D$2:$S$3,2,FALSE)*2 -> 6.116277113 | F8: =HLOOKUP(F7,$D$2:$S$3,2,FALSE)*2 -> 12.04381333 | G8: 24.26153846
A9: Výroba | B9: =HLOOKUP(B7,$D$2:$S$4,3,FALSE) -> 10.25 | C9: =HLOOKUP(C7,$D$2:$S$4,3,FALSE) -> 11 | D9: 7.923076923 | E9: 10.25 | F9: 11 | G9: 7.923076923
J10: Trieda | K10: (Všetko)
B11: 100 000 km | E11: 200 000 km
B12: Luxusná trieda - elektromobil | C12: Luxusná trieda - hybrid | D12: Luxusná trieda - štandard | E12: Luxusná trieda - elektromobil | F12: Luxusná trieda - hybrid | G12: Luxusná trieda - štandard | J12: Priemer z Prevádzkové emisie na 100,000km (g CO2) | K12: Označenia stĺpcov
A13: Prevádzka | B13: =HLOOKUP(B12,$G$2:$I$4,2,FALSE) -> 3.5712 | C13: =HLOOKUP(C12,$G$2:$I$4,2,FALSE) -> 3.788334545 | D13: =HLOOKUP(D12,$G$2:$I$4,2,FALSE) -> 15.175 | E13: =HLOOKUP(E12,$G$2:$I$4,2,FALSE)*2 -> 7.1424 | F13: =HLOOKUP(F12,$G$2:$I$4,2,FALSE)*2 -> 7.576669091 | G13: 30.35 | J13: Označenia riadkov | K13: Elektromobil | L13: Hybrid | M13: Plug-in | N13: Standard | O13: Celkový súčet
A14: Výroba | B14: =HLOOKUP(B12,$G$2:$I$4,3,FALSE) -> 10.5 | C14: =HLOOKUP(C12,$G$2:$I$4,3,FALSE) -> 11 | D14: 7.75 | E14: 10.5 | F14: 11 | G14: 7.75 | J14: benzín | N14: 13122413.79 | O14: 13122413.79
J15: benzín / elektrina | L15: 8716666.667 | O15: 8716666.667
B16: 100 000 km | E16: 200 000 km | J16: benzín + elektrina | M16: 3440764.615 | O16: 3440764.615
B17: Stredná trieda - elektromobil | C17: Stredná trieda - hybrid | D17: Stredná trieda - štandard | E17: Stredná trieda - elektromobil | F17: Stredná trieda - hybrid | G17: Stredná trieda - štandard | J17: elektrina | K17: 2758613.354 | O17: 2758613.354
A18: Prevádzka | B18: =HLOOKUP(B17,$L$2:$N$3,2,FALSE) -> 2.7404 | C18: 4.195777143 | D18: =HLOOKUP(D17,$L$2:$N$3,2,FALSE) -> 13.616 | E18: =HLOOKUP(E17,$L$2:$N$3,2,FALSE)*2 -> 5.4808 | F18: =HLOOKUP(F17,$L$2:$N$3,2,FALSE)*2 -> 8.391554286 | G18: 27.232 | J18: nafta | N18: 14200000 | O18: 14200000
A19: Výroba | B19: =HLOOKUP(B17,$L$2:$N$4,3,FALSE) -> 10.5 | C19: =HLOOKUP(C17,$L$2:$N$4,3,FALSE) -> 11 | D19: 7.88 | E19: 10.5 | F19: 11 | G19: 7.88 | J19: nafta + elektrina | M19: 3984600 | O19: 3984600
J20: Celkový súčet | K20: 2758613.354 | L20: 8716666.667 | M20: 3460906.667 | N20: 13377631.58 | O20: 9003219.328
B21: Elektromobil | C21: Plug-in | D21: Hybrid | E21: Benzín | F21: Nafta
A22: Prevádzkové emisie | B22: =GETPIVOTDATA("Prevádzkové emisie na 100,000km (g CO2)",$J$12,"Typ","Elektromobil")/100000 -> 27.58613354 | C22: =GETPIVOTDATA("Prevádzkové emisie na 100,000km (g CO2)",$J$12,"Typ","Plug-in")/100000 -> 34.60906667 | D22: =GETPIVOTDATA("Prevádzkové emisie na 100,000km (g CO2)",$J$12,"Typ","Hybrid")/100000 -> 87.16666667 | E22: =GETPIVOTDATA("Prevádzkové emisie na 100,000km (g CO2)",$J$12,"Typ","Standard","Palivo","benzín")/100000 -> 131.2241379 | F22: =GETPIVOTDATA("Prevádzkové emisie na 100,000km (g CO2)",$J$12,"Typ","Standard","Palivo","nafta")/100000 -> 142
A23: Emisie z výroby | B23: =Predpoklady!B2 -> 42 | C23: =Predpoklady!B3 -> 37 | D23: =Predpoklady!B3 -> 37 | E23: =Predpoklady!B4 -> 32 | F23: =Predpoklady!B5 -> 28
A25: Typ | B25: Trieda | C25: Celý názov | D25: Prevádzkové emisie na 100km (g CO2) | E25: Spotreba paliva na 100km (EUR)
A26: Elektromobil | B26: Mini | C26: ZhiDou D2 | D26: =VLOOKUP(C26,Data!$F$2:$X$135,19,FALSE)/1000/1000 -> 1.302723735 | E26: =VLOOKUP(C26,Data!$F$2:$T$135,15,FALSE)/1000 -> 1.038326848
A27: Plug-in | B27: Kompakt | C27: BMW i3 94 Ah (REX) | D27: =VLOOKUP(C27,Data!$F$2:$X$135,19,FALSE)/1000/1000 -> 1.86572 | E27: =VLOOKUP(C27,Data!$F$2:$T$135,15,FALSE)/1000 -> 1.414235
A28: Elektromobil | B28: Mini | C28: Peugeot iON | D28: =VLOOKUP(C28,Data!$F$2:$X$135,19,FALSE)/1000/1000 -> 1.984 | E28: =VLOOKUP(C28,Data!$F$2:$T$135,15,FALSE)/1000 -> 1.581333333
A29: Elektromobil | B29: Stredná trieda | C29: Hyundai Ioniq Electric BEV | D29: =VLOOKUP(C29,Data!$F$2:$X$135,19,FALSE)/1000/1000 -> 2.139 | E29: =VLOOKUP(C29,Data!$F$2:$T$135,15,FALSE)/1000 -> 1.704875
A30: Plug-in | B30: Stredná trieda | C30: Hyundai Ioniq 1,6 PHEV | D30: =VLOOKUP(C30,Data!$F$2:$X$135,19,FALSE)/1000/1000 -> 2.61356 | E30: =VLOOKUP(C30,Data!$F$2:$T$135,15,FALSE)/1000 -> 1.841155
A31: Elektromobil | B31: Mini | C31: Citroën C-Zero | D31: =VLOOKUP(C31,Data!$F$2:$X$135,19,FALSE)/1000/1000 -> 2.325 | E31: =VLOOKUP(C31,Data!$F$2:$T$135,15,FALSE)/1000 -> 1.853125
A32: Elektromobil | B32: Mini | C32: Volkswagen e-UP! | D32: =VLOOKUP(C32,Data!$F$2:$X$135,19,FALSE)/1000/1000 -> 2.3622 | E32: =VLOOKUP(C32,Data!$F$2:$T$135,15,FALSE)/1000 -> 1.882775
A33: Elektromobil | B33: Mini | C33: Smart electric drive fortwo | D33: =VLOOKUP(C33,Data!$F$2:$X$135,19,FALSE)/1000/1000 -> 2.3994 | E33: =VLOOKUP(C33,Data!$F$2:$T$135,15,FALSE)/1000 -> 1.912425
A34: Elektromobil | B34: Mini | C34: Smart electric drive forfour | D34: =VLOOKUP(C34,Data!$F$2:$X$135,19,FALSE)/1000/1000 -> 2.4366 | E34: =VLOOKUP(C34,Data!$F$2:$T$135,15,FALSE)/1000 -> 1.942075
A35: Plug-in | B35: Stredná trieda | C35: Audi A3 Sportback 1.4 TFSI e-tron Ambition | D35: =VLOOKUP(C35,Data!$F$2:$X$135,19,FALSE)/1000/1000 -> 2.70572 | E35: =VLOOKUP(C35,Data!$F$2:$T$135,15,FALSE)/1000 -> 1.947835
A36: Elektromobil | B36: Mini | C36: Renault Zoe R90 | D36: =VLOOKUP(C36,Data!$F$2:$X$135,19,FALSE)/1000/1000 -> 2.4738 | E36: =VLOOKUP(C36,Data!$F$2:$T$135,15,FALSE)/1000 -> 1.971725
A37: Elektromobil | B37: Kompakt | C37: Škoda CITIGOe IV | D37: =VLOOKUP(C37,Data!$F$2:$X$135,19,FALSE)/1000/1000 -> 2.582943396 | E37: =VLOOKUP(C37,Data!$F$2:$T$135,15,FALSE)/1000 -> 2.058716981
A38: Elektromobil | B38: Kompakt | C38: Volkswagen e-Golf | D38: =VLOOKUP(C38,Data!$F$2:$X$135,19,FALSE)/1000/1000 -> 2.6226 | E38: =VLOOKUP(C38,Data!$F$2:$T$135,15,FALSE)/1000 -> 2.090325
A39: Elektromobil | B39: SUV | C39: Hyundai Kona Electric | D39: =VLOOKUP(C39,Data!$F$2:$X$135,19,FALSE)/1000/1000 -> 2.651224944 | E39: =VLOOKUP(C39,Data!$F$2:$T$135,15,FALSE)/1000 -> 2.113140312
A40: Elektromobil | B40: Kompakt | C40: Kia Soul EV | D40: =VLOOKUP(C40,Data!$F$2:$X$135,19,FALSE)/1000/1000 -> 2.7342 | E40: =VLOOKUP(C40,Data!$F$2:$T$135,15,FALSE)/1000 -> 2.179275
A41: Elektromobil | B41: Stredná trieda | C41: Tesla Model 3 Standard Range Plus | D41: =VLOOKUP(C41,Data!$F$2:$X$135,19,FALSE)/1000/1000 -> 2.7342 | E41: =VLOOKUP(C41,Data!$F$2:$T$135,15,FALSE)/1000 -> 2.179275
A42: Elektromobil | B42: Kompakt | C42: Peugeot e-208 | D42: =VLOOKUP(C42,Data!$F$2:$X$135,19,FALSE)/1000/1000 -> 2.735294118 | E42: =VLOOKUP(C42,Data!$F$2:$T$135,15,FALSE)/1000 -> 2.180147059
A43: Plug-in | B43: Stredná trieda | C43: Toyota Prius Plug-In hybrid 1.8 Plug-in Hybrid | D43: =VLOOKUP(C43,Data!$F$2:$X$135,19,FALSE)/1000/1000 -> 2.58384 | E43: =VLOOKUP(C43,Data!$F$2:$T$135,15,FALSE)/1000 -> 2.22354
A44: Plug-in | B44: Luxusné | C44: BMW 740Le iPerformance | D44: =VLOOKUP(C44,Data!$F$2:$X$135,19,FALSE)/1000/1000 -> 3.2508 | E44: =VLOOKUP(C44,Data!$F$2:$T$135,15,FALSE)/1000 -> 2.22355
A45: Elektromobil | B45: Kompakt | C45: Opel Ampera-e | D45: =VLOOKUP(C45,Data!$F$2:$X$135,19,FALSE)/1000/1000 -> 2.8458 | E45: =VLOOKUP(C45,Data!$F$2:$T$135,15,FALSE)/1000 -> 2.268225
A46: Plug-in | B46: Luxusné | C46: BMW i8 | D46: =VLOOKUP(C46,Data!$F$2:$X$135,19,FALSE)/1000/1000 -> 3.4108 | E46: =VLOOKUP(C46,Data!$F$2:$T$135,15,FALSE)/1000 -> 2.27691
A47: Plug-in | B47: Luxusné | C47: Mercedes E 350e sedan | D47: =VLOOKUP(C47,Data!$F$2:$X$135,19,FALSE)/1000/1000 -> 3.7866 | E47: =VLOOKUP(C47,Data!$F$2:$T$135,15,FALSE)/1000 -> 2.321385
A48: Plug-in | B48: Luxusné | C48: BMW 740Le xDrive iPerformance | D48: =VLOOKUP(C48,Data!$F$2:$X$135,19,FALSE)/1000/1000 -> 3.4666 | E48: =VLOOKUP(C48,Data!$F$2:$T$135,15,FALSE)/1000 -> 2.321385
A49: Plug-in | B49: Luxusné | C49: BMW 330e iPerformance | D49: =VLOOKUP(C49,Data!$F$2:$X$135,19,FALSE)/1000/1000 -> 3.35864 | E49: =VLOOKUP(C49,Data!$F$2:$T$135,15,FALSE)/1000 -> 2.33031
A50: Elektromobil | B50: SUV | C50: Kia e-Niro | D50: =VLOOKUP(C50,Data!$F$2:$X$135,19,FALSE)/1000/1000 -> 2.9574 | E50: =VLOOKUP(C50,Data!$F$2:$T$135,15,FALSE)/1000 -> 2.357175
A51: Plug-in | B51: SUV | C51: Mitsubishi Outlander PHEV | D51: =VLOOKUP(C51,Data!$F$2:$X$135,19,FALSE)/1000/1000 -> 3.72604 | E51: =VLOOKUP(C51,Data!$F$2:$T$135,15,FALSE)/1000 -> 2.410375
A52: Plug-in | B52: Stredná trieda | C52: BMW 225xe iPerformance | D52: =VLOOKUP(C52,Data!$F$2:$X$135,19,FALSE)/1000/1000 -> 3.7234 | E52: =VLOOKUP(C52,Data!$F$2:$T$135,15,FALSE)/1000 -> 2.463645
A53: Elektromobil | B53: Kompakt | C53: Nissan Leaf 3.ZERO e+ | D53: =VLOOKUP(C53,Data!$F$2:$X$135,19,FALSE)/1000/1000 -> 3.091948052 | E53: =VLOOKUP(C53,Data!$F$2:$T$135,15,FALSE)/1000 -> 2.464415584
A54: Plug-in | B54: Luxusné | C54: BMW 740e iPerformance | D54: =VLOOKUP(C54,Data!$F$2:$X$135,19,FALSE)/1000/1000 -> 3.22848 | E54: =VLOOKUP(C54,Data!$F$2:$T$135,15,FALSE)/1000 -> 2.47256
A55: Plug-in | B55: SUV | C55: Audi Q7 3.0 TDI e-tron Quattro | D55: =VLOOKUP(C55,Data!$F$2:$X$135,19,FALSE)/1000/1000 -> 3.9046 | E55: =VLOOKUP(C55,Data!$F$2:$T$135,15,FALSE)/1000 -> 2.489455
A56: Elektromobil | B56: SUV | C56: Mercedes-Benz EQC | D56: =VLOOKUP(C56,Data!$F$2:$X$135,19,FALSE)/1000/1000 -> 3.162 | E56: =VLOOKUP(C56,Data!$F$2:$T$135,15,FALSE)/1000 -> 2.52025
A57: Plug-in | B57: Luxusné | C57: BMW 530e iPerformance | D57: =VLOOKUP(C57,Data!$F$2:$X$135,19,FALSE)/1000/1000 -> 3.67864 | E57: =VLOOKUP(C57,Data!$F$2:$T$135,15,FALSE)/1000 -> 2.54375
A58: Elektromobil | B58: Kompakt | C58: BMW i3s 94 Ah | D58: =VLOOKUP(C58,Data!$F$2:$X$135,19,FALSE)/1000/1000 -> 3.1992 | E58: =VLOOKUP(C58,Data!$F$2:$T$135,15,FALSE)/1000 -> 2.5499
A59: Plug-in | B59: Luxusné | C59: Mercedes C 350e sedan | D59: =VLOOKUP(C59,Data!$F$2:$X$135,19,FALSE)/1000/1000 -> 3.69444 | E59: =VLOOKUP(C59,Data!$F$2:$T$135,15,FALSE)/1000 -> 2.588225
A60: Plug-in | B60: Stredná trieda | C60: MINI Countryman S E All4 | D60: =VLOOKUP(C60,Data!$F$2:$X$135,19,FALSE)/1000/1000 -> 3.1624 | E60: =VLOOKUP(C60,Data!$F$2:$T$135,15,FALSE)/1000 -> 2.63266
A61: Elektromobil | B61: Mini | C61: Fiat 500e | D61: =VLOOKUP(C61,Data!$F$2:$X$135,19,FALSE)/1000/1000 -> 3.306666667 | E61: =VLOOKUP(C61,Data!$F$2:$T$135,15,FALSE)/1000 -> 2.635555556
A62: Elektromobil | B62: Stredná trieda | C62: Mercedes B 250e | D62: =VLOOKUP(C62,Data!$F$2:$X$135,19,FALSE)/1000/1000 -> 3.348 | E62: =VLOOKUP(C62,Data!$F$2:$T$135,15,FALSE)/1000 -> 2.6685
A63: Plug-in | B63: SUV | C63: Mercedes GLC 350e 4MATIC | D63: =VLOOKUP(C63,Data!$F$2:$X$135,19,FALSE)/1000/1000 -> 4.18936 | E63: =VLOOKUP(C63,Data!$F$2:$T$135,15,FALSE)/1000 -> 2.73939
A64: Plug-in | B64: SUV | C64: Volvo XC90 T8 eAWD Twin Engine Momentum Pro | D64: =VLOOKUP(C64,Data!$F$2:$X$135,19,FALSE)/1000/1000 -> 4.23112 | E64: =VLOOKUP(C64,Data!$F$2:$T$135,15,FALSE)/1000 -> 2.73945
A65: Plug-in | B65: Luxusné | C65: Porsche Panamera 4 E-Hybrid | D65: =VLOOKUP(C65,Data!$F$2:$X$135,19,FALSE)/1000/1000 -> 4.01444 | E65: =VLOOKUP(C65,Data!$F$2:$T$135,15,FALSE)/1000 -> 2.748305
A66: Elektromobil | B66: Kompakt | C66: Nissan Leaf 2013 | D66: =VLOOKUP(C66,Data!$F$2:$X$135,19,FALSE)/1000/1000 -> 3.4596 | E66: =VLOOKUP(C66,Data!$F$2:$T$135,15,FALSE)/1000 -> 2.75745
A67: Elektromobil | B67: Kompakt | C67: Nissan Leaf 2017 | D67: =VLOOKUP(C67,Data!$F$2:$X$135,19,FALSE)/1000/1000 -> 3.4782 | E67: =VLOOKUP(C67,Data!$F$2:$T$135,15,FALSE)/1000 -> 2.772275
A68: Elektromobil | B68: Luxusné | C68: Tesla Model S Long Range | D68: =VLOOKUP(C68,Data!$F$2:$X$135,19,FALSE)/1000/1000 -> 3.5712 | E68: =VLOOKUP(C68,Data!$F$2:$T$135,15,FALSE)/1000 -> 2.8464
A69: Plug-in | B69: Luxusné | C69: Mercedes S 500e | D69: =VLOOKUP(C69,Data!$F$2:$X$135,19,FALSE)/1000/1000 -> 4.3298 | E69: =VLOOKUP(C69,Data!$F$2:$T$135,15,FALSE)/1000 -> 2.872805
A70: Elektromobil | B70: Kompakt | C70: Nissan Leaf 2018 | D70: =VLOOKUP(C70,Data!$F$2:$X$135,19,FALSE)/1000/1000 -> 3.8316 | E70: =VLOOKUP(C70,Data!$F$2:$T$135,15,FALSE)/1000 -> 3.05395
A71: Elektromobil | B71: SUV | C71: Tesla Model X Long Range | D71: =VLOOKUP(C71,Data!$F$2:$X$135,19,FALSE)/1000/1000 -> 4.0176 | E71: =VLOOKUP(C71,Data!$F$2:$T$135,15,FALSE)/1000 -> 3.2022
A72: Plug-in | B72: SUV | C72: Mercedes GLE 500e 4MATIC | D72: =VLOOKUP(C72,Data!$F$2:$X$135,19,FALSE)/1000/1000 -> 4.9856 | E72: =VLOOKUP(C72,Data!$F$2:$T$135,15,FALSE)/1000 -> 3.2908
A73: Elektromobil | B73: SUV | C73: Audi e-tron advanced 55 quattro | D73: =VLOOKUP(C73,Data!$F$2:$X$135,19,FALSE)/1000/1000 -> 4.278 | E73: =VLOOKUP(C73,Data!$F$2:$T$135,15,FALSE)/1000 -> 3.40975
A74: Plug-in | B74: Luxusné | C74: Porsche Cayenne S E-Hybrid | D74: =VLOOKUP(C74,Data!$F$2:$X$135,19,FALSE)/1000/1000 -> 5.45244 | E74: =VLOOKUP(C74,Data!$F$2:$T$135,15,FALSE)/1000 -> 3.673295
A75: Elektromobil | B75: SUV | C75: Jaguar I-Pace | D75: =VLOOKUP(C75,Data!$F$2:$X$135,19,FALSE)/1000/1000 -> 4.6128 | E75: =VLOOKUP(C75,Data!$F$2:$T$135,15,FALSE)/1000 -> 3.6766
A76: Hybrid | B76: Kompakt | C76: Toyota Yaris 1.5 Hybrid | D76: =VLOOKUP(C76,Data!$F$2:$X$135,19,FALSE)/1000/1000 -> 7.5 | E76: =VLOOKUP(C76,Data!$F$2:$T$135,15,FALSE)/1000 -> 4.4022
A77: Plug-in | B77: Stredná trieda | C77: Kia Optima 2.0 Gdi PHEV | D77: =VLOOKUP(C77,Data!$F$2:$X$135,19,FALSE)/1000/1000 -> 2.68152 | E77: =VLOOKUP(C77,Data!$F$2:$T$135,15,FALSE)/1000 -> 4.82039
A78: Hybrid | B78: SUV | C78: Kia Niro 1.6 GDI Hybrid | D78: =VLOOKUP(C78,Data!$F$2:$X$135,19,FALSE)/1000/1000 -> 8.9 | E78: =VLOOKUP(C78,Data!$F$2:$T$135,15,FALSE)/1000 -> 5.2026
A79: Hybrid | B79: Kompakt | C79: Toyota CH-R 1.8 Hybrid Executive | D79: =VLOOKUP(C79,Data!$F$2:$X$135,19,FALSE)/1000/1000 -> 8.7 | E79: =VLOOKUP(C79,Data!$F$2:$T$135,15,FALSE)/1000 -> 5.4694
A80: Standard | B80: Kompakt | C80: Volkswagen Golf 1.6 TDI | D80: =VLOOKUP(C80,Data!$F$2:$X$135,19,FALSE)/1000/1000 -> 11.1 | E80: =VLOOKUP(C80,Data!$F$2:$T$135,15,FALSE)/1000 -> 5.8327
A81: Hybrid | B81: Stredná trieda | C81: Hyundai Ioniq HEV | D81: =VLOOKUP(C81,Data!$F$2:$X$135,19,FALSE)/1000/1000 -> 11.9 | E81: =VLOOKUP(C81,Data!$F$2:$T$135,15,FALSE)/1000 -> 6.4032
A82: Standard | B82: Stredná trieda | C82: Volkswagen Passat 2.0 TDI EVO | D82: =VLOOKUP(C82,Data!$F$2:$X$135,19,FALSE)/1000/1000 -> 10.9 | E82: =VLOOKUP(C82,Data!$F$2:$T$135,15,FALSE)/1000 -> 6.4532
A83: Standard | B83: Mini | C83: Volkswagen 1.0 move up! | D83: =VLOOKUP(C83,Data!$F$2:$X$135,19,FALSE)/1000/1000 -> 9.6 | E83: =VLOOKUP(C83,Data!$F$2:$T$135,15,FALSE)/1000 -> 6.5366
A84: Standard | B84: Mini | C84: Smart fortwo | D84: =VLOOKUP(C84,Data!$F$2:$X$135,19,FALSE)/1000/1000 -> 11.9 | E84: =VLOOKUP(C84,Data!$F$2:$T$135,15,FALSE)/1000 -> 6.9368
A85: Standard | B85: SUV | C85: Volkswagen Tiguan 2.0 TDI | D85: =VLOOKUP(C85,Data!$F$2:$X$135,19,FALSE)/1000/1000 -> 12.6 | E85: =VLOOKUP(C85,Data!$F$2:$T$135,15,FALSE)/1000 -> 6.9496
A86: Standard | B86: Stredná trieda | C86: Škoda Octavia 1.6 TDI | D86: =VLOOKUP(C86,Data!$F$2:$X$135,19,FALSE)/1000/1000 -> 15.1 | E86: =VLOOKUP(C86,Data!$F$2:$T$135,15,FALSE)/1000 -> 7.1978
A87: Standard | B87: Mini | C87: Smart forfour | D87: =VLOOKUP(C87,Data!$F$2:$X$135,19,FALSE)/1000/1000 -> 12.3 | E87: =VLOOKUP(C87,Data!$F$2:$T$135,15,FALSE)/1000 -> 7.2036
A88: Standard | B88: Stredná trieda | C88: Škoda Superb 2.0 TDI SCR Active | D88: =VLOOKUP(C88,Data!$F$2:$X$135,19,FALSE)/1000/1000 -> 15.6 | E88: =VLOOKUP(C88,Data!$F$2:$T$135,15,FALSE)/1000 -> 7.3219
A89: Standard | B89: Kompakt | C89: Škoda Fabia 1.0 TSI 81kW Active | D89: =VLOOKUP(C89,Data!$F$2:$X$135,19,FALSE)/1000/1000 -> 12.5 | E89: =VLOOKUP(C89,Data!$F$2:$T$135,15,FALSE)/1000 -> 7.337
A90: Standard | B90: Kompakt | C90: Kia Rio 1.0 T-GDI | D90: =VLOOKUP(C90,Data!$F$2:$X$135,19,FALSE)/1000/1000 -> 10.2 | E90: =VLOOKUP(C90,Data!$F$2:$T$135,15,FALSE)/1000 -> 7.4704
A91: Standard | B91: Kompakt | C91: Citroën C3 PureTech 110 Shine | D91: =VLOOKUP(C91,Data!$F$2:$X$135,19,FALSE)/1000/1000 -> 10.3 | E91: =VLOOKUP(C91,Data!$F$2:$T$135,15,FALSE)/1000 -> 7.4704
A92: Standard | B92: Kompakt | C92: Seat Ibiza 1.0 ECO TSI 95 | D92: =VLOOKUP(C92,Data!$F$2:$X$135,19,FALSE)/1000/1000 -> 12.9 | E92: =VLOOKUP(C92,Data!$F$2:$T$135,15,FALSE)/1000 -> 7.6038
A93: Standard | B93: Stredná trieda | C93: Dacia Logan MCV TCe 90 Stepway | D93: =VLOOKUP(C93,Data!$F$2:$X$135,19,FALSE)/1000/1000 -> 11.5 | E93: =VLOOKUP(C93,Data!$F$2:$T$135,15,FALSE)/1000 -> 7.7372
A94: Standard | B94: Stredná trieda | C94: Dacia Sandero Stepway Tce 90 Ambience | D94: =VLOOKUP(C94,Data!$F$2:$X$135,19,FALSE)/1000/1000 -> 11.5 | E94: =VLOOKUP(C94,Data!$F$2:$T$135,15,FALSE)/1000 -> 7.7372
A95: Standard | B95: SUV | C95: Volkswagen T-Roc 1.0 TSI | D95: =VLOOKUP(C95,Data!$F$2:$X$135,19,FALSE)/1000/1000 -> 12 | E95: =VLOOKUP(C95,Data!$F$2:$T$135,15,FALSE)/1000 -> 7.7372
A96: Standard | B96: Stredná trieda | C96: Honda Civic S 1.0 VTEC TURBO | D96: =VLOOKUP(C96,Data!$F$2:$X$135,19,FALSE)/1000/1000 -> 11 | E96: =VLOOKUP(C96,Data!$F$2:$T$135,15,FALSE)/1000 -> 7.8706
A97: Standard | B97: Stredná trieda | C97: Peugeot 2008 1.2 PureTech 110 | D97: =VLOOKUP(C97,Data!$F$2:$X$135,19,FALSE)/1000/1000 -> 11 | E97: =VLOOKUP(C97,Data!$F$2:$T$135,15,FALSE)/1000 -> 7.8706
A98: Standard | B98: Kompakt | C98: Hyundai i20 1.0 T-GDI | D98: =VLOOKUP(C98,Data!$F$2:$X$135,19,FALSE)/1000/1000 -> 11.1 | E98: =VLOOKUP(C98,Data!$F$2:$T$135,15,FALSE)/1000 -> 7.8706
A99: Standard | B99: Stredná trieda | C99: Ford Focus Hatchback 1.0 Ecoboost | D99: =VLOOKUP(C99,Data!$F$2:$X$135,19,FALSE)/1000/1000 -> 11 | E99: =VLOOKUP(C99,Data!$F$2:$T$135,15,FALSE)/1000 -> 8.004
A100: Standard | B100: Kompakt | C100: Toyota Yaris 1.5 VVT-i Executive | D100: =VLOOKUP(C100,Data!$F$2:$X$135,19,FALSE)/1000/1000 -> 11.2 | E100: =VLOOKUP(C100,Data!$F$2:$T$135,15,FALSE)/1000 -> 8.004
A101: Standard | B101: Kompakt | C101: Fiat Panda 1.2 | D101: =VLOOKUP(C101,Data!$F$2:$X$135,19,FALSE)/1000/1000 -> 11.9 | E101: =VLOOKUP(C101,Data!$F$2:$T$135,15,FALSE)/1000 -> 8.004
A102: Standard | B102: Kompakt | C102: Renault Clio Energy TCe 90 | D102: =VLOOKUP(C102,Data!$F$2:$X$135,19,FALSE)/1000/1000 -> 11.8 | E102: =VLOOKUP(C102,Data!$F$2:$T$135,15,FALSE)/1000 -> 8.0665
A103: Standard | B103: Stredná trieda | C103: Seat Leon 5D 1.0 ECO TSI 86 | D103: =VLOOKUP(C103,Data!$F$2:$X$135,19,FALSE)/1000/1000 -> 13.7 | E103: =VLOOKUP(C103,Data!$F$2:$T$135,15,FALSE)/1000 -> 8.1374
A104: Standard | B104: SUV | C104: Seat Ateca 1.0 ECO TSI 115 | D104: =VLOOKUP(C104,Data!$F$2:$X$135,19,FALSE)/1000/1000 -> 13.9 | E104: =VLOOKUP(C104,Data!$F$2:$T$135,15,FALSE)/1000 -> 8.2708
A105: Standard | B105: Stredná trieda | C105: Kia Ceed 1.0 T-Gdi | D105: =VLOOKUP(C105,Data!$F$2:$X$135,19,FALSE)/1000/1000 -> 12.8 | E105: =VLOOKUP(C105,Data!$F$2:$T$135,15,FALSE)/1000 -> 8.4042
A106: Standard | B106: Stredná trieda | C106: Citroen C4 Cactus PureTech 110 | D106: =VLOOKUP(C106,Data!$F$2:$X$135,19,FALSE)/1000/1000 -> 13.7 | E106: =VLOOKUP(C106,Data!$F$2:$T$135,15,FALSE)/1000 -> 8.4042
A107: Standard | B107: Stredná trieda | C107: Renault Megane TCe 100 GPF | D107: =VLOOKUP(C107,Data!$F$2:$X$135,19,FALSE)/1000/1000 -> 14.3 | E107: =VLOOKUP(C107,Data!$F$2:$T$135,15,FALSE)/1000 -> 8.4042
A108: Standard | B108: SUV | C108: Nissan X-Trail dCi 150 VISIA | D108: =VLOOKUP(C108,Data!$F$2:$X$135,19,FALSE)/1000/1000 -> 17.9 | E108: =VLOOKUP(C108,Data!$F$2:$T$135,15,FALSE)/1000 -> 8.4388
A109: Standard | B109: Mini | C109: Fiat 500 TwinAir | D109: =VLOOKUP(C109,Data!$F$2:$X$135,19,FALSE)/1000/1000 -> 11.6 | E109: =VLOOKUP(C109,Data!$F$2:$T$135,15,FALSE)/1000 -> 8.5376
A110: Standard | B110: SUV | C110: Range Rover Sport S | D110: =VLOOKUP(C110,Data!$F$2:$X$135,19,FALSE)/1000/1000 -> 18.2 | E110: =VLOOKUP(C110,Data!$F$2:$T$135,15,FALSE)/1000 -> 8.5629
A111: Standard | B111: Stredná trieda | C111: Mazda 3 Sedan Skyactiv-G122 | D111: =VLOOKUP(C111,Data!$F$2:$X$135,19,FALSE)/1000/1000 -> 11.7 | E111: =VLOOKUP(C111,Data!$F$2:$T$135,15,FALSE)/1000 -> 8.671
A112: Standard | B112: SUV | C112: Hyundai Tucson 1.6 CRDi | D112: =VLOOKUP(C112,Data!$F$2:$X$135,19,FALSE)/1000/1000 -> 17.3 | E112: =VLOOKUP(C112,Data!$F$2:$T$135,15,FALSE)/1000 -> 8.687
A113: Standard | B113: SUV | C113: Suzuki Vitara 1,4 Boosterjet | D113: =VLOOKUP(C113,Data!$F$2:$X$135,19,FALSE)/1000/1000 -> 14.8 | E113: =VLOOKUP(C113,Data!$F$2:$T$135,15,FALSE)/1000 -> 8.8044
A114: Standard | B114: SUV | C114: Renault Kadjar TCe 140 GPF | D114: =VLOOKUP(C114,Data!$F$2:$X$135,19,FALSE)/1000/1000 -> 15 | E114: =VLOOKUP(C114,Data!$F$2:$T$135,15,FALSE)/1000 -> 8.8044
A115: Standard | B115: SUV | C115: Jaguar E-Pace Standard | D115: =VLOOKUP(C115,Data!$F$2:$X$135,19,FALSE)/1000/1000 -> 19.7 | E115: =VLOOKUP(C115,Data!$F$2:$T$135,15,FALSE)/1000 -> 8.9352
A116: Standard | B116: Luxusné | C116: BMW 730d xDrive | D116: =VLOOKUP(C116,Data!$F$2:$X$135,19,FALSE)/1000/1000 -> 19.1 | E116: =VLOOKUP(C116,Data!$F$2:$T$135,15,FALSE)/1000 -> 9.0593
A117: Standard | B117: SUV | C117: Toyota RAV4 2.0 | D117: =VLOOKUP(C117,Data!$F$2:$X$135,19,FALSE)/1000/1000 -> 12.4 | E117: =VLOOKUP(C117,Data!$F$2:$T$135,15,FALSE)/1000 -> 9.2046
A118: Hybrid | B118: SUV | C118: Toyota RAV4 2.5 Hybrid | D118: =VLOOKUP(C118,Data!$F$2:$X$135,19,FALSE)/1000/1000 -> 10.5 | E118: =VLOOKUP(C118,Data!$F$2:$T$135,15,FALSE)/1000 -> 9.338
A119: Standard | B119: Kompakt | C119: Volkswagen Touran 1.5 TSI | D119: =VLOOKUP(C119,Data!$F$2:$X$135,19,FALSE)/1000/1000 -> 13.2 | E119: =VLOOKUP(C119,Data!$F$2:$T$135,15,FALSE)/1000 -> 9.338
A120: Standard | B120: Stredná trieda | C120: Audi A4 Allroad 2.0 TDI Quattro STR | D120: =VLOOKUP(C120,Data!$F$2:$X$135,19,FALSE)/1000/1000 -> 12.8 | E120: =VLOOKUP(C120,Data!$F$2:$T$135,15,FALSE)/1000 -> 9.5557
A121: Standard | B121: SUV | C121: Volkswagen Touareg 3.0 V6 TDI | D121: =VLOOKUP(C121,Data!$F$2:$X$135,19,FALSE)/1000/1000 -> 20.5 | E121: =VLOOKUP(C121,Data!$F$2:$T$135,15,FALSE)/1000 -> 9.5557
A122: Standard | B122: Stredná trieda | C122: Renault Grand Scenic Tce 115 Zen | D122: =VLOOKUP(C122,Data!$F$2:$X$135,19,FALSE)/1000/1000 -> 12.9 | E122: =VLOOKUP(C122,Data!$F$2:$T$135,15,FALSE)/1000 -> 9.6048
A123: Standard | B123: Stredná trieda | C123: Opel Insignia Grand Sport 1.5 Turbo | D123: =VLOOKUP(C123,Data!$F$2:$X$135,19,FALSE)/1000/1000 -> 13.2 | E123: =VLOOKUP(C123,Data!$F$2:$T$135,15,FALSE)/1000 -> 9.6048
A124: Standard | B124: Stredná trieda | C124: Škoda Scala 1.0 TSI Ambition | D124: =VLOOKUP(C124,Data!$F$2:$X$135,19,FALSE)/1000/1000 -> 16.3 | E124: =VLOOKUP(C124,Data!$F$2:$T$135,15,FALSE)/1000 -> 9.6048
A125: Standard | B125: SUV | C125: Suzuki SX4 S-Cross 1,4 BOOSTERJET 2WD | D125: =VLOOKUP(C125,Data!$F$2:$X$135,19,FALSE)/1000/1000 -> 16.4 | E125: =VLOOKUP(C125,Data!$F$2:$T$135,15,FALSE)/1000 -> 9.6048
A126: Standard | B126: Kompakt | C126: Opel Corsa Gsi 1.4 Turbo | D126: =VLOOKUP(C126,Data!$F$2:$X$135,19,FALSE)/1000/1000 -> 13.3 | E126: =VLOOKUP(C126,Data!$F$2:$T$135,15,FALSE)/1000 -> 9.8716
A127: Standard | B127: Luxusné | C127: Audi TT Coupe 1.8 TFSI | D127: =VLOOKUP(C127,Data!$F$2:$X$135,19,FALSE)/1000/1000 -> 13.4 | E127: =VLOOKUP(C127,Data!$F$2:$T$135,15,FALSE)/1000 -> 9.8716
A128: Standard | B128: SUV | C128: Nissan Qashqai 1.6 DIG-T 160 N-CONNECTA | D128: =VLOOKUP(C128,Data!$F$2:$X$135,19,FALSE)/1000/1000 -> 13.4 | E128: =VLOOKUP(C128,Data!$F$2:$T$135,15,FALSE)/1000 -> 9.8716
A129: Standard | B129: SUV | C129: Škoda Kamiq 1.0 TSI Active | D129: =VLOOKUP(C129,Data!$F$2:$X$135,19,FALSE)/1000/1000 -> 16.7 | E129: =VLOOKUP(C129,Data!$F$2:$T$135,15,FALSE)/1000 -> 9.8716
A130: Standard | B130: SUV | C130: Mazda CX-3 2WD | D130: =VLOOKUP(C130,Data!$F$2:$X$135,19,FALSE)/1000/1000 -> 14.1 | E130: =VLOOKUP(C130,Data!$F$2:$T$135,15,FALSE)/1000 -> 10.005
A131: Standard | B131: Kompakt | C131: Opel Astra 1.6 Turbo Innovation | D131: =VLOOKUP(C131,Data!$F$2:$X$135,19,FALSE)/1000/1000 -> 13.8 | E131: =VLOOKUP(C131,Data!$F$2:$T$135,15,FALSE)/1000 -> 10.1384
A132: Standard | B132: SUV | C132: Mazda CX-5 2WD | D132: =VLOOKUP(C132,Data!$F$2:$X$135,19,FALSE)/1000/1000 -> 14.6 | E132: =VLOOKUP(C132,Data!$F$2:$T$135,15,FALSE)/1000 -> 10.2718
A133: Standard | B133: Stredná trieda | C133: Hyundai i30 1.4i | D133: =VLOOKUP(C133,Data!$F$2:$X$135,19,FALSE)/1000/1000 -> 12 | E133: =VLOOKUP(C133,Data!$F$2:$T$135,15,FALSE)/1000 -> 10.4052
A134: Standard | B134: SUV | C134: Ford Kuga 1.5 Ecoboost | D134: =VLOOKUP(C134,Data!$F$2:$X$135,19,FALSE)/1000/1000 -> 14.5 | E134: =VLOOKUP(C134,Data!$F$2:$T$135,15,FALSE)/1000 -> 10.5386
A135: Standard | B135: Stredná trieda | C135: Hyundai i30 fastback 1.4 T-GDi | D135: =VLOOKUP(C135,Data!$F$2:$X$135,19,FALSE)/1000/1000 -> 14.5 | E135: =VLOOKUP(C135,Data!$F$2:$T$135,15,FALSE)/1000 -> 10.5386
A136: Standard | B136: SUV | C136: Dacia Duster SCe 4x2 | D136: =VLOOKUP(C136,Data!$F$2:$X$135,19,FALSE)/1000/1000 -> 14.9 | E136: =VLOOKUP(C136,Data!$F$2:$T$135,15,FALSE)/1000 -> 10.672
A137: Standard | B137: Luxusné | C137: Audi A6 2.0 TDI Quattro | D137: =VLOOKUP(C137,Data!$F$2:$X$135,19,FALSE)/1000/1000 -> 12.8 | E137: =VLOOKUP(C137,Data!$F$2:$T$135,15,FALSE)/1000 -> 10.6726
A138: Standard | B138: SUV | C138: Jaguar F-Pace Pure | D138: =VLOOKUP(C138,Data!$F$2:$X$135,19,FALSE)/1000/1000 -> 17.3 | E138: =VLOOKUP(C138,Data!$F$2:$T$135,15,FALSE)/1000 -> 10.9208
A139: Standard | B139: SUV | C139: BMW X6 xDrive40d | D139: =VLOOKUP(C139,Data!$F$2:$X$135,19,FALSE)/1000/1000 -> 23 | E139: =VLOOKUP(C139,Data!$F$2:$T$135,15,FALSE)/1000 -> 10.9208
A140: Standard | B140: Kompakt | C140: Volkswagen Polo 2.0 TSI GTI | D140: =VLOOKUP(C140,Data!$F$2:$X$135,19,FALSE)/1000/1000 -> 14.4 | E140: =VLOOKUP(C140,Data!$F$2:$T$135,15,FALSE)/1000 -> 10.9388
A141: Standard | B141: SUV | C141: Škoda Karoq 1.5 TSI ACT 110 | D141: =VLOOKUP(C141,Data!$F$2:$X$135,19,FALSE)/1000/1000 -> 18.7 | E141: =VLOOKUP(C141,Data!$F$2:$T$135,15,FALSE)/1000 -> 10.9388
A142: Standard | B142: Stredná trieda | C142: Mercedes B 250 | D142: =VLOOKUP(C142,Data!$F$2:$X$135,19,FALSE)/1000/1000 -> 15.6 | E142: =VLOOKUP(C142,Data!$F$2:$T$135,15,FALSE)/1000 -> 11.2056
A143: Standard | B143: Stredná trieda | C143: Volkswagen Arteon 2.0 TSI 4MOTION | D143: =VLOOKUP(C143,Data!$F$2:$X$135,19,FALSE)/1000/1000 -> 16 | E143: =VLOOKUP(C143,Data!$F$2:$T$135,15,FALSE)/1000 -> 11.2056
A144: Standard | B144: Stredná trieda | C144: Kia Sportage 1.6 GDI | D144: =VLOOKUP(C144,Data!$F$2:$X$135,19,FALSE)/1000/1000 -> 15.6 | E144: =VLOOKUP(C144,Data!$F$2:$T$135,15,FALSE)/1000 -> 11.4724
A145: Standard | B145: Stredná trieda | C145: Mazda 6 SkyActiv-G 2.0 | D145: =VLOOKUP(C145,Data!$F$2:$X$135,19,FALSE)/1000/1000 -> 15.5 | E145: =VLOOKUP(C145,Data!$F$2:$T$135,15,FALSE)/1000 -> 11.6058
A146: Standard | B146: Stredná trieda | C146: Seat Alhambra 1.4 TSI FR | D146: =VLOOKUP(C146,Data!$F$2:$X$135,19,FALSE)/1000/1000 -> 19.1 | E146: =VLOOKUP(C146,Data!$F$2:$T$135,15,FALSE)/1000 -> 11.6058
A147: Standard | B147: Luxusné | C147: Mercedes C 300 4MATIC | D147: =VLOOKUP(C147,Data!$F$2:$X$135,19,FALSE)/1000/1000 -> 15.4 | E147: =VLOOKUP(C147,Data!$F$2:$T$135,15,FALSE)/1000 -> 12.1394
A148: Standard | B148: SUV | C148: Škoda Kodiaq 1.5 TSI ACT 110 | D148: =VLOOKUP(C148,Data!$F$2:$X$135,19,FALSE)/1000/1000 -> 20.9 | E148: =VLOOKUP(C148,Data!$F$2:$T$135,15,FALSE)/1000 -> 12.2728
A149: Standard | B149: SUV | C149: Hyundai Kona 1.6 T-GDi | D149: =VLOOKUP(C149,Data!$F$2:$X$135,19,FALSE)/1000/1000 -> 17 | E149: =VLOOKUP(C149,Data!$F$2:$T$135,15,FALSE)/1000 -> 12.5396
A150: Standard | B150: Stredná trieda | C150: BMW 120i | D150: =VLOOKUP(C150,Data!$F$2:$X$135,19,FALSE)/1000/1000 -> 13.1 | E150: =VLOOKUP(C150,Data!$F$2:$T$135,15,FALSE)/1000 -> 13.7402
A151: Standard | B151: SUV | C151: Land Rover Discovery HSE | D151: =VLOOKUP(C151,Data!$F$2:$X$135,19,FALSE)/1000/1000 -> 19.4 | E151: =VLOOKUP(C151,Data!$F$2:$T$135,15,FALSE)/1000 -> 14.7679
A152: Standard | B152: SUV | C152: BMW X5 xDrive40i | D152: =VLOOKUP(C152,Data!$F$2:$X$135,19,FALSE)/1000/1000 -> 27 | E152: =VLOOKUP(C152,Data!$F$2:$T$135,15,FALSE)/1000 -> 15.8746
A153: Standard | B153: SUV | C153: Audi Q7 50 TDI Quattro | D153: =VLOOKUP(C153,Data!$F$2:$X$135,19,FALSE)/1000/1000 -> 17.8 | E153: =VLOOKUP(C153,Data!$F$2:$T$135,15,FALSE)/1000 -> 15.8848

Sheet Grafy (hidden)
B48: 0 | C48: 1 | D48: 2 | E48: 3 | F48: 4 | G48: 5 | H48: 6 | I48: 7 | J48: 8 | K48: 9 | L48: 10 | M48: 11 | N48: 12 | O48: 13 | P48: 14 | Q48: 15
A49: Hyundai Kona 1.6 T-GDi | B49: 22820 | C49: 25485.32692 | D49: 28048.14127 | E49: 30512.38584 | F49: 32881.85177 | G49: 35160.18439 | H49: 37350.88884 | I49: 39457.33542 | J49: 41482.76483 | K49: 43430.2931 | L49: 45302.91645 | M49: 47103.51581 | N49: 48834.86136 | O49: 50499.61669 | P49: 52100.34297 | Q49: 53639.50286
A50: Hyundai Kona Electric bez dotácie | B50: 39933 | C50: 40787.27985 | D50: 41608.70279 | E50: 42398.53253 | F50: 43157.98421 | G50: 43888.22621 | H50: 44590.38198 | I50: 45265.53175 | J50: 45914.71423 | K50: 46538.92815 | L50: 47139.13385 | M50: 47716.2547 | N50: 48271.17861 | O50: 48804.75928 | P50: 49317.81762 | Q50: 49811.14295
A51: Hyundai Kona Electric s dotáciou 8 tisíc eur | B51: 31933 | C51: 32787.27985 | D51: 33608.70279 | E51: 34398.53253 | F51: 35157.98421 | G51: 35888.22621 | H51: 36590.38198 | I51: 37265.53175 | J51: 37914.71423 | K51: 38538.92815 | L51: 39139.13385 | M51: 39716.2547 | N51: 40271.17861 | O51: 40804.75928 | P51: 41317.81762 | Q51: 41811.14295
A53: Land Rover Discovery HSE | B53: 73630 | C53: 76675.66827 | D53: 79604.19545 | E53: 82420.08697 | F53: 85127.67497 | G53: 87731.12497 | H53: 90234.44228 | I53: 92641.47816 | J53: 94955.93573 | K53: 97181.3757 | L53: 99321.22183 | M53: 101378.7662 | N53: 103357.1742 | O53: 105259.4896 | P53: 107088.6391 | Q53: 108847.4366
A54: Tesla Model X Long Range bez dotácie | B54: 91033 | C54: 92080.95192 | D54: 93088.598 | E54: 94057.48846 | F54: 94989.11391 | G54: 95884.9076 | H54: 96746.2477 | I54: 97574.45932 | J54: 98370.81666 | K54: 99136.54486 | L54: 99872.82198 | M54: 100580.7808 | N54: 101261.5103 | O54: 101916.058 | P54: 102545.4308 | Q54: 103150.5969
A55: Tesla Model X Long Range s dotáciou 8 tisíc eur | B55: 83033 | C55: 84080.95192 | D55: 85088.598 | E55: 86057.48846 | F55: 86989.11391 | G55: 87884.9076 | H55: 88746.2477 | I55: 89574.45932 | J55: 90370.81666 | K55: 91136.54486 | L55: 91872.82198 | M55: 92580.78075 | N55: 93261.51034 | O55: 93916.05802 | P55: 94545.43079 | Q55: 95150.59691
A57: Mercedes B 250 | B57: 35390 | C57: 37862.66346 | D57: 40240.22448 | E57: 42526.34085 | F57: 44724.52966 | G57: 46838.17275 | H57: 48870.52188 | I57: 50824.70373 | J57: 52703.72474 | K57: 54510.47571 | L57: 56247.73626 | M57: 57918.1791 | N57: 59524.37413 | O57: 61068.79243 | P57: 62553.81003 | Q57: 63981.71157
A58: Mercedes B 250e bez dotácie | B58: 40833 | C58: 41800.3125 | D58: 42730.42067 | E58: 43624.75545 | F58: 44484.69275 | G58: 45311.55552 | H58: 46106.61589 | I58: 46871.09701 | J58: 47606.17501 | K58: 48312.98078 | L58: 48992.60171 | M58: 49646.08337 | N58: 50274.43113 | O58: 50878.61166 | P58: 51459.55448 | Q58: 52018.15335
A59: Mercedes B 250e s dotáciou 8 tisíc eur | B59: 32833 | C59: 33800.3125 | D59: 34730.42067 | E59: 35624.75545 | F59: 36484.69275 | G59: 37311.55552 | H59: 38106.61589 | I59: 38871.09701 | J59: 39606.17501 | K59: 40312.98078 | L59: 40992.60171 | M59: 41646.08337 | N59: 42274.43113 | O59: 42878.61166 | P59: 43459.55448 | Q59: 44018.15335
A61: Hyundai i30 fastback 1,4 T-GDi | B61: 21900 | C61: 24314.79808 | D61: 26636.7193 | E61: 28869.33587 | F61: 31016.08257 | G61: 33080.26208 | H61: 35065.05008 | I61: 36973.50008 | J61: 38808.54815 | K61: 40573.01745 | L61: 42269.62255 | M61: 43900.97361 | N61: 45469.58039 | O61: 46977.85615 | P61: 48428.12129 | Q61: 49822.60701
A62: Hyundai Ioniq Electric BEV bez dotácie | B62: 35323 | C62: 36116.33774 | D62: 36879.16249 | E62: 37612.64783 | F62: 38317.92219 | G62: 38996.07062 | H62: 39648.13641 | I62: 40275.12275 | J62: 40877.99423 | K62: 41457.67835 | L62: 42015.06692 | M62: 42551.01747 | N62: 43066.35454 | O62: 43561.87095 | P62: 44038.32904 | Q62: 44496.46182
A63: Hyundai Ioniq Electric BEV s dotáciou 8 tisíc eur | B63: 27323 | C63: 28116.33774 | D63: 28879.16249 | E63: 29612.64783 | F63: 30317.92219 | G63: 30996.07062 | H63: 31648.13641 | I63: 32275.12275 | J63: 32877.99423 | K63: 33457.67835 | L63: 34015.06692 | M63: 34551.01747 | N63: 35066.35454 | O63: 35561.87095 | P63: 36038.32904 | Q63: 36496.46182
C110: 0 | D110: 1 | E110: 2 | F110: 3 | G110: 4 | H110: 5 | I110: 6 | J110: 7 | K110: 8 | L110: 9 | M110: 10 | N110: 11 | O110: 12 | P110: 13 | Q110: 14 | R110: 15 | S110: Suma nákladov | T110: Zostatková hodnota po 10 rokoch | U110: Infografrika
A111: =CF!A2 -> Mercedes B 250e | B111: Znehodnotenie | C111: =C115-D126 -> 0 | D111: =D126-E126 -> 13872 | E111: =E126-F126 -> 4896 | F111: 4080 | G111: 2448 | H111: 1632 | I111: 1224 | J111: 1632 | K111: 816 | L111: 1224 | M111: 816 | N111: 816 | O111: 816 | P111: 408 | Q111: 816 | R111: 408 | S111: =SUM(C111:R116) -> 87922.15335 | T111: =N126 -> 8160 | U111: Znehodnotenie | V111: =SUM(C111:J111) -> 29784
B112: =CF!B7 -> Poistenie | C112: =CF!C7 -> 0 | D112: =CF!D7 -> 164.1634615 | E112: =CF!E7 -> 157.8494822 | F112: =CF!F7 -> 151.7783483 | G112: =CF!G7 -> 145.9407195 | H112: =CF!H7 -> 140.3276149 | I112: =CF!I7 -> 134.930399 | J112: =CF!J7 -> 129.7407682 | K112: =CF!K7 -> 124.7507387 | L112: =CF!L7 -> 119.9526334 | M112: =CF!M7 -> 115.3390705 | N112: =CF!N7 -> 110.9029524 | O112: =CF!O7 -> 106.6374543 | P112: =CF!P7 -> 102.5360137 | Q112: =CF!Q7 -> 98.59232089 | R112: =CF!R7 -> 94.80030855 | U112: Poistenie | V112: =SUM(C112:J112) -> 1024.730794
B113: =CF!B8 -> Palivo | C113: =CF!C8 -> 0 | D113: =CF!D8 -> 384.8798077 | E113: =CF!E8 -> 370.0767382 | F113: =CF!F8 -> 355.8430175 | G113: =CF!G8 -> 342.1567476 | H113: =CF!H8 -> 328.9968727 | I113: =CF!I8 -> 316.3431468 | J113: =CF!J8 -> 304.1761027 | K113: =CF!K8 -> 292.4770218 | L113: =CF!L8 -> 281.2279056 | M113: =CF!M8 -> 270.4114477 | N113: =CF!N8 -> 260.0110074 | O113: =CF!O8 -> 250.010584 | P113: =CF!P8 -> 240.3947923 | Q113: =CF!Q8 -> 231.1488388 | R113: =CF!R8 -> 222.2584988 | U113: Palivo | V113: 2402.472433
B114: =CF!B9 -> Údržba | C114: =CF!C9 -> 0 | D114: =CF!D9 -> 418.2692308 | E114: =CF!E9 -> 402.1819527 | F114: =CF!F9 -> 386.713416 | G114: =CF!G9 -> 371.8398231 | H114: =CF!H9 -> 357.5382914 | I114: =CF!I9 -> 343.7868187 | J114: =CF!J9 -> 330.5642487 | K114: =CF!K9 -> 317.8502392 | L114: =CF!L9 -> 305.62523 | M114: =CF!M9 -> 293.8704134 | N114: =CF!N9 -> 282.5677052 | O114: =CF!O9 -> 271.6997166 | P114: =CF!P9 -> 261.2497275 | Q114: =CF!Q9 -> 251.201661 | R114: =CF!R9 -> 241.5400587 | U114: Údržba | V114: 2610.893781
B115: =CF!B4 -> Nákup auta | C115: =CF!C4+CF!C5 -> 40800 | D115: =CF!D4 -> 0 | E115: =CF!E4 -> 0 | F115: =CF!F4 -> 0 | G115: =CF!G4 -> 0 | H115: =CF!H4 -> 0 | I115: =CF!I4 -> 0 | J115: =CF!J4 -> 0 | K115: =CF!K4 -> 0 | L115: =CF!L4 -> 0 | M115: =CF!M4 -> 0 | N115: =CF!N4 -> 0 | O115: =CF!O4 -> 0 | P115: =CF!P4 -> 0 | Q115: =CF!Q4 -> 0 | R115: =CF!R4 -> 0 | U115: Nákup auta | V115: 40800
B116: =CF!B6 -> Registračná daň | C116: =CF!C6 -> 33 | D116: =CF!D6 -> 0 | E116: =CF!E6 -> 0 | F116: =CF!F6 -> 0 | G116: =CF!G6 -> 0 | H116: =CF!H6 -> 0 | I116: =CF!I6 -> 0 | J116: =CF!J6 -> 0 | K116: =CF!K6 -> 0 | L116: =CF!L6 -> 0 | M116: =CF!M6 -> 0 | N116: =CF!N6 -> 0 | O116: =CF!O6 -> 0 | P116: =CF!P6 -> 0 | Q116: =CF!Q6 -> 0 | R116: =CF!R6 -> 0 | U116: Registračná daň | V116: 33
C117: 0 | D117: 1 | E117: 2 | F117: 3 | G117: 4 | H117: 5 | I117: 6 | J117: 7 | K117: 8 | L117: 9 | M117: 10 | N117: 11 | O117: 12 | P117: 13 | Q117: 14 | R117: 15
A118: =CF!A12 -> Mercedes B 250 | B118: Znehodnotenie | C118: =$C$122-D127 -> 0 | D118: =D127-E127 -> 8714.847784 | E118: =E127-F127 -> 4650.027676 | F118: 3875.023063 | G118: 2325.013838 | H118: 1550.009225 | I118: 1162.506919 | J118: 1550.009225 | K118: 775.0046126 | L118: 1162.506919 | M118: 775.0046126 | N118: 775.0046126 | O118: 775.0046126 | P118: 387.5023063 | Q118: 775.0046126 | R118: 387.5023063 | S118: =SUM(C118:R123) -> 93621.68389 | T118: =N127 -> 7750.046126 | U118: Znehodnotenie | V118: 23827.43773
B119: =CF!B17 -> Poistenie | C119: =CF!C17 -> 0 | D119: =CF!D17 -> 164.1634615 | E119: =CF!E17 -> 157.8494822 | F119: =CF!F17 -> 151.7783483 | G119: =CF!G17 -> 145.9407195 | H119: =CF!H17 -> 140.3276149 | I119: =CF!I17 -> 134.930399 | J119: =CF!J17 -> 129.7407682 | K119: =CF!K17 -> 124.7507387 | L119: =CF!L17 -> 119.9526334 | M119: =CF!M17 -> 115.3390705 | N119: =CF!N17 -> 110.9029524 | O119: =CF!O17 -> 106.6374543 | P119: =CF!P17 -> 102.5360137 | Q119: =CF!Q17 -> 98.59232089 | R119: =CF!R17 -> 94.80030855 | U119: Poistenie | V119: 1024.730794
B120: =CF!B18 -> Palivo | C120: =CF!C18 -> 0 | D120: =CF!D18 -> 1616.192308 | E120: =CF!E18 -> 1554.031065 | F120: =CF!F18 -> 1494.26064 | G120: =CF!G18 -> 1436.789076 | H120: =CF!H18 -> 1381.527958 | I120: =CF!I18 -> 1328.392267 | J120: =CF!J18 -> 1277.300257 | K120: =CF!K18 -> 1228.173324 | L120: =CF!L18 -> 1180.935889 | M120: =CF!M18 -> 1135.515278 | N120: =CF!N18 -> 1091.841613 | O120: =CF!O18 -> 1049.847705 | P120: =CF!P18 -> 1009.468947 | Q120: =CF!Q18 -> 970.6432182 | R120: =CF!R18 -> 933.3107867 | U120: Palivo | V120: 10088.49357
B121: =CF!B19 -> Údržba | C121: =CF!C19 -> 0 | D121: =CF!D19 -> 692.3076923 | E121: =CF!E19 -> 665.6804734 | F121: =CF!F19 -> 640.0773782 | G121: =CF!G19 -> 615.4590175 | H121: =CF!H19 -> 591.7875169 | I121: =CF!I19 -> 569.0264585 | J121: =CF!J19 -> 547.1408255 | K121: =CF!K19 -> 526.0969476 | L121: =CF!L19 -> 505.8624496 | M121: =CF!M19 -> 486.4062016 | N121: =CF!N19 -> 467.6982707 | O121: =CF!O19 -> 449.7098757 | P121: =CF!P19 -> 432.413342 | Q121: =CF!Q19 -> 415.7820596 | R121: =CF!R19 -> 399.790442 | U121: Údržba | V121: 4321.479362
B122: =CF!B14 -> Nákup auta | C122: =CF!C14+CF!C15 -> 34290 | D122: =CF!D14 -> 0 | E122: =CF!E14 -> 0 | F122: =CF!F14 -> 0 | G122: =CF!G14 -> 0 | H122: =CF!H14 -> 0 | I122: =CF!I14 -> 0 | J122: =CF!J14 -> 0 | K122: =CF!K14 -> 0 | L122: =CF!L14 -> 0 | M122: =CF!M14 -> 0 | N122: =CF!N14 -> 0 | O122: =CF!O14 -> 0 | P122: =CF!P14 -> 0 | Q122: =CF!Q14 -> 0 | R122: =CF!R14 -> 0 | U122: Nákup auta | V122: 34290
B123: =CF!B16 -> Registračná daň | C123: =CF!C16 -> 1100 | D123: =CF!D16 -> 0 | E123: =CF!E16 -> 0 | F123: =CF!F16 -> 0 | G123: =CF!G16 -> 0 | H123: =CF!H16 -> 0 | I123: =CF!I16 -> 0 | J123: =CF!J16 -> 0 | K123: =CF!K16 -> 0 | L123: =CF!L16 -> 0 | M123: =CF!M16 -> 0 | N123: =CF!N16 -> 0 | O123: =CF!O16 -> 0 | P123: =CF!P16 -> 0 | Q123: =CF!Q16 -> 0 | R123: =CF!R16 -> 0 | U123: Registračná daň | V123: 1100
D125: 0 | E125: 1 | F125: 2 | G125: 3 | H125: 4 | I125: 5 | J125: 6 | K125: 7 | L125: 8 | M125: 9 | N125: 10 | O125: 11 | P125: 12 | Q125: 13 | R125: 14 | S125: 15
A126: =A111 -> Mercedes B 250e | B126: =Kalkulačka!C4 -> Elektromobily | D126: =Kalkulačka!C9 -> 40800 | E126: =IF($A$130=TRUE,Kalkulačka!$C$9*Hárok1!Y30,IF($B$130=TRUE,Kalkulačka!$C$9*Hárok1!Y31,IF($B$126="Spaľovanie",Kalkulačka!$C$9*Hárok1!Y6,Kalkulačka!$C$9*Hárok1!Y29))) -> 26928 | F126: =IF($A$130=TRUE,$D$126*Hárok1!Z30,IF($B$130=TRUE,$D$126*Hárok1!Z31,IF($B$126="Spaľovanie",$D$126*Hárok1!Z6,$D$126*Hárok1!Z29))) -> 22032 | G126: =IF($A$130=TRUE,$D$126*Hárok1!AA30,IF($B$130=TRUE,$D$126*Hárok1!AA31,IF($B$126="Spaľovanie",$D$126*Hárok1!AA6,$D$126*Hárok1!AA29))) -> 17952 | H126: =IF($A$130=TRUE,$D$126*Hárok1!AB30,IF($B$130=TRUE,$D$126*Hárok1!AB31,IF($B$126="Spaľovanie",$D$126*Hárok1!AB6,$D$126*Hárok1!AB29))) -> 15504 | I126: =IF($A$130=TRUE,$D$126*Hárok1!AC30,IF($B$130=TRUE,$D$126*Hárok1!AC31,IF($B$126="Spaľovanie",$D$126*Hárok1!AC6,$D$126*Hárok1!AC29))) -> 13872 | J126: =IF($A$130=TRUE,$D$126*Hárok1!AD30,IF($B$130=TRUE,$D$126*Hárok1!AD31,IF($B$126="Spaľovanie",$D$126*Hárok1!AD6,$D$126*Hárok1!AD29))) -> 12648 | K126: =IF($A$130=TRUE,$D$126*Hárok1!AE30,IF($B$130=TRUE,$D$126*Hárok1!AE31,IF($B$126="Spaľovanie",$D$126*Hárok1!AE6,$D$126*Hárok1!AE29))) -> 11016 | L126: =IF($A$130=TRUE,$D$126*Hárok1!AF30,IF($B$130=TRUE,$D$126*Hárok1!AF31,IF($B$126="Spaľovanie",$D$126*Hárok1!AF6,$D$126*Hárok1!AF29))) -> 10200 | M126: =IF($A$130=TRUE,$D$126*Hárok1!AG30,IF($B$130=TRUE,$D$126*Hárok1!AG31,IF($B$126="Spaľovanie",$D$126*Hárok1!AG6,$D$126*Hárok1!AG29))) -> 8976 | N126: =IF($A$130=TRUE,$D$126*Hárok1!AH30,IF($B$130=TRUE,$D$126*Hárok1!AH31,IF($B$126="Spaľovanie",$D$126*Hárok1!AH6,$D$126*Hárok1!AH29))) -> 8160 | O126: =IF($A$130=TRUE,$D$126*Hárok1!AI30,IF($B$130=TRUE,$D$126*Hárok1!AI31,IF($B$126="Spaľovanie",$D$126*Hárok1!AI6,$D$126*Hárok1!AI29))) -> 7344 | P126: =IF($A$130=TRUE,$D$126*Hárok1!AJ30,IF($B$130=TRUE,$D$126*Hárok1!AJ31,IF($B$126="Spaľovanie",$D$126*Hárok1!AJ6,$D$126*Hárok1!AJ29))) -> 6528 | Q126: =IF($A$130=TRUE,$D$126*Hárok1!AK30,IF($B$130=TRUE,$D$126*Hárok1!AK31,IF($B$126="Spaľovanie",$D$126*Hárok1!AK6,$D$126*Hárok1!AK29))) -> 6120 | R126: =IF($A$130=TRUE,$D$126*Hárok1!AL30,IF($B$130=TRUE,$D$126*Hárok1!AL31,IF($B$126="Spaľovanie",$D$126*Hárok1!AL6,$D$126*Hárok1!AL29))) -> 5304 | S126: =IF($A$130=TRUE,$D$126*Hárok1!AM30,IF($B$130=TRUE,$D$126*Hárok1!AM31,IF($B$126="Spaľovanie",$D$126*Hárok1!AM6,$D$126*Hárok1!AM29))) -> 4896
A127: =A118 -> Mercedes B 250 | B127: =Kalkulačka!D4 -> Spaľovanie | D127: =C122 -> 34290 | E127: =IF($A$131=TRUE,Kalkulačka!$D$9*Hárok1!Y30,IF($B$131=TRUE,Kalkulačka!$D$9*Hárok1!Y31,IF($B$127="Spaľovanie",Kalkulačka!$D$9*Hárok1!Y6,Kalkulačka!$D$9*Hárok1!Y29))) -> 25575.15222 | F127: =IF($A$131=TRUE,Kalkulačka!$D$9*Hárok1!Z30,IF($B$131=TRUE,Kalkulačka!$D$9*Hárok1!Z31,IF($B$127="Spaľovanie",Kalkulačka!$D$9*Hárok1!Z6,Kalkulačka!$D$9*Hárok1!Z29))) -> 20925.12454 | G127: =IF($A$131=TRUE,Kalkulačka!$D$9*Hárok1!AA30,IF($B$131=TRUE,Kalkulačka!$D$9*Hárok1!AA31,IF($B$127="Spaľovanie",Kalkulačka!$D$9*Hárok1!AA6,Kalkulačka!$D$9*Hárok1!AA29))) -> 17050.10148 | H127: =IF($A$131=TRUE,Kalkulačka!$D$9*Hárok1!AB30,IF($B$131=TRUE,Kalkulačka!$D$9*Hárok1!AB31,IF($B$127="Spaľovanie",Kalkulačka!$D$9*Hárok1!AB6,Kalkulačka!$D$9*Hárok1!AB29))) -> 14725.08764 | I127: =IF($A$131=TRUE,Kalkulačka!$D$9*Hárok1!AC30,IF($B$131=TRUE,Kalkulačka!$D$9*Hárok1!AC31,IF($B$127="Spaľovanie",Kalkulačka!$D$9*Hárok1!AC6,Kalkulačka!$D$9*Hárok1!AC29))) -> 13175.07841 | J127: =IF($A$131=TRUE,Kalkulačka!$D$9*Hárok1!AD30,IF($B$131=TRUE,Kalkulačka!$D$9*Hárok1!AD31,IF($B$127="Spaľovanie",Kalkulačka!$D$9*Hárok1!AD6,Kalkulačka!$D$9*Hárok1!AD29))) -> 12012.5715 | K127: =IF($A$131=TRUE,Kalkulačka!$D$9*Hárok1!AE30,IF($B$131=TRUE,Kalkulačka!$D$9*Hárok1!AE31,IF($B$127="Spaľovanie",Kalkulačka!$D$9*Hárok1!AE6,Kalkulačka!$D$9*Hárok1!AE29))) -> 10462.56227 | L127: =IF($A$131=TRUE,Kalkulačka!$D$9*Hárok1!AF30,IF($B$131=TRUE,Kalkulačka!$D$9*Hárok1!AF31,IF($B$127="Spaľovanie",Kalkulačka!$D$9*Hárok1!AF6,Kalkulačka!$D$9*Hárok1!AF29))) -> 9687.557657 | M127: =IF($A$131=TRUE,Kalkulačka!$D$9*Hárok1!AG30,IF($B$131=TRUE,Kalkulačka!$D$9*Hárok1!AG31,IF($B$127="Spaľovanie",Kalkulačka!$D$9*Hárok1!AG6,Kalkulačka!$D$9*Hárok1!AG29))) -> 8525.050739 | N127: =IF($A$131=TRUE,Kalkulačka!$D$9*Hárok1!AH30,IF($B$131=TRUE,Kalkulačka!$D$9*Hárok1!AH31,IF($B$127="Spaľovanie",Kalkulačka!$D$9*Hárok1!AH6,Kalkulačka!$D$9*Hárok1!AH29))) -> 7750.046126 | O127: =IF($A$131=TRUE,Kalkulačka!$D$9*Hárok1!AI30,IF($B$131=TRUE,Kalkulačka!$D$9*Hárok1!AI31,IF($B$127="Spaľovanie",Kalkulačka!$D$9*Hárok1!AI6,Kalkulačka!$D$9*Hárok1!AI29))) -> 6975.041513 | P127: =IF($A$131=TRUE,Kalkulačka!$D$9*Hárok1!AJ30,IF($B$131=TRUE,Kalkulačka!$D$9*Hárok1!AJ31,IF($B$127="Spaľovanie",Kalkulačka!$D$9*Hárok1!AJ6,Kalkulačka!$D$9*Hárok1!AJ29))) -> 6200.036901 | Q127: =IF($A$131=TRUE,Kalkulačka!$D$9*Hárok1!AK30,IF($B$131=TRUE,Kalkulačka!$D$9*Hárok1!AK31,IF($B$127="Spaľovanie",Kalkulačka!$D$9*Hárok1!AK6,Kalkulačka!$D$9*Hárok1!AK29))) -> 5812.534594 | R127: =IF($A$131=TRUE,Kalkulačka!$D$9*Hárok1!AL30,IF($B$131=TRUE,Kalkulačka!$D$9*Hárok1!AL31,IF($B$127="Spaľovanie",Kalkulačka!$D$9*Hárok1!AL6,Kalkulačka!$D$9*Hárok1!AL29))) -> 5037.529982 | S127: =IF($A$131=TRUE,Kalkulačka!$D$9*Hárok1!AM30,IF($B$131=TRUE,Kalkulačka!$D$9*Hárok1!AM31,IF($B$127="Spaľovanie",Kalkulačka!$D$9*Hárok1!AM6,Kalkulačka!$D$9*Hárok1!AM29))) -> 4650.027676
A129: tesla | B129: leaf
A130: =ISNUMBER(SEARCH("Tesla",A126)) -> FALSE | B130: =ISNUMBER(SEARCH("*eaf",A126)) -> FALSE
A131: =ISNUMBER(SEARCH("Tesla",A127)) -> FALSE | B131: =ISNUMBER(SEARCH("*eaf",A127)) -> FALSE

Sheet Pomocné tabuľky (hidden)
A1: 0
A2: 0.01
A3: 0.02
A4: 0.03
A5: 0.04
A6: 0.05
A7: Triedy | B7: Mini | D7: Pohon | E7: Elektromobily
B8: Kompakt | E8: Hybridy a Plug-iny
B9: Stredná | E9: Spaľovanie
B10: SUV
B11: Luxusná
B12: Nákladné
A13: Diskont | B13: =Kalkulačka!H7 -> 0.04
A14: Dotácia | B14: FALSE
B15: 0
B16: 1000
B17: 3000
B18: 5000
B19: 7000
B20: 8000
A22: Modely | B22: =UPPER(IF(OR(Kalkulačka!C3="Stredná",Kalkulačka!C3="SUV"),CONCATENATE(LEFT(Kalkulačka!C3,2),LEFT(Kalkulačka!C4,1)),CONCATENATE(LEFT(Kalkulačka!C3,1),LEFT(Kalkulačka!C4,1)))) -> STE | C22: =UPPER(IF(OR(Kalkulačka!D3="Stredná",Kalkulačka!D3="SUV"),CONCATENATE(LEFT(Kalkulačka!D3,2),LEFT(Kalkulačka!D4,1)),CONCATENATE(LEFT(Kalkulačka!D3,1),LEFT(Kalkulačka!D4,1)))) -> STS
B24: KE | C24: KH | D24: KS | E24: LE | F24: LH | G24: LS | H24: ME | I24: MS | J24: NE | K24: NS | L24: STE | M24: STH | N24: STS | O24: SUE | P24: SUH | Q24: SUS
B25: BMW i3s 94 Ah | C25: BMW i3 94 Ah (REX) | D25: Citroën C3 PureTech 110 Shine | E25: Tesla Model S Long Range | F25: BMW 330e iPerformance | G25: Audi A6 2.0 TDI Quattro | H25: Citroën C-Zero | I25: Fiat 500 TwinAir | L25: Hyundai Ioniq Electric BEV | M25: Audi A3 Sportback 1.4 TFSI e-tron Ambition | N25: Audi A4 Allroad 2.0 TDI Quattro STR | O25: Audi e-tron advanced 55 quattro | P25: Audi Q7 3.0 TDI e-tron Quattro | Q25: Audi Q7 50 TDI Quattro
B26: Kia Soul EV | C26: Toyota CH-R 1.8 Hybrid Executive | D26: Fiat Panda 1.2 | F26: BMW 530e iPerformance | G26: Audi TT Coupe 1.8 TFSI | H26: Fiat 500e | I26: Smart forfour | L26: Mercedes B 250e | M26: BMW 225xe iPerformance | N26: BMW 120i | O26: Hyundai Kona Electric | P26: Kia Niro 1.6 GDI Hybrid | Q26: BMW X5 xDrive40i
B27: Nissan Leaf 2013 | C27: Toyota Yaris 1.5 Hybrid | D27: Hyundai i20 1.0 T-GDI | F27: BMW 740e iPerformance | G27: BMW 730d xDrive | H27: Peugeot iON | I27: Smart fortwo | L27: Tesla Model 3 Standard Range Plus | M27: Hyundai Ioniq 1,6 PHEV | N27: Citroen C4 Cactus PureTech 110 | O27: Jaguar I-Pace | P27: Mercedes GLC 350e 4MATIC | Q27: BMW X6 xDrive40d
B28: Nissan Leaf 2017 | D28: Kia Rio 1.0 T-GDI | F28: BMW 740Le iPerformance | G28: Mercedes C 300 4MATIC | H28: Renault Zoe R90 | I28: Volkswagen 1.0 move up! | M28: Hyundai Ioniq HEV | N28: Dacia Logan MCV TCe 90 Stepway | O28: Kia e-Niro | P28: Mercedes GLE 500e 4MATIC | Q28: Dacia Duster SCe 4x2
B29: Nissan Leaf 2018 | D29: Opel Astra 1.6 Turbo Innovation | F29: BMW 740Le xDrive iPerformance | H29: Smart electric drive forfour | M29: Kia Optima 2.0 Gdi PHEV | N29: Dacia Sandero Stepway Tce 90 Ambience | O29: Mercedes-Benz EQC | P29: Mitsubishi Outlander PHEV | Q29: Ford Kuga 1.5 Ecoboost
B30: Nissan Leaf 3.ZERO e+ | D30: Opel Corsa Gsi 1.4 Turbo | F30: BMW i8 | H30: Smart electric drive fortwo | M30: MINI Countryman S E All4 | N30: Ford Focus Hatchback 1.0 Ecoboost | O30: Tesla Model X Long Range | P30: Toyota RAV4 2.5 Hybrid | Q30: Hyundai Kona 1.6 T-GDi
B31: Opel Ampera-e | D31: Renault Clio Energy TCe 90 | F31: Mercedes C 350e sedan | H31: Volkswagen e-UP! | M31: Toyota Prius Plug-In hybrid 1.8 Plug-in Hybrid | N31: Honda Civic S 1.0 VTEC TURBO | P31: Volvo XC90 T8 eAWD Twin Engine Momentum Pro | Q31: Hyundai Tucson 1.6 CRDi
B32: Peugeot e-208 | D32: Seat Ibiza 1.0 ECO TSI 95 | F32: Mercedes E 350e sedan | H32: ZhiDou D2 | N32: Hyundai i30 1.4i | Q32: Jaguar E-Pace Standard
B33: Škoda CITIGOe IV | D33: Škoda Fabia 1.0 TSI 81kW Active | F33: Mercedes S 500e | N33: Hyundai i30 fastback 1.4 T-GDi | Q33: Jaguar F-Pace Pure
B34: Volkswagen e-Golf | D34: Toyota Yaris 1.5 VVT-i Executive | F34: Porsche Cayenne S E-Hybrid | N34: Kia Ceed 1.0 T-Gdi | Q34: Land Rover Discovery HSE
D35: Volkswagen Golf 1.6 TDI | F35: Porsche Panamera 4 E-Hybrid | N35: Kia Sportage 1.6 GDI | Q35: Mazda CX-3 2WD
D36: Volkswagen Polo 2.0 TSI GTI | N36: Mazda 3 Sedan Skyactiv-G122 | Q36: Mazda CX-5 2WD
D37: Volkswagen Touran 1.5 TSI | N37: Mazda 6 SkyActiv-G 2.0 | Q37: Nissan Qashqai 1.6 DIG-T 160 N-CONNECTA
N38: Mercedes B 250 | Q38: Nissan X-Trail dCi 150 VISIA
N39: Opel Insignia Grand Sport 1.5 Turbo | Q39: Range Rover Sport S
N40: Peugeot 2008 1.2 PureTech 110 | Q40: Renault Kadjar TCe 140 GPF
N41: Renault Megane TCe 100 GPF | Q41: Seat Ateca 1.0 ECO TSI 115
N42: Renault Grand Scenic Tce 115 Zen | Q42: Suzuki SX4 S-Cross 1,4 BOOSTERJET 2WD
N43: Seat Alhambra 1.4 TSI FR | Q43: Suzuki Vitara 1,4 Boosterjet
N44: Seat Leon 5D 1.0 ECO TSI 86 | Q44: Škoda Kamiq 1.0 TSI Active
N45: Škoda Octavia 1.6 TDI | Q45: Škoda Karoq 1.5 TSI ACT 110
N46: Škoda Scala 1.0 TSI Ambition | Q46: Škoda Kodiaq 1.5 TSI ACT 110
N47: Škoda Superb 2.0 TDI SCR Active | Q47: Toyota RAV4 2.0
N48: Volkswagen Arteon 2.0 TSI 4MOTION | Q48: Volkswagen Tiguan 2.0 TDI
N49: Volkswagen Passat 2.0 TDI EVO | Q49: Volkswagen Touareg 3.0 V6 TDI
Q50: Volkswagen T-Roc 1.0 TSI
B54: KE | C54: KH | D54: KS | E54: LE | F54: LH | G54: LS | H54: ME | I54: MS | J54: NE | K54: NS | L54: STE | M54: STH | N54: STS | O54: SUE | P54: SUH | Q54: SUS
B55: Kompakt - elektromobil | C55: Kompakt - hybrid | D55: Kompakt - štandard | E55: Luxusná trieda - elektromobil | F55: Luxusná trieda - hybrid | G55: Luxusná trieda - štandard | H55: Mini - elektromobil | I55: Mini - štandard | J55: Van - elektromobil | K55: Van - štandard | L55: Stredná trieda - elektromobil | M55: Stredná trieda - hybrid | N55: Stredná trieda - štandard | O55: SUV - elektromobil | P55: SUV - hybrid | Q55: SUV - spaľovanie
A56: Cena | B56: =AVERAGEIFS(Data!$I$2:$I$135,Data!$B$2:$B$135,"Elektromobil",Data!$C$2:$C$135,"Kompakt") -> 33979 | C56: =(SUMIFS(Data!$I$2:$I$135,Data!$B$2:$B$135,"Hybrid",Data!$C$2:$C$135,"Kompakt")+SUMIFS(Data!$I$2:$I$135,Data!$B$2:$B$135,"Plug-in",Data!$C$2:$C$135,"Kompakt"))/(COUNTIFS(Data!$B$2:$B$135,"Hybrid",Data!$C$2:$C$135,"Kompakt")+COUNTIFS(Data!$B$2:$B$135,"Plug-in",Data!$C$2:$C$135,"Kompakt")) -> 28860 | D56: =AVERAGEIFS(Data!$I$2:$I$135,Data!$B$2:$B$135,"Standard",Data!$C$2:$C$135,"Kompakt") -> 15359.23077 | E56: =AVERAGEIFS(Data!$I$2:$I$135,Data!$B$2:$B$135,"Elektromobil",Data!$C$2:$C$135,"Luxusné") -> 84000 | F56: =(SUMIFS(Data!$I$2:$I$135,Data!$B$2:$B$135,"Hybrid",Data!$C$2:$C$135,"Luxusné")+SUMIFS(Data!$I$2:$I$135,Data!$B$2:$B$135,"Plug-in",Data!$C$2:$C$135,"Luxusné"))/(COUNTIFS(Data!$B$2:$B$135,"Hybrid",Data!$C$2:$C$135,"Luxusné")+COUNTIFS(Data!$B$2:$B$135,"Plug-in",Data!$C$2:$C$135,"Luxusné")) -> 94246.36364 | G56: =AVERAGEIFS(Data!$I$2:$I$135,Data!$B$2:$B$135,"Standard",Data!$C$2:$C$135,"Luxusné") -> 57187.5 | H56: =AVERAGEIFS(Data!$I$2:$I$135,Data!$B$2:$B$135,"Elektromobil",Data!$C$2:$C$135,"Mini") -> 25976.25 | I56: =AVERAGEIFS(Data!$I$2:$I$135,Data!$B$2:$B$135,"Standard",Data!$C$2:$C$135,"Mini") -> 12975 | J56: =AVERAGEIFS(Data!$I$2:$I$135,Data!$B$2:$B$135,"Elektromobil",Data!$C$2:$C$135,"Nákladné") -> 34886 | K56: =AVERAGEIFS(Data!$I$2:$I$135,Data!$B$2:$B$135,"Standard",Data!$C$2:$C$135,"Nákladné") -> 16690 | L56: =AVERAGEIFS(Data!$I$2:$I$135,Data!$B$2:$B$135,"Elektromobil",Data!$C$2:$C$135,"Stredná trieda") -> 40896.66667 | M56: =(SUMIFS(Data!$I$2:$I$135,Data!$B$2:$B$135,"Hybrid",Data!$C$2:$C$135,"Stredná trieda")+SUMIFS(Data!$I$2:$I$135,Data!$B$2:$B$135,"Plug-in",Data!$C$2:$C$135,"Stredná trieda"))/(COUNTIFS(Data!$B$2:$B$135,"Hybrid",Data!$C$2:$C$135,"Stredná trieda")+COUNTIFS(Data!$B$2:$B$135,"Plug-in",Data!$C$2:$C$135,"Stredná trieda")) -> 36042.85714 | N56: =AVERAGEIFS(Data!$I$2:$I$135,Data!$B$2:$B$135,"Standard",Data!$C$2:$C$135,"Stredná trieda") -> 22755.2 | O56: =AVERAGEIFS(Data!$I$2:$I$135,Data!$B$2:$B$135,"Elektromobil",Data!$C$2:$C$135,"SUV") -> 68373.33333 | P56: =(SUMIFS(Data!$I$2:$I$135,Data!$B$2:$B$135,"Hybrid",Data!$C$2:$C$135,"SUV")+SUMIFS(Data!$I$2:$I$135,Data!$B$2:$B$135,"Plug-in",Data!$C$2:$C$135,"SUV"))/(COUNTIFS(Data!$B$2:$B$135,"Hybrid",Data!$C$2:$C$135,"SUV")+COUNTIFS(Data!$B$2:$B$135,"Plug-in",Data!$C$2:$C$135,"SUV")) -> 57981.42857 | Q56: =AVERAGEIFS(Data!$I$2:$I$135,Data!$B$2:$B$135,"Standard",Data!$C$2:$C$135,"SUV") -> 33652.69231
A57: Dotácia | B57: =Kalkulačka!$H$8 -> 0 | C57: =Kalkulačka!$H$8 -> 0 | E57: =Kalkulačka!$H$8 -> 0 | F57: =Kalkulačka!$H$8 -> 0 | H57: =Kalkulačka!$H$8 -> 0 | J57: =Kalkulačka!$H$8 -> 0 | L57: =Kalkulačka!$H$8 -> 0 | M57: =Kalkulačka!$H$8 -> 0 | O57: =Kalkulačka!H8 -> 0 | P57: =Kalkulačka!H8 -> 0
A58: Daň | B58: =AVERAGEIFS(Data!$U$2:$U$135,Data!$B$2:$B$135,"Elektromobil",Data!$C$2:$C$135,"Kompakt") -> 33 | C58: =(SUMIFS(Data!$U$2:$U$135,Data!$B$2:$B$135,"Hybrid",Data!$C$2:$C$135,"Kompakt")+SUMIFS(Data!$U$2:$U$135,Data!$B$2:$B$135,"Plug-in",Data!$C$2:$C$135,"Kompakt"))/(COUNTIFS(Data!$B$2:$B$135,"Hybrid",Data!$C$2:$C$135,"Kompakt")+COUNTIFS(Data!$B$2:$B$135,"Plug-in",Data!$C$2:$C$135,"Kompakt")) -> 146 | D58: =AVERAGEIFS(Data!$U$2:$U$135,Data!$B$2:$B$135,"Standard",Data!$C$2:$C$135,"Kompakt") -> 220.1538462 | E58: =AVERAGEIFS(Data!$U$2:$U$135,Data!$B$2:$B$135,"Elektromobil",Data!$C$2:$C$135,"Luxusné") -> 33 | F58: =(SUMIFS(Data!$U$2:$U$135,Data!$B$2:$B$135,"Hybrid",Data!$C$2:$C$135,"Luxusné")+SUMIFS(Data!$U$2:$U$135,Data!$B$2:$B$135,"Plug-in",Data!$C$2:$C$135,"Luxusné"))/(COUNTIFS(Data!$B$2:$B$135,"Hybrid",Data!$C$2:$C$135,"Luxusné")+COUNTIFS(Data!$B$2:$B$135,"Plug-in",Data!$C$2:$C$135,"Luxusné")) -> 1422.727273 | G58: =AVERAGEIFS(Data!$U$2:$U$135,Data!$B$2:$B$135,"Standard",Data!$C$2:$C$135,"Luxusné") -> 1257.5 | H58: =AVERAGEIFS(Data!$U$2:$U$135,Data!$B$2:$B$135,"Elektromobil",Data!$C$2:$C$135,"Mini") -> 33 | I58: =AVERAGEIFS(Data!$U$2:$U$135,Data!$B$2:$B$135,"Standard",Data!$C$2:$C$135,"Mini") -> 33 | J58: =AVERAGEIFS(Data!$U$2:$U$135,Data!$B$2:$B$135,"Elektromobil",Data!$C$2:$C$135,"Nákladné") -> 33 | K58: =AVERAGEIFS(Data!$U$2:$U$135,Data!$B$2:$B$135,"Standard",Data!$C$2:$C$135,"Nákladné") -> 110 | L58: =AVERAGEIFS(Data!$U$2:$U$135,Data!$B$2:$B$135,"Elektromobil",Data!$C$2:$C$135,"Stredná trieda") -> 33 | M58: =(SUMIFS(Data!$U$2:$U$135,Data!$B$2:$B$135,"Hybrid",Data!$C$2:$C$135,"Stredná trieda")+SUMIFS(Data!$U$2:$U$135,Data!$B$2:$B$135,"Plug-in",Data!$C$2:$C$135,"Stredná trieda"))/(COUNTIFS(Data!$B$2:$B$135,"Hybrid",Data!$C$2:$C$135,"Stredná trieda")+COUNTIFS(Data!$B$2:$B$135,"Plug-in",Data!$C$2:$C$135,"Stredná trieda")) -> 309 | N58: =AVERAGEIFS(Data!$U$2:$U$135,Data!$B$2:$B$135,"Standard",Data!$C$2:$C$135,"Stredná trieda") -> 267.52 | O58: =AVERAGEIFS(Data!$U$2:$U$135,Data!$B$2:$B$135,"Elektromobil",Data!$C$2:$C$135,"SUV") -> 33 | P58: =(SUMIFS(Data!$U$2:$U$135,Data!$B$2:$B$135,"Hybrid",Data!$C$2:$C$135,"SUV")+SUMIFS(Data!$U$2:$U$135,Data!$B$2:$B$135,"Plug-in",Data!$C$2:$C$135,"SUV"))/(COUNTIFS(Data!$B$2:$B$135,"Hybrid",Data!$C$2:$C$135,"SUV")+COUNTIFS(Data!$B$2:$B$135,"Plug-in",Data!$C$2:$C$135,"SUV")) -> 1041.428571 | Q58: =AVERAGEIFS(Data!$U$2:$U$135,Data!$B$2:$B$135,"Standard",Data!$C$2:$C$135,"SUV") -> 775.3846154
A59: Poistenie | B59: =AVERAGEIFS(Data!$AD$2:$AD$135,Data!$B$2:$B$135,"Elektromobil",Data!$C$2:$C$135,"Kompakt") -> 140.393 | C59: =(SUMIFS(Data!$AD$2:$AD$135,Data!$B$2:$B$135,"Hybrid",Data!$C$2:$C$135,"Kompakt")+SUMIFS(Data!$AD$2:$AD$135,Data!$B$2:$B$135,"Plug-in",Data!$C$2:$C$135,"Kompakt"))/(COUNTIFS(Data!$B$2:$B$135,"Hybrid",Data!$C$2:$C$135,"Kompakt")+COUNTIFS(Data!$B$2:$B$135,"Plug-in",Data!$C$2:$C$135,"Kompakt")) -> 138.66 | D59: =AVERAGEIFS(Data!$AD$2:$AD$135,Data!$B$2:$B$135,"Standard",Data!$C$2:$C$135,"Kompakt") -> 138.83 | E59: =AVERAGEIFS(Data!$AD$2:$AD$135,Data!$B$2:$B$135,"Elektromobil",Data!$C$2:$C$135,"Luxusné") -> 174.54 | F59: =(SUMIFS(Data!$AD$2:$AD$135,Data!$B$2:$B$135,"Hybrid",Data!$C$2:$C$135,"Luxusné")+SUMIFS(Data!$AD$2:$AD$135,Data!$B$2:$B$135,"Plug-in",Data!$C$2:$C$135,"Luxusné"))/(COUNTIFS(Data!$B$2:$B$135,"Hybrid",Data!$C$2:$C$135,"Luxusné")+COUNTIFS(Data!$B$2:$B$135,"Plug-in",Data!$C$2:$C$135,"Luxusné")) -> 181.2227273 | G59: =AVERAGEIFS(Data!$AD$2:$AD$135,Data!$B$2:$B$135,"Standard",Data!$C$2:$C$135,"Luxusné") -> 193.625 | H59: =AVERAGEIFS(Data!$AD$2:$AD$135,Data!$B$2:$B$135,"Elektromobil",Data!$C$2:$C$135,"Mini") -> 117.63375 | I59: =AVERAGEIFS(Data!$AD$2:$AD$135,Data!$B$2:$B$135,"Standard",Data!$C$2:$C$135,"Mini") -> 115.885 | J59: =AVERAGEIFS(Data!$AD$2:$AD$135,Data!$B$2:$B$135,"Elektromobil",Data!$C$2:$C$135,"Nákladné") -> 121.014 | K59: =AVERAGEIFS(Data!$AD$2:$AD$135,Data!$B$2:$B$135,"Standard",Data!$C$2:$C$135,"Nákladné") -> 123.72 | L59: =AVERAGEIFS(Data!$AD$2:$AD$135,Data!$B$2:$B$135,"Elektromobil",Data!$C$2:$C$135,"Stredná trieda") -> 159.87 | M59: =(SUMIFS(Data!$AD$2:$AD$135,Data!$B$2:$B$135,"Hybrid",Data!$C$2:$C$135,"Stredná trieda")+SUMIFS(Data!$AD$2:$AD$135,Data!$B$2:$B$135,"Plug-in",Data!$C$2:$C$135,"Stredná trieda"))/(COUNTIFS(Data!$B$2:$B$135,"Hybrid",Data!$C$2:$C$135,"Stredná trieda")+COUNTIFS(Data!$B$2:$B$135,"Plug-in",Data!$C$2:$C$135,"Stredná trieda")) -> 143.3171429 | N59: =AVERAGEIFS(Data!$AD$2:$AD$135,Data!$B$2:$B$135,"Standard",Data!$C$2:$C$135,"Stredná trieda") -> 174.4592 | O59: =AVERAGEIFS(Data!$AD$2:$AD$135,Data!$B$2:$B$135,"Elektromobil",Data!$C$2:$C$135,"SUV") -> 208.1683333 | P59: =(SUMIFS(Data!$AD$2:$AD$135,Data!$B$2:$B$135,"Hybrid",Data!$C$2:$C$135,"SUV")+SUMIFS(Data!$AD$2:$AD$135,Data!$B$2:$B$135,"Plug-in",Data!$C$2:$C$135,"SUV"))/(COUNTIFS(Data!$B$2:$B$135,"Hybrid",Data!$C$2:$C$135,"SUV")+COUNTIFS(Data!$B$2:$B$135,"Plug-in",Data!$C$2:$C$135,"SUV")) -> 171.0271429 | Q59: =AVERAGEIFS(Data!$AD$2:$AD$135,Data!$B$2:$B$135,"Standard",Data!$C$2:$C$135,"SUV") -> 212.7846154
A60: Spotreba | B60: =AVERAGEIFS(Data!$T$2:$T$135,Data!$B$2:$B$135,"Elektromobil",Data!$C$2:$C$135,"Kompakt")/10 -> 243.7467962 | C60: =((SUMIFS(Data!$T$2:$T$135,Data!$B$2:$B$135,"Hybrid",Data!$C$2:$C$135,"Kompakt")+SUMIFS(Data!$T$2:$T$135,Data!$B$2:$B$135,"Plug-in",Data!$C$2:$C$135,"Kompakt"))/(COUNTIFS(Data!$B$2:$B$135,"Hybrid",Data!$C$2:$C$135,"Kompakt")+COUNTIFS(Data!$B$2:$B$135,"Plug-in",Data!$C$2:$C$135,"Kompakt")))/10 -> 376.1945 | D60: =AVERAGEIFS(Data!$T$2:$T$135,Data!$B$2:$B$135,"Standard",Data!$C$2:$C$135,"Kompakt")/10 -> 830.3553846 | E60: =AVERAGEIFS(Data!$T$2:$T$135,Data!$B$2:$B$135,"Elektromobil",Data!$C$2:$C$135,"Luxusné")/10 -> 284.64 | F60: =((SUMIFS(Data!$T$2:$T$135,Data!$B$2:$B$135,"Hybrid",Data!$C$2:$C$135,"Luxusné")+SUMIFS(Data!$T$2:$T$135,Data!$B$2:$B$135,"Plug-in",Data!$C$2:$C$135,"Luxusné"))/(COUNTIFS(Data!$B$2:$B$135,"Hybrid",Data!$C$2:$C$135,"Luxusné")+COUNTIFS(Data!$B$2:$B$135,"Plug-in",Data!$C$2:$C$135,"Luxusné")))/10 -> 257.9316364 | G60: =AVERAGEIFS(Data!$T$2:$T$135,Data!$B$2:$B$135,"Standard",Data!$C$2:$C$135,"Luxusné")/10 -> 1043.5725 | H60: =AVERAGEIFS(Data!$T$2:$T$135,Data!$B$2:$B$135,"Elektromobil",Data!$C$2:$C$135,"Mini")/10 -> 185.2167592 | I60: =AVERAGEIFS(Data!$T$2:$T$135,Data!$B$2:$B$135,"Standard",Data!$C$2:$C$135,"Mini")/10 -> 730.365 | J60: =AVERAGEIFS(Data!$T$2:$T$135,Data!$B$2:$B$135,"Elektromobil",Data!$C$2:$C$135,"Nákladné")/10 -> 235.7175 | K60: =AVERAGEIFS(Data!$T$2:$T$135,Data!$B$2:$B$135,"Standard",Data!$C$2:$C$135,"Nákladné")/10 -> 813.74 | L60: =AVERAGEIFS(Data!$T$2:$T$135,Data!$B$2:$B$135,"Elektromobil",Data!$C$2:$C$135,"Stredná trieda")/10 -> 218.4216667 | M60: =((SUMIFS(Data!$T$2:$T$135,Data!$B$2:$B$135,"Hybrid",Data!$C$2:$C$135,"Stredná trieda")+SUMIFS(Data!$T$2:$T$135,Data!$B$2:$B$135,"Plug-in",Data!$C$2:$C$135,"Stredná trieda"))/(COUNTIFS(Data!$B$2:$B$135,"Hybrid",Data!$C$2:$C$135,"Stredná trieda")+COUNTIFS(Data!$B$2:$B$135,"Plug-in",Data!$C$2:$C$135,"Stredná trieda")))/10 -> 319.0346429 | N60: =AVERAGEIFS(Data!$T$2:$T$135,Data!$B$2:$B$135,"Standard",Data!$C$2:$C$135,"Stredná trieda")/10 -> 929.4512 | O60: =AVERAGEIFS(Data!$T$2:$T$135,Data!$B$2:$B$135,"Elektromobil",Data!$C$2:$C$135,"SUV")/10 -> 287.9852552 | P60: =((SUMIFS(Data!$T$2:$T$135,Data!$B$2:$B$135,"Hybrid",Data!$C$2:$C$135,"SUV")+SUMIFS(Data!$T$2:$T$135,Data!$B$2:$B$135,"Plug-in",Data!$C$2:$C$135,"SUV"))/(COUNTIFS(Data!$B$2:$B$135,"Hybrid",Data!$C$2:$C$135,"SUV")+COUNTIFS(Data!$B$2:$B$135,"Plug-in",Data!$C$2:$C$135,"SUV")))/10 -> 403.001 | Q60: =AVERAGEIFS(Data!$T$2:$T$135,Data!$B$2:$B$135,"Standard",Data!$C$2:$C$135,"SUV")/10 -> 1034.254231
A61: Údržba | B61: =AVERAGEIFS(Data!$AE$2:$AE$135,Data!$B$2:$B$135,"Elektromobil",Data!$C$2:$C$135,"Kompakt") -> 290 | C61: =(SUMIFS(Data!$AE$2:$AE$135,Data!$B$2:$B$135,"Hybrid",Data!$C$2:$C$135,"Kompakt")+SUMIFS(Data!$AE$2:$AE$135,Data!$B$2:$B$135,"Plug-in",Data!$C$2:$C$135,"Kompakt"))/(COUNTIFS(Data!$B$2:$B$135,"Hybrid",Data!$C$2:$C$135,"Kompakt")+COUNTIFS(Data!$B$2:$B$135,"Plug-in",Data!$C$2:$C$135,"Kompakt")) -> 440 | D61: =AVERAGEIFS(Data!$AE$2:$AE$135,Data!$B$2:$B$135,"Standard",Data!$C$2:$C$135,"Kompakt") -> 480 | E61: =AVERAGEIFS(Data!$AE$2:$AE$135,Data!$B$2:$B$135,"Elektromobil",Data!$C$2:$C$135,"Luxusné") -> 290 | F61: =(SUMIFS(Data!$AE$2:$AE$135,Data!$B$2:$B$135,"Hybrid",Data!$C$2:$C$135,"Luxusné")+SUMIFS(Data!$AE$2:$AE$135,Data!$B$2:$B$135,"Plug-in",Data!$C$2:$C$135,"Luxusné"))/(COUNTIFS(Data!$B$2:$B$135,"Hybrid",Data!$C$2:$C$135,"Luxusné")+COUNTIFS(Data!$B$2:$B$135,"Plug-in",Data!$C$2:$C$135,"Luxusné")) -> 440 | G61: =AVERAGEIFS(Data!$AE$2:$AE$135,Data!$B$2:$B$135,"Standard",Data!$C$2:$C$135,"Luxusné") -> 480 | H61: =AVERAGEIFS(Data!$AE$2:$AE$135,Data!$B$2:$B$135,"Elektromobil",Data!$C$2:$C$135,"Mini") -> 290 | I61: =AVERAGEIFS(Data!$AE$2:$AE$135,Data!$B$2:$B$135,"Standard",Data!$C$2:$C$135,"Mini") -> 480 | J61: =AVERAGEIFS(Data!$AE$2:$AE$135,Data!$B$2:$B$135,"Elektromobil",Data!$C$2:$C$135,"Nákladné") -> 290 | K61: =AVERAGEIFS(Data!$AE$2:$AE$135,Data!$B$2:$B$135,"Standard",Data!$C$2:$C$135,"Nákladné") -> 480 | L61: =AVERAGEIFS(Data!$AE$2:$AE$135,Data!$B$2:$B$135,"Elektromobil",Data!$C$2:$C$135,"Stredná trieda") -> 290 | M61: =(SUMIFS(Data!$AE$2:$AE$135,Data!$B$2:$B$135,"Hybrid",Data!$C$2:$C$135,"Stredná trieda")+SUMIFS(Data!$AE$2:$AE$135,Data!$B$2:$B$135,"Plug-in",Data!$C$2:$C$135,"Stredná trieda"))/(COUNTIFS(Data!$B$2:$B$135,"Hybrid",Data!$C$2:$C$135,"Stredná trieda")+COUNTIFS(Data!$B$2:$B$135,"Plug-in",Data!$C$2:$C$135,"Stredná trieda")) -> 440 | N61: =AVERAGEIFS(Data!$AE$2:$AE$135,Data!$B$2:$B$135,"Standard",Data!$C$2:$C$135,"Stredná trieda") -> 480 | O61: =AVERAGEIFS(Data!$AE$2:$AE$135,Data!$B$2:$B$135,"Elektromobil",Data!$C$2:$C$135,"SUV") -> 290 | P61: =(SUMIFS(Data!$AE$2:$AE$135,Data!$B$2:$B$135,"Hybrid",Data!$C$2:$C$135,"SUV")+SUMIFS(Data!$AE$2:$AE$135,Data!$B$2:$B$135,"Plug-in",Data!$C$2:$C$135,"SUV"))/(COUNTIFS(Data!$B$2:$B$135,"Hybrid",Data!$C$2:$C$135,"SUV")+COUNTIFS(Data!$B$2:$B$135,"Plug-in",Data!$C$2:$C$135,"SUV")) -> 440 | Q61: =AVERAGEIFS(Data!$AE$2:$AE$135,Data!$B$2:$B$135,"Standard",Data!$C$2:$C$135,"SUV") -> 480
A62: Emisie z výroby | B62: =AVERAGEIFS(Data!$Z$2:$Z$135,Data!$B$2:$B$135,"Elektromobil",Data!$C$2:$C$135,"Kompakt")/1000000 -> 10.25 | C62: =((SUMIFS(Data!$Z$2:$Z$135,Data!$B$2:$B$135,"Hybrid",Data!$C$2:$C$135,"Kompakt")+SUMIFS(Data!$Z$2:$Z$135,Data!$B$2:$B$135,"Plug-in",Data!$C$2:$C$135,"Kompakt"))/(COUNTIFS(Data!$B$2:$B$135,"Hybrid",Data!$C$2:$C$135,"Kompakt")+COUNTIFS(Data!$B$2:$B$135,"Plug-in",Data!$C$2:$C$135,"Kompakt")))/1000000 -> 11 | D62: =AVERAGEIFS(Data!$Z$2:$Z$135,Data!$B$2:$B$135,"Standard",Data!$C$2:$C$135,"Kompakt")/1000000 -> 7.923076923 | E62: =AVERAGEIFS(Data!$Z$2:$Z$135,Data!$B$2:$B$135,"Elektromobil",Data!$C$2:$C$135,"Luxusné")/1000000 -> 10.5 | F62: =((SUMIFS(Data!$Z$2:$Z$135,Data!$B$2:$B$135,"Hybrid",Data!$C$2:$C$135,"Luxusné")+SUMIFS(Data!$Z$2:$Z$135,Data!$B$2:$B$135,"Plug-in",Data!$C$2:$C$135,"Luxusné"))/(COUNTIFS(Data!$B$2:$B$135,"Hybrid",Data!$C$2:$C$135,"Luxusné")+COUNTIFS(Data!$B$2:$B$135,"Plug-in",Data!$C$2:$C$135,"Luxusné")))/1000000 -> 11 | G62: =AVERAGEIFS(Data!$Z$2:$Z$135,Data!$B$2:$B$135,"Standard",Data!$C$2:$C$135,"Luxusné")/1000000 -> 7.75 | H62: =AVERAGEIFS(Data!$Z$2:$Z$135,Data!$B$2:$B$135,"Elektromobil",Data!$C$2:$C$135,"Mini")/1000000 -> 10.5 | I62: =AVERAGEIFS(Data!$Z$2:$Z$135,Data!$B$2:$B$135,"Standard",Data!$C$2:$C$135,"Mini")/1000000 -> 8 | J62: =AVERAGEIFS(Data!$Z$2:$Z$135,Data!$B$2:$B$135,"Elektromobil",Data!$C$2:$C$135,"Nákladné")/1000000 -> 10.5 | K62: =AVERAGEIFS(Data!$Z$2:$Z$135,Data!$B$2:$B$135,"Standard",Data!$C$2:$C$135,"Nákladné")/1000000 -> 8 | L62: =AVERAGEIFS(Data!$Z$2:$Z$135,Data!$B$2:$B$135,"Elektromobil",Data!$C$2:$C$135,"Stredná trieda")/1000000 -> 10.5 | M62: =((SUMIFS(Data!$Z$2:$Z$135,Data!$B$2:$B$135,"Hybrid",Data!$C$2:$C$135,"Stredná trieda")+SUMIFS(Data!$Z$2:$Z$135,Data!$B$2:$B$135,"Plug-in",Data!$C$2:$C$135,"Stredná trieda"))/(COUNTIFS(Data!$B$2:$B$135,"Hybrid",Data!$C$2:$C$135,"Stredná trieda")+COUNTIFS(Data!$B$2:$B$135,"Plug-in",Data!$C$2:$C$135,"Stredná trieda")))/1000000 -> 11 | N62: =AVERAGEIFS(Data!$Z$2:$Z$135,Data!$B$2:$B$135,"Standard",Data!$C$2:$C$135,"Stredná trieda")/1000000 -> 7.88 | O62: =AVERAGEIFS(Data!$Z$2:$Z$135,Data!$B$2:$B$135,"Elektromobil",Data!$C$2:$C$135,"SUV")/1000000 -> 10.5 | P62: =((SUMIFS(Data!$Z$2:$Z$135,Data!$B$2:$B$135,"Hybrid",Data!$C$2:$C$135,"SUV")+SUMIFS(Data!$Z$2:$Z$135,Data!$B$2:$B$135,"Plug-in",Data!$C$2:$C$135,"SUV"))/(COUNTIFS(Data!$B$2:$B$135,"Hybrid",Data!$C$2:$C$135,"SUV")+COUNTIFS(Data!$B$2:$B$135,"Plug-in",Data!$C$2:$C$135,"SUV")))/1000000 -> 11 | Q62: =AVERAGEIFS(Data!$Z$2:$Z$135,Data!$B$2:$B$135,"Standard",Data!$C$2:$C$135,"SUV")/1000000 -> 7.615384615
A63: Prevádzkové | B63: =AVERAGEIFS(Data!$X$2:$X$135,Data!$B$2:$B$135,"Elektromobil",Data!$C$2:$C$135,"Kompakt")/1000000 -> 3.058138557 | C63: =(SUMIFS(Data!$X$2:$X$135,Data!$B$2:$B$135,"Hybrid",Data!$C$2:$C$135,"Kompakt")+SUMIFS(Data!$X$2:$X$135,Data!$B$2:$B$135,"Plug-in",Data!$C$2:$C$135,"Kompakt"))/(COUNTIFS(Data!$B$2:$B$135,"Hybrid",Data!$C$2:$C$135,"Kompakt")+COUNTIFS(Data!$B$2:$B$135,"Plug-in",Data!$C$2:$C$135,"Kompakt"))/1000000 -> 6.021906667 | D63: =AVERAGEIFS(Data!$X$2:$X$135,Data!$B$2:$B$135,"Standard",Data!$C$2:$C$135,"Kompakt")/1000000 -> 12.13076923 | E63: =AVERAGEIFS(Data!$X$2:$X$135,Data!$B$2:$B$135,"Elektromobil",Data!$C$2:$C$135,"Luxusné")/1000000 -> 3.5712 | F63: =(SUMIFS(Data!$X$2:$X$135,Data!$B$2:$B$135,"Hybrid",Data!$C$2:$C$135,"Luxusné")+SUMIFS(Data!$X$2:$X$135,Data!$B$2:$B$135,"Plug-in",Data!$C$2:$C$135,"Luxusné"))/(COUNTIFS(Data!$B$2:$B$135,"Hybrid",Data!$C$2:$C$135,"Luxusné")+COUNTIFS(Data!$B$2:$B$135,"Plug-in",Data!$C$2:$C$135,"Luxusné"))/1000000 -> 3.788334545 | G63: =AVERAGEIFS(Data!$X$2:$X$135,Data!$B$2:$B$135,"Standard",Data!$C$2:$C$135,"Luxusné")/1000000 -> 15.175 | H63: =AVERAGEIFS(Data!$X$2:$X$135,Data!$B$2:$B$135,"Elektromobil",Data!$C$2:$C$135,"Mini")/1000000 -> 2.3237988 | I63: =AVERAGEIFS(Data!$X$2:$X$135,Data!$B$2:$B$135,"Standard",Data!$C$2:$C$135,"Mini")/1000000 -> 11.35 | J63: =AVERAGEIFS(Data!$X$2:$X$135,Data!$B$2:$B$135,"Elektromobil",Data!$C$2:$C$135,"Nákladné")/1000000 -> 2.9574 | K63: =AVERAGEIFS(Data!$X$2:$X$135,Data!$B$2:$B$135,"Standard",Data!$C$2:$C$135,"Nákladné")/1000000 -> 11.5 | L63: =AVERAGEIFS(Data!$X$2:$X$135,Data!$B$2:$B$135,"Elektromobil",Data!$C$2:$C$135,"Stredná trieda")/1000000 -> 2.7404 | M63: =(SUMIFS(Data!$X$2:$X$135,Data!$B$2:$B$135,"Hybrid",Data!$C$2:$C$135,"Stredná trieda")+SUMIFS(Data!$X$2:$X$135,Data!$B$2:$B$135,"Plug-in",Data!$C$2:$C$135,"Stredná trieda"))/(COUNTIFS(Data!$B$2:$B$135,"Hybrid",Data!$C$2:$C$135,"Stredná trieda")+COUNTIFS(Data!$B$2:$B$135,"Plug-in",Data!$C$2:$C$135,"Stredná trieda"))/1000000 -> 4.195777143 | N63: =AVERAGEIFS(Data!$X$2:$X$135,Data!$B$2:$B$135,"Standard",Data!$C$2:$C$135,"Stredná trieda")/1000000 -> 13.616 | O63: =AVERAGEIFS(Data!$X$2:$X$135,Data!$B$2:$B$135,"Elektromobil",Data!$C$2:$C$135,"SUV")/1000000 -> 3.613170824 | P63: =(SUMIFS(Data!$X$2:$X$135,Data!$B$2:$B$135,"Hybrid",Data!$C$2:$C$135,"SUV")+SUMIFS(Data!$X$2:$X$135,Data!$B$2:$B$135,"Plug-in",Data!$C$2:$C$135,"SUV"))/(COUNTIFS(Data!$B$2:$B$135,"Hybrid",Data!$C$2:$C$135,"UV")+COUNTIFS(Data!$B$2:$B$135,"Plug-in",Data!$C$2:$C$135,"SUV"))/1000000 -> 8.087344 | Q63: =AVERAGEIFS(Data!$X$2:$X$135,Data!$B$2:$B$135,"Standard",Data!$C$2:$C$135,"SUV")/1000000 -> 16.92307692
A64: Výkon | B64: =AVERAGEIFS(Data!$L$2:$L$135,Data!$B$2:$B$135,"Elektromobil",Data!$C$2:$C$135,"Kompakt") -> 107.94 | C64: =(SUMIFS(Data!$L$2:$L$135,Data!$B$2:$B$135,"Hybrid",Data!$C$2:$C$135,"Kompakt")+SUMIFS(Data!$L$2:$L$135,Data!$B$2:$B$135,"Plug-in",Data!$C$2:$C$135,"Kompakt"))/(COUNTIFS(Data!$B$2:$B$135,"Hybrid",Data!$C$2:$C$135,"Kompakt")+COUNTIFS(Data!$B$2:$B$135,"Plug-in",Data!$C$2:$C$135,"Kompakt")) -> 99.66666667 | D64: =AVERAGEIFS(Data!$L$2:$L$135,Data!$B$2:$B$135,"Standard",Data!$C$2:$C$135,"Kompakt") -> 90.92307692 | E64: =AVERAGEIFS(Data!$L$2:$L$135,Data!$B$2:$B$135,"Elektromobil",Data!$C$2:$C$135,"Luxusné") -> 311 | F64: =(SUMIFS(Data!$L$2:$L$135,Data!$B$2:$B$135,"Hybrid",Data!$C$2:$C$135,"Luxusné")+SUMIFS(Data!$L$2:$L$135,Data!$B$2:$B$135,"Plug-in",Data!$C$2:$C$135,"Luxusné"))/(COUNTIFS(Data!$B$2:$B$135,"Hybrid",Data!$C$2:$C$135,"Luxusné")+COUNTIFS(Data!$B$2:$B$135,"Plug-in",Data!$C$2:$C$135,"Luxusné")) -> 243.1818182 | G64: =AVERAGEIFS(Data!$L$2:$L$135,Data!$B$2:$B$135,"Standard",Data!$C$2:$C$135,"Luxusné") -> 166.75 | H64: =AVERAGEIFS(Data!$L$2:$L$135,Data!$B$2:$B$135,"Elektromobil",Data!$C$2:$C$135,"Mini") -> 57.25 | I64: =AVERAGEIFS(Data!$L$2:$L$135,Data!$B$2:$B$135,"Standard",Data!$C$2:$C$135,"Mini") -> 59.75 | J64: =AVERAGEIFS(Data!$L$2:$L$135,Data!$B$2:$B$135,"Elektromobil",Data!$C$2:$C$135,"Nákladné") -> 68.14 | K64: =AVERAGEIFS(Data!$L$2:$L$135,Data!$B$2:$B$135,"Standard",Data!$C$2:$C$135,"Nákladné") -> 88 | L64: =AVERAGEIFS(Data!$L$2:$L$135,Data!$B$2:$B$135,"Elektromobil",Data!$C$2:$C$135,"Stredná trieda") -> 131.6666667 | M64: =(SUMIFS(Data!$L$2:$L$135,Data!$B$2:$B$135,"Hybrid",Data!$C$2:$C$135,"Stredná trieda")+SUMIFS(Data!$L$2:$L$135,Data!$B$2:$B$135,"Plug-in",Data!$C$2:$C$135,"Stredná trieda"))/(COUNTIFS(Data!$B$2:$B$135,"Hybrid",Data!$C$2:$C$135,"Stredná trieda")+COUNTIFS(Data!$B$2:$B$135,"Plug-in",Data!$C$2:$C$135,"Stredná trieda")) -> 128.8571429 | N64: =AVERAGEIFS(Data!$L$2:$L$135,Data!$B$2:$B$135,"Standard",Data!$C$2:$C$135,"Stredná trieda") -> 98.236 | O64: =AVERAGEIFS(Data!$L$2:$L$135,Data!$B$2:$B$135,"Elektromobil",Data!$C$2:$C$135,"SUV") -> 245 | P64: =(SUMIFS(Data!$L$2:$L$135,Data!$B$2:$B$135,"Hybrid",Data!$C$2:$C$135,"SUV")+SUMIFS(Data!$L$2:$L$135,Data!$B$2:$B$135,"Plug-in",Data!$C$2:$C$135,"SUV"))/(COUNTIFS(Data!$B$2:$B$135,"Hybrid",Data!$C$2:$C$135,"SUV")+COUNTIFS(Data!$B$2:$B$135,"Plug-in",Data!$C$2:$C$135,"SUV")) -> 208.6271429 | Q64: =AVERAGEIFS(Data!$L$2:$L$135,Data!$B$2:$B$135,"Standard",Data!$C$2:$C$135,"SUV") -> 133.4615385
B65: =AVERAGEIFS(Data!$J$2:$J$135,Data!$B$2:$B$135,"=Elektromobil",Data!$C$2:$C$135,"=Kompakt")/B56 -> 0 | C65: =AVERAGEIFS(Data!$J$2:$J$135,Data!$B$2:$B$135,"=Plug-in",Data!$C$2:$C$135,"=Kompakt")/C56 -> 0 | E65: =AVERAGEIFS(Data!$J$2:$J$135,Data!$B$2:$B$135,"=Elektromobil",Data!$C$2:$C$135,"=Luxusné")/E56 -> 0 | F65: =AVERAGEIFS(Data!$J$2:$J$135,Data!$B$2:$B$135,"=Plug-in",Data!$C$2:$C$135,"=Luxusné")/F56 -> 0 | H65: =AVERAGEIFS(Data!$J$2:$J$135,Data!$B$2:$B$135,"=Elektromobil",Data!$C$2:$C$135,"=Mini")/H56 -> 0 | L65: =AVERAGEIFS(Data!$J$2:$J$135,Data!$B$2:$B$135,"=Elektromobil",Data!$C$2:$C$135,"=Stredná trieda")/L56 -> 0 | M65: =AVERAGEIFS(Data!$J$2:$J$135,Data!$B$2:$B$135,"=Plug-in",Data!$C$2:$C$135,"=Stredná trieda")/M56 -> 0 | O65: =AVERAGEIFS(Data!$J$2:$J$135,Data!$B$2:$B$135,"=Elektromobil",Data!$C$2:$C$135,"=SUV")/O56 -> 0 | P65: =AVERAGEIFS(Data!$J$2:$J$135,Data!$B$2:$B$135,"=Plug-in",Data!$C$2:$C$135,"=SUV")/P56 -> 0

Sheet Hárok1 (hidden)
A1: Porovnanie typov pohonov podľa nákladov na údržbu a opravy
A2: Štúdia | C2: How Expensive Are Electric Vehicles? A Total Cost of Ownership (2013) | D2: Low Carbon Cars in the 2020s: Consumer Impacts and EU Policy Implications (2016) | E2: Battery Electric Vehicles vs. Internal Combustion Vehicles (2016) | F2: Cost Analysis of Plug-in Hybrid Electric Vehicles Including Maintenance & Repair Costs and Resale Values (2012) | H2: Priemerné ukazovatele | V2: zdroj: | W2: http://www.element-energy.co.uk/wordpress/wp-content/uploads/2017/01/20161122_Low-carbon-cars-in-the-2020s---Consumer-impacts-and-EU-policy-implications---FINAL-REPORT.pdf | X2: prepočty iep
C3: N / A | D3: EU | E3: USA | F3: USA, EU a Japonsko
B4: Klasický spaľovací pohon | C4: 1 | D4: 1 | E4: 1 | F4: 1 | G4: 1 | X4: 0 | Y4: 1 | Z4: 2 | AA4: 3 | AB4: 4 | AC4: 5 | AD4: 6 | AE4: 7 | AF4: 8 | AG4: 9 | AH4: 10 | AI4: 11 | AJ4: 12 | AK4: 13 | AL4: 14 | AM4: 15
B5: Hybrid a plug-in hybrid | C5: 1 | D5: 0.7 | E5: 1 | F5: =7.1/7.3 -> 0.9726027397 | G5: 1 | H5: =AVERAGE(C5:G5) -> 0.9345205479 | W5: Spaľovací pohon | X5: 1 | Y5: =Y7*(1+AE41) -> 0.780188192 | Z5: =Y5*Z7/Y7 -> 0.6383357934 | AA5: =Z5*AA7/Z7 -> 0.5201254613 | AB5: 0.449199262 | AC5: 0.4019151292 | AD5: 0.3664520296 | AE5: 0.3191678967 | AF5: 0.2955258303 | AG5: 0.2600627307 | AH5: 0.2364206642 | AI5: 0.2127785978 | AJ5: 0.1891365314 | AK5: 0.1773154982 | AL5: 0.1536734317 | AM5: 0.1418523985
B6: Elektromobil | C6: 0.65 | D6: 0.5 | E6: 0.4 | F6: =5.9/7.3 -> 0.8082191781 | G6: =435/609 -> 0.7142857143 | H6: =AVERAGE(C6:G6) -> 0.6145009785 | W6: Spaľovací pohon povýšený o základnú dotáciu | X6: 1 | Y6: =Y7*(1+AE40) -> 0.7458487085 | Z6: =Y6*Z7/Y7 -> 0.6102398524 | AA6: =Z6*AA7/Z7 -> 0.4972324724 | AB6: =AA6*AB7/AA7 -> 0.4294280443 | AC6: 0.3842250923 | AD6: 0.3503228783 | AE6: 0.3051199262 | AF6: 0.2825184502 | AG6: 0.2486162362 | AH6: 0.2260147602 | AI6: 0.2034132841 | AJ6: 0.1808118081 | AK6: 0.1695110701 | AL6: 0.1469095941 | AM6: 0.1356088561
W7: Spaľovací pohon | X7: 1 | Y7: =0.66 -> 0.66 | Z7: 0.54 | AA7: 0.44 | AB7: 0.38 | AC7: 0.34 | AD7: 0.31 | AE7: 0.27 | AF7: 0.25 | AG7: 0.22 | AH7: 0.2 | AI7: 0.18 | AJ7: 0.16 | AK7: 0.15 | AL7: 0.13 | AM7: 0.12
B8: Klasický spaľovací pohon | E8: =5500/20*0.88 -> 242 | F8: =0.073*10000 -> 730 | G8: =609 -> 609 | H8: =ROUNDDOWN(AVERAGE(E8:F8),-1) -> 480 | W8: Elektrický pohon s dotáciou 1000 eur | X8: 1 | Y8: =Y7*(1-AE38) -> 0.6428302583 | Z8: =Y8*Z7/Y7 -> 0.5259520295 | AA8: =Z8*AA7/Z7 -> 0.4285535055 | AB8: 0.3701143911 | AC8: 0.3311549815 | AD8: 0.3019354243 | AE8: 0.2629760148 | AF8: 0.24349631 | AG8: 0.2142767528 | AH8: 0.194797048 | AI8: 0.1753173432 | AJ8: 0.1558376384 | AK8: 0.146097786 | AL8: 0.1266180812 | AM8: 0.1168782288
B9: Hybrid a plug-in hybrid | E9: =5500/20*0.88 -> 242 | F9: =0.071*10000 -> 710 | G9: =609 -> 609 | H9: =ROUNDDOWN(H8*H5,-1) -> 440 | W9: Elektrický pohon s dotáciou 3000 eur | X9: 1 | Y9: =Y7*(1-AE39) -> 0.6084907749 | Z9: =Y9*Z7/Y7 -> 0.4978560885 | AA9: =Z9*AA7/Z7 -> 0.4056605166 | AB9: 0.3503431734 | AC9: 0.3134649446 | AD9: 0.285806273 | AE9: 0.2489280443 | AF9: 0.2304889299 | AG9: 0.2028302583 | AH9: 0.1843911439 | AI9: 0.1659520295 | AJ9: 0.1475129151 | AK9: 0.1382933579 | AL9: 0.1198542435 | AM9: 0.1106346863
B10: Elektromobil | E10: =2200/20*0.88 -> 96.8 | F10: =0.059*10000 -> 590 | G10: =435 -> 435 | H10: =ROUNDDOWN(H8*H6,-1) -> 290 | W10: Elektrický pohon s dotáciou 5000 eur | X10: 1 | Y10: =Y7*(1-AE40) -> 0.5741512915 | Z10: =Y10*Z7/Y7 -> 0.4697601476 | AA10: =Z10*AA7/Z7 -> 0.3827675276 | AB10: 0.3305719557 | AC10: 0.2957749077 | AD10: 0.2696771217 | AE10: 0.2348800738 | AF10: 0.2174815498 | AG10: 0.1913837638 | AH10: 0.1739852398 | AI10: 0.1565867159 | AJ10: 0.1391881919 | AK10: 0.1304889299 | AL10: 0.1130904059 | AM10: 0.1043911439
W11: Elektrický pohon s dotáciou 7000 eur | X11: 1 | Y11: =Y7*(1-AE41) -> 0.539811808 | Z11: =Y11*Z7/Y7 -> 0.4416642066 | AA11: 0.3598745387 | AB11: 0.310800738 | AC11: 0.2780848708 | AD11: 0.2535479704 | AE11: 0.2208321033 | AF11: 0.2044741697 | AG11: 0.1799372693 | AH11: 0.1635793358 | AI11: 0.1472214022 | AJ11: 0.1308634686 | AK11: 0.1226845018 | AL11: 0.1063265683 | AM11: 0.09814760146
Y12: =Y7*(1+AE48) -> 0.66 | Z12: =Y12*Z7/Y7 -> 0.54 | AA12: 0.44 | AB12: 0.38 | AC12: 0.34 | AD12: 0.31 | AE12: 0.27 | AF12: 0.25 | AG12: 0.22 | AH12: 0.2 | AI12: 0.18 | AJ12: 0.16 | AK12: 0.15 | AL12: 0.13 | AM12: 0.12
C14: #1 | D14: #2 | E14: #3 | F14: #4 | G14: #5
C15: 2013 | D15: 2016 | E15: 2012 | F15: 2016 | G15: ako #3, prepočty z amerického trhu, okrem baterky a klímy
C16: nešpecifikované, asi EU | D16: USA | E16: USA, EU, Japan | F16: EU | G16: USA
B18: ICE | C18: benchmark | D18: 5500 USD resp 5700 USD/ 20 rokov | E18: 7,3 ct € / km | F18: benchmark | G18: 609 € / 10 000km
B19: (P)HEV | C19: ako ICE | D19: 5500 USD resp 5700 USD/ 20 rokov | E19: 7,1 ct € / km | F19: 0.7 | G19: 609 € / 10 000km
B20: BEV | C20: 65% ICE resp. 80% | D20: 2200 USD resp 2300 USD / 20 rokov | E20: 5,9 ct € / km | F20: 0.5 | G20: 435 € / 10000 km
C21: 0.65 | D21: =2200/5500 -> 0.4 | E21: =5.9/7.3 -> 0.8082191781 | F21: 0.5 | G21: =435/609 -> 0.7142857143 | H21: =AVERAGE(C21:G21) -> 0.6145009785
B23: rok | D23: =5500/20 -> 275 | E23: =0.073*15000 -> 1095 | G23: =609*1.5 -> 913.5 | H23: =ROUNDDOWN(AVERAGE(D23:G23),-1) -> 760
D24: =5500/20 -> 275 | E24: =0.071*15000 -> 1065 | G24: =609*1.5 -> 913.5 | H24: =ROUNDDOWN(H23*0.7,-1) -> 530
D25: =2200/20 -> 110 | E25: =0.059*15000 -> 885 | G25: =435*1.5 -> 652.5 | H25: =ROUNDDOWN(H23*H21,-1) -> 460
H26: =H25/H23 -> 0.6052631579
W28: Spaľovací pohon | X28: 1 | Y28: =Y7*(1+AG35) -> 0.66 | Z28: =Y28*Z7/Y7 -> 0.54 | AA28: =Z28*AA7/Z7 -> 0.44 | AB28: 0.38 | AC28: 0.34 | AD28: 0.31 | AE28: 0.27 | AF28: 0.25 | AG28: 0.22 | AH28: 0.2 | AI28: 0.18 | AJ28: 0.16 | AK28: 0.15 | AL28: 0.13 | AM28: 0.12
A29: Publikácia | C29: Despite Colorado's Push for Electric Cars, Some Depreciate as Much as 70% over Five Years | D29: Electric Car Depreciation - Will Electric Vehicles Lose Their Value? | E29: Depreciation of Electric Cars Varies Greatly across Different Models | F29: Electric Vehicle Depreciation - The Hidden Cost of EV Ownership | G29: Cars with the Lowest and Highest Depreciation | H29: Electric Vehicle Residual Vale Outlook | I29: Do Electric Vehicles Need Subsidies? A Comparison of Ownership Costs for Conventional, Hybrid and Electric Vehicles | J29: Forecasting the Value of Battery Electric Vehicles Compared to Internal Combustion Vehicles: The Influence of Driving Range and Battery Technology | K29: Low Carbon Cars in 2020s: Consumer Impacts and EU Policy Implications | W29: Elektrický pohon | X29: 1 | Y29: =Y7*(1-AG35) -> 0.66 | Z29: =Y29*Z7/Y7 -> 0.54 | AA29: =Z29*AA7/Z7 -> 0.44 | AB29: 0.38 | AC29: 0.34 | AD29: 0.31 | AE29: 0.27 | AF29: 0.25 | AG29: 0.22 | AH29: 0.2 | AI29: 0.18 | AJ29: 0.16 | AK29: 0.15 | AL29: 0.13 | AM29: 0.12
A30: Charakter publikácie | C30: Článok v online magazíne | D30: Článok v online magazíne | E30: Článok v online magazíne | F30: Článok v online magazíne | G30: Článok v online magazíne | H30: Report Moody's Analytics | I30: Štúdia School of Sustainability, Arizona State University a School of Geographical Sciences and Urban Planning, Arizona State University | J30: Štúdia Massachusetts Institute of Technology | K30: Štúdia The European Consumer Organization | W30: Tesla | X30: 1 | Y30: =Y5*(1+AE42) -> 0.8613738267 | Z30: =Y30*Z7/Y7 -> 0.7047604037 | AA30: =Z30*AA7/Z7 -> 0.5742492178 | AB30: 0.4959425063 | AC30: 0.443738032 | AD30: 0.4045846762 | AE30: 0.3523802018 | AF30: 0.3262779647 | AG30: 0.2871246089 | AH30: 0.2610223717 | AI30: 0.2349201346 | AJ30: 0.2088178974 | AK30: 0.1957667788 | AL30: 0.1696645416 | AM30: 0.156613423
A31: Rok publikovania | C31: 2018 | D31: 2018 | E31: 2018 | F31: 2018 | G31: 2018 | H31: 2017 | I31: 2017 | J31: 2018 | K31: 2016 | W31: Leaf | X31: 1 | Y31: =Y11*(1-AE42) -> 0.4836395092 | Z31: =Y31*Z7/Y7 -> 0.395705053 | AA31: =Z31*AA7/Z7 -> 0.3224263394 | AB31: 0.2784591113 | AC31: 0.2491476259 | AD31: 0.2271640119 | AE31: 0.1978525265 | AF31: 0.1831967838 | AG31: 0.1612131697 | AH31: 0.146557427 | AI31: 0.1319016843 | AJ31: 0.1172459416 | AK31: 0.1099180703 | AL31: 0.09526232756 | AM31: 0.08793445621
A32: Geografické zameranie | C32: USA | D32: UK | E32: UK | F32: UK | G32: USA | H32: USA | I32: USA | J32: USA | K32: EU
A33: Rozsah analýzy | C33: Konkrétne modely | D33: Konkrétne modely | E33: Konkrétne modely | F33: Všeobecné závery | G33: Konkrétne modely | H33: Všeobecné závery | I33: Konkrétne modely | J33: Všeobecné závery | K33: Všeobecné závery | X33: ľubovoľná dotácia
A34: Miera amortizácie | B34: Klasický spaľovací pohon | C34: 50% za 5 rokov | D34: 40% za 5 rokov | E34: 30-50% za 5 rokov | F34: v priemere 2114 USD ročne pre sedan | G34: 30-50% za 5 rokov | H34: 55% za 4 roky | J34: Štúdia odvádza výsledky od dojazdu. V závislosti od tohto faktora majú autá s alternatívnym pohonom 1,5 až 4-násobne vyššie náklady životnosti na kilometer (míľu) jazdy. | K34: Štúdia používa jednotné tempo amortizácie pre všetky typy pohonov. | X34: KE | Y34: KH | Z34: LE | AA34: LH | AB34: ME | AC34: STE | AD34: STH | AE34: SUE | AF34: SUH | AG34: Priemer
B35: Hybrid a plug-in hybrid | C35: 60-70% za 5 rokov | D35: 50-70% za 5 rokov s výnimkou Tesly | E35: 35-60% za 5 rokov s výnimkou Tesly | F35: v priemere 3301 USD ročne pre mestský hybrid | G35: 40-70% za 5 rokov | H35: 60% za 4 roky | I35: 55-75% za 5 rokov | X35: =HLOOKUP(X34,'Pomocné tabuľky'!B54:N65,12,FALSE) -> 0 | Y35: =HLOOKUP(Y34,'Pomocné tabuľky'!C54:O65,12,FALSE) -> 0 | Z35: =HLOOKUP(Z34,'Pomocné tabuľky'!D54:P65,12,FALSE) -> 0 | AA35: =HLOOKUP(AA34,'Pomocné tabuľky'!E54:Q65,12,FALSE) -> 0 | AB35: =HLOOKUP(AB34,'Pomocné tabuľky'!F54:R65,12,FALSE) -> 0 | AC35: =HLOOKUP(AC34,'Pomocné tabuľky'!G54:S65,12,FALSE) -> 0 | AD35: =HLOOKUP(AD34,'Pomocné tabuľky'!H54:T65,12,FALSE) -> 0 | AE35: =HLOOKUP(AE34,'Pomocné tabuľky'!I54:U65,12,FALSE) -> 0 | AF35: =HLOOKUP(AF34,'Pomocné tabuľky'!J54:V65,12,FALSE) -> 0 | AG35: =AVERAGE(X35:AF35) -> 0
B36: Elektromobil | F36: v priemere 5704 USD ročne pre malý elektromobil | H36: 75% za 4 roky
X37: KE | Y37: KH | Z37: LE | AA37: LH | AB37: ME | AC37: SE | AD37: SH | AE37: Priemer
W38: 1000 | X38: 0.0282041984 | Y38: 0.03854678616 | Z38: 0.01304206065 | AA38: 0.01217848792 | AB38: 0.037470726 | AC38: 0.0249388997 | AD38: 0.02772216233 | AE38: 0.02601476016
W39: 3000 | X39: 0.08461259519 | Y39: 0.1156403585 | Z39: 0.03912618194 | AA39: 0.03653546376 | AB39: 0.112412178 | AC39: 0.07481669909 | AD39: 0.08316648699 | AE39: 0.07804428049
B40: https://www.denverpost.com/2018/10/11/electric-car-depreciation/ | W40: 5000 | X40: 0.141020992 | Y40: 0.1927339308 | Z40: 0.06521030323 | AA40: 0.06089243959 | AB40: 0.18735363 | AC40: 0.1246944985 | AD40: 0.1386108116 | AE40: 0.1300738008
B41: https://www.iseecars.com/cars-low-high-depreciation-2018-study | W41: 7000 | X41: 0.1974293888 | Y41: 0.2698275031 | Z41: 0.09129442452 | AA41: 0.08524941543 | AB41: 0.262295082 | AC41: 0.1745722979 | AD41: 0.1940551363 | AE41: 0.1821033211
B42: https://www.drivingelectric.com/your-questions-answered/624/electric-car-depreciation-will-electric-vehicles-lose-their-value | AE42: =AVERAGE(AE38:AE41) -> 0.1040590407
B43: https://www.insurethegap.com/articles/depreciation-of-electric-cars-varies-greatly-across-different-models
B44: https://crestlineautotransport.com/blog/electric-vehicle-depreciation/
B45: https://www.thisismoney.co.uk/money/cars/article-6154937/Should-switch-electric-car-now.html
B46: https://www.moodysanalytics.com/-/media/presentation/2017/electric-vehicle-residual-value-outlook.pdf
B47: https://energy.umich.edu/te3/wp-content/uploads/sites/2/2018/09/Final-Breetz-Salon-EV-Ownership-Costs-v3-TE3-2.pdf
B48: https://arxiv.org/ftp/arxiv/papers/1806/1806.06947.pdf
B49: http://www.element-energy.co.uk/wordpress/wp-content/uploads/2017/01/20161122_Low-carbon-cars-in-the-2020s---Consumer-impacts-and-EU-policy-implications---FINAL-REPORT.pdf

Sheet Hárok2 (hidden)
A1: Porovnanie typov pohonov podľa nákladov na údržbu a opravy
B2: Špecifické trhy | C2: Klasický spaľovací pohon | D2: Hybrid a plug-in hybrid | E2: Elektromobil
A3: Kenneth Lebeau et al. (2013) | B3: N /A | C3: 1 | D3: 1 | E3: 0.65
A4: Stewart, A. - Dodson, T. (2016) | B4: EU | C4: 1 | D4: 0.7 | E4: 0.5
